Workbook

Sheet Read Me
A2: Onsite solar PV: Ready Reckoner for Import Avoidance

Sheet Import avoidance model - RR
C4: Onsite solar PV: battery storage ready reckoner for import avoidance
C6: Instructions
F8: Green cells must be filled in | L8: Blue cells are optional
C11: Inputs
C12: DEMAND | F12: GENERATION / IMPORT | L12: STORAGE SOLUTION
C14: Host site annual demand (kWh) | D14: 500000 | F14: Solar array size (kWp) | H14: 200 | I14: Start time | J14: end time | L14: Battery capacity (kW) | N14: 30
C15: Annual days of 'use' | D15: 195 | F15: Imported Electricity cost, rate 1 (p/kWh) | H15: 10 | I15: 07:30:00 | J15: 23:59:00 | L15: Battery delivery (hrs) | N15: 2
C16: Annual days of 'non-use' | D16: 170 | F16: Imported Electricity cost, rate 2 (p/kWh) | H16: 6 | I16: 00:00:00 | J16: 07:29:00 | L16: Minimum charge % | N16: 0.2
C17: Building type | D17: Secondary school | F17: Is there a PPA for PV generation? | H17: Y | L17: Minimum charge kWh | N17: =N16*N15*N14 -> 12
C18: Typical Ratio of 'Non-use' to 'Use'daily demand for that type of building | F18: PPA - PV electricity cost (p/kWh) | H18: 7.5 | L18: Battery O&M cost (% CAPEX) | N18: 0.02 | O18: ="(£"&-TEXT('IRR and ROI'!E6,"0.00")&")" -> (£224.93)
D19: =VLOOKUP(D17,Data!A2:B5,2,FALSE) -> 0.56 | F19: Is there a PPA for the Storage generation? | H19: Y | L19: Lifetime of battery (yrs) | N19: 10
F20: PPA - Storage electricity cost (p/kWh) | H20: 7.5 | L20: Project development costs | N20: 0.06 | O20: ="(£"&-TEXT('IRR and ROI'!D8,"0.00")&")" -> (£674.8)
C21: Definition of 'Use' and 'Non-Use'
F22: Does the project need to account for finance costs? | I22: Y
C23: If you feel the proportions of 'ise' to 'non-use' are not quite right, you can adjust it using the slider below: | J23: FINANCE
O24: Per annum:
J25: Cost of finance (annual cost) | N25: 0.05 | O25: ="(£"&-TEXT('IRR and ROI'!E7,"0.00")&")" -> (£562.33)
C26: Ratio of 'Non-Use' to 'Use' daily demand used: | F26: =IF(D27=50,D19,(((D27-50)/100)+D19)) -> 0.57 | J26: Length of term (yrs) before full repayment | N26: 10
D27: 51 | J27: Loan setup cost (%) | N27: 0.01 | O27: ="(£"&-TEXT('IRR and ROI'!D9,"0.00")&")" -> (£112.47)
C28: Additional annual demand (kWh) | F28: Add some extra kWh annual demand in here if you want. This could represent the demand of a proposed building, or equimpent | J28: Target annual ROI | N28: 0.05
C31: Headline Results
C33: Annual cost of importing all the demand (no PV)
C34: Annual import and PPA costs, with a PV array | F34: =LOGIC!AP110 -> 39682.01139 | G34: Battery cost (installed) | I34: ='IRR and ROI'!C16 -> -12033.95916
C35: Annual import costs with a PV and storage | G35: Net annual income on savings from using storage (excluding any finance costs) | I35: ='IRR and ROI'!E11 -> 593.8748888 | L35: Cumulative cash flow at end of the project | N35: =HLOOKUP(N26,'IRR and ROI'!E2:AC12,11) -> -5532.875727
C39: Benefits
C40: Community Energy Group (owner) | I40: Host site (energy user)
C41: Battery Investment required | D41: =I34*-1 -> 12033.95916 | F41: This is the cost of installing the battery
C42: Annual solar PV income - PPA | D42: =IF(H17="N",0,LOGIC!T118) -> 15640.36767 | H42: Annual import cost (no PV or storage) (baseline) | L42: =LOGIC!Z110 -> 44429.71499 | M42: This is the electricity bill that would be paid, if all electricity was imported
C43: Annual storage income - PPA | D43: =IF(H19="N",0,LOGIC!T119) -> 1381.143245 | H43: Electricity bill savings by using PV | L43: =LOGIC!V115 -> 4747.703597 | M43: Savings from using PV, even if paying a PPA
C44: Simple payback from storage income only: | D44: ='IRR and ROI'!C21 -> 32.6 Yrs: No payback within lifetime of battery | G44: This will show N/A if the finance costs are more than the income | H44: Electricity savings by using storage (in addition to the onsite PV) | L44: =LOGIC!W116 -> 460.3810816 | M44: Savings from using a battery, even if paying a PPA
H45: Total electricity savings from PV and Storage | L45: =SUM(L43:L44) -> 5208.084679
C47: To break even at the end of the battery lifetime, capital costs would have to reduce by: | F47: ='IRR and ROI'!D32 -> 0.3061897656 | I47: New total annual electricity bill (modelled) | L47: =L42-L45 -> 39221.63031
C48: To achieve the target ROI each year, capital costs would have to reduce by: | F48: ='IRR and ROI'!D36 -> 0.570135841
C57: Typical daily demand and generation profiles
C77: Battery state of charge, for 'In use' days and 'not in use' days
C98: Typical energy balance, for each season
C101: Seasonal savings, if using a battery | D101: Autumn
D102: =IF(D101="Spring",LOGIC!T123,IF(D101="Summer",LOGIC!U123,IF(D101="Autumn",LOGIC!V123,IF(D101="Winter",LOGIC!W123,"")))) -> 310.57257
C123: Modelled Cashflow
C141: Battery Costs - PLEASE UPDATE
L142: Current selection: | M142: =Data!E70 -> 60 | N142: kW
C143: Manufacturer | D143: Assumed lifetime | F143: Unit Capacity / kWh | H143: Price ex Vat | I143: Date price was harvested | L143: Estimated cost: | M143: =Data!F76 -> 11246.6908
C144: Tesla | D144: 10 | F144: 14 | H144: 5913 | J144: 2017-03-01
C145: Solax | D145: 10 | F145: 4.8 | H145: 3492 | J145: 2017-03-01
C146: LG Chem | D146: 10 | F146: 3 | H146: 3613 | J146: 2017-03-01
C147: LG Chem | D147: 10 | F147: 3.5 | H147: 4603 | J147: 2017-03-01
C148: LG Chem | D148: 10 | F148: 10 | H148: 5373 | J148: 2017-03-01
C155: DISCLAIMER: This tool is to be used for illustrative purposes only and must not be used to make financial decisions.

Sheet Definition
A2: Definitions

Sheet IRR and ROI (hidden)
A2: Battery lifetime | B2: ='Import avoidance model - RR'!N19 -> 10 | E2: 1 | F2: 2 | G2: 3 | H2: 4 | I2: 5 | J2: 6 | K2: 7 | L2: 8 | M2: 9 | N2: 10 | O2: 11 | P2: 12 | Q2: 13 | R2: 14 | S2: 15 | T2: 16 | U2: 17 | V2: 18 | W2: 19 | X2: 20 | Y2: 21 | Z2: 22 | AA2: 23 | AB2: 24 | AC2: 25
D4: Year0 | E4: Year1 | F4: Year2 | G4: Year3 | H4: Year4 | I4: Year5 | J4: Year6 | K4: Year7 | L4: Year8 | M4: Year9 | N4: Year10 | O4: Year11 | P4: Year12 | Q4: Year13 | R4: Year14 | S4: Year15 | T4: Year16 | U4: Year17 | V4: Year18 | W4: Year19 | X4: Year20 | Y4: Year21 | Z4: Year22 | AA4: Year23 | AB4: Year24 | AC4: Year25
B5: Battery Capex | D5: =-Data!F76 -> -11246.6908
B6: Battery O&M | C6: ='Import avoidance model - RR'!N18 -> 0.02 | E6: =IF(E2<=$B$2,$D$5*$C$6,"") -> -224.933816 | F6: =IF(F2<=$B$2,$D$5*$C$6,"") -> -224.933816 | G6: -224.933816 | H6: -224.933816 | I6: -224.933816 | J6: -224.933816 | K6: -224.933816 | L6: -224.933816 | M6: -224.933816 | N6: -224.933816
B7: Cost of finance | C7: =IF('Import avoidance model - RR'!I22="Y",'Import avoidance model - RR'!N25,"") -> 0.05 | E7: =IFERROR(IF(E2='Import avoidance model - RR'!$N$26,'IRR and ROI'!$D$5,IF('IRR and ROI'!E2>'Import avoidance model - RR'!$N$26,"",$C$7*$D$5)),0) -> -562.33454 | F7: =IFERROR(IF(F2='Import avoidance model - RR'!$N$26,'IRR and ROI'!$D$5,IF('IRR and ROI'!F2>'Import avoidance model - RR'!$N$26,"",$C$7*$D$5)),0) -> -562.33454 | G7: =IFERROR(IF(G2='Import avoidance model - RR'!$N$26,'IRR and ROI'!$D$5,IF('IRR and ROI'!G2>'Import avoidance model - RR'!$N$26,"",$C$7*$D$5)),0) -> -562.33454 | H7: =IFERROR(IF(H2='Import avoidance model - RR'!$N$26,'IRR and ROI'!$D$5,IF('IRR and ROI'!H2>'Import avoidance model - RR'!$N$26,"",$C$7*$D$5)),0) -> -562.33454 | I7: =IFERROR(IF(I2='Import avoidance model - RR'!$N$26,'IRR and ROI'!$D$5,IF('IRR and ROI'!I2>'Import avoidance model - RR'!$N$26,"",$C$7*$D$5)),0) -> -562.33454 | J7: =IFERROR(IF(J2='Import avoidance model - RR'!$N$26,'IRR and ROI'!$D$5,IF('IRR and ROI'!J2>'Import avoidance model - RR'!$N$26,"",$C$7*$D$5)),0) -> -562.33454 | K7: =IFERROR(IF(K2='Import avoidance model - RR'!$N$26,'IRR and ROI'!$D$5,IF('IRR and ROI'!K2>'Import avoidance model - RR'!$N$26,"",$C$7*$D$5)),0) -> -562.33454 | L7: =IFERROR(IF(L2='Import avoidance model - RR'!$N$26,'IRR and ROI'!$D$5,IF('IRR and ROI'!L2>'Import avoidance model - RR'!$N$26,"",$C$7*$D$5)),0) -> -562.33454 | M7: =IFERROR(IF(M2='Import avoidance model - RR'!$N$26,'IRR and ROI'!$D$5,IF('IRR and ROI'!M2>'Import avoidance model - RR'!$N$26,"",$C$7*$D$5)),0) -> -562.33454 | N7: =IFERROR(IF(N2='Import avoidance model - RR'!$N$26,'IRR and ROI'!$D$5,IF('IRR and ROI'!N2>'Import avoidance model - RR'!$N$26,"",$C$7*$D$5)),0) -> -11246.6908 | O7: =IFERROR(IF(O2='Import avoidance model - RR'!$N$26,'IRR and ROI'!$D$5,IF('IRR and ROI'!O2>'Import avoidance model - RR'!$N$26,"",$C$7*$D$5)),0) ->  | P7: =IFERROR(IF(P2='Import avoidance model - RR'!$N$26,'IRR and ROI'!$D$5,IF('IRR and ROI'!P2>'Import avoidance model - RR'!$N$26,"",$C$7*$D$5)),0) ->  | Q7: =IFERROR(IF(Q2='Import avoidance model - RR'!$N$26,'IRR and ROI'!$D$5,IF('IRR and ROI'!Q2>'Import avoidance model - RR'!$N$26,"",$C$7*$D$5)),0) ->  | R7: =IFERROR(IF(R2='Import avoidance model - RR'!$N$26,'IRR and ROI'!$D$5,IF('IRR and ROI'!R2>'Import avoidance model - RR'!$N$26,"",$C$7*$D$5)),0) ->  | S7: =IFERROR(IF(S2='Import avoidance model - RR'!$N$26,'IRR and ROI'!$D$5,IF('IRR and ROI'!S2>'Import avoidance model - RR'!$N$26,"",$C$7*$D$5)),0) ->  | T7: =IFERROR(IF(T2='Import avoidance model - RR'!$N$26,'IRR and ROI'!$D$5,IF('IRR and ROI'!T2>'Import avoidance model - RR'!$N$26,"",$C$7*$D$5)),0) ->  | U7: =IFERROR(IF(U2='Import avoidance model - RR'!$N$26,'IRR and ROI'!$D$5,IF('IRR and ROI'!U2>'Import avoidance model - RR'!$N$26,"",$C$7*$D$5)),0) ->  | V7: =IFERROR(IF(V2='Import avoidance model - RR'!$N$26,'IRR and ROI'!$D$5,IF('IRR and ROI'!V2>'Import avoidance model - RR'!$N$26,"",$C$7*$D$5)),0) ->  | W7: =IFERROR(IF(W2='Import avoidance model - RR'!$N$26,'IRR and ROI'!$D$5,IF('IRR and ROI'!W2>'Import avoidance model - RR'!$N$26,"",$C$7*$D$5)),0) ->  | X7: =IFERROR(IF(X2='Import avoidance model - RR'!$N$26,'IRR and ROI'!$D$5,IF('IRR and ROI'!X2>'Import avoidance model - RR'!$N$26,"",$C$7*$D$5)),0) ->  | Y7: =IFERROR(IF(Y2='Import avoidance model - RR'!$N$26,'IRR and ROI'!$D$5,IF('IRR and ROI'!Y2>'Import avoidance model - RR'!$N$26,"",$C$7*$D$5)),0) ->  | Z7: =IFERROR(IF(Z2='Import avoidance model - RR'!$N$26,'IRR and ROI'!$D$5,IF('IRR and ROI'!Z2>'Import avoidance model - RR'!$N$26,"",$C$7*$D$5)),0) ->  | AA7: =IFERROR(IF(AA2='Import avoidance model - RR'!$N$26,'IRR and ROI'!$D$5,IF('IRR and ROI'!AA2>'Import avoidance model - RR'!$N$26,"",$C$7*$D$5)),0) ->  | AB7: =IFERROR(IF(AB2='Import avoidance model - RR'!$N$26,'IRR and ROI'!$D$5,IF('IRR and ROI'!AB2>'Import avoidance model - RR'!$N$26,"",$C$7*$D$5)),0) ->  | AC7: =IFERROR(IF(AC2='Import avoidance model - RR'!$N$26,'IRR and ROI'!$D$5,IF('IRR and ROI'!AC2>'Import avoidance model - RR'!$N$26,"",$C$7*$D$5)),0) -> 
B8: Project development costs | C8: ='Import avoidance model - RR'!N20 -> 0.06 | D8: =C8*D5 -> -674.801448
B9: Loan setup cost | C9: =IF('Import avoidance model - RR'!I22="Y",'Import avoidance model - RR'!N27,"") -> 0.01 | D9: =IFERROR(D5*C9,0) -> -112.466908
B10: income | E10: =IF(E2<=$B$2,('Import avoidance model - RR'!$D$43),"") -> 1381.143245 | F10: =IF(F2<=$B$2,('Import avoidance model - RR'!$D$43),"") -> 1381.143245 | G10: =IF(G2<=$B$2,('Import avoidance model - RR'!$D$43),"") -> 1381.143245 | H10: =IF(H2<=$B$2,('Import avoidance model - RR'!$D$43),"") -> 1381.143245 | I10: =IF(I2<=$B$2,('Import avoidance model - RR'!$D$43),"") -> 1381.143245 | J10: =IF(J2<=$B$2,('Import avoidance model - RR'!$D$43),"") -> 1381.143245 | K10: =IF(K2<=$B$2,('Import avoidance model - RR'!$D$43),"") -> 1381.143245 | L10: =IF(L2<=$B$2,('Import avoidance model - RR'!$D$43),"") -> 1381.143245 | M10: =IF(M2<=$B$2,('Import avoidance model - RR'!$D$43),"") -> 1381.143245 | N10: =IF(N2<=$B$2,('Import avoidance model - RR'!$D$43),"") -> 1381.143245 | O10: =IF(O2<=$B$2,('Import avoidance model - RR'!$D$43),"") ->  | P10: =IF(P2<=$B$2,('Import avoidance model - RR'!$D$43),"") ->  | Q10: =IF(Q2<=$B$2,('Import avoidance model - RR'!$D$43),"") ->  | R10: =IF(R2<=$B$2,('Import avoidance model - RR'!$D$43),"") ->  | S10: =IF(S2<=$B$2,('Import avoidance model - RR'!$D$43),"") ->  | T10: =IF(T2<=$B$2,('Import avoidance model - RR'!$D$43),"") ->  | U10: =IF(U2<=$B$2,('Import avoidance model - RR'!$D$43),"") ->  | V10: =IF(V2<=$B$2,('Import avoidance model - RR'!$D$43),"") ->  | W10: =IF(W2<=$B$2,('Import avoidance model - RR'!$D$43),"") ->  | X10: =IF(X2<=$B$2,('Import avoidance model - RR'!$D$43),"") ->  | Y10: =IF(Y2<=$B$2,('Import avoidance model - RR'!$D$43),"") ->  | Z10: =IF(Z2<=$B$2,('Import avoidance model - RR'!$D$43),"") ->  | AA10: =IF(AA2<=$B$2,('Import avoidance model - RR'!$D$43),"") ->  | AB10: =IF(AB2<=$B$2,('Import avoidance model - RR'!$D$43),"") ->  | AC10: =IF(AC2<=$B$2,('Import avoidance model - RR'!$D$43),"") -> 
B11: Cash Flow | D11: =IF('Import avoidance model - RR'!I22="Y",SUM(D8:D9),SUM('IRR and ROI'!D5:D9)) -> -787.268356 | E11: =SUM(E6:E10) -> 593.8748888 | F11: =SUM(F6:F10) -> 593.8748888 | G11: =SUM(G6:G10) -> 593.8748888 | H11: 593.8748888 | I11: 593.8748888 | J11: 593.8748888 | K11: 593.8748888 | L11: 593.8748888 | M11: 593.8748888 | N11: -10090.48137 | O11: 0 | P11: 0 | Q11: 0 | R11: 0 | S11: 0 | T11: 0 | U11: 0 | V11: 0 | W11: 0 | X11: 0 | Y11: 0 | Z11: 0 | AA11: 0 | AB11: 0 | AC11: 0
B12: Cum Cash | D12: =D11 -> -787.268356 | E12: =IF(E2<=$B$2,D12+E11,"") -> -193.3934671 | F12: =IF(F2<=$B$2,E12+F11,"") -> 400.4814217 | G12: =IF(G2<=$B$2,F12+G11,"") -> 994.3563106 | H12: =IF(H2<=$B$2,G12+H11,"") -> 1588.231199 | I12: =IF(I2<=$B$2,H12+I11,"") -> 2182.106088 | J12: 2775.980977 | K12: 3369.855866 | L12: 3963.730755 | M12: 4557.605644 | N12: -5532.875727 | T12: =IF(T2<=$B$2,S12+T11,"") ->  | U12: =IF(U2<=$B$2,T12+U11,"") ->  | V12: =IF(V2<=$B$2,U12+V11,"") ->  | W12: =IF(W2<=$B$2,V12+W11,"") ->  | X12: =IF(X2<=$B$2,W12+X11,"") ->  | Y12: =IF(Y2<=$B$2,X12+Y11,"") ->  | Z12: =IF(Z2<=$B$2,Y12+Z11,"") -> 
B15: CAPEX and development costs | C15: =SUM(D5+D8) -> -11921.49225
B16: CAPEX, development, loan fee | C16: =D5+D8+D9 -> -12033.95916
B17: Outlay in year zero | C17: =IF('Import avoidance model - RR'!I22="Y",SUM('IRR and ROI'!D8:D9),SUM('IRR and ROI'!D5:D8)) -> -787.268356
B18: Total project outlay over lifetime | C18: =SUM(E7:AC7)+D8+D9+SUM(E6:AC6) -> -19344.30818
B19: Total project income | C19: =SUM(E10:AC10) -> 13811.43245
B20: Annual income | C20: =E11 -> 593.8748888
B21: Payback | C21: =IF(C20<0,"N/A",IF((-C18/C20)<B2,(-C18/C20),TEXT((-C18/C20),"0.0") & " Yrs: No payback within lifetime of battery")) -> 32.6 Yrs: No payback within lifetime of battery
B23: What would cost have to be break even after project lifetime?
C25: Cost of finance over lifetime | D25: Project development | E25: Loan setup cost | F25: OPEX over lifetime | H25: Cost on top of CAPEX to run project
B26: Using a loan | C26: =IFERROR(B2*C7,"") -> 0.5 | D26: =C8 -> 0.06 | E26: =C9 -> 0.01 | F26: =B2*C6 -> 0.2 | H26: =SUM(C26:F26) -> 0.77
C28: Income | D28: Total cost of CAPEX over project
C29: =C19 -> 13811.43245 | D29: =H26+1 -> 1.77
C31: CAPEX would have to cost to break even | D31: Reduction in equipment costs required
C32: =C29/D29 -> 7803.06918 | D32: =IF(1-(-C32/D5)>0,1-(-C32/D5),"Project pays back within battery lifetime") -> 0.3061897656
C34: To achieve the target ROI | D34: Reduction in equipment costs required
C35: Additional income required of
C36: =(C19*('Import avoidance model - RR'!N28))*B2 -> 6905.716224 | D36: =IF(1-(-C32/(D5-C36))>0,1-(-C32/(D5-C36)),"Project already pays at least "&'Import avoidance model - RR'!N28&" ROI") -> 0.570135841

Sheet PV data (hidden)
A1: PV array generation data: Ready reckoner
A3: PV array size (kW) | B3: ='Import avoidance model - RR'!H14 -> 200 | C3: PV average generation (kWh)
C4: Winter Factor | D4: Winter generation | E4: Summer Factor | F4: Summer generation | G4: Autumn Factor | H4: Autumn generation | I4: Spring Factor | J4: Spring generation
A5: Factors are based on the Regen PV model, for a typical days' generation in the south west | D5: =IFERROR($B$3/C5,0) -> 0 | F5: =IFERROR($B$3/E5,0) -> 0 | H5: =IFERROR($B$3/G5,0) -> 0 | J5: =IFERROR($B$3/I5,0) -> 0
D6: =IFERROR($B$3/C6,0) -> 0 | F6: =IFERROR($B$3/E6,0) -> 0 | H6: =IFERROR($B$3/G6,0) -> 0 | J6: =IFERROR($B$3/I6,0) -> 0
D7: 0 | F7: 0 | H7: 0 | J7: 0
D8: 0 | F8: 0 | H8: 0 | J8: 0
D9: 0 | F9: 0 | H9: 0 | J9: 0
D10: 0 | F10: 0 | H10: 0 | J10: 0
D11: 0 | F11: 0 | H11: 0 | J11: 0
D12: 0 | F12: 0 | H12: 0 | J12: 0
D13: 0 | F13: 0 | H13: 0 | J13: 0
D14: 0 | F14: 0 | H14: 0 | J14: 0
D15: 0 | F15: 0 | H15: 0 | J15: 0
D16: 0 | F16: 0 | H16: 0 | J16: 0
D17: 0 | E17: 25.03059302 | F17: 7.9902222 | H17: 0 | J17: 0
D18: 0 | E18: 9.918756357 | F18: 20.1638182 | H18: 0 | J18: 0
D19: 0 | E19: 5.495509913 | F19: 36.39334714 | H19: 0 | I19: 8.041600811 | J19: 24.87066999
D20: 0 | E20: 7.592521444 | F20: 26.34171026 | H20: 0 | I20: 5.514364988 | J20: 36.26890865
D21: 0 | E21: 3.487502507 | F21: 57.34762902 | G21: 10.88244749 | H21: 18.3782187 | I21: 6.887149793 | J21: 29.03958909
C22: 28.96913519 | D22: 6.90389957 | E22: 2.643143421 | F22: 75.66747927 | G22: 8.446132778 | H22: 23.67947619 | I22: 4.561462186 | J22: 43.84558982
C23: 11.61732398 | D23: 17.21566863 | E23: 2.57062282 | F23: 77.80215691 | G23: 7.905693329 | H23: 25.29822391 | I23: 5.647387613 | J23: 35.41460472
C24: 10.88993052 | D24: 18.36559009 | E24: 2.974041434 | F24: 67.24855871 | G24: 7.3342941 | H24: 27.26915464 | I24: 5.24733802 | J24: 38.11456385
C25: 11.27397113 | D25: 17.73997802 | E25: 2.048341594 | F25: 97.63996427 | G25: 3.395254811 | H25: 58.90574084 | I25: 2.962117319 | J25: 67.51927032
C26: 10.45854448 | D26: 19.12311989 | E26: 4.241723601 | F26: 47.15064412 | G26: 3.618355265 | H26: 55.27373222 | I26: 2.90674214 | J26: 68.80555287
C27: 4.168492308 | D27: 47.97897783 | E27: 2.855809587 | F27: 70.03268036 | G27: 3.308188715 | H27: 60.45604323 | I27: 4.454326602 | J27: 44.90016514
C28: 8.274411895 | D28: 24.17090212 | E28: 1.562151487 | F28: 128.0285566 | G28: 3.649952127 | H28: 54.79523924 | I28: 2.719491159 | J28: 73.54316977
C29: 3.687390023 | D29: 54.23890577 | E29: 2.422128794 | F29: 82.57199225 | G29: 5.19256996 | H29: 38.51657302 | I29: 4.07931718 | J29: 49.02781303
C30: 4.116601976 | D30: 48.58375941 | E30: 2.437761299 | F30: 82.04248714 | G30: 4.504491323 | H30: 44.40012993 | I30: 2.113654476 | J30: 94.62284505
C31: 8.813969842 | D31: 22.69125077 | E31: 1.952734005 | F31: 102.4205035 | G31: 5.755837233 | H31: 34.74733421 | I31: 4.560589534 | J31: 43.85397951
C32: 6.711700892 | D32: 29.79870575 | E32: 2.88540367 | F32: 69.31439163 | G32: 4.122637257 | H32: 48.51263585 | I32: 2.347524646 | J32: 85.19612365
C33: 6.811698216 | D33: 29.36125378 | E33: 2.192808294 | F33: 91.20724351 | G33: 3.371138434 | H33: 59.32713945 | I33: 2.829410904 | J33: 70.68609218
C34: 13.88786509 | D34: 14.40106155 | E34: 2.027334371 | F34: 98.65170881 | G34: 3.688357486 | H34: 54.22467881 | I34: 2.730642664 | J34: 73.2428313
C35: 20.34467617 | D35: 9.830581637 | E35: 2.371718361 | F35: 84.32704461 | G35: 4.900871792 | H35: 40.80906592 | I35: 2.864153189 | J35: 69.82866725
C36: 23.60328752 | D36: 8.473395914 | E36: 2.676145318 | F36: 74.73435717 | G36: 6.885418203 | H36: 29.04689216 | I36: 4.701389934 | J36: 42.54061092
D37: 0 | E37: 4.40488811 | F37: 45.40410449 | G37: 10.68180397 | H37: 18.72342917 | I37: 3.813330806 | J37: 52.4475872
D38: 0 | E38: 5.562005227 | F38: 35.95825459 | G38: 31.03055633 | H38: 6.445259887 | I38: 5.562764448 | J38: 35.95334691
D39: 0 | E39: 7.358912758 | F39: 27.17792785 | H39: 0 | I39: 8.623311586 | J39: 23.19294601
D40: 0 | E40: 11.62333475 | F40: 17.20676589 | H40: 0 | J40: 0
D41: 0 | F41: 0 | H41: 0 | J41: 0
D42: 0 | F42: 0 | H42: 0 | J42: 0
D43: 0 | F43: 0 | H43: 0 | J43: 0
D44: 0 | F44: 0 | H44: 0 | J44: 0
D45: 0 | F45: 0 | H45: 0 | J45: 0
D46: 0 | F46: 0 | H46: 0 | J46: 0
D47: 0 | F47: 0 | H47: 0 | J47: 0
D48: 0 | F48: 0 | H48: 0 | J48: 0
D49: 0 | F49: 0 | H49: 0 | J49: 0
D50: 0 | F50: 0 | H50: 0 | J50: 0
D51: 0 | F51: 0 | H51: 0 | J51: 0
D52: 0 | F52: 0 | H52: 0 | J52: 0

Sheet Data (hidden)
A1: Category | B1: % of 'non-use' to 'use' daily demand | D1: Secondary school | H1: Primary school | L1: Retail (Elexon profile class 3) | P1: Leisure centre | V1: Selected demand profile | W1: ='Import avoidance model - RR'!$D$17 -> Secondary school
A2: Primary school | B2: 0.4 | D2: % of 'Use' per year | F2: % of 'non-use' per year | H2: % of 'Use' per year | J2: % of 'non-use' per year | L2: % of 'Use' per year | N2: % of 'non-use' per year | P2: % of 'Use' per year | R2: % of 'non-use' per year | V2: DASHBOARD CHART
A3: Secondary school | B3: =0.56 -> 0.56 | D3: ='Import avoidance model - RR'!D15/365 -> 0.5342465753 | F3: ='Import avoidance model - RR'!D16/365 -> 0.4657534247 | H3: =D3 -> 0.5342465753 | J3: =F3 -> 0.4657534247 | L3: =H3 -> 0.5342465753 | N3: =J3 -> 0.4657534247 | P3: =L3 -> 0.5342465753 | R3: =N3 -> 0.4657534247
A4: Leisure centre | D4: average daily consumption (kWh) | F4: average daily consumption (kWh) | H4: average daily consumption (kWh) | J4: average daily consumption (kWh) | L4: average daily consumption (kWh) | N4: average daily consumption (kWh) | P4: average daily consumption (kWh) | R4: average daily consumption (kWh) | V4: Use' per year | W4: 'non-use' per year
A5: Retail | D5: =(B8/('Import avoidance model - RR'!D15+'Import avoidance model - RR'!D16*Data!B6)) -> 1712.915382 | E5: HH consumption | F5: =B6*D5 -> 976.3617677 | G5: HH consumption | H5: =D5 -> 1712.915382 | I5: HH consumption | J5: =F5 -> 976.3617677 | K5: HH consumption | L5: =H5 -> 1712.915382 | M5: HH consumption | N5: =J5 -> 976.3617677 | O5: HH consumption | P5: =L5 -> 1712.915382 | Q5: HH consumption | R5: =N5 -> 976.3617677 | S5: HH consumption | V5: HH consumption | W5: HH consumption
A6: Value used in modelling | B6: ='Import avoidance model - RR'!F26 -> 0.57 | C6: 00:00:00 | D6: 0.01028083226 | E6: =D6*$D$5 -> 17.61019572 | F6: 0.02079566786 | G6: =F6*$F$5 -> 20.30409503 | I6: =H6*$H$5 -> 0 | J6: 0.01407437847 | K6: =J6*$J$5 -> 13.74168504 | L6: 0.008054335202 | M6: =L6*$L$5 -> 13.79639466 | N6: 0.01407437847 | O6: =N6*$N$5 -> 13.74168504 | Q6: =P6*$P$5 -> 0 | S6: =R6*$R$5 -> 0 | V6: =IF($W$1="Retail",M6,IF($W$1="Leisure Centre",Q6,IF($W$1="Primary School",I6,IF($W$1="Secondary School",E6,"")))) -> 17.61019572 | W6: =IF($W$1="Retail",O6,IF($W$1="Leisure Centre",S6,IF($W$1="Primary School",K6,IF($W$1="Secondary School",G6,"")))) -> 20.30409503
A7: Location | B7: Total demand | C7: 00:30:00 | D7: 0.01024706251 | E7: =D7*$D$5 -> 17.55235099 | F7: 0.02077615406 | G7: =F7*$F$5 -> 20.28504251 | I7: =H7*$H$5 -> 0 | J7: 0.01366344771 | K7: =J7*$J$5 -> 13.34046796 | L7: 0.007877594304 | M7: =L7*$L$5 -> 13.49365246 | N7: 0.01366344771 | O7: =N7*$N$5 -> 13.34046796 | Q7: =P7*$P$5 -> 0 | S7: =R7*$R$5 -> 0 | V7: =IF($W$1="Retail",M7,IF($W$1="Leisure Centre",Q7,IF($W$1="Primary School",I7,IF($W$1="Secondary School",E7,"")))) -> 17.55235099 | W7: =IF($W$1="Retail",O7,IF($W$1="Leisure Centre",S7,IF($W$1="Primary School",K7,IF($W$1="Secondary School",G7,"")))) -> 20.28504251
A8: South west | B8: ='Import avoidance model - RR'!D14+'Import avoidance model - RR'!D28 -> 500000 | C8: 01:00:00 | D8: 0.0102115459 | E8: 17.49151404 | F8: 0.02089625442 | G8: 20.4023039 | I8: 0 | J8: 0.01343229916 | K8: 13.11478335 | L8: 0.007801848205 | M8: 13.3639058 | N8: 0.01343229916 | O8: 13.11478335 | Q8: 0 | S8: 0 | V8: 17.49151404 | W8: 20.4023039
C9: 01:30:00 | D9: 0.01020336973 | E9: 17.47750895 | F9: 0.02087211364 | G9: 20.37873377 | I9: 0 | J9: 0.01317546743 | K9: 12.86402267 | L9: 0.007801848205 | M9: 13.3639058 | N9: 0.01317546743 | O9: 12.86402267 | Q9: 0 | S9: 0 | V9: 17.47750895 | W9: 20.37873377
B10: **Demand check** | C10: 02:00:00 | D10: 0.01021562073 | E10: 17.49849389 | F10: 0.02089685794 | G10: 20.40289316 | I10: 0 | J10: 0.01291863571 | K10: 12.613262 | L10: 0.007726102106 | M10: 13.23415914 | N10: 0.01291863571 | O10: 12.613262 | Q10: 0 | S10: 0 | V10: 17.49849389 | W10: 20.40289316
B11: =('Import avoidance model - RR'!D15*Data!D5)+('Import avoidance model - RR'!D16*Data!F5) -> 500000 | C11: 02:30:00 | D11: 0.01037313519 | E11: 17.76830282 | F11: 0.02094292658 | G11: 20.44787282 | I11: 0 | J11: 0.0127388535 | K11: 12.43772953 | L11: 0.007625107307 | M11: 13.0611636 | N11: 0.0127388535 | O11: 12.43772953 | Q11: 0 | S11: 0 | V11: 17.76830282 | W11: 20.44787282
C12: 03:00:00 | D12: 0.01113116621 | E12: 19.06674582 | F12: 0.020924821 | G12: 20.43019522 | I12: 0 | J12: 0.01261043764 | K12: 12.31234919 | L12: 0.007625107307 | M12: 13.0611636 | N12: 0.01261043764 | O12: 12.31234919 | Q12: 0 | S12: 0 | V12: 19.06674582 | W12: 20.43019522
C13: 03:30:00 | D13: 0.01230908034 | E13: 21.08441305 | F13: 0.0209487606 | G13: 20.45356893 | I13: 0 | J13: 0.01250770495 | K13: 12.21204492 | L13: 0.007625107307 | M13: 13.0611636 | N13: 0.01250770495 | O13: 12.21204492 | Q13: 0 | S13: 0 | V13: 21.08441305 | W13: 20.45356893
A14: Season | C14: 04:00:00 | D14: 0.01448823516 | E14: 24.81712087 | F14: 0.02050959968 | G14: 20.024789 | I14: 0 | J14: 0.01258475447 | K14: 12.28727312 | L14: 0.007801848205 | M14: 13.3639058 | N14: 0.01258475447 | O14: 12.28727312 | Q14: 0 | S14: 0 | V14: 24.81712087 | W14: 20.024789
A15: Spring | C15: 04:30:00 | D15: 0.01695693483 | E15: 29.0457945 | F15: 0.01980489024 | G15: 19.33673764 | I15: 0 | J15: 0.0125590713 | K15: 12.26219705 | L15: 0.007877594304 | M15: 13.49365246 | N15: 0.0125590713 | O15: 12.26219705 | Q15: 0 | S15: 0 | V15: 29.0457945 | W15: 19.33673764
A16: Summer | C16: 05:00:00 | D16: 0.02014048319 | E16: 34.49894345 | F16: 0.01918306412 | G16: 18.72961039 | I16: 0 | J16: 0.01268748716 | K16: 12.38757739 | L16: 0.008054335202 | M16: 13.79639466 | N16: 0.01268748716 | O16: 12.38757739 | Q16: 0 | S16: 0 | V16: 34.49894345 | W16: 18.72961039
A17: Autumn | C17: 05:30:00 | D17: 0.021233912 | E17: 36.37189449 | F17: 0.01902775847 | G17: 18.5779759 | I17: 0 | J17: 0.01286726937 | K17: 12.56310986 | L17: 0.008635055295 | M17: 14.79111904 | N17: 0.01286726937 | O17: 12.56310986 | Q17: 0 | S17: 0 | V17: 36.37189449 | W17: 18.5779759
A18: Winter | C18: 06:00:00 | D18: 0.02110112035 | E18: 36.14443362 | F18: 0.01885132964 | G18: 18.40571753 | I18: 0 | J18: 0.01340661599 | K18: 13.08970728 | L18: 0.009417764985 | M18: 16.13183451 | N18: 0.01340661599 | O18: 13.08970728 | Q18: 0 | S18: 0 | V18: 36.14443362 | W18: 18.40571753
C19: 06:30:00 | D19: 0.02373293185 | E19: 40.65250402 | F19: 0.01847131362 | G19: 18.03468442 | I19: 0 | J19: 0.01417711116 | K19: 13.84198931 | L19: 0.01118517396 | M19: 19.15925653 | N19: 0.01417711116 | O19: 13.84198931 | Q19: 0 | S19: 0 | V19: 40.65250402 | W19: 18.03468442
A20: Finance? | C20: 07:00:00 | D20: 0.02633192916 | E20: 45.10436649 | F20: 0.01871050846 | G20: 18.26822511 | I20: 0 | J20: 0.01533285391 | K20: 14.97041235 | L20: 0.01368479523 | M20: 23.44089625 | N20: 0.01533285391 | O20: 14.97041235 | Q20: 0 | S20: 0 | V20: 45.10436649 | W20: 18.26822511
A21: Y | C21: 07:30:00 | D21: 0.02865713343 | E21: 49.08724466 | F21: 0.01896056665 | G21: 18.51237237 | I21: 0 | J21: 0.01743887405 | K21: 17.02664989 | L21: 0.01800232288 | M21: 30.83645577 | N21: 0.01743887405 | O21: 17.02664989 | Q21: 0 | S21: 0 | V21: 49.08724466 | W21: 18.51237237
A22: N | C22: 08:00:00 | D22: 0.03109344459 | E22: 53.26043951 | F22: 0.01917964418 | G22: 18.72627129 | I22: 0 | J22: 0.02016129032 | K22: 19.68471306 | L22: 0.02322880372 | M22: 39.78897519 | N22: 0.02016129032 | O22: 19.68471306 | Q22: 0 | S22: 0 | V22: 53.26043951 | W22: 18.72627129
C23: 08:30:00 | D23: 0.03240932561 | E23: 55.51443236 | F23: 0.01993585394 | G23: 19.46460559 | I23: 0 | J23: 0.02396239984 | K23: 23.39597106 | L23: 0.02918749684 | M23: 49.99571231 | N23: 0.02396239984 | O23: 23.39597106 | Q23: 0 | S23: 0 | V23: 55.51443236 | W23: 19.46460559
A24: Solar PPA? | C24: 09:00:00 | D24: 0.03312896979 | E24: 56.74712194 | F24: 0.02061058859 | G24: 20.12339071 | I24: 0 | J24: 0.02950996507 | K24: 28.81240166 | L24: 0.03600464576 | M24: 61.67291155 | N24: 0.02950996507 | O24: 28.81240166 | Q24: 0 | S24: 0 | V24: 56.74712194 | W24: 20.12339071
A25: Y | C25: 09:30:00 | D25: 0.03424105419 | E25: 58.65202842 | F25: 0.02115717596 | G25: 20.65705772 | I25: 0 | J25: 0.03233511403 | K25: 31.5707691 | L25: 0.03850426703 | M25: 65.95455127 | N25: 0.03233511403 | O25: 31.5707691 | Q25: 0 | S25: 0 | V25: 58.65202842 | W25: 20.65705772
A26: N | C26: 10:00:00 | D26: 0.03391214575 | E26: 58.0886361 | F26: 0.02136619483 | G26: 20.86113575 | I26: 0 | J26: 0.033670639 | K26: 32.87472461 | L26: 0.03936272282 | M26: 67.42501339 | N26: 0.033670639 | O26: 32.87472461 | Q26: 0 | S26: 0 | V26: 58.0886361 | W26: 20.86113575
C27: 10:30:00 | D27: 0.0338237746 | E27: 57.93726378 | F27: 0.02149434211 | G27: 20.98625386 | I27: 0 | J27: 0.03408156976 | K27: 33.27594169 | L27: 0.03976670201 | M27: 68.11699557 | N27: 0.03408156976 | O27: 33.27594169 | Q27: 0 | S27: 0 | V27: 57.93726378 | W27: 20.98625386
C28: 11:00:00 | D28: 0.03399618243 | E28: 58.23258381 | F28: 0.02145792977 | G28: 20.95070224 | I28: 0 | J28: 0.03423566879 | K28: 33.4263981 | L28: 0.04012018381 | M28: 68.72247998 | N28: 0.03423566879 | O28: 33.4263981 | Q28: 0 | S28: 0 | V28: 58.23258381 | W28: 20.95070224
C29: 11:30:00 | D29: 0.03505884773 | E29: 60.05283954 | F29: 0.02107288442 | G29: 20.57475868 | I29: 0 | J29: 0.0341329361 | K29: 33.32609383 | L29: 0.04054941171 | M29: 69.45771104 | N29: 0.0341329361 | O29: 33.32609383 | Q29: 0 | S29: 0 | V29: 60.05283954 | W29: 20.57475868
C30: 12:00:00 | D30: 0.03448206837 | E30: 59.06486531 | F30: 0.02099100696 | G30: 20.49481666 | I30: 0 | J30: 0.0324635299 | K30: 31.69614944 | L30: 0.04029692471 | M30: 69.02522218 | N30: 0.0324635299 | O30: 31.69614944 | Q30: 0 | S30: 0 | V30: 59.06486531 | W30: 20.49481666
C31: 12:30:00 | D31: 0.03280548741 | E31: 56.19302399 | F31: 0.02111613664 | G31: 20.6169885 | I31: 0 | J31: 0.03125642079 | K31: 30.51757426 | L31: 0.03888299753 | M31: 66.60328456 | N31: 0.03125642079 | O31: 30.51757426 | Q31: 0 | S31: 0 | V31: 56.19302399 | W31: 20.6169885
C32: 13:00:00 | D32: 0.03157998052 | E32: 54.09383439 | F32: 0.02089062157 | G32: 20.39680421 | I32: 0 | J32: 0.02933018286 | K32: 28.63686919 | L32: 0.03721658335 | M32: 63.74885808 | N32: 0.02933018286 | O32: 28.63686919 | Q32: 0 | S32: 0 | V32: 54.09383439 | W32: 20.39680421
C33: 13:30:00 | D33: 0.02920856473 | E33: 50.03179981 | F33: 0.02085581862 | G33: 20.36282394 | I33: 0 | J33: 0.028456955 | K33: 27.78428289 | L33: 0.03688835025 | M33: 63.18662256 | N33: 0.028456955 | O33: 27.78428289 | Q33: 0 | S33: 0 | V33: 50.03179981 | W33: 20.36282394
C34: 14:00:00 | D34: 0.02769091302 | E34: 47.43219086 | F34: 0.02069025314 | G34: 20.20117213 | I34: 0 | J34: 0.02832853914 | K34: 27.65890255 | L34: 0.03701459375 | M34: 63.40286699 | N34: 0.02832853914 | O34: 27.65890255 | Q34: 0 | S34: 0 | V34: 47.43219086 | W34: 20.20117213
C35: 14:30:00 | D35: 0.02571703497 | E35: 44.05110478 | F35: 0.02042329641 | G35: 19.94052579 | I35: 0 | J35: 0.02781487569 | K35: 27.1573812 | L35: 0.03688835025 | M35: 63.18662256 | N35: 0.02781487569 | O35: 27.1573812 | Q35: 0 | S35: 0 | V35: 44.05110478 | W35: 19.94052579
C36: 15:00:00 | D36: 0.02414229845 | E36: 41.35371437 | F36: 0.02032452041 | G36: 19.84408467 | I36: 0 | J36: 0.02717279638 | K36: 26.53047951 | L36: 0.03623188406 | M36: 62.06215152 | N36: 0.02717279638 | O36: 26.53047951 | Q36: 0 | S36: 0 | V36: 41.35371437 | W36: 19.84408467
C37: 15:30:00 | D37: 0.02234213352 | E37: 38.27018417 | F37: 0.02039231575 | G37: 19.91027745 | I37: 0 | J37: 0.02647935073 | K37: 25.85342569 | L37: 0.03552492047 | M37: 60.85118271 | N37: 0.02647935073 | O37: 25.85342569 | Q37: 0 | S37: 0 | V37: 38.27018417 | W37: 19.91027745
C38: 16:00:00 | D38: 0.02091491424 | E38: 35.82547831 | F38: 0.02048364835 | G38: 19.99945111 | I38: 0 | J38: 0.02588863776 | K38: 25.27667613 | L38: 0.03428773418 | M38: 58.73198729 | N38: 0.02588863776 | O38: 25.27667613 | Q38: 0 | S38: 0 | V38: 35.82547831 | W38: 19.99945111
C39: 16:30:00 | D39: 0.01969241888 | E39: 33.73144721 | F39: 0.02059429356 | G39: 20.10748087 | I39: 0 | J39: 0.0250154099 | K39: 24.42408983 | L39: 0.03206584861 | M39: 54.92608532 | N39: 0.0250154099 | O39: 24.42408983 | Q39: 0 | S39: 0 | V39: 33.73144721 | W39: 20.10748087
C40: 17:00:00 | D40: 0.01876279428 | E40: 32.13907894 | F40: 0.02154262366 | G40: 21.03339411 | I40: 0 | J40: 0.02308917197 | K40: 22.54338476 | L40: 0.02772307226 | M40: 47.48727691 | N40: 0.02308917197 | O40: 22.54338476 | Q40: 0 | S40: 0 | V40: 32.13907894 | W40: 21.03339411
C41: 17:30:00 | D41: 0.01824856112 | E41: 31.25824104 | F41: 0.02259174148 | G41: 22.05771265 | I41: 0 | J41: 0.02085473598 | K41: 20.36176688 | L41: 0.02093117204 | M41: 35.85332656 | N41: 0.02085473598 | O41: 20.36176688 | Q41: 0 | S41: 0 | V41: 31.25824104 | W41: 22.05771265
C42: 18:00:00 | D42: 0.01781276018 | E42: 30.51175091 | F42: 0.02325420457 | G42: 22.70451628 | I42: 0 | J42: 0.02021265667 | K42: 19.73486519 | L42: 0.01701762359 | M42: 29.14974922 | N42: 0.02021265667 | O42: 19.73486519 | Q42: 0 | S42: 0 | V42: 30.51175091 | W42: 22.70451628
C43: 18:30:00 | D43: 0.01751994417 | E43: 30.01018186 | F43: 0.02370644174 | G43: 23.14606337 | I43: 0 | J43: 0.02021265667 | K43: 19.73486519 | L43: 0.01555319901 | M43: 26.64131382 | N43: 0.02021265667 | O43: 19.73486519 | Q43: 0 | S43: 0 | V43: 30.01018186 | W43: 23.14606337
C44: 19:00:00 | D44: 0.01726684855 | E44: 29.57665048 | F44: 0.0238587298 | G44: 23.2947516 | I44: 0 | J44: 0.01985309225 | K44: 19.38380025 | L44: 0.01499772762 | M44: 25.68983833 | N44: 0.01985309225 | O44: 19.38380025 | Q44: 0 | S44: 0 | V44: 29.57665048 | W44: 23.2947516
C45: 19:30:00 | D45: 0.01716745219 | E45: 29.40639293 | F45: 0.02300897453 | G45: 22.46508305 | I45: 0 | J45: 0.01905691391 | K45: 18.60644215 | L45: 0.01444225622 | M45: 24.73836284 | N45: 0.01905691391 | O45: 18.60644215 | Q45: 0 | S45: 0 | V45: 29.40639293 | W45: 22.46508305
C46: 20:00:00 | D46: 0.01645534655 | E46: 28.18661622 | F46: 0.02222480171 | G46: 21.69944668 | I46: 0 | J46: 0.01890281488 | K46: 18.45598575 | L46: 0.01388678483 | M46: 23.78688734 | N46: 0.01890281488 | O46: 18.45598575 | Q46: 0 | S46: 0 | V46: 28.18661622 | W46: 21.69944668
C47: 20:30:00 | D47: 0.01554782181 | E47: 26.63210314 | F47: 0.02188502031 | G47: 21.36769711 | I47: 0 | J47: 0.01854325046 | K47: 18.1049208 | L47: 0.01300308034 | M47: 22.27317633 | N47: 0.01854325046 | O47: 18.1049208 | Q47: 0 | S47: 0 | V47: 26.63210314 | W47: 21.36769711
C48: 21:00:00 | D48: 0.01338073783 | E48: 22.92007165 | F48: 0.02136197019 | G48: 20.85701098 | I48: 0 | J48: 0.01818368605 | K48: 17.75385585 | L48: 0.01222037065 | M48: 20.93246086 | N48: 0.01818368605 | O48: 17.75385585 | Q48: 0 | S48: 0 | V48: 22.92007165 | W48: 20.85701098
C49: 21:30:00 | D49: 0.01167615053 | E49: 20.00025785 | F49: 0.02117749444 | G49: 20.67689591 | I49: 0 | J49: 0.01756728991 | K49: 17.15203023 | L49: 0.01161440186 | M49: 19.8944876 | N49: 0.01756728991 | O49: 17.15203023 | Q49: 0 | S49: 0 | V49: 20.00025785 | W49: 20.67689591
C50: 22:00:00 | D50: 0.01092644935 | E50: 18.71608316 | F50: 0.02103124158 | G50: 20.53410021 | I50: 0 | J50: 0.01687384426 | K50: 16.47497641 | L50: 0.01083169217 | M50: 18.55377213 | N50: 0.01687384426 | O50: 16.47497641 | Q50: 0 | S50: 0 | V50: 18.71608316 | W50: 20.53410021
C51: 22:30:00 | D51: 0.01037639223 | E51: 17.77388186 | F51: 0.020903899 | G51: 20.40976778 | I51: 0 | J51: 0.01612903226 | K51: 15.74777045 | L51: 0.01020047468 | M51: 17.47254998 | N51: 0.01612903226 | O51: 15.74777045 | Q51: 0 | S51: 0 | V51: 17.77388186 | W51: 20.40976778
C52: 23:00:00 | D52: 0.01049935093 | E52: 17.98449971 | F52: 0.0199316293 | G52: 19.46048082 | I52: 0 | J52: 0.0154355866 | K52: 15.07071662 | L52: 0.009720749381 | M52: 16.65082114 | N52: 0.0154355866 | O52: 15.07071662 | Q52: 0 | S52: 0 | V52: 17.98449971 | W52: 19.46048082
C53: 23:30:00 | D53: 0.01050533866 | E53: 17.99475619 | F53: 0.01991211551 | G53: 19.4414283 | I53: 0 | J53: 0.01461372509 | K53: 14.26828246 | L53: 0.00903903449 | M53: 15.48310122 | N53: 0.01461372509 | O53: 14.26828246 | Q53: 0 | S53: 0 | V53: 17.99475619 | W53: 19.4414283
B55: Battery costs
B56: Manufacturer | C56: Lifetime (assumed) | D56: Unit capacity
B57: ='Import avoidance model - RR'!C144 -> Tesla | C57: ='Import avoidance model - RR'!D144 -> 10 | D57: =IF('Import avoidance model - RR'!F144=0,"",'Import avoidance model - RR'!F144) -> 14 | E57: =IF('Import avoidance model - RR'!H144=0,"",'Import avoidance model - RR'!H144) -> 5913 | F57: Ex VAT, Sungift solar 23/03/17
B58: ='Import avoidance model - RR'!C145 -> Solax | C58: ='Import avoidance model - RR'!D145 -> 10 | D58: =IF('Import avoidance model - RR'!F145=0,"",'Import avoidance model - RR'!F145) -> 4.8 | E58: =IF('Import avoidance model - RR'!H145=0,"",'Import avoidance model - RR'!H145) -> 3492 | F58: Ex VAT, Sungift solar 23/03/17
B59: ='Import avoidance model - RR'!C146 -> LG Chem | C59: ='Import avoidance model - RR'!D146 -> 10 | D59: =IF('Import avoidance model - RR'!F146=0,"",'Import avoidance model - RR'!F146) -> 3 | E59: =IF('Import avoidance model - RR'!H146=0,"",'Import avoidance model - RR'!H146) -> 3613 | F59: Ex VAT, Sungift solar 23/03/18
B60: ='Import avoidance model - RR'!C147 -> LG Chem | C60: ='Import avoidance model - RR'!D147 -> 10 | D60: =IF('Import avoidance model - RR'!F147=0,"",'Import avoidance model - RR'!F147) -> 3.5 | E60: =IF('Import avoidance model - RR'!H147=0,"",'Import avoidance model - RR'!H147) -> 4603 | F60: Ex VAT, Sungift solar 23/03/19
B61: ='Import avoidance model - RR'!C148 -> LG Chem | C61: ='Import avoidance model - RR'!D148 -> 10 | D61: =IF('Import avoidance model - RR'!F148=0,"",'Import avoidance model - RR'!F148) -> 10 | E61: =IF('Import avoidance model - RR'!H148=0,"",'Import avoidance model - RR'!H148) -> 5373 | F61: Ex VAT, Sungift solar 23/03/20
D63: =IF('Import avoidance model - RR'!F149=0,"",'Import avoidance model - RR'!F149) ->  | E63: =IF('Import avoidance model - RR'!H149=0,"",'Import avoidance model - RR'!H149) -> 
D64: =IF('Import avoidance model - RR'!F150=0,"",'Import avoidance model - RR'!F150) ->  | E64: =IF('Import avoidance model - RR'!H150=0,"",'Import avoidance model - RR'!H150) -> 
E67: Average lifetime | F67: ='Import avoidance model - RR'!N19 -> 10
E69: Size of battery | F69: Cost (linear trend)
E70: =('Import avoidance model - RR'!N14)*'Import avoidance model - RR'!N15 -> 60 | F70: =TREND(E57:E61,D57:D61,E70, ) -> 14995.58773
E72: If battery capcity is >50kW, cost is multiplied by 75%
E73: If battery capcity is >75kW, cost is multiplied by 70%
E74: If battery capcity is >100kW, cost is multiplied by 65%
F76: =IF(E70>50,F70*75%,IF(E70>75,F70*70%,IF(E70>100,F70*65%,F70*100%))) -> 11246.6908

Sheet PV Generation factor calcs (hidden)
A1: SUMMER | C1: 145 | D1: 47.84 | H1: AUTUMN | J1: 145 | K1: 47.84 | O1: SPRING | Q1: 145 | R1: 47.84
A2: 145kW | B2: 47.84kW | C2: kWh | D2: kWh | E2: Factor 1 | F2: Factor 2 | G2: Average | H2: 145kW | I2: 47.84kW | J2: kWh | K2: kWh | L2: Factor 1 | M2: Factor 2 | N2: Average | O2: 145kW | P2: 47.84kW | Q2: kWh | R2: kWh | S2: Factor 1 | T2: Factor 2 | U2: Average
A3: Output kW | H3: Output kW | O3: Output kW
A4: 0 | B4: 0 | C4: =A4*0.5 -> 0 | D4: =B4*0.5 -> 0 | E4: =$C$1/C4 ->  | F4: =$D$1/D4 ->  | G4: =AVERAGE(E4:F4) ->  | H4: 0 | I4: 0 | J4: =H4*0.5 -> 0 | K4: =0.5*I4 -> 0 | L4: =$J$1/J4 ->  | M4: =$K$1/K4 ->  | N4: =AVERAGE(L4:M4) ->  | O4: 0 | P4: 0 | Q4: =0.5*O4 -> 0 | R4: =P4*0.5 -> 0 | S4: =$Q$1/Q4 ->  | T4: =$R$1/R4 ->  | U4: =AVERAGE(S4:T4) -> 
A5: 0 | B5: 0 | C5: =A5*0.5 -> 0 | D5: =B5*0.5 -> 0 | E5: =$C$1/C5 ->  | F5: =$D$1/D5 ->  | G5: =AVERAGE(E5:F5) ->  | H5: 0 | I5: 0 | J5: =H5*0.5 -> 0 | K5: =0.5*I5 -> 0 | L5: =$J$1/J5 ->  | M5: =$K$1/K5 ->  | N5: =AVERAGE(L5:M5) ->  | O5: 0 | P5: 0 | Q5: =0.5*O5 -> 0 | R5: =P5*0.5 -> 0 | S5: =$Q$1/Q5 ->  | T5: =$R$1/R5 ->  | U5: =AVERAGE(S5:T5) -> 
A6: 0 | B6: 0 | C6: 0 | D6: 0 | H6: 0 | I6: 0 | J6: 0 | K6: 0 | O6: 0 | P6: 0 | Q6: 0 | R6: 0
A7: 0 | B7: 0 | C7: 0 | D7: 0 | H7: 0 | I7: 0 | J7: 0 | K7: 0 | O7: 0 | P7: 0 | Q7: 0 | R7: 0
A8: 0 | B8: 0 | C8: 0 | D8: 0 | H8: 0 | I8: 0 | J8: 0 | K8: 0 | O8: 0 | P8: 0 | Q8: 0 | R8: 0
A9: 0 | B9: 0 | C9: 0 | D9: 0 | H9: 0 | I9: 0 | J9: 0 | K9: 0 | O9: 0 | P9: 0 | Q9: 0 | R9: 0
A10: 0 | B10: 0 | C10: 0 | D10: 0 | H10: 0 | I10: 0 | J10: 0 | K10: 0 | O10: 0 | P10: 0 | Q10: 0 | R10: 0
A11: 0 | B11: 0 | C11: 0 | D11: 0 | H11: 0 | I11: 0 | J11: 0 | K11: 0 | O11: 0 | P11: 0 | Q11: 0 | R11: 0
A12: 0 | B12: 0 | C12: 0 | D12: 0 | H12: 0 | I12: 0 | J12: 0 | K12: 0 | O12: 0 | P12: 0 | Q12: 0 | R12: 0
A13: 0 | B13: 0 | C13: 0 | D13: 0 | H13: 0 | I13: 0 | J13: 0 | K13: 0 | O13: 0 | P13: 0 | Q13: 0 | R13: 0
A14: 0 | B14: 0 | C14: 0 | D14: 0 | H14: 0 | I14: 0 | J14: 0 | K14: 0 | O14: 0 | P14: 0 | Q14: 0 | R14: 0
A15: 6.215959199 | B15: 0 | C15: 3.107979599 | D15: 0 | E15: 46.65410289 | H15: 0 | I15: 0 | J15: 0 | K15: 0 | O15: 0 | P15: 0 | Q15: 0 | R15: 0
A16: 13.69113175 | B16: 3.775751582 | C16: 6.845565876 | D16: 1.887875791 | E16: 21.18159443 | F16: 25.34065018 | G16: 23.2611223 | H16: 0 | I16: 0 | J16: 0 | K16: 0 | O16: 0 | P16: 2.086112976 | Q16: 0 | R16: 1.043056488 | T16: 45.86520535
A17: 26.76209878 | B17: 5.531871604 | C17: 13.38104939 | D17: 2.765935802 | E17: 10.83622037 | F17: 17.29613535 | G17: 14.06617786 | H17: 0 | I17: 0 | J17: 0 | K17: 0 | O17: 14.38974684 | P17: 5.995864896 | Q17: 7.194873421 | R17: 2.997932448 | S17: 20.15323849 | T17: 15.95766443 | U17: 18.05545146
A18: 65.42764073 | B18: 16.88734572 | C18: 32.71382036 | D18: 8.443672861 | E18: 4.43237746 | F18: 5.66578085 | G18: 5.049079155 | H18: 0 | I18: 0 | J18: 0 | K18: 0 | O18: 29.09433309 | P18: 8.708818858 | Q18: 14.54716655 | R18: 4.354409429 | S18: 9.967576816 | T18: 10.98656449 | U18: 10.47707065
A19: 66.13228876 | B19: 18.45729706 | C19: 33.06614438 | D19: 9.228648528 | E19: 4.385149908 | F19: 5.183857621 | G19: 4.784503764 | H19: 6.410989852 | I19: 0 | J19: 3.205494926 | K19: 0 | L19: 45.23482437 | O19: 49.14152284 | P19: 17.57535507 | Q19: 24.57076142 | R19: 8.787677536 | S19: 5.90132302 | T19: 5.443986742 | U19: 5.672654881
A20: 56.29011619 | B20: 23.41996307 | C20: 28.14505809 | D20: 11.70998153 | E20: 5.151881354 | F20: 4.085403539 | G20: 4.618642446 | H20: 32.97199174 | I20: 12.09586864 | J20: 16.48599587 | K20: 6.047934322 | L20: 8.795343707 | M20: 7.91013881 | N20: =AVERAGE(L20:M20) -> 8.352741258 | O20: 44.73047826 | P20: 16.23846733 | Q20: 22.36523913 | R20: 8.119233664 | S20: 6.483275192 | T20: 5.892181698 | U20: 6.187728445
A21: 101.8395054 | B21: 17.19183278 | C21: 50.91975271 | D21: 8.59591639 | E21: 2.847617914 | F21: 5.565433379 | G21: 4.206525647 | H21: 27.85980206 | I21: 8.626552919 | J21: 13.92990103 | K21: 4.31327646 | L21: 10.40926276 | M21: 11.09133635 | N21: 10.75029956 | O21: 85.34696732 | P21: 27.68461943 | Q21: 42.67348366 | R21: 13.84230972 | S21: 3.397894607 | T21: 3.456070625 | U21: 3.426982616
A22: 100.1626919 | B22: 32.45836098 | C22: 50.08134593 | D22: 16.22918049 | E22: 2.8952896 | F22: 2.947776693 | G22: 2.921533146 | H22: 52.45129181 | I22: 7.777774402 | J22: 26.22564591 | K22: 3.888887201 | L22: 5.528939135 | M22: 12.30171962 | N22: 8.91532938 | O22: 61.15674744 | P22: 28.0027118 | Q22: 30.57837372 | R22: 14.0013559 | S22: 4.741913397 | T22: 3.416811938 | U22: 4.079362667
A23: 144.745346 | B23: 22.55792888 | C23: 72.37267298 | D23: 11.27896444 | E23: 2.003518649 | F23: 4.241524145 | G23: 3.122521397 | H23: 83.19231488 | I23: 11.55061531 | J23: 41.59615744 | K23: 5.775307655 | L23: 3.485898913 | M23: 8.28354139 | N23: 5.884720151 | O23: 76.15502129 | P23: 29.37141447 | Q23: 38.07751064 | R23: 14.68570724 | S23: 3.808022046 | T23: 3.257589112 | U23: 3.532805579
A24: 91.97341373 | B24: 29.68206326 | C24: 45.98670687 | D24: 14.84103163 | E24: 3.153085095 | F24: 3.223495589 | G24: 3.188290342 | H24: 54.39190904 | I24: 24.88640913 | J24: 27.19595452 | K24: 12.44320456 | L24: 5.331675338 | M24: 3.844668772 | N24: 4.588172055 | O24: 78.02255853 | P24: 38.94157499 | Q24: 39.01127927 | R24: 19.4707875 | S24: 3.716873754 | T24: 2.45701413 | U24: 3.086943942
A25: 98.17803083 | B25: 20.41728636 | C25: 49.08901541 | D25: 10.20864318 | E25: 2.953817647 | F25: 4.68622511 | G25: 3.820021378 | H25: 101.5585876 | I25: 27.25500748 | J25: 50.77929382 | K25: 13.62750374 | L25: 2.855494614 | M25: 3.510547559 | N25: 3.183021087 | O25: 105.4704273 | P25: 41.55838533 | Q25: 52.73521363 | R25: 20.77919266 | S25: 2.749585903 | T25: 2.302303115 | U25: 2.525944509
A26: 91.90687701 | B26: 21.05210502 | C26: 45.95343851 | D26: 10.52605251 | E26: 3.155367797 | F26: 4.544913675 | G26: 3.850140736 | H26: 77.67915151 | I26: 26.05013886 | J26: 38.83957575 | K26: 13.02506943 | L26: 3.733305454 | M26: 3.672917082 | N26: 3.703111268 | O26: 123.5302922 | P26: 36.12797556 | Q26: 61.76514609 | R26: 18.06398778 | S26: 2.347602316 | T26: 2.648363173 | U26: 2.497982745
A27: 117.9275886 | B27: 26.14837906 | C27: 58.96379428 | D27: 13.07418953 | E27: 2.459136183 | F27: 3.659117828 | G27: 3.059127006 | H27: 71.186664 | I27: 25.4614347 | J27: 35.593332 | K27: 12.73071735 | L27: 4.073796743 | M27: 3.757840087 | N27: 3.915818415 | O27: 129.3088961 | P27: 31.46966236 | Q27: 64.65444805 | R27: 15.73483118 | S27: 2.242691793 | T27: 3.040388514 | U27: 2.641540153
A28: 64.90697155 | B28: 43.27814489 | C28: 32.45348577 | D28: 21.63907244 | E28: 4.467932998 | F28: 2.210815649 | G28: 3.339374324 | H28: 101.6710495 | I28: 31.95404601 | J28: 50.83552476 | K28: 15.97702301 | L28: 2.852336052 | M28: 2.994300001 | N28: 2.923318026 | O28: 124.4621331 | P28: 39.05080223 | Q28: 62.23106656 | R28: 19.52540112 | S28: 2.33002595 | T28: 2.450141727 | U28: 2.390083838
A29: 63.36995634 | B29: 49.28464628 | C29: 31.68497817 | D29: 24.64232314 | E29: 4.576301086 | F29: 1.941375402 | G29: 3.258838244 | H29: 51.32789784 | I29: 29.27758395 | J29: 25.66394892 | K29: 14.63879197 | L29: 5.649948901 | M29: 3.268029226 | N29: 4.458989063 | O29: 119.9384835 | P29: 46.668409 | Q29: 59.96924177 | R29: 23.3342045 | S29: 2.417906175 | T29: 2.050209168 | U29: 2.234057672
A30: 146.2945766 | B30: 23.93257699 | C30: 73.14728832 | D30: 11.9662885 | E30: 1.982301782 | F30: 3.99789793 | G30: 2.990099856 | H30: 81.97019652 | I30: 21.64370739 | J30: 40.98509826 | K30: 10.8218537 | L30: 3.53787123 | M30: 4.420684418 | N30: 3.979277824 | O30: 88.57704499 | P30: 37.12571788 | Q30: 44.2885225 | R30: 18.56285894 | S30: 3.273985941 | T30: 2.577189223 | U30: 2.925587582
A31: 102.8136382 | B31: 41.45460358 | C31: 51.40681912 | D31: 20.72730179 | E31: 2.820637466 | F31: 2.308066939 | G31: 2.564352203 | H31: 81.89860402 | I31: 32.19137454 | J31: 40.94930201 | K31: 16.09568727 | L31: 3.540963896 | M31: 2.972224746 | N31: 3.256594321 | O31: 109.8532959 | P31: 42.21452295 | Q31: 54.92664794 | R31: 21.10726147 | S31: 2.639884381 | T31: 2.266518566 | U31: 2.453201473
A32: 132.0538591 | B32: 24.77260562 | C32: 66.02692953 | D32: 12.38630281 | E32: 2.196073648 | F32: 3.862330894 | G32: 3.029202271 | H32: 96.46323623 | I32: 11.04166074 | J32: 48.23161812 | K32: 5.52083037 | L32: 3.006326672 | M32: 8.665363141 | N32: 5.835844907 | O32: 115.2163951 | P32: 37.99770542 | Q32: 57.60819754 | R32: 18.99885271 | S32: 2.517002895 | T32: 2.518046786 | U32: 2.517524841
A33: 131.4737379 | B33: 43.07451496 | C33: 65.73686895 | D33: 21.53725748 | E33: 2.205763711 | F33: 2.221267032 | G33: 2.213515371 | H33: 59.30373942 | I33: 22.0465861 | J33: 29.65186971 | K33: 11.02329305 | L33: 4.890079493 | M33: 4.339900951 | N33: 4.614990222 | O33: 104.7832961 | P33: 32.69524538 | Q33: 52.39164804 | R33: 16.34762269 | S33: 2.767616699 | T33: 2.926419389 | U33: 2.847018044
A34: 66.12621331 | B34: 39.3628272 | C34: 33.06310666 | D34: 19.6814136 | E34: 4.385552801 | F34: 2.430719712 | G34: 3.408136257 | H34: 24.4139202 | I34: 7.542684996 | J34: 12.2069601 | K34: 3.771342498 | L34: 11.87846923 | M34: 12.68513799 | N34: 12.28180361 | O34: 74.86499557 | P34: 28.32407124 | Q34: 37.43249778 | R34: 14.16203562 | S34: 3.873639447 | T34: 3.378045451 | U34: 3.625842449
A35: 46.89272586 | B35: 15.08151103 | C35: 23.44636293 | D35: 7.540755514 | E35: 6.184328052 | F35: 6.344191893 | G35: 6.264259972 | H35: 42.46763894 | I35: 9.138555004 | J35: 21.23381947 | K35: 4.569277502 | L35: 6.828729057 | M35: 10.46992659 | N35: 8.649327821 | O35: 54.99655425 | P35: 29.14363052 | Q35: 27.49827712 | R35: 14.57181526 | S35: 5.27305763 | T35: 3.283050132 | U35: 4.278053881
A36: 65.21989604 | B36: 21.92308063 | C36: 32.60994802 | D36: 10.96154032 | E36: 4.446495895 | F36: 4.364350138 | G36: 4.405423017 | H36: 16.45083552 | I36: 10.33695277 | J36: 8.225417758 | K36: 5.168476385 | L36: 17.62828397 | M36: 9.256112717 | N36: 13.44219834 | O36: 47.02054156 | P36: 19.82225314 | Q36: 23.51027078 | R36: 9.911126572 | S36: 6.167517225 | T36: 4.8268983 | U36: 5.497207762
A37: 35.28721119 | B37: 12.70301089 | C37: 17.6436056 | D37: 6.351505443 | E37: 8.218274842 | F37: 7.532072582 | G37: 7.875173712 | H37: 7.597363288 | I37: 1.85515362 | J37: 3.798681644 | K37: 0.92757681 | L37: 38.17113767 | M37: 51.57524367 | N37: 44.87319067 | O37: 50.23213289 | P37: 13.06882368 | Q37: 25.11606645 | R37: 6.534411839 | S37: 5.773197022 | T37: 7.321240408 | U37: 6.547218715
A38: 38.84787404 | B38: 9.231986074 | C38: 19.42393702 | D38: 4.615993037 | E38: 7.465015967 | F38: 10.36396711 | G38: 8.914491537 | H38: 0 | I38: 0 | J38: 0 | K38: 0 | O38: 28.57639203 | P38: 10.95053958 | Q38: 14.28819601 | R38: 5.475269788 | S38: 10.14823704 | T38: 8.737468993 | U38: 9.442853016
A39: 21.93963038 | B39: 9.220753578 | C39: 10.96981519 | D39: 4.610376789 | E39: 13.21808959 | F39: 10.37659224 | G39: 11.79734091 | H39: 0 | I39: 0 | J39: 0 | K39: 0 | O39: 9.071176752 | P39: 3.559643621 | Q39: 4.535588376 | R39: 1.77982181 | S39: 31.9693914 | T39: 26.87909527 | U39: 29.42424333
A40: 0 | B40: 4.255294633 | C40: 0 | D40: 2.127647316 | F40: 22.48492954 | H40: 0 | I40: 0 | J40: 0 | K40: 0 | O40: 0 | P40: 1.867990989 | Q40: 0 | R40: 0.9339954943 | T40: 51.22080384
A41: 7.696627945 | B41: 0 | C41: 3.848313973 | D41: 0 | E41: 37.67883833 | H41: 0 | I41: 0 | J41: 0 | K41: 0 | O41: 0 | P41: 0 | Q41: 0 | R41: 0
A42: 5.848052786 | B42: 0 | C42: 2.924026393 | D42: 0 | E42: 49.58915567 | H42: 0 | I42: 0 | J42: 0 | K42: 0 | O42: 0 | P42: 0 | Q42: 0 | R42: 0
A43: 0 | B43: 0 | C43: 0 | D43: 0 | H43: 0 | I43: 0 | J43: 0 | K43: 0 | O43: 0 | P43: 0 | Q43: 0 | R43: 0
A44: 0 | B44: 0 | C44: 0 | D44: 0 | H44: 0 | I44: 0 | J44: 0 | K44: 0 | O44: 0 | P44: 0 | Q44: 0 | R44: 0
A45: 0 | B45: 0 | C45: 0 | D45: 0 | H45: 0 | I45: 0 | J45: 0 | K45: 0 | O45: 0 | P45: 0 | Q45: 0 | R45: 0
A46: 0 | B46: 0 | C46: 0 | D46: 0 | H46: 0 | I46: 0 | J46: 0 | K46: 0 | O46: 0 | P46: 0 | Q46: 0 | R46: 0
A47: 0 | B47: 0 | C47: 0 | D47: 0 | H47: 0 | I47: 0 | J47: 0 | K47: 0 | O47: 0 | P47: 0 | Q47: 0 | R47: 0
A48: 0 | B48: 0 | C48: 0 | D48: 0 | H48: 0 | I48: 0 | J48: 0 | K48: 0 | O48: 0 | P48: 0 | Q48: 0 | R48: 0
A49: 0 | B49: 0 | C49: 0 | D49: 0 | H49: 0 | I49: 0 | J49: 0 | K49: 0 | O49: 0 | P49: 0 | Q49: 0 | R49: 0
A50: 0 | B50: 0 | C50: 0 | D50: 0 | H50: 0 | I50: 0 | J50: 0 | K50: 0 | O50: 0 | P50: 0 | Q50: 0 | R50: 0
A51: 0 | B51: 0 | C51: 0 | D51: 0 | H51: 0 | I51: 0 | J51: 0 | K51: 0 | O51: 0 | P51: 0 | Q51: 0 | R51: 0

Sheet Sheet2 (hidden)
B1: Jan | I1: April | P1: July | W1: Oct
B2: 47 | C2: 145kW | D2: kWH | E2: kWh | F2: Factoe 1 | G2: Foactor 2 | H2: Average | I2: 47kW | J2: 145kW | K2: kWH | L2: kWh | M2: Factoe 1 | N2: Foactor 2 | O2: Average | P2: 47kW | Q2: 145kW | R2: kWH | S2: kWh | T2: Factoe 1 | U2: Foactor 2 | V2: Average | W2: 47kW | X2: 145kW | Y2: kWH | Z2: kWh | AA2: Factoe 1 | AB2: Foactor 2 | AC2: Average
B3: 0 | C3: 0 | D3: =0.5*B3 -> 0 | E3: =0.5*C3 -> 0 | F3: =$B$2/D3 ->  | G3: =$B$2/E3 ->  | H3: =AVERAGE(F3:G3) ->  | I3: 0 | J3: 0 | K3: =0.5*I3 -> 0 | L3: =0.5*J3 -> 0 | M3: =$B$2/K3 ->  | N3: =$B$2/L3 ->  | O3: =AVERAGE(M3:N3) ->  | P3: 0 | Q3: 0 | R3: =0.5*P3 -> 0 | S3: =0.5*Q3 -> 0 | T3: =$B$2/R3 ->  | U3: =$B$2/S3 ->  | V3: =AVERAGE(T3:U3) ->  | W3: 0 | X3: 0 | Y3: =0.5*W3 -> 0 | Z3: =0.5*X3 -> 0 | AA3: =$B$2/Y3 ->  | AB3: =$B$2/Z3 ->  | AC3: =AVERAGE(AA3:AB3) -> 
B4: 0 | C4: 0 | D4: =0.5*B4 -> 0 | E4: =0.5*C4 -> 0 | F4: =$B$2/D4 ->  | G4: =$B$2/E4 ->  | H4: =AVERAGE(F4:G4) ->  | I4: 0 | J4: 0 | K4: =0.5*I4 -> 0 | L4: =0.5*J4 -> 0 | M4: =$B$2/K4 ->  | N4: =$B$2/L4 ->  | O4: =AVERAGE(M4:N4) ->  | P4: 0 | Q4: 0 | R4: =0.5*P4 -> 0 | S4: =0.5*Q4 -> 0 | T4: =$B$2/R4 ->  | U4: =$B$2/S4 ->  | V4: =AVERAGE(T4:U4) ->  | W4: 0 | X4: 0 | Y4: =0.5*W4 -> 0 | Z4: =0.5*X4 -> 0 | AA4: =$B$2/Y4 ->  | AB4: =$B$2/Z4 ->  | AC4: =AVERAGE(AA4:AB4) -> 
B5: 0 | C5: 0 | D5: 0 | E5: 0 | I5: 0 | J5: 0 | K5: 0 | L5: 0 | P5: 0 | Q5: 0 | R5: 0 | S5: 0 | W5: 0 | X5: 0 | Y5: 0 | Z5: 0
B6: 0 | C6: 0 | D6: 0 | E6: 0 | I6: 0 | J6: 0 | K6: 0 | L6: 0 | P6: 0 | Q6: 0 | R6: 0 | S6: 0 | W6: 0 | X6: 0 | Y6: 0 | Z6: 0
B7: 0 | C7: 0 | D7: 0 | E7: 0 | I7: 0 | J7: 0 | K7: 0 | L7: 0 | P7: 0 | Q7: 0 | R7: 0 | S7: 0 | W7: 0 | X7: 0 | Y7: 0 | Z7: 0
B8: 0 | C8: 0 | D8: 0 | E8: 0 | I8: 0 | J8: 0 | K8: 0 | L8: 0 | P8: 0 | Q8: 0 | R8: 0 | S8: 0 | W8: 0 | X8: 0 | Y8: 0 | Z8: 0
B9: 0 | C9: 0 | D9: 0 | E9: 0 | I9: 0 | J9: 0 | K9: 0 | L9: 0 | P9: 0 | Q9: 0 | R9: 0 | S9: 0 | W9: 0 | X9: 0 | Y9: 0 | Z9: 0
B10: 0 | C10: 0 | D10: 0 | E10: 0 | I10: 0 | J10: 0 | K10: 0 | L10: 0 | P10: 0 | Q10: 0 | R10: 0 | S10: 0 | W10: 0 | X10: 0 | Y10: 0 | Z10: 0
B11: 0 | C11: 0 | D11: 0 | E11: 0 | I11: 0 | J11: 0 | K11: 0 | L11: 0 | P11: 0 | Q11: 0 | R11: 0 | S11: 0 | W11: 0 | X11: 0 | Y11: 0 | Z11: 0
B12: 0 | C12: 0 | D12: 0 | E12: 0 | I12: 0 | J12: 0 | K12: 0 | L12: 0 | P12: 0 | Q12: 0 | R12: 0 | S12: 0 | W12: 0 | X12: 0 | Y12: 0 | Z12: 0
B13: 0 | C13: 0 | D13: 0 | E13: 0 | I13: 0 | J13: 0 | K13: 0 | L13: 0 | P13: 0 | Q13: 0 | R13: 0 | S13: 0 | W13: 0 | X13: 0 | Y13: 0 | Z13: 0
B14: 0 | C14: 0 | D14: 0 | E14: 0 | I14: 0 | J14: 0 | K14: 0 | L14: 0 | P14: 0 | Q14: 0 | R14: 0 | S14: 0 | W14: 0 | X14: 0 | Y14: 0 | Z14: 0
B15: 0 | C15: 0 | D15: 0 | E15: 0 | I15: 0 | J15: 6.128000049 | K15: 0 | L15: 3.064000024 | N15: 15.33942546 | P15: 2.377884942 | Q15: 8.926657409 | R15: 1.188942471 | S15: 4.463328705 | T15: 39.53092866 | U15: 10.53025737 | V15: 25.03059302 | W15: 0 | X15: 0 | Y15: 0 | Z15: 0
B16: 0 | C16: 0 | D16: 0 | E16: 0 | I16: 0 | J16: 8.887699592 | K16: 0 | L16: 4.443849796 | N16: 10.57641508 | P16: 6.253078732 | Q16: 19.56329022 | R16: 3.126539366 | S16: 9.781645112 | T16: 15.03259499 | U16: 4.804917727 | V16: 9.918756357 | W16: 0 | X16: 0 | Y16: 0 | Z16: 0
B17: 0 | C17: 0 | D17: 0 | E17: 0 | I17: 9.403853026 | J17: 15.44198855 | K17: 4.701926513 | L17: 7.720994273 | M17: 9.995902716 | N17: 6.087298907 | O17: 8.041600811 | P17: 14.86970695 | Q17: 20.13088219 | R17: 7.434853475 | S17: 10.06544109 | T17: 6.321577171 | U17: 4.669442656 | V17: 5.495509913 | W17: 0 | X17: 0 | Y17: 0 | Z17: 0
B18: 0 | C18: 0 | D18: 0 | E18: 0 | I18: 11.69418857 | J18: 31.43235202 | K18: 5.847094287 | L18: 15.71617601 | M18: 8.038180623 | N18: 2.990549353 | O18: 5.514364988 | P18: 7.449196661 | Q18: 36.62957233 | R18: 3.724598331 | S18: 18.31478617 | T18: 12.61881036 | U18: 2.566232528 | V18: 7.592521444 | W18: 2.208790811 | X18: 0 | Y18: 1.104395406 | Z18: 0 | AA18: 42.55722159
B19: 0 | C19: 0 | D19: 0 | E19: 0 | I19: 9.278393569 | J19: 25.80124189 | K19: 4.639196784 | L19: 12.90062094 | M19: 10.1310641 | N19: 3.643235485 | O19: 6.887149793 | P19: 17.75794595 | Q19: 55.89914339 | R19: 8.878972977 | S19: 27.94957169 | T19: 5.293405006 | U19: 1.681600009 | V19: 3.487502507 | W19: 5.209790725 | X19: 25.2556208 | Y19: 2.604895363 | Z19: 12.6278104 | AA19: 18.04295123 | AB19: 3.721943751 | AC19: 10.88244749
B20: 1.947882487 | C20: 9.710002377 | D20: 0.9739412436 | E20: 4.855001188 | F20: 48.25753125 | G20: 9.680739134 | H20: 28.96913519 | I20: 12.11987252 | J20: 68.76033512 | K20: 6.05993626 | L20: 34.38016756 | M20: 7.755857155 | N20: 1.367067217 | O20: 4.561462186 | P20: 31.08690125 | Q20: 41.54686507 | R20: 15.54345063 | S20: 20.77343253 | T20: 3.0237816 | U20: 2.262505242 | V20: 2.643143421 | W20: 9.053404548 | X20: 14.44058589 | Y20: 4.526702274 | Z20: 7.220292946 | AA20: 10.38283438 | AB20: 6.509431176 | AC20: 8.446132778
B21: 5.639084153 | C21: 14.31775637 | D21: 2.819542076 | E21: 7.158878184 | F21: 16.66937351 | G21: 6.565274445 | H21: 11.61732398 | I21: 9.247102405 | J21: 83.22791621 | K21: 4.623551203 | L21: 41.61395811 | M21: 10.16534649 | N21: 1.129428734 | O21: 5.647387613 | P21: 34.66684305 | Q21: 38.68756989 | R21: 17.33342152 | S21: 19.34378494 | T21: 2.711524666 | U21: 2.429720974 | V21: 2.57062282 | W21: 7.205595031 | X21: 33.98447915 | Y21: 3.602797515 | Z21: 16.99223957 | AA21: 13.04541812 | AB21: 2.765968535 | AC21: 7.905693329
B22: 5.339631221 | C22: 22.51147044 | D22: 2.66981561 | E22: 11.25573522 | F22: 17.604212 | G22: 4.175649042 | H22: 10.88993052 | I22: 11.94855678 | J22: 35.77385707 | K22: 5.974278392 | L22: 17.88692854 | M22: 7.8670589 | N22: 2.62761714 | O22: 5.24733802 | P22: 18.70136474 | Q22: 101.9841638 | R22: 9.350682371 | S22: 50.99208192 | T22: 5.026371139 | U22: 0.9217117291 | V22: 2.974041434 | W22: 7.224901245 | X22: 56.69379603 | Y22: 3.612450623 | Z22: 28.34689801 | AA22: 13.01055846 | AB22: 1.658029742 | AC22: 7.3342941
B23: 5.296904546 | C23: 19.5762836 | D23: 2.648452273 | E23: 9.7881418 | F23: 17.7462137 | G23: 4.801728557 | H23: 11.27397113 | I23: 20.67239515 | J23: 68.25899232 | K23: 10.33619758 | L23: 34.12949616 | M23: 4.547126703 | N23: 1.377107936 | O23: 2.962117319 | P23: 30.8920943 | Q23: 89.19815275 | R23: 15.44604715 | S23: 44.59907637 | T23: 3.042849704 | U23: 1.053833483 | V23: 2.048341594 | W23: 20.67358318 | X23: 41.89612549 | Y23: 10.33679159 | Z23: 20.94806274 | AA23: 4.546865398 | AB23: 2.243644225 | AC23: 3.395254811
B24: 6.796777343 | C24: 13.26371258 | D24: 3.398388672 | E24: 6.631856288 | F24: 13.83008377 | G24: 7.0870052 | H24: 10.45854448 | I24: 23.8369573 | J24: 50.2666282 | K24: 11.91847865 | L24: 25.1333141 | M24: 3.943456324 | N24: 1.870027956 | O24: 2.90674214 | P24: 15.11532687 | Q24: 41.50854547 | R24: 7.557663433 | S24: 20.75427274 | T24: 6.218853276 | U24: 2.264593927 | V24: 4.241723601 | W24: 20.23501326 | X24: 36.27526761 | Y24: 10.11750663 | Z24: 18.13763381 | AA24: 4.645413313 | AB24: 2.591297217 | AC24: 3.618355265
B25: 15.05977567 | C25: 44.86462825 | D25: 7.529887836 | E25: 22.43231412 | F25: 6.241792842 | G25: 2.095191773 | H25: 4.168492308 | I25: 12.18100668 | J25: 78.87750757 | K25: 6.090503342 | L25: 39.43875378 | M25: 7.716931978 | N25: 1.191721226 | O25: 4.454326602 | P25: 24.38439185 | Q25: 50.62761422 | R25: 12.19219592 | S25: 25.31380711 | T25: 3.854924929 | U25: 1.856694246 | V25: 2.855809587 | W25: 17.45921815 | X25: 76.27380773 | Y25: 8.729609075 | Z25: 38.13690386 | AA25: 5.383975342 | AB25: 1.232402089 | AC25: 3.308188715
B26: 6.54087719 | C26: 43.16554696 | D26: 3.270438595 | E26: 21.58277348 | F26: 14.37116113 | G26: 2.177662664 | H26: 8.274411895 | I26: 21.22416593 | J26: 93.0629875 | K26: 10.61208297 | L26: 46.53149375 | M26: 4.428913734 | N26: 1.010068584 | O26: 2.719491159 | P26: 39.86378369 | Q26: 122.6716977 | R26: 19.93189185 | S26: 61.33584885 | T26: 2.358030054 | U26: 0.7662729201 | V26: 1.562151487 | W26: 15.97906623 | X26: 66.32761656 | Y26: 7.989533116 | Z26: 33.16380828 | AA26: 5.882696688 | AB26: 1.417207566 | AC26: 3.649952127
B27: 17.76867124 | C27: 45.0932289 | D27: 8.884335619 | E27: 22.54661445 | F27: 5.290209872 | G27: 2.084570174 | H27: 3.687390023 | I27: 13.09041138 | J27: 96.13360933 | K27: 6.545205689 | L27: 48.06680466 | M27: 7.180828568 | N27: 0.9778057919 | O27: 4.07931718 | P27: 27.36583474 | Q27: 66.69894695 | R27: 13.68291737 | S27: 33.34947347 | T27: 3.434939986 | U27: 1.409317602 | V27: 2.422128794 | W27: 10.14893453 | X27: 83.69810899 | Y27: 5.074467265 | Z27: 41.8490545 | AA27: 9.262056004 | AB27: 1.123083916 | AC27: 5.19256996
B28: 15.22254987 | C28: 45.67198689 | D28: 7.611274933 | E28: 22.83599345 | F28: 6.17504957 | G28: 2.058154383 | H28: 4.116601976 | I28: 28.43724945 | J28: 101.9760215 | K28: 14.21862472 | L28: 50.98801077 | M28: 3.305523629 | N28: 0.9217853234 | O28: 2.113654476 | P28: 32.32796165 | Q28: 47.76852307 | R28: 16.16398083 | S28: 23.88426154 | T28: 2.907699564 | U28: 1.967823034 | V28: 2.437761299 | W28: 12.85520852 | X28: 55.39933007 | Y28: 6.427604258 | Z28: 27.69966503 | AA28: 7.312211224 | AB28: 1.696771421 | AC28: 4.504491323
B29: 7.980208467 | C29: 16.07167618 | D29: 3.990104234 | E29: 8.03583809 | F29: 11.77914091 | G29: 5.848798778 | H29: 8.813969842 | I29: 11.64575858 | J29: 89.56040912 | K29: 5.822879291 | L29: 44.78020456 | M29: 8.07160816 | N29: 1.049570909 | O29: 4.560589534 | P29: 44.69212468 | Q29: 52.15878632 | R29: 22.34606234 | S29: 26.07939316 | T29: 2.103278837 | U29: 1.802189173 | V29: 1.952734005 | W29: 9.078461829 | X29: 81.20967584 | Y29: 4.539230915 | Z29: 40.60483792 | AA29: 10.35417693 | AB29: 1.15749754 | AC29: 5.755837233
B30: 12.14843926 | C30: 16.53246547 | D30: 6.074219632 | E30: 8.266232733 | F30: 7.737619456 | G30: 5.685782329 | H30: 6.711700892 | I30: 25.10013376 | J30: 98.94223088 | K30: 12.55006688 | L30: 49.47111544 | M30: 3.744999964 | N30: 0.9500493284 | O30: 2.347524646 | P30: 22.07289959 | Q30: 62.16143954 | R30: 11.03644979 | S30: 31.08071977 | T30: 4.258615848 | U30: 1.512191492 | V30: 2.88540367 | W30: 13.26182885 | X30: 81.22615786 | Y30: 6.630914423 | Z30: 40.61307893 | AA30: 7.088011849 | AB30: 1.157262666 | AC30: 4.122637257
B31: 9.419491565 | C31: 25.79519711 | D31: 4.709745782 | E31: 12.89759856 | F31: 9.979307201 | G31: 3.644089231 | H31: 6.811698216 | I31: 20.71790998 | J31: 83.80252249 | K31: 10.35895499 | L31: 41.90126125 | M31: 4.537137196 | N31: 1.121684613 | O31: 2.829410904 | P31: 30.68671264 | Q31: 71.08279697 | R31: 15.34335632 | S31: 35.54139849 | T31: 3.06321505 | U31: 1.322401537 | V31: 2.192808294 | W31: 21.69507754 | X31: 39.01229534 | Y31: 10.84753877 | Z31: 19.50614767 | AA31: 4.332780089 | AB31: 2.40949678 | AC31: 3.371138434
B32: 3.83870867 | C32: 28.58594913 | D32: 1.919354335 | E32: 14.29297456 | F32: 24.48740138 | G32: 3.288328807 | H32: 13.88786509 | I32: 21.23188927 | J32: 90.91061542 | K32: 10.61594463 | L32: 45.45530771 | M32: 4.427302668 | N32: 1.03398266 | O32: 2.730642664 | P32: 32.48176239 | Q32: 80.98302372 | R32: 16.2408812 | S32: 40.49151186 | T32: 2.893931643 | U32: 1.160737099 | V32: 2.027334371 | W32: 16.59276396 | X32: 54.91953705 | Y32: 8.296381979 | Z32: 27.45976852 | AA32: 5.665120063 | AB32: 1.711594909 | AC32: 3.688357486
B33: 2.999511908 | C33: 10.05248645 | D33: 1.499755954 | E33: 5.026243227 | F33: 31.33843201 | G33: 9.350920335 | H33: 20.34467617 | I33: 20.50517231 | J33: 82.1608545 | K33: 10.25258615 | L33: 41.08042725 | M33: 4.584209222 | N33: 1.144097156 | O33: 2.864153189 | P33: 25.22137692 | Q33: 92.47967414 | R33: 12.61068846 | S33: 46.23983707 | T33: 3.726997154 | U33: 1.016439568 | V33: 2.371718361 | W33: 15.1737281 | X33: 26.0616976 | Y33: 7.586864051 | Z33: 13.0308488 | AA33: 6.194917911 | AB33: 3.606825673 | AC33: 4.900871792
B34: 2.774995482 | C34: 7.050363443 | D34: 1.387497741 | E34: 3.525181722 | F34: 33.87392903 | G34: 13.33264601 | H34: 23.60328752 | I34: 15.39542689 | J34: 28.51015649 | K34: 7.697713445 | L34: 14.25507825 | M34: 6.105709226 | N34: 3.297070643 | O34: 4.701389934 | P34: 22.37610505 | Q34: 81.64110498 | R34: 11.18805253 | S34: 40.82055249 | T34: 4.200909845 | U34: 1.151380791 | V34: 2.676145318 | W34: 9.678589625 | X34: 23.16025331 | Y34: 4.839294813 | Z34: 11.58012665 | AA34: 9.712158862 | AB34: 4.058677543 | AC34: 6.885418203
B35: 0 | C35: 0 | D35: 0 | E35: 0 | I35: 17.81206482 | J35: 40.01124234 | K35: 8.906032409 | L35: 20.00562117 | M35: 5.277321914 | N35: 2.349339698 | O35: 3.813330806 | P35: 18.91969111 | Q35: 24.47019695 | R35: 9.459845554 | S35: 12.23509847 | T35: 4.968368641 | U35: 3.841407579 | V35: 4.40488811 | W35: 6.894863469 | X35: 12.1599884 | Y35: 3.447431734 | Z35: 6.079994201 | AA35: 13.6333374 | AB35: 7.73027053 | AC35: 10.68180397
B36: 0 | C36: 0 | D36: =0.5*B36 -> 0 | E36: =0.5*C36 -> 0 | F36: =$B$2/D36 ->  | G36: =$B$2/E36 ->  | H36: =AVERAGE(F36:G36) ->  | I36: 12.51632376 | J36: 26.00034628 | K36: =0.5*I36 -> 6.258161882 | L36: =0.5*J36 -> 13.00017314 | M36: =$B$2/K36 -> 7.510192431 | N36: =$B$2/L36 -> 3.615336465 | O36: =AVERAGE(M36:N36) -> 5.562764448 | P36: 10.29818157 | Q36: 47.08981497 | R36: =0.5*P36 -> 5.149090785 | S36: =0.5*Q36 -> 23.54490748 | T36: =$B$2/R36 -> 9.127825079 | U36: =$B$2/S36 -> 1.996185376 | V36: =AVERAGE(T36:U36) -> 5.562005227 | W36: 1.982143589 | X36: 6.421770948 | Y36: =0.5*W36 -> 0.9910717947 | Z36: =0.5*X36 -> 3.210885474 | AA36: =$B$2/Y36 -> 47.4234059 | AB36: =$B$2/Z36 -> 14.63770676 | AC36: =AVERAGE(AA36:AB36) -> 31.03055633
B37: 0 | C37: 0 | D37: 0 | E37: 0 | I37: 6.733842801 | J37: 28.59504039 | K37: 3.3669214 | L37: 14.29752019 | M37: 13.95933983 | N37: 3.287283344 | O37: 8.623311586 | P37: 10.44509191 | Q37: 16.43821222 | R37: 5.222545957 | S37: 8.21910611 | T37: 8.999442109 | U37: 5.718383407 | V37: 7.358912758 | W37: 0 | X37: 0 | Y37: 0 | Z37: 0
B38: 0 | C38: 0 | D38: 0 | E38: 0 | I38: 0 | J38: 16.01221459 | K38: 0 | L38: 8.006107293 | N38: 5.870518378 | P38: 6.040331373 | Q38: 12.23224179 | R38: 3.020165687 | S38: 6.116120893 | T38: 15.56206012 | U38: 7.684609382 | V38: 11.62333475 | W38: 0 | X38: 0 | Y38: 0 | Z38: 0
B39: 0 | C39: 0 | D39: 0 | E39: 0 | I39: 2.508344694 | J39: 0 | K39: 1.254172347 | L39: 0 | M39: 37.47491333 | P39: 4.969429881 | Q39: 0 | R39: 2.48471494 | S39: 0 | T39: 18.91565074 | W39: 0 | X39: 0 | Y39: 0 | Z39: 0
B40: 0 | C40: 0 | D40: 0 | E40: 0 | I40: 0 | J40: 0 | K40: 0 | L40: 0 | P40: 0 | Q40: 0 | R40: 0 | S40: 0 | W40: 0 | X40: 0 | Y40: 0 | Z40: 0
B41: 0 | C41: 0 | D41: 0 | E41: 0 | I41: 0 | J41: 0 | K41: 0 | L41: 0 | P41: 0 | Q41: 0 | R41: 0 | S41: 0 | W41: 0 | X41: 0 | Y41: 0 | Z41: 0
B42: 0 | C42: 0 | D42: 0 | E42: 0 | I42: 0 | J42: 0 | K42: 0 | L42: 0 | P42: 0 | Q42: 0 | R42: 0 | S42: 0 | W42: 0 | X42: 0 | Y42: 0 | Z42: 0
B43: 0 | C43: 0 | D43: 0 | E43: 0 | I43: 0 | J43: 0 | K43: 0 | L43: 0 | P43: 0 | Q43: 0 | R43: 0 | S43: 0 | W43: 0 | X43: 0 | Y43: 0 | Z43: 0
B44: 0 | C44: 0 | D44: 0 | E44: 0 | I44: 0 | J44: 0 | K44: 0 | L44: 0 | P44: 0 | Q44: 0 | R44: 0 | S44: 0 | W44: 0 | X44: 0 | Y44: 0 | Z44: 0
B45: 0 | C45: 0 | D45: 0 | E45: 0 | I45: 0 | J45: 0 | K45: 0 | L45: 0 | P45: 0 | Q45: 0 | R45: 0 | S45: 0 | W45: 0 | X45: 0 | Y45: 0 | Z45: 0
B46: 0 | C46: 0 | D46: 0 | E46: 0 | I46: 0 | J46: 0 | K46: 0 | L46: 0 | P46: 0 | Q46: 0 | R46: 0 | S46: 0 | W46: 0 | X46: 0 | Y46: 0 | Z46: 0
B47: 0 | C47: 0 | D47: 0 | E47: 0 | I47: 0 | J47: 0 | K47: 0 | L47: 0 | P47: 0 | Q47: 0 | R47: 0 | S47: 0 | W47: 0 | X47: 0 | Y47: 0 | Z47: 0
B48: 0 | C48: 0 | D48: 0 | E48: 0 | I48: 0 | J48: 0 | K48: 0 | L48: 0 | P48: 0 | Q48: 0 | R48: 0 | S48: 0 | W48: 0 | X48: 0 | Y48: 0 | Z48: 0
B49: 0 | C49: 0 | D49: 0 | E49: 0 | I49: 0 | J49: 0 | K49: 0 | L49: 0 | P49: 0 | Q49: 0 | R49: 0 | S49: 0 | W49: 0 | X49: 0 | Y49: 0 | Z49: 0
B50: 0 | C50: 0 | D50: 0 | E50: 0 | I50: 0 | J50: 0 | K50: 0 | L50: 0 | P50: 0 | Q50: 0 | R50: 0 | S50: 0 | W50: 0 | X50: 0 | Y50: 0 | Z50: 0

Sheet LOGIC (hidden)
S1: Summary of energy balance
A2: Min charge (kWh) | C2: Winter | S2: In use day | X2: Not in use day
A3: ='Import avoidance model - RR'!N17 -> 12 | D3: Use' day logic | K3: Non Use' day logic | R3: ='Import avoidance model - RR'!D101 -> Autumn | S3: Demand | T3: Generation | U3: Import | V3: Battery discharge | W3: Battery status | X3: Demand | Y3: Generation | Z3: Import | AA3: Battery Discharge | AB3: Battery status
A4: Max charge (kWh) | C4: Generation (kWh) | D4: Use' Demand (kWh) | E4: Available to charge battery (kWh) | F4: Battery Recharge / kWh | G4: Battery Discharge / kWh | H4: Discharge/Recharge / kWh | I4: Battery charge | J4: Generation (kWh) | K4: Use' Demand (kWh) | L4: Available to charge battery (kWh) | M4: Battery Recharge / kWh | N4: Battery Discharge / kWh | O4: Discharge/Recharge / kWh | P4: Battery charge | R4: 00:00:00 | S4: =D5 -> 17.61019572 | T4: =IF($R$3="Spring",C57,IF($R$3="Summer",C109,IF($R$3="Autumn",C161,IF($R$3="Winter",C5,"")))) -> 0 | U4: =IF(T4>=S4,0,IF(S4-T4-V4<0,0,S4-T4-V4)) -> 17.61019572 | V4: =IF($R$3="Spring",G57,IF($R$3="Summer",G109,IF($R$3="Autumn",G161,IF($R$3="Winter",H5,"")))) -> 0 | W4: =IF($R$3="Spring",I57,IF($R$3="Summer",I109,IF($R$3="Autumn",I161,IF($R$3="Winter",I5,"")))) -> 12 | X4: =K5 -> 20.30409503 | Y4: =T4 -> 0 | Z4: =IF(Y4>=X4,0,IF(X4-Y4-AA4<0,0,X4-Y4-AA4)) -> 20.30409503 | AA4: =IF($R$3="Spring",N57,IF($R$3="Summer",N109,IF($R$3="Autumn",N161,IF($R$3="Winter",N5,"")))) -> 0 | AB4: =IF($R$3="Spring",P57,IF($R$3="Summer",P109,IF($R$3="Autumn",P161,IF($R$3="Winter",P5,"")))) -> 12
A5: ='Import avoidance model - RR'!N14*'Import avoidance model - RR'!N15 -> 60 | B5: 00:00:00 | C5: ='PV data'!D5 -> 0 | D5: =IF($A$10="Secondary School",Data!E6,IF($A$10="Primary school",Data!I6,IF($A$10="Retail",Data!M6,IF($A$10="Leisure Centre",Data!Q6,"")))) -> 17.61019572 | E5: =IF(C5>D5,(C5-D5),0) -> 0 | F5: =IF(($A$3+E5)<$A$5,E5,$A$5) -> 0 | G5: =IF(AND(D5>C5,I5>'Import avoidance model - RR'!$N$17,I5),D5-C5,0) -> 0 | H5: =F5-G5 -> 0 | I5: =A3 -> 12 | J5: =C5 -> 0 | K5: =IF($A$10="Secondary School",Data!G6,IF($A$10="Primary school",Data!K6,IF($A$10="Retail",Data!O6,IF($A$10="Leisure Centre",Data!S6,"")))) -> 20.30409503 | L5: =IF(J5>K5,(J5-K5),0) -> 0 | M5: =IF(($A$3+L5)<$A$5,E5,$A$5) -> 0 | N5: =IF(AND(K5>J5,P5>'Import avoidance model - RR'!$N$17,P5),K5-J5,0) -> 0 | O5: =M5-N5 -> 0 | P5: =A3 -> 12 | R5: 00:30:00 | S5: =D6 -> 17.55235099 | T5: =IF($R$3="Spring",C58,IF($R$3="Summer",C110,IF($R$3="Autumn",C162,IF($R$3="Winter",C6,"")))) -> 0 | U5: =IF(T5>=S5,0,IF(S5-T5-V5<0,0,S5-T5-V5)) -> 17.55235099 | V5: =IF($R$3="Spring",G58,IF($R$3="Summer",G110,IF($R$3="Autumn",G162,IF($R$3="Winter",H6,"")))) -> 0 | W5: =IF($R$3="Spring",I58,IF($R$3="Summer",I110,IF($R$3="Autumn",I162,IF($R$3="Winter",I6,"")))) -> 12 | X5: =K6 -> 20.28504251 | Y5: =T5 -> 0 | Z5: =IF(Y5>=X5,0,IF(X5-Y5-AA5<0,0,X5-Y5-AA5)) -> 20.28504251 | AA5: =IF($R$3="Spring",N58,IF($R$3="Summer",N110,IF($R$3="Autumn",N162,IF($R$3="Winter",N6,"")))) -> 0 | AB5: =IF($R$3="Spring",P58,IF($R$3="Summer",P110,IF($R$3="Autumn",P162,IF($R$3="Winter",P6,"")))) -> 12
A6: max charge/discharge rate in HH | B6: 00:30:00 | C6: ='PV data'!D6 -> 0 | D6: =IF($A$10="Secondary School",Data!E7,IF($A$10="Primary school",Data!I7,IF($A$10="Retail",Data!M7,IF($A$10="Leisure Centre",Data!Q7,"")))) -> 17.55235099 | E6: =IF(C6>D6,(C6-D6),0) -> 0 | F6: =IF(AND((I5+E6)<$A$5,E6<=$A$7),E6,IF(E6>$A$7,$A$7,$A$5-I5)) -> 0 | G6: =IF(AND(D6>C6,I5>$A$3),IF(D6-C6<=$A$7,D6-C6,$A$7),0) -> 0 | H6: =F6-G6 -> 0 | I6: =IF(AND(I5+H6<=$A$5,I5+H6>$A$3),LOGIC!I5+LOGIC!H6,IF(I5+H6>$A$5,$A$5,$A$3)) -> 12 | J6: =C6 -> 0 | K6: =IF($A$10="Secondary School",Data!G7,IF($A$10="Primary school",Data!K7,IF($A$10="Retail",Data!O7,IF($A$10="Leisure Centre",Data!S7,"")))) -> 20.28504251 | L6: 0 | M6: =IF(AND((P5+L6)<$A$5,L6<=$A$7),L6,IF(L6>$A$7,$A$7,$A$5-P5)) -> 0 | N6: =IF(AND(K6>J6,P5>$A$3),IF(K6-J6<=$A$7,K6-J6,$A$7),0) -> 0 | O6: =M6-N6 -> 0 | P6: =IF(AND(P5+O6<=$A$5,P5+O6>$A$3),LOGIC!P5+LOGIC!O6,IF(P5+O6>$A$5,$A$5,$A$3)) -> 12 | R6: 01:00:00 | S6: 17.49151404 | T6: 0 | U6: 17.49151404 | V6: 0 | W6: 12 | X6: 20.4023039 | Y6: 0 | Z6: 20.4023039 | AA6: 0 | AB6: 12
A7: =0.5*'Import avoidance model - RR'!N14 -> 15 | B7: 01:00:00 | C7: ='PV data'!D7 -> 0 | D7: =IF($A$10="Secondary School",Data!E8,IF($A$10="Primary school",Data!I8,IF($A$10="Retail",Data!M8,IF($A$10="Leisure Centre",Data!Q8,"")))) -> 17.49151404 | E7: 0 | F7: =IF(AND((I6+E7)<$A$5,E7<=$A$7),E7,IF(E7>$A$7,$A$7,$A$5-I6)) -> 0 | G7: =IF(AND(D7>C7,I6>$A$3),IF(D7-C7<=$A$7,D7-C7,$A$7),0) -> 0 | H7: =F7-G7 -> 0 | I7: =IF(AND(I6+H7<=$A$5,I6+H7>$A$3),LOGIC!I6+LOGIC!H7,IF(I6+H7>$A$5,$A$5,$A$3)) -> 12 | J7: 0 | K7: =IF($A$10="Secondary School",Data!G8,IF($A$10="Primary school",Data!K8,IF($A$10="Retail",Data!O8,IF($A$10="Leisure Centre",Data!S8,"")))) -> 20.4023039 | L7: 0 | M7: =IF(AND((P6+L7)<$A$5,L7<=$A$7),L7,IF(L7>$A$7,$A$7,$A$5-P6)) -> 0 | N7: 0 | O7: =M7-N7 -> 0 | P7: =IF(AND(P6+O7<=$A$5,P6+O7>$A$3),LOGIC!P6+LOGIC!O7,IF(P6+O7>$A$5,$A$5,$A$3)) -> 12 | R7: 01:30:00 | S7: 17.47750895 | T7: 0 | U7: 17.47750895 | V7: 0 | W7: 12 | X7: 20.37873377 | Y7: 0 | Z7: 20.37873377 | AA7: 0 | AB7: 12
B8: 01:30:00 | C8: ='PV data'!D8 -> 0 | D8: =IF($A$10="Secondary School",Data!E9,IF($A$10="Primary school",Data!I9,IF($A$10="Retail",Data!M9,IF($A$10="Leisure Centre",Data!Q9,"")))) -> 17.47750895 | E8: 0 | F8: 0 | G8: 0 | H8: 0 | I8: =IF(AND(I7+H8<=$A$5,I7+H8>$A$3),LOGIC!I7+LOGIC!H8,IF(I7+H8>$A$5,$A$5,$A$3)) -> 12 | J8: 0 | K8: =IF($A$10="Secondary School",Data!G9,IF($A$10="Primary school",Data!K9,IF($A$10="Retail",Data!O9,IF($A$10="Leisure Centre",Data!S9,"")))) -> 20.37873377 | L8: 0 | M8: 0 | N8: 0 | O8: 0 | P8: =IF(AND(P7+O8<=$A$5,P7+O8>$A$3),LOGIC!P7+LOGIC!O8,IF(P7+O8>$A$5,$A$5,$A$3)) -> 12 | R8: 02:00:00 | S8: 17.49849389 | T8: 0 | U8: 17.49849389 | V8: 0 | W8: 12 | X8: 20.40289316 | Y8: 0 | Z8: 20.40289316 | AA8: 0 | AB8: 12
A9: Source | B9: 02:00:00 | C9: ='PV data'!D9 -> 0 | D9: =IF($A$10="Secondary School",Data!E10,IF($A$10="Primary school",Data!I10,IF($A$10="Retail",Data!M10,IF($A$10="Leisure Centre",Data!Q10,"")))) -> 17.49849389 | E9: 0 | F9: 0 | G9: 0 | H9: 0 | I9: =IF(AND(I8+H9<=$A$5,I8+H9>$A$3),LOGIC!I8+LOGIC!H9,IF(I8+H9>$A$5,$A$5,$A$3)) -> 12 | J9: 0 | K9: =IF($A$10="Secondary School",Data!G10,IF($A$10="Primary school",Data!K10,IF($A$10="Retail",Data!O10,IF($A$10="Leisure Centre",Data!S10,"")))) -> 20.40289316 | L9: 0 | M9: 0 | N9: 0 | O9: 0 | P9: =IF(AND(P8+O9<=$A$5,P8+O9>$A$3),LOGIC!P8+LOGIC!O9,IF(P8+O9>$A$5,$A$5,$A$3)) -> 12 | R9: 02:30:00 | S9: 17.76830282 | T9: 0 | U9: 17.76830282 | V9: 0 | W9: 12 | X9: 20.44787282 | Y9: 0 | Z9: 20.44787282 | AA9: 0 | AB9: 12
A10: ='Import avoidance model - RR'!D17 -> Secondary school | B10: 02:30:00 | C10: ='PV data'!D10 -> 0 | D10: =IF($A$10="Secondary School",Data!E11,IF($A$10="Primary school",Data!I11,IF($A$10="Retail",Data!M11,IF($A$10="Leisure Centre",Data!Q11,"")))) -> 17.76830282 | E10: 0 | F10: 0 | G10: 0 | H10: 0 | I10: =IF(AND(I9+H10<=$A$5,I9+H10>$A$3),LOGIC!I9+LOGIC!H10,IF(I9+H10>$A$5,$A$5,$A$3)) -> 12 | J10: 0 | K10: =IF($A$10="Secondary School",Data!G11,IF($A$10="Primary school",Data!K11,IF($A$10="Retail",Data!O11,IF($A$10="Leisure Centre",Data!S11,"")))) -> 20.44787282 | L10: 0 | M10: 0 | N10: 0 | O10: 0 | P10: =IF(AND(P9+O10<=$A$5,P9+O10>$A$3),LOGIC!P9+LOGIC!O10,IF(P9+O10>$A$5,$A$5,$A$3)) -> 12 | R10: 03:00:00 | S10: 19.06674582 | T10: 0 | U10: 19.06674582 | V10: 0 | W10: 12 | X10: 20.43019522 | Y10: 0 | Z10: 20.43019522 | AA10: 0 | AB10: 12
B11: 03:00:00 | C11: ='PV data'!D11 -> 0 | D11: =IF($A$10="Secondary School",Data!E12,IF($A$10="Primary school",Data!I12,IF($A$10="Retail",Data!M12,IF($A$10="Leisure Centre",Data!Q12,"")))) -> 19.06674582 | E11: 0 | F11: 0 | G11: 0 | H11: 0 | I11: =IF(AND(I10+H11<=$A$5,I10+H11>$A$3),LOGIC!I10+LOGIC!H11,IF(I10+H11>$A$5,$A$5,$A$3)) -> 12 | J11: 0 | K11: =IF($A$10="Secondary School",Data!G12,IF($A$10="Primary school",Data!K12,IF($A$10="Retail",Data!O12,IF($A$10="Leisure Centre",Data!S12,"")))) -> 20.43019522 | L11: 0 | M11: 0 | N11: 0 | O11: 0 | P11: =IF(AND(P10+O11<=$A$5,P10+O11>$A$3),LOGIC!P10+LOGIC!O11,IF(P10+O11>$A$5,$A$5,$A$3)) -> 12 | R11: 03:30:00 | S11: 21.08441305 | T11: 0 | U11: 21.08441305 | V11: 0 | W11: 12 | X11: 20.45356893 | Y11: 0 | Z11: 20.45356893 | AA11: 0 | AB11: 12
B12: 03:30:00 | C12: ='PV data'!D12 -> 0 | D12: =IF($A$10="Secondary School",Data!E13,IF($A$10="Primary school",Data!I13,IF($A$10="Retail",Data!M13,IF($A$10="Leisure Centre",Data!Q13,"")))) -> 21.08441305 | E12: 0 | F12: 0 | G12: 0 | H12: 0 | I12: =IF(AND(I11+H12<=$A$5,I11+H12>$A$3),LOGIC!I11+LOGIC!H12,IF(I11+H12>$A$5,$A$5,$A$3)) -> 12 | J12: 0 | K12: =IF($A$10="Secondary School",Data!G13,IF($A$10="Primary school",Data!K13,IF($A$10="Retail",Data!O13,IF($A$10="Leisure Centre",Data!S13,"")))) -> 20.45356893 | L12: 0 | M12: 0 | N12: 0 | O12: 0 | P12: =IF(AND(P11+O12<=$A$5,P11+O12>$A$3),LOGIC!P11+LOGIC!O12,IF(P11+O12>$A$5,$A$5,$A$3)) -> 12 | R12: 04:00:00 | S12: 24.81712087 | T12: 0 | U12: 24.81712087 | V12: 0 | W12: 12 | X12: 20.024789 | Y12: 0 | Z12: 20.024789 | AA12: 0 | AB12: 12
B13: 04:00:00 | C13: ='PV data'!D13 -> 0 | D13: =IF($A$10="Secondary School",Data!E14,IF($A$10="Primary school",Data!I14,IF($A$10="Retail",Data!M14,IF($A$10="Leisure Centre",Data!Q14,"")))) -> 24.81712087 | E13: 0 | F13: 0 | G13: 0 | H13: 0 | I13: =IF(AND(I12+H13<=$A$5,I12+H13>$A$3),LOGIC!I12+LOGIC!H13,IF(I12+H13>$A$5,$A$5,$A$3)) -> 12 | J13: 0 | K13: =IF($A$10="Secondary School",Data!G14,IF($A$10="Primary school",Data!K14,IF($A$10="Retail",Data!O14,IF($A$10="Leisure Centre",Data!S14,"")))) -> 20.024789 | L13: 0 | M13: 0 | N13: 0 | O13: 0 | P13: =IF(AND(P12+O13<=$A$5,P12+O13>$A$3),LOGIC!P12+LOGIC!O13,IF(P12+O13>$A$5,$A$5,$A$3)) -> 12 | R13: 04:30:00 | S13: 29.0457945 | T13: 0 | U13: 29.0457945 | V13: 0 | W13: 12 | X13: 19.33673764 | Y13: 0 | Z13: 19.33673764 | AA13: 0 | AB13: 12
B14: 04:30:00 | C14: ='PV data'!D14 -> 0 | D14: =IF($A$10="Secondary School",Data!E15,IF($A$10="Primary school",Data!I15,IF($A$10="Retail",Data!M15,IF($A$10="Leisure Centre",Data!Q15,"")))) -> 29.0457945 | E14: 0 | F14: 0 | G14: 0 | H14: 0 | I14: =IF(AND(I13+H14<=$A$5,I13+H14>$A$3),LOGIC!I13+LOGIC!H14,IF(I13+H14>$A$5,$A$5,$A$3)) -> 12 | J14: 0 | K14: =IF($A$10="Secondary School",Data!G15,IF($A$10="Primary school",Data!K15,IF($A$10="Retail",Data!O15,IF($A$10="Leisure Centre",Data!S15,"")))) -> 19.33673764 | L14: 0 | M14: 0 | N14: 0 | O14: 0 | P14: =IF(AND(P13+O14<=$A$5,P13+O14>$A$3),LOGIC!P13+LOGIC!O14,IF(P13+O14>$A$5,$A$5,$A$3)) -> 12 | R14: 05:00:00 | S14: 34.49894345 | T14: 0 | U14: 34.49894345 | V14: 0 | W14: 12 | X14: 18.72961039 | Y14: 0 | Z14: 18.72961039 | AA14: 0 | AB14: 12
B15: 05:00:00 | C15: ='PV data'!D15 -> 0 | D15: =IF($A$10="Secondary School",Data!E16,IF($A$10="Primary school",Data!I16,IF($A$10="Retail",Data!M16,IF($A$10="Leisure Centre",Data!Q16,"")))) -> 34.49894345 | E15: 0 | F15: 0 | G15: 0 | H15: 0 | I15: =IF(AND(I14+H15<=$A$5,I14+H15>$A$3),LOGIC!I14+LOGIC!H15,IF(I14+H15>$A$5,$A$5,$A$3)) -> 12 | J15: 0 | K15: =IF($A$10="Secondary School",Data!G16,IF($A$10="Primary school",Data!K16,IF($A$10="Retail",Data!O16,IF($A$10="Leisure Centre",Data!S16,"")))) -> 18.72961039 | L15: 0 | M15: 0 | N15: 0 | O15: 0 | P15: =IF(AND(P14+O15<=$A$5,P14+O15>$A$3),LOGIC!P14+LOGIC!O15,IF(P14+O15>$A$5,$A$5,$A$3)) -> 12 | R15: 05:30:00 | S15: 36.37189449 | T15: 0 | U15: 36.37189449 | V15: 0 | W15: 12 | X15: 18.5779759 | Y15: 0 | Z15: 18.5779759 | AA15: 0 | AB15: 12
B16: 05:30:00 | C16: ='PV data'!D16 -> 0 | D16: =IF($A$10="Secondary School",Data!E17,IF($A$10="Primary school",Data!I17,IF($A$10="Retail",Data!M17,IF($A$10="Leisure Centre",Data!Q17,"")))) -> 36.37189449 | E16: 0 | F16: 0 | G16: 0 | H16: 0 | I16: =IF(AND(I15+H16<=$A$5,I15+H16>$A$3),LOGIC!I15+LOGIC!H16,IF(I15+H16>$A$5,$A$5,$A$3)) -> 12 | J16: 0 | K16: =IF($A$10="Secondary School",Data!G17,IF($A$10="Primary school",Data!K17,IF($A$10="Retail",Data!O17,IF($A$10="Leisure Centre",Data!S17,"")))) -> 18.5779759 | L16: 0 | M16: 0 | N16: 0 | O16: 0 | P16: =IF(AND(P15+O16<=$A$5,P15+O16>$A$3),LOGIC!P15+LOGIC!O16,IF(P15+O16>$A$5,$A$5,$A$3)) -> 12 | R16: 06:00:00 | S16: 36.14443362 | T16: 0 | U16: 36.14443362 | V16: 0 | W16: 12 | X16: 18.40571753 | Y16: 0 | Z16: 18.40571753 | AA16: 0 | AB16: 12
B17: 06:00:00 | C17: ='PV data'!D17 -> 0 | D17: =IF($A$10="Secondary School",Data!E18,IF($A$10="Primary school",Data!I18,IF($A$10="Retail",Data!M18,IF($A$10="Leisure Centre",Data!Q18,"")))) -> 36.14443362 | E17: 0 | F17: 0 | G17: 0 | H17: 0 | I17: =IF(AND(I16+H17<=$A$5,I16+H17>$A$3),LOGIC!I16+LOGIC!H17,IF(I16+H17>$A$5,$A$5,$A$3)) -> 12 | J17: 0 | K17: =IF($A$10="Secondary School",Data!G18,IF($A$10="Primary school",Data!K18,IF($A$10="Retail",Data!O18,IF($A$10="Leisure Centre",Data!S18,"")))) -> 18.40571753 | L17: 0 | M17: 0 | N17: 0 | O17: 0 | P17: =IF(AND(P16+O17<=$A$5,P16+O17>$A$3),LOGIC!P16+LOGIC!O17,IF(P16+O17>$A$5,$A$5,$A$3)) -> 12 | R17: 06:30:00 | S17: 40.65250402 | T17: 0 | U17: 40.65250402 | V17: 0 | W17: 12 | X17: 18.03468442 | Y17: 0 | Z17: 18.03468442 | AA17: 0 | AB17: 12
B18: 06:30:00 | C18: ='PV data'!D18 -> 0 | D18: =IF($A$10="Secondary School",Data!E19,IF($A$10="Primary school",Data!I19,IF($A$10="Retail",Data!M19,IF($A$10="Leisure Centre",Data!Q19,"")))) -> 40.65250402 | E18: 0 | F18: 0 | G18: 0 | H18: 0 | I18: =IF(AND(I17+H18<=$A$5,I17+H18>$A$3),LOGIC!I17+LOGIC!H18,IF(I17+H18>$A$5,$A$5,$A$3)) -> 12 | J18: 0 | K18: =IF($A$10="Secondary School",Data!G19,IF($A$10="Primary school",Data!K19,IF($A$10="Retail",Data!O19,IF($A$10="Leisure Centre",Data!S19,"")))) -> 18.03468442 | L18: 0 | M18: 0 | N18: 0 | O18: 0 | P18: =IF(AND(P17+O18<=$A$5,P17+O18>$A$3),LOGIC!P17+LOGIC!O18,IF(P17+O18>$A$5,$A$5,$A$3)) -> 12 | R18: 07:00:00 | S18: 45.10436649 | T18: 0 | U18: 45.10436649 | V18: 0 | W18: 12 | X18: 18.26822511 | Y18: 0 | Z18: 18.26822511 | AA18: 0 | AB18: 12
B19: 07:00:00 | C19: ='PV data'!D19 -> 0 | D19: =IF($A$10="Secondary School",Data!E20,IF($A$10="Primary school",Data!I20,IF($A$10="Retail",Data!M20,IF($A$10="Leisure Centre",Data!Q20,"")))) -> 45.10436649 | E19: 0 | F19: 0 | G19: 0 | H19: 0 | I19: =IF(AND(I18+H19<=$A$5,I18+H19>$A$3),LOGIC!I18+LOGIC!H19,IF(I18+H19>$A$5,$A$5,$A$3)) -> 12 | J19: 0 | K19: =IF($A$10="Secondary School",Data!G20,IF($A$10="Primary school",Data!K20,IF($A$10="Retail",Data!O20,IF($A$10="Leisure Centre",Data!S20,"")))) -> 18.26822511 | L19: 0 | M19: 0 | N19: 0 | O19: 0 | P19: =IF(AND(P18+O19<=$A$5,P18+O19>$A$3),LOGIC!P18+LOGIC!O19,IF(P18+O19>$A$5,$A$5,$A$3)) -> 12 | R19: 07:30:00 | S19: 49.08724466 | T19: 0 | U19: 49.08724466 | V19: 0 | W19: 12 | X19: 18.51237237 | Y19: 0 | Z19: 18.51237237 | AA19: 0 | AB19: 12
B20: 07:30:00 | C20: ='PV data'!D20 -> 0 | D20: =IF($A$10="Secondary School",Data!E21,IF($A$10="Primary school",Data!I21,IF($A$10="Retail",Data!M21,IF($A$10="Leisure Centre",Data!Q21,"")))) -> 49.08724466 | E20: 0 | F20: 0 | G20: 0 | H20: 0 | I20: =IF(AND(I19+H20<=$A$5,I19+H20>$A$3),LOGIC!I19+LOGIC!H20,IF(I19+H20>$A$5,$A$5,$A$3)) -> 12 | J20: 0 | K20: =IF($A$10="Secondary School",Data!G21,IF($A$10="Primary school",Data!K21,IF($A$10="Retail",Data!O21,IF($A$10="Leisure Centre",Data!S21,"")))) -> 18.51237237 | L20: 0 | M20: 0 | N20: 0 | O20: 0 | P20: =IF(AND(P19+O20<=$A$5,P19+O20>$A$3),LOGIC!P19+LOGIC!O20,IF(P19+O20>$A$5,$A$5,$A$3)) -> 12 | R20: 08:00:00 | S20: 53.26043951 | T20: 18.3782187 | U20: 34.88222082 | V20: 0 | W20: 12 | X20: 18.72627129 | Y20: 18.3782187 | Z20: 0.3480525945 | AA20: 0 | AB20: 12
B21: 08:00:00 | C21: ='PV data'!D21 -> 0 | D21: =IF($A$10="Secondary School",Data!E22,IF($A$10="Primary school",Data!I22,IF($A$10="Retail",Data!M22,IF($A$10="Leisure Centre",Data!Q22,"")))) -> 53.26043951 | E21: 0 | F21: 0 | G21: 0 | H21: 0 | I21: =IF(AND(I20+H21<=$A$5,I20+H21>$A$3),LOGIC!I20+LOGIC!H21,IF(I20+H21>$A$5,$A$5,$A$3)) -> 12 | J21: 0 | K21: =IF($A$10="Secondary School",Data!G22,IF($A$10="Primary school",Data!K22,IF($A$10="Retail",Data!O22,IF($A$10="Leisure Centre",Data!S22,"")))) -> 18.72627129 | L21: 0 | M21: 0 | N21: 0 | O21: 0 | P21: =IF(AND(P20+O21<=$A$5,P20+O21>$A$3),LOGIC!P20+LOGIC!O21,IF(P20+O21>$A$5,$A$5,$A$3)) -> 12 | R21: 08:30:00 | S21: 55.51443236 | T21: 23.67947619 | U21: 31.83495617 | V21: 0 | W21: 12 | X21: 19.46460559 | Y21: 23.67947619 | Z21: 0 | AA21: 0 | AB21: 16.2148706
B22: 08:30:00 | C22: ='PV data'!D22 -> 6.90389957 | D22: =IF($A$10="Secondary School",Data!E23,IF($A$10="Primary school",Data!I23,IF($A$10="Retail",Data!M23,IF($A$10="Leisure Centre",Data!Q23,"")))) -> 55.51443236 | E22: 0 | F22: 0 | G22: 0 | H22: 0 | I22: =IF(AND(I21+H22<=$A$5,I21+H22>$A$3),LOGIC!I21+LOGIC!H22,IF(I21+H22>$A$5,$A$5,$A$3)) -> 12 | J22: 6.90389957 | K22: =IF($A$10="Secondary School",Data!G23,IF($A$10="Primary school",Data!K23,IF($A$10="Retail",Data!O23,IF($A$10="Leisure Centre",Data!S23,"")))) -> 19.46460559 | L22: 0 | M22: 0 | N22: 0 | O22: 0 | P22: =IF(AND(P21+O22<=$A$5,P21+O22>$A$3),LOGIC!P21+LOGIC!O22,IF(P21+O22>$A$5,$A$5,$A$3)) -> 12 | R22: 09:00:00 | S22: 56.74712194 | T22: 25.29822391 | U22: 31.44889803 | V22: 0 | W22: 12 | X22: 20.12339071 | Y22: 25.29822391 | Z22: 0 | AA22: 0 | AB22: 21.3897038
B23: 09:00:00 | C23: ='PV data'!D23 -> 17.21566863 | D23: =IF($A$10="Secondary School",Data!E24,IF($A$10="Primary school",Data!I24,IF($A$10="Retail",Data!M24,IF($A$10="Leisure Centre",Data!Q24,"")))) -> 56.74712194 | E23: 0 | F23: 0 | G23: 0 | H23: 0 | I23: =IF(AND(I22+H23<=$A$5,I22+H23>$A$3),LOGIC!I22+LOGIC!H23,IF(I22+H23>$A$5,$A$5,$A$3)) -> 12 | J23: 17.21566863 | K23: =IF($A$10="Secondary School",Data!G24,IF($A$10="Primary school",Data!K24,IF($A$10="Retail",Data!O24,IF($A$10="Leisure Centre",Data!S24,"")))) -> 20.12339071 | L23: 0 | M23: 0 | N23: 0 | O23: 0 | P23: =IF(AND(P22+O23<=$A$5,P22+O23>$A$3),LOGIC!P22+LOGIC!O23,IF(P22+O23>$A$5,$A$5,$A$3)) -> 12 | R23: 09:30:00 | S23: 58.65202842 | T23: 27.26915464 | U23: 31.38287377 | V23: 0 | W23: 12 | X23: 20.65705772 | Y23: 27.26915464 | Z23: 0 | AA23: 0 | AB23: 28.00180073
B24: 09:30:00 | C24: ='PV data'!D24 -> 18.36559009 | D24: =IF($A$10="Secondary School",Data!E25,IF($A$10="Primary school",Data!I25,IF($A$10="Retail",Data!M25,IF($A$10="Leisure Centre",Data!Q25,"")))) -> 58.65202842 | E24: 0 | F24: 0 | G24: 0 | H24: 0 | I24: =IF(AND(I23+H24<=$A$5,I23+H24>$A$3),LOGIC!I23+LOGIC!H24,IF(I23+H24>$A$5,$A$5,$A$3)) -> 12 | J24: 18.36559009 | K24: =IF($A$10="Secondary School",Data!G25,IF($A$10="Primary school",Data!K25,IF($A$10="Retail",Data!O25,IF($A$10="Leisure Centre",Data!S25,"")))) -> 20.65705772 | L24: 0 | M24: 0 | N24: 0 | O24: 0 | P24: =IF(AND(P23+O24<=$A$5,P23+O24>$A$3),LOGIC!P23+LOGIC!O24,IF(P23+O24>$A$5,$A$5,$A$3)) -> 12 | R24: 10:00:00 | S24: 58.0886361 | T24: 58.90574084 | U24: 0 | V24: 0 | W24: 12.81710474 | X24: 20.86113575 | Y24: 58.90574084 | Z24: 0 | AA24: 0 | AB24: 43.00180073
B25: 10:00:00 | C25: ='PV data'!D25 -> 17.73997802 | D25: =IF($A$10="Secondary School",Data!E26,IF($A$10="Primary school",Data!I26,IF($A$10="Retail",Data!M26,IF($A$10="Leisure Centre",Data!Q26,"")))) -> 58.0886361 | E25: 0 | F25: 0 | G25: 0 | H25: 0 | I25: =IF(AND(I24+H25<=$A$5,I24+H25>$A$3),LOGIC!I24+LOGIC!H25,IF(I24+H25>$A$5,$A$5,$A$3)) -> 12 | J25: 17.73997802 | K25: =IF($A$10="Secondary School",Data!G26,IF($A$10="Primary school",Data!K26,IF($A$10="Retail",Data!O26,IF($A$10="Leisure Centre",Data!S26,"")))) -> 20.86113575 | L25: 0 | M25: 0 | N25: 0 | O25: 0 | P25: =IF(AND(P24+O25<=$A$5,P24+O25>$A$3),LOGIC!P24+LOGIC!O25,IF(P24+O25>$A$5,$A$5,$A$3)) -> 12 | R25: 10:30:00 | S25: 57.93726378 | T25: 55.27373222 | U25: 0 | V25: 2.663531561 | W25: 12 | X25: 20.98625386 | Y25: 55.27373222 | Z25: 0 | AA25: 0 | AB25: 58.00180073
B26: 10:30:00 | C26: ='PV data'!D26 -> 19.12311989 | D26: =IF($A$10="Secondary School",Data!E27,IF($A$10="Primary school",Data!I27,IF($A$10="Retail",Data!M27,IF($A$10="Leisure Centre",Data!Q27,"")))) -> 57.93726378 | E26: 0 | F26: 0 | G26: 0 | H26: 0 | I26: =IF(AND(I25+H26<=$A$5,I25+H26>$A$3),LOGIC!I25+LOGIC!H26,IF(I25+H26>$A$5,$A$5,$A$3)) -> 12 | J26: 19.12311989 | K26: =IF($A$10="Secondary School",Data!G27,IF($A$10="Primary school",Data!K27,IF($A$10="Retail",Data!O27,IF($A$10="Leisure Centre",Data!S27,"")))) -> 20.98625386 | L26: 0 | M26: 0 | N26: 0 | O26: 0 | P26: =IF(AND(P25+O26<=$A$5,P25+O26>$A$3),LOGIC!P25+LOGIC!O26,IF(P25+O26>$A$5,$A$5,$A$3)) -> 12 | R26: 11:00:00 | S26: 58.23258381 | T26: 60.45604323 | U26: 0 | V26: 0 | W26: 14.22345942 | X26: 20.95070224 | Y26: 60.45604323 | Z26: 0 | AA26: 0 | AB26: 60
B27: 11:00:00 | C27: ='PV data'!D27 -> 47.97897783 | D27: =IF($A$10="Secondary School",Data!E28,IF($A$10="Primary school",Data!I28,IF($A$10="Retail",Data!M28,IF($A$10="Leisure Centre",Data!Q28,"")))) -> 58.23258381 | E27: 0 | F27: 0 | G27: 0 | H27: 0 | I27: =IF(AND(I26+H27<=$A$5,I26+H27>$A$3),LOGIC!I26+LOGIC!H27,IF(I26+H27>$A$5,$A$5,$A$3)) -> 12 | J27: 47.97897783 | K27: =IF($A$10="Secondary School",Data!G28,IF($A$10="Primary school",Data!K28,IF($A$10="Retail",Data!O28,IF($A$10="Leisure Centre",Data!S28,"")))) -> 20.95070224 | L27: 27.02827558 | M27: 15 | N27: 0 | O27: 15 | P27: =IF(AND(P26+O27<=$A$5,P26+O27>$A$3),LOGIC!P26+LOGIC!O27,IF(P26+O27>$A$5,$A$5,$A$3)) -> 27 | R27: 11:30:00 | S27: 60.05283954 | T27: 54.79523924 | U27: 0 | V27: 5.257600302 | W27: 12 | X27: 20.57475868 | Y27: 54.79523924 | Z27: 0 | AA27: 0 | AB27: 60
B28: 11:30:00 | C28: ='PV data'!D28 -> 24.17090212 | D28: =IF($A$10="Secondary School",Data!E29,IF($A$10="Primary school",Data!I29,IF($A$10="Retail",Data!M29,IF($A$10="Leisure Centre",Data!Q29,"")))) -> 60.05283954 | E28: 0 | F28: 0 | G28: 0 | H28: 0 | I28: =IF(AND(I27+H28<=$A$5,I27+H28>$A$3),LOGIC!I27+LOGIC!H28,IF(I27+H28>$A$5,$A$5,$A$3)) -> 12 | J28: 24.17090212 | K28: =IF($A$10="Secondary School",Data!G29,IF($A$10="Primary school",Data!K29,IF($A$10="Retail",Data!O29,IF($A$10="Leisure Centre",Data!S29,"")))) -> 20.57475868 | L28: 3.596143437 | M28: 3.596143437 | N28: 0 | O28: 3.596143437 | P28: =IF(AND(P27+O28<=$A$5,P27+O28>$A$3),LOGIC!P27+LOGIC!O28,IF(P27+O28>$A$5,$A$5,$A$3)) -> 30.59614344 | R28: 12:00:00 | S28: 59.06486531 | T28: 38.51657302 | U28: 20.54829229 | V28: 0 | W28: 12 | X28: 20.49481666 | Y28: 38.51657302 | Z28: 0 | AA28: 0 | AB28: 60
B29: 12:00:00 | C29: ='PV data'!D29 -> 54.23890577 | D29: =IF($A$10="Secondary School",Data!E30,IF($A$10="Primary school",Data!I30,IF($A$10="Retail",Data!M30,IF($A$10="Leisure Centre",Data!Q30,"")))) -> 59.06486531 | E29: 0 | F29: 0 | G29: 0 | H29: 0 | I29: =IF(AND(I28+H29<=$A$5,I28+H29>$A$3),LOGIC!I28+LOGIC!H29,IF(I28+H29>$A$5,$A$5,$A$3)) -> 12 | J29: 54.23890577 | K29: =IF($A$10="Secondary School",Data!G30,IF($A$10="Primary school",Data!K30,IF($A$10="Retail",Data!O30,IF($A$10="Leisure Centre",Data!S30,"")))) -> 20.49481666 | L29: 33.74408911 | M29: 15 | N29: 0 | O29: 15 | P29: =IF(AND(P28+O29<=$A$5,P28+O29>$A$3),LOGIC!P28+LOGIC!O29,IF(P28+O29>$A$5,$A$5,$A$3)) -> 45.59614344 | R29: 12:30:00 | S29: 56.19302399 | T29: 44.40012993 | U29: 11.79289406 | V29: 0 | W29: 12 | X29: 20.6169885 | Y29: 44.40012993 | Z29: 0 | AA29: 0 | AB29: 60
B30: 12:30:00 | C30: ='PV data'!D30 -> 48.58375941 | D30: =IF($A$10="Secondary School",Data!E31,IF($A$10="Primary school",Data!I31,IF($A$10="Retail",Data!M31,IF($A$10="Leisure Centre",Data!Q31,"")))) -> 56.19302399 | E30: 0 | F30: 0 | G30: 0 | H30: 0 | I30: =IF(AND(I29+H30<=$A$5,I29+H30>$A$3),LOGIC!I29+LOGIC!H30,IF(I29+H30>$A$5,$A$5,$A$3)) -> 12 | J30: 48.58375941 | K30: =IF($A$10="Secondary School",Data!G31,IF($A$10="Primary school",Data!K31,IF($A$10="Retail",Data!O31,IF($A$10="Leisure Centre",Data!S31,"")))) -> 20.6169885 | L30: 27.96677091 | M30: 15 | N30: 0 | O30: 15 | P30: =IF(AND(P29+O30<=$A$5,P29+O30>$A$3),LOGIC!P29+LOGIC!O30,IF(P29+O30>$A$5,$A$5,$A$3)) -> 60 | R30: 13:00:00 | S30: 54.09383439 | T30: 34.74733421 | U30: 19.34650018 | V30: 0 | W30: 12 | X30: 20.39680421 | Y30: 34.74733421 | Z30: 0 | AA30: 0 | AB30: 60
B31: 13:00:00 | C31: ='PV data'!D31 -> 22.69125077 | D31: =IF($A$10="Secondary School",Data!E32,IF($A$10="Primary school",Data!I32,IF($A$10="Retail",Data!M32,IF($A$10="Leisure Centre",Data!Q32,"")))) -> 54.09383439 | E31: 0 | F31: 0 | G31: 0 | H31: 0 | I31: =IF(AND(I30+H31<=$A$5,I30+H31>$A$3),LOGIC!I30+LOGIC!H31,IF(I30+H31>$A$5,$A$5,$A$3)) -> 12 | J31: 22.69125077 | K31: =IF($A$10="Secondary School",Data!G32,IF($A$10="Primary school",Data!K32,IF($A$10="Retail",Data!O32,IF($A$10="Leisure Centre",Data!S32,"")))) -> 20.39680421 | L31: 2.294446567 | M31: 0 | N31: 0 | O31: 0 | P31: =IF(AND(P30+O31<=$A$5,P30+O31>$A$3),LOGIC!P30+LOGIC!O31,IF(P30+O31>$A$5,$A$5,$A$3)) -> 60 | R31: 13:30:00 | S31: 50.03179981 | T31: 48.51263585 | U31: 1.51916396 | V31: 0 | W31: 12 | X31: 20.36282394 | Y31: 48.51263585 | Z31: 0 | AA31: 0 | AB31: 60
B32: 13:30:00 | C32: ='PV data'!D32 -> 29.79870575 | D32: =IF($A$10="Secondary School",Data!E33,IF($A$10="Primary school",Data!I33,IF($A$10="Retail",Data!M33,IF($A$10="Leisure Centre",Data!Q33,"")))) -> 50.03179981 | E32: 0 | F32: 0 | G32: 0 | H32: 0 | I32: =IF(AND(I31+H32<=$A$5,I31+H32>$A$3),LOGIC!I31+LOGIC!H32,IF(I31+H32>$A$5,$A$5,$A$3)) -> 12 | J32: 29.79870575 | K32: =IF($A$10="Secondary School",Data!G33,IF($A$10="Primary school",Data!K33,IF($A$10="Retail",Data!O33,IF($A$10="Leisure Centre",Data!S33,"")))) -> 20.36282394 | L32: 9.435881818 | M32: 0 | N32: 0 | O32: 0 | P32: =IF(AND(P31+O32<=$A$5,P31+O32>$A$3),LOGIC!P31+LOGIC!O32,IF(P31+O32>$A$5,$A$5,$A$3)) -> 60 | R32: 14:00:00 | S32: 47.43219086 | T32: 59.32713945 | U32: 0 | V32: 0 | W32: 23.89494859 | X32: 20.20117213 | Y32: 59.32713945 | Z32: 0 | AA32: 0 | AB32: 60
B33: 14:00:00 | C33: ='PV data'!D33 -> 29.36125378 | D33: =IF($A$10="Secondary School",Data!E34,IF($A$10="Primary school",Data!I34,IF($A$10="Retail",Data!M34,IF($A$10="Leisure Centre",Data!Q34,"")))) -> 47.43219086 | E33: 0 | F33: 0 | G33: 0 | H33: 0 | I33: =IF(AND(I32+H33<=$A$5,I32+H33>$A$3),LOGIC!I32+LOGIC!H33,IF(I32+H33>$A$5,$A$5,$A$3)) -> 12 | J33: 29.36125378 | K33: =IF($A$10="Secondary School",Data!G34,IF($A$10="Primary school",Data!K34,IF($A$10="Retail",Data!O34,IF($A$10="Leisure Centre",Data!S34,"")))) -> 20.20117213 | L33: 9.160081649 | M33: 0 | N33: 0 | O33: 0 | P33: =IF(AND(P32+O33<=$A$5,P32+O33>$A$3),LOGIC!P32+LOGIC!O33,IF(P32+O33>$A$5,$A$5,$A$3)) -> 60 | R33: 14:30:00 | S33: 44.05110478 | T33: 54.22467881 | U33: 0 | V33: 0 | W33: 34.06852262 | X33: 19.94052579 | Y33: 54.22467881 | Z33: 0 | AA33: 0 | AB33: 60
B34: 14:30:00 | C34: ='PV data'!D34 -> 14.40106155 | D34: =IF($A$10="Secondary School",Data!E35,IF($A$10="Primary school",Data!I35,IF($A$10="Retail",Data!M35,IF($A$10="Leisure Centre",Data!Q35,"")))) -> 44.05110478 | E34: 0 | F34: 0 | G34: 0 | H34: 0 | I34: =IF(AND(I33+H34<=$A$5,I33+H34>$A$3),LOGIC!I33+LOGIC!H34,IF(I33+H34>$A$5,$A$5,$A$3)) -> 12 | J34: 14.40106155 | K34: =IF($A$10="Secondary School",Data!G35,IF($A$10="Primary school",Data!K35,IF($A$10="Retail",Data!O35,IF($A$10="Leisure Centre",Data!S35,"")))) -> 19.94052579 | L34: 0 | M34: 0 | N34: 5.539464238 | O34: -5.539464238 | P34: =IF(AND(P33+O34<=$A$5,P33+O34>$A$3),LOGIC!P33+LOGIC!O34,IF(P33+O34>$A$5,$A$5,$A$3)) -> 54.46053576 | R34: 15:00:00 | S34: 41.35371437 | T34: 40.80906592 | U34: 0 | V34: 0.5446484545 | W34: 33.52387417 | X34: 19.84408467 | Y34: 40.80906592 | Z34: 0 | AA34: 0 | AB34: 60
B35: 15:00:00 | C35: ='PV data'!D35 -> 9.830581637 | D35: =IF($A$10="Secondary School",Data!E36,IF($A$10="Primary school",Data!I36,IF($A$10="Retail",Data!M36,IF($A$10="Leisure Centre",Data!Q36,"")))) -> 41.35371437 | E35: 0 | F35: 0 | G35: 0 | H35: 0 | I35: =IF(AND(I34+H35<=$A$5,I34+H35>$A$3),LOGIC!I34+LOGIC!H35,IF(I34+H35>$A$5,$A$5,$A$3)) -> 12 | J35: 9.830581637 | K35: =IF($A$10="Secondary School",Data!G36,IF($A$10="Primary school",Data!K36,IF($A$10="Retail",Data!O36,IF($A$10="Leisure Centre",Data!S36,"")))) -> 19.84408467 | L35: 0 | M35: 0 | N35: 10.01350304 | O35: -10.01350304 | P35: =IF(AND(P34+O35<=$A$5,P34+O35>$A$3),LOGIC!P34+LOGIC!O35,IF(P34+O35>$A$5,$A$5,$A$3)) -> 44.44703273 | R35: 15:30:00 | S35: 38.27018417 | T35: 29.04689216 | U35: 0 | V35: 9.223292014 | W35: 24.30058215 | X35: 19.91027745 | Y35: 29.04689216 | Z35: 0 | AA35: 0 | AB35: 60
B36: 15:30:00 | C36: ='PV data'!D36 -> 8.473395914 | D36: =IF($A$10="Secondary School",Data!E37,IF($A$10="Primary school",Data!I37,IF($A$10="Retail",Data!M37,IF($A$10="Leisure Centre",Data!Q37,"")))) -> 38.27018417 | E36: 0 | F36: 0 | G36: 0 | H36: 0 | I36: =IF(AND(I35+H36<=$A$5,I35+H36>$A$3),LOGIC!I35+LOGIC!H36,IF(I35+H36>$A$5,$A$5,$A$3)) -> 12 | J36: 8.473395914 | K36: =IF($A$10="Secondary School",Data!G37,IF($A$10="Primary school",Data!K37,IF($A$10="Retail",Data!O37,IF($A$10="Leisure Centre",Data!S37,"")))) -> 19.91027745 | L36: 0 | M36: 0 | N36: 11.43688154 | O36: -11.43688154 | P36: =IF(AND(P35+O36<=$A$5,P35+O36>$A$3),LOGIC!P35+LOGIC!O36,IF(P35+O36>$A$5,$A$5,$A$3)) -> 33.01015119 | R36: 16:00:00 | S36: 35.82547831 | T36: 18.72342917 | U36: 2.102049134 | V36: 15 | W36: 12 | X36: 19.99945111 | Y36: 18.72342917 | Z36: 0 | AA36: 1.276021935 | AB36: 58.72397806
B37: 16:00:00 | C37: ='PV data'!D37 -> 0 | D37: =IF($A$10="Secondary School",Data!E38,IF($A$10="Primary school",Data!I38,IF($A$10="Retail",Data!M38,IF($A$10="Leisure Centre",Data!Q38,"")))) -> 35.82547831 | E37: 0 | F37: 0 | G37: 0 | H37: 0 | I37: =IF(AND(I36+H37<=$A$5,I36+H37>$A$3),LOGIC!I36+LOGIC!H37,IF(I36+H37>$A$5,$A$5,$A$3)) -> 12 | J37: 0 | K37: =IF($A$10="Secondary School",Data!G38,IF($A$10="Primary school",Data!K38,IF($A$10="Retail",Data!O38,IF($A$10="Leisure Centre",Data!S38,"")))) -> 19.99945111 | L37: 0 | M37: 0 | N37: 15 | O37: -15 | P37: =IF(AND(P36+O37<=$A$5,P36+O37>$A$3),LOGIC!P36+LOGIC!O37,IF(P36+O37>$A$5,$A$5,$A$3)) -> 18.01015119 | R37: 16:30:00 | S37: 33.73144721 | T37: 6.445259887 | U37: 27.28618732 | V37: 0 | W37: 12 | X37: 20.10748087 | Y37: 6.445259887 | Z37: 0 | AA37: 13.66222098 | AB37: 45.06175708
B38: 16:30:00 | C38: ='PV data'!D38 -> 0 | D38: =IF($A$10="Secondary School",Data!E39,IF($A$10="Primary school",Data!I39,IF($A$10="Retail",Data!M39,IF($A$10="Leisure Centre",Data!Q39,"")))) -> 33.73144721 | E38: 0 | F38: 0 | G38: 0 | H38: 0 | I38: =IF(AND(I37+H38<=$A$5,I37+H38>$A$3),LOGIC!I37+LOGIC!H38,IF(I37+H38>$A$5,$A$5,$A$3)) -> 12 | J38: 0 | K38: =IF($A$10="Secondary School",Data!G39,IF($A$10="Primary school",Data!K39,IF($A$10="Retail",Data!O39,IF($A$10="Leisure Centre",Data!S39,"")))) -> 20.10748087 | L38: 0 | M38: 0 | N38: 15 | O38: -15 | P38: =IF(AND(P37+O38<=$A$5,P37+O38>$A$3),LOGIC!P37+LOGIC!O38,IF(P37+O38>$A$5,$A$5,$A$3)) -> 12 | R38: 17:00:00 | S38: 32.13907894 | T38: 0 | U38: =IF(T38>=S38,0,IF(S38-T38-V38<0,0,S38-T38-V38)) -> 32.13907894 | V38: 0 | W38: 12 | X38: 21.03339411 | Y38: 0 | Z38: 6.033394114 | AA38: 15 | AB38: 30.06175708
B39: 17:00:00 | C39: ='PV data'!D39 -> 0 | D39: =IF($A$10="Secondary School",Data!E40,IF($A$10="Primary school",Data!I40,IF($A$10="Retail",Data!M40,IF($A$10="Leisure Centre",Data!Q40,"")))) -> 32.13907894 | E39: 0 | F39: 0 | G39: 0 | H39: 0 | I39: =IF(AND(I38+H39<=$A$5,I38+H39>$A$3),LOGIC!I38+LOGIC!H39,IF(I38+H39>$A$5,$A$5,$A$3)) -> 12 | J39: 0 | K39: =IF($A$10="Secondary School",Data!G40,IF($A$10="Primary school",Data!K40,IF($A$10="Retail",Data!O40,IF($A$10="Leisure Centre",Data!S40,"")))) -> 21.03339411 | L39: 0 | M39: 0 | N39: 0 | O39: 0 | P39: =IF(AND(P38+O39<=$A$5,P38+O39>$A$3),LOGIC!P38+LOGIC!O39,IF(P38+O39>$A$5,$A$5,$A$3)) -> 12 | R39: 17:30:00 | S39: 31.25824104 | T39: 0 | U39: 31.25824104 | V39: 0 | W39: 12 | X39: 22.05771265 | Y39: 0 | Z39: 7.057712649 | AA39: 15 | AB39: 15.06175708
B40: 17:30:00 | C40: ='PV data'!D40 -> 0 | D40: =IF($A$10="Secondary School",Data!E41,IF($A$10="Primary school",Data!I41,IF($A$10="Retail",Data!M41,IF($A$10="Leisure Centre",Data!Q41,"")))) -> 31.25824104 | E40: 0 | F40: 0 | G40: 0 | H40: 0 | I40: =IF(AND(I39+H40<=$A$5,I39+H40>$A$3),LOGIC!I39+LOGIC!H40,IF(I39+H40>$A$5,$A$5,$A$3)) -> 12 | J40: 0 | K40: =IF($A$10="Secondary School",Data!G41,IF($A$10="Primary school",Data!K41,IF($A$10="Retail",Data!O41,IF($A$10="Leisure Centre",Data!S41,"")))) -> 22.05771265 | L40: 0 | M40: 0 | N40: 0 | O40: 0 | P40: =IF(AND(P39+O40<=$A$5,P39+O40>$A$3),LOGIC!P39+LOGIC!O40,IF(P39+O40>$A$5,$A$5,$A$3)) -> 12 | R40: 18:00:00 | S40: 30.51175091 | T40: 0 | U40: 30.51175091 | V40: 0 | W40: 12 | X40: 22.70451628 | Y40: 0 | Z40: 7.70451628 | AA40: 15 | AB40: 12
B41: 18:00:00 | C41: ='PV data'!D41 -> 0 | D41: =IF($A$10="Secondary School",Data!E42,IF($A$10="Primary school",Data!I42,IF($A$10="Retail",Data!M42,IF($A$10="Leisure Centre",Data!Q42,"")))) -> 30.51175091 | E41: 0 | F41: 0 | G41: 0 | H41: 0 | I41: =IF(AND(I40+H41<=$A$5,I40+H41>$A$3),LOGIC!I40+LOGIC!H41,IF(I40+H41>$A$5,$A$5,$A$3)) -> 12 | J41: 0 | K41: =IF($A$10="Secondary School",Data!G42,IF($A$10="Primary school",Data!K42,IF($A$10="Retail",Data!O42,IF($A$10="Leisure Centre",Data!S42,"")))) -> 22.70451628 | L41: 0 | M41: 0 | N41: 0 | O41: 0 | P41: =IF(AND(P40+O41<=$A$5,P40+O41>$A$3),LOGIC!P40+LOGIC!O41,IF(P40+O41>$A$5,$A$5,$A$3)) -> 12 | R41: 18:30:00 | S41: 30.01018186 | T41: 0 | U41: 30.01018186 | V41: 0 | W41: 12 | X41: 23.14606337 | Y41: 0 | Z41: 23.14606337 | AA41: 0 | AB41: 12
B42: 18:30:00 | C42: ='PV data'!D42 -> 0 | D42: =IF($A$10="Secondary School",Data!E43,IF($A$10="Primary school",Data!I43,IF($A$10="Retail",Data!M43,IF($A$10="Leisure Centre",Data!Q43,"")))) -> 30.01018186 | E42: 0 | F42: 0 | G42: 0 | H42: 0 | I42: =IF(AND(I41+H42<=$A$5,I41+H42>$A$3),LOGIC!I41+LOGIC!H42,IF(I41+H42>$A$5,$A$5,$A$3)) -> 12 | J42: 0 | K42: =IF($A$10="Secondary School",Data!G43,IF($A$10="Primary school",Data!K43,IF($A$10="Retail",Data!O43,IF($A$10="Leisure Centre",Data!S43,"")))) -> 23.14606337 | L42: 0 | M42: 0 | N42: 0 | O42: 0 | P42: =IF(AND(P41+O42<=$A$5,P41+O42>$A$3),LOGIC!P41+LOGIC!O42,IF(P41+O42>$A$5,$A$5,$A$3)) -> 12 | R42: 19:00:00 | S42: 29.57665048 | T42: 0 | U42: 29.57665048 | V42: 0 | W42: 12 | X42: 23.2947516 | Y42: 0 | Z42: 23.2947516 | AA42: 0 | AB42: 12
B43: 19:00:00 | C43: ='PV data'!D43 -> 0 | D43: =IF($A$10="Secondary School",Data!E44,IF($A$10="Primary school",Data!I44,IF($A$10="Retail",Data!M44,IF($A$10="Leisure Centre",Data!Q44,"")))) -> 29.57665048 | E43: 0 | F43: 0 | G43: 0 | H43: 0 | I43: =IF(AND(I42+H43<=$A$5,I42+H43>$A$3),LOGIC!I42+LOGIC!H43,IF(I42+H43>$A$5,$A$5,$A$3)) -> 12 | J43: 0 | K43: =IF($A$10="Secondary School",Data!G44,IF($A$10="Primary school",Data!K44,IF($A$10="Retail",Data!O44,IF($A$10="Leisure Centre",Data!S44,"")))) -> 23.2947516 | L43: 0 | M43: 0 | N43: 0 | O43: 0 | P43: =IF(AND(P42+O43<=$A$5,P42+O43>$A$3),LOGIC!P42+LOGIC!O43,IF(P42+O43>$A$5,$A$5,$A$3)) -> 12 | R43: 19:30:00 | S43: 29.40639293 | T43: 0 | U43: 29.40639293 | V43: 0 | W43: 12 | X43: 22.46508305 | Y43: 0 | Z43: 22.46508305 | AA43: 0 | AB43: 12
B44: 19:30:00 | C44: ='PV data'!D44 -> 0 | D44: =IF($A$10="Secondary School",Data!E45,IF($A$10="Primary school",Data!I45,IF($A$10="Retail",Data!M45,IF($A$10="Leisure Centre",Data!Q45,"")))) -> 29.40639293 | E44: 0 | F44: 0 | G44: 0 | H44: 0 | I44: =IF(AND(I43+H44<=$A$5,I43+H44>$A$3),LOGIC!I43+LOGIC!H44,IF(I43+H44>$A$5,$A$5,$A$3)) -> 12 | J44: 0 | K44: =IF($A$10="Secondary School",Data!G45,IF($A$10="Primary school",Data!K45,IF($A$10="Retail",Data!O45,IF($A$10="Leisure Centre",Data!S45,"")))) -> 22.46508305 | L44: 0 | M44: 0 | N44: 0 | O44: 0 | P44: =IF(AND(P43+O44<=$A$5,P43+O44>$A$3),LOGIC!P43+LOGIC!O44,IF(P43+O44>$A$5,$A$5,$A$3)) -> 12 | R44: 20:00:00 | S44: 28.18661622 | T44: 0 | U44: 28.18661622 | V44: 0 | W44: 12 | X44: 21.69944668 | Y44: 0 | Z44: 21.69944668 | AA44: 0 | AB44: 12
B45: 20:00:00 | C45: ='PV data'!D45 -> 0 | D45: =IF($A$10="Secondary School",Data!E46,IF($A$10="Primary school",Data!I46,IF($A$10="Retail",Data!M46,IF($A$10="Leisure Centre",Data!Q46,"")))) -> 28.18661622 | E45: 0 | F45: 0 | G45: 0 | H45: 0 | I45: =IF(AND(I44+H45<=$A$5,I44+H45>$A$3),LOGIC!I44+LOGIC!H45,IF(I44+H45>$A$5,$A$5,$A$3)) -> 12 | J45: 0 | K45: =IF($A$10="Secondary School",Data!G46,IF($A$10="Primary school",Data!K46,IF($A$10="Retail",Data!O46,IF($A$10="Leisure Centre",Data!S46,"")))) -> 21.69944668 | L45: 0 | M45: 0 | N45: 0 | O45: 0 | P45: =IF(AND(P44+O45<=$A$5,P44+O45>$A$3),LOGIC!P44+LOGIC!O45,IF(P44+O45>$A$5,$A$5,$A$3)) -> 12 | R45: 20:30:00 | S45: 26.63210314 | T45: 0 | U45: 26.63210314 | V45: 0 | W45: 12 | X45: 21.36769711 | Y45: 0 | Z45: 21.36769711 | AA45: 0 | AB45: 12
B46: 20:30:00 | C46: ='PV data'!D46 -> 0 | D46: =IF($A$10="Secondary School",Data!E47,IF($A$10="Primary school",Data!I47,IF($A$10="Retail",Data!M47,IF($A$10="Leisure Centre",Data!Q47,"")))) -> 26.63210314 | E46: 0 | F46: 0 | G46: 0 | H46: 0 | I46: =IF(AND(I45+H46<=$A$5,I45+H46>$A$3),LOGIC!I45+LOGIC!H46,IF(I45+H46>$A$5,$A$5,$A$3)) -> 12 | J46: 0 | K46: =IF($A$10="Secondary School",Data!G47,IF($A$10="Primary school",Data!K47,IF($A$10="Retail",Data!O47,IF($A$10="Leisure Centre",Data!S47,"")))) -> 21.36769711 | L46: 0 | M46: 0 | N46: 0 | O46: 0 | P46: =IF(AND(P45+O46<=$A$5,P45+O46>$A$3),LOGIC!P45+LOGIC!O46,IF(P45+O46>$A$5,$A$5,$A$3)) -> 12 | R46: 21:00:00 | S46: 22.92007165 | T46: 0 | U46: 22.92007165 | V46: 0 | W46: 12 | X46: 20.85701098 | Y46: 0 | Z46: 20.85701098 | AA46: 0 | AB46: 12
B47: 21:00:00 | C47: ='PV data'!D47 -> 0 | D47: =IF($A$10="Secondary School",Data!E48,IF($A$10="Primary school",Data!I48,IF($A$10="Retail",Data!M48,IF($A$10="Leisure Centre",Data!Q48,"")))) -> 22.92007165 | E47: 0 | F47: 0 | G47: 0 | H47: 0 | I47: =IF(AND(I46+H47<=$A$5,I46+H47>$A$3),LOGIC!I46+LOGIC!H47,IF(I46+H47>$A$5,$A$5,$A$3)) -> 12 | J47: 0 | K47: =IF($A$10="Secondary School",Data!G48,IF($A$10="Primary school",Data!K48,IF($A$10="Retail",Data!O48,IF($A$10="Leisure Centre",Data!S48,"")))) -> 20.85701098 | L47: 0 | M47: 0 | N47: 0 | O47: 0 | P47: =IF(AND(P46+O47<=$A$5,P46+O47>$A$3),LOGIC!P46+LOGIC!O47,IF(P46+O47>$A$5,$A$5,$A$3)) -> 12 | R47: 21:30:00 | S47: 20.00025785 | T47: 0 | U47: 20.00025785 | V47: 0 | W47: 12 | X47: 20.67689591 | Y47: 0 | Z47: 20.67689591 | AA47: 0 | AB47: 12
B48: 21:30:00 | C48: ='PV data'!D48 -> 0 | D48: =IF($A$10="Secondary School",Data!E49,IF($A$10="Primary school",Data!I49,IF($A$10="Retail",Data!M49,IF($A$10="Leisure Centre",Data!Q49,"")))) -> 20.00025785 | E48: 0 | F48: 0 | G48: 0 | H48: 0 | I48: =IF(AND(I47+H48<=$A$5,I47+H48>$A$3),LOGIC!I47+LOGIC!H48,IF(I47+H48>$A$5,$A$5,$A$3)) -> 12 | J48: 0 | K48: =IF($A$10="Secondary School",Data!G49,IF($A$10="Primary school",Data!K49,IF($A$10="Retail",Data!O49,IF($A$10="Leisure Centre",Data!S49,"")))) -> 20.67689591 | L48: 0 | M48: 0 | N48: 0 | O48: 0 | P48: =IF(AND(P47+O48<=$A$5,P47+O48>$A$3),LOGIC!P47+LOGIC!O48,IF(P47+O48>$A$5,$A$5,$A$3)) -> 12 | R48: 22:00:00 | S48: 18.71608316 | T48: 0 | U48: 18.71608316 | V48: 0 | W48: 12 | X48: 20.53410021 | Y48: 0 | Z48: 20.53410021 | AA48: 0 | AB48: 12
B49: 22:00:00 | C49: ='PV data'!D49 -> 0 | D49: =IF($A$10="Secondary School",Data!E50,IF($A$10="Primary school",Data!I50,IF($A$10="Retail",Data!M50,IF($A$10="Leisure Centre",Data!Q50,"")))) -> 18.71608316 | E49: 0 | F49: 0 | G49: 0 | H49: 0 | I49: =IF(AND(I48+H49<=$A$5,I48+H49>$A$3),LOGIC!I48+LOGIC!H49,IF(I48+H49>$A$5,$A$5,$A$3)) -> 12 | J49: 0 | K49: =IF($A$10="Secondary School",Data!G50,IF($A$10="Primary school",Data!K50,IF($A$10="Retail",Data!O50,IF($A$10="Leisure Centre",Data!S50,"")))) -> 20.53410021 | L49: 0 | M49: 0 | N49: 0 | O49: 0 | P49: =IF(AND(P48+O49<=$A$5,P48+O49>$A$3),LOGIC!P48+LOGIC!O49,IF(P48+O49>$A$5,$A$5,$A$3)) -> 12 | R49: 22:30:00 | S49: 17.77388186 | T49: 0 | U49: 17.77388186 | V49: 0 | W49: 12 | X49: 20.40976778 | Y49: 0 | Z49: 20.40976778 | AA49: 0 | AB49: 12
B50: 22:30:00 | C50: ='PV data'!D50 -> 0 | D50: =IF($A$10="Secondary School",Data!E51,IF($A$10="Primary school",Data!I51,IF($A$10="Retail",Data!M51,IF($A$10="Leisure Centre",Data!Q51,"")))) -> 17.77388186 | E50: 0 | F50: 0 | G50: 0 | H50: 0 | I50: =IF(AND(I49+H50<=$A$5,I49+H50>$A$3),LOGIC!I49+LOGIC!H50,IF(I49+H50>$A$5,$A$5,$A$3)) -> 12 | J50: 0 | K50: =IF($A$10="Secondary School",Data!G51,IF($A$10="Primary school",Data!K51,IF($A$10="Retail",Data!O51,IF($A$10="Leisure Centre",Data!S51,"")))) -> 20.40976778 | L50: 0 | M50: 0 | N50: 0 | O50: 0 | P50: =IF(AND(P49+O50<=$A$5,P49+O50>$A$3),LOGIC!P49+LOGIC!O50,IF(P49+O50>$A$5,$A$5,$A$3)) -> 12 | R50: 23:00:00 | S50: 17.98449971 | T50: 0 | U50: 17.98449971 | V50: 0 | W50: 12 | X50: 19.46048082 | Y50: 0 | Z50: 19.46048082 | AA50: 0 | AB50: 12
B51: 23:00:00 | C51: ='PV data'!D51 -> 0 | D51: =IF($A$10="Secondary School",Data!E52,IF($A$10="Primary school",Data!I52,IF($A$10="Retail",Data!M52,IF($A$10="Leisure Centre",Data!Q52,"")))) -> 17.98449971 | E51: 0 | F51: 0 | G51: 0 | H51: 0 | I51: =IF(AND(I50+H51<=$A$5,I50+H51>$A$3),LOGIC!I50+LOGIC!H51,IF(I50+H51>$A$5,$A$5,$A$3)) -> 12 | J51: 0 | K51: =IF($A$10="Secondary School",Data!G52,IF($A$10="Primary school",Data!K52,IF($A$10="Retail",Data!O52,IF($A$10="Leisure Centre",Data!S52,"")))) -> 19.46048082 | L51: 0 | M51: 0 | N51: 0 | O51: 0 | P51: =IF(AND(P50+O51<=$A$5,P50+O51>$A$3),LOGIC!P50+LOGIC!O51,IF(P50+O51>$A$5,$A$5,$A$3)) -> 12 | R51: 23:30:00 | S51: 17.99475619 | T51: 0 | U51: 17.99475619 | V51: 0 | W51: 12 | X51: 19.4414283 | Y51: 0 | Z51: 19.4414283 | AA51: 0 | AB51: 12
B52: 23:30:00 | C52: ='PV data'!D52 -> 0 | D52: =IF($A$10="Secondary School",Data!E53,IF($A$10="Primary school",Data!I53,IF($A$10="Retail",Data!M53,IF($A$10="Leisure Centre",Data!Q53,"")))) -> 17.99475619 | E52: 0 | F52: 0 | G52: 0 | H52: 0 | I52: =IF(AND(I51+H52<=$A$5,I51+H52>$A$3),LOGIC!I51+LOGIC!H52,IF(I51+H52>$A$5,$A$5,$A$3)) -> 12 | J52: 0 | K52: =IF($A$10="Secondary School",Data!G53,IF($A$10="Primary school",Data!K53,IF($A$10="Retail",Data!O53,IF($A$10="Leisure Centre",Data!S53,"")))) -> 19.4414283 | L52: 0 | M52: 0 | N52: 0 | O52: 0 | P52: =IF(AND(P51+O52<=$A$5,P51+O52>$A$3),LOGIC!P51+LOGIC!O52,IF(P51+O52>$A$5,$A$5,$A$3)) -> 12
C54: Spring | S54: Import cost - No PV or storage | AA54: Import cost - PV but no storage | AQ54: Import cost - PV + storage
D55: Use' day logic | K55: Non Use' day logic | S55: Spring | U55: Summer | W55: Autumn | Y55: Winter | AA55: Spring | AE55: Summer | AI55: Autumn | AM55: Winter | AQ55: Spring | AW55: Summer | BC55: Autumn | BI55: Winter
C56: Generation (kWh) | D56: Use' Demand (kWh) | E56: Available to charge battery (kWh) | F56: Battery Recharge / kWh | G56: Battery Discharge / kWh | H56: Discharge/Recharge / kWh | I56: Battery charge | J56: Generation (kWh) | K56: Use' Demand (kWh) | L56: Available to charge battery (kWh) | M56: Battery Recharge / kWh | N56: Battery Discharge / kWh | O56: Discharge/Recharge / kWh | P56: Battery charge | S56: In Use day | T56: Not in use Day | U56: In Use day | V56: Not in use Day | W56: In Use day | X56: Not in use Day | Y56: In Use day | Z56: Not in use Day | AA56: In Use day (import) | AB56: In Use day (PV PPA) | AC56: Not In Use day (import) | AD56: Not In Use day (PV PPA) | AE56: In Use day (import) | AF56: In Use day (PV PPA) | AG56: Not In Use day (import) | AH56: Not In Use day (PV PPA) | AI56: In Use day (import) | AJ56: In Use day (PV PPA) | AK56: Not In Use day (import) | AL56: Not In Use day (PV PPA) | AM56: In Use day | AO56: Not in use Day | AQ56: In Use day | AR56: In Use day Solar PPA cost | AS56: In Use Day Storage PPA cost | AT56: Not in use Day | AU56: Not in Use day Solar PPA cost | AV56: Not in Use Day Storage PPA cost | AW56: In Use day | AZ56: Not in use Day | BA56: Not in Use day Solar PPA cost | BB56: Not in Use Day Storage PPA cost | BC56: In Use day | BF56: Not in use Day | BI56: In Use day | BL56: Not in use Day
B57: 00:00:00 | C57: ='PV data'!J5 -> 0 | D57: =D5 -> 17.61019572 | E57: =IF(C57>D57,(C57-D57),0) -> 0 | F57: =IF(($A$3+E57)<$A$5,E57,$A$7) -> 0 | G57: =IF(AND(D57>C57,I57>'Import avoidance model - RR'!$N$17,I57),D57-C57,0) -> 0 | H57: =F57-G57 -> 0 | I57: =A3 -> 12 | J57: =C57 -> 0 | K57: =K5 -> 20.30409503 | L57: =IF(J57>K57,(J57-K57),0) -> 0 | M57: =IF(($A$3+L57)<$A$5,E57,$A$7) -> 0 | N57: =IF(AND(K57>J57,P57>'Import avoidance model - RR'!$N$17,P57),K57-J57,0) -> 0 | O57: =M57-N57 -> 0 | P57: =A3 -> 12 | R57: 00:00:00 | S57: =(IF(AND($R57>'Import avoidance model - RR'!$I$15,'Import avoidance model - RR'!$J$15),'Import avoidance model - RR'!$H$15,'Import avoidance model - RR'!$H$16))*D57/100 -> 1.056611743 | T57: =(IF(AND($R57>'Import avoidance model - RR'!$I$15,'Import avoidance model - RR'!$J$15),'Import avoidance model - RR'!$H$15,'Import avoidance model - RR'!$H$16))*K57/100 -> 1.218245702 | U57: =(IF(AND($R57>'Import avoidance model - RR'!$I$15,'Import avoidance model - RR'!$J$15),'Import avoidance model - RR'!$H$15,'Import avoidance model - RR'!$H$16))*D109/100 -> 1.056611743 | V57: =(IF(AND($R57>'Import avoidance model - RR'!$I$15,'Import avoidance model - RR'!$J$15),'Import avoidance model - RR'!$H$15,'Import avoidance model - RR'!$H$16))*K109/100 -> 1.218245702 | W57: =(IF(AND($R57>'Import avoidance model - RR'!$I$15,'Import avoidance model - RR'!$J$15),'Import avoidance model - RR'!$H$15,'Import avoidance model - RR'!$H$16))*D161/100 -> 1.056611743 | X57: =(IF(AND($R57>'Import avoidance model - RR'!$I$15,'Import avoidance model - RR'!$J$15),'Import avoidance model - RR'!$H$15,'Import avoidance model - RR'!$H$16))*K161/100 -> 1.218245702 | Y57: =(IF(AND($R57>'Import avoidance model - RR'!$I$15,'Import avoidance model - RR'!$J$15),'Import avoidance model - RR'!$H$15,'Import avoidance model - RR'!$H$16))*D5/100 -> 1.056611743 | Z57: =(IF(AND($R57>'Import avoidance model - RR'!$I$15,'Import avoidance model - RR'!$J$15),'Import avoidance model - RR'!$H$15,'Import avoidance model - RR'!$H$16))*K5/100 -> 1.218245702 | AA57: =IF(C57<LOGIC!D57,(LOGIC!D57-LOGIC!C57)*IF(AND(LOGIC!B57>'Import avoidance model - RR'!$I$15,LOGIC!B57<'Import avoidance model - RR'!$J$15),'Import avoidance model - RR'!$H$15,'Import avoidance model - RR'!$H$16),0)/100 -> 1.056611743 | AB57: =IF('Import avoidance model - RR'!$H$17="N",0,IF(D57<=C57,D57,C57)*'Import avoidance model - RR'!$H$18/100) -> 0 | AC57: =IF(J57<LOGIC!K57,(LOGIC!K57-LOGIC!J57)*IF(AND(LOGIC!B57>'Import avoidance model - RR'!$I$15,LOGIC!B57<'Import avoidance model - RR'!$J$15),'Import avoidance model - RR'!$H$15,'Import avoidance model - RR'!$H$16),0)/100 -> 1.218245702 | AD57: =IF('Import avoidance model - RR'!$H$17="N",0,IF(K57<=C57,K57,C57)*'Import avoidance model - RR'!$H$18/100) -> 0 | AE57: =IF(C109<LOGIC!D109,(LOGIC!D109-LOGIC!C109)*IF(AND(LOGIC!B109>'Import avoidance model - RR'!$I$15,LOGIC!B109<'Import avoidance model - RR'!$J$15),'Import avoidance model - RR'!$H$15,'Import avoidance model - RR'!$H$16),0)/100 -> 1.056611743 | AF57: =IF('Import avoidance model - RR'!$H$17="N",0,IF(D109<=C109,D109,C109)*'Import avoidance model - RR'!$H$18/100) -> 0 | AG57: =IF(J109<LOGIC!K109,(LOGIC!K109-LOGIC!J109)*IF(AND(LOGIC!B109>'Import avoidance model - RR'!$I$15,LOGIC!B109<'Import avoidance model - RR'!$J$15),'Import avoidance model - RR'!$H$15,'Import avoidance model - RR'!$H$16),0)/100 -> 1.218245702 | AH57: =IF('Import avoidance model - RR'!$H$17="N",0,IF(K109<=C109,K109,C109)*'Import avoidance model - RR'!$H$18/100) -> 0 | AI57: =IF(C161<LOGIC!D161,(LOGIC!D161-LOGIC!C161)*IF(AND(LOGIC!B161>'Import avoidance model - RR'!$I$15,LOGIC!B161<'Import avoidance model - RR'!$J$15),'Import avoidance model - RR'!$H$15,'Import avoidance model - RR'!$H$16),0)/100 -> 1.056611743 | AJ57: =IF('Import avoidance model - RR'!$H$17="N",0,IF(D161<=C161,D161,C161)*'Import avoidance model - RR'!$H$18/100) -> 0 | AK57: =IF(J161<LOGIC!K161,(LOGIC!K161-LOGIC!J161)*IF(AND(LOGIC!B161>'Import avoidance model - RR'!$I$15,LOGIC!B161<'Import avoidance model - RR'!$J$15),'Import avoidance model - RR'!$H$15,'Import avoidance model - RR'!$H$16),0)/100 -> 1.218245702 | AL57: =IF('Import avoidance model - RR'!$H$17="N",0,IF(K161<=C161,K161,C161)*'Import avoidance model - RR'!$H$18/100) -> 0 | AM57: =IF(C5<LOGIC!D5,(LOGIC!D5-LOGIC!C5)*IF(AND(LOGIC!B5>'Import avoidance model - RR'!$I$15,LOGIC!B5<'Import avoidance model - RR'!$J$15),'Import avoidance model - RR'!$H$15,'Import avoidance model - RR'!$H$16),0)/100 -> 1.056611743 | AN57: =IF('Import avoidance model - RR'!$H$17="N",0,IF(D5<=C5,D5,C5)*'Import avoidance model - RR'!$H$18/100) -> 0 | AO57: =IF(J5<LOGIC!K5,(LOGIC!K5-LOGIC!J5)*IF(AND(LOGIC!B161>'Import avoidance model - RR'!$I$15,LOGIC!B161<'Import avoidance model - RR'!$J$15),'Import avoidance model - RR'!$H$15,'Import avoidance model - RR'!$H$16),0)/100 -> 1.218245702 | AP57: =IF('Import avoidance model - RR'!$H$17="N",0,IF(K5<=C5,K5,C5)*'Import avoidance model - RR'!$H$18/100) -> 0 | AQ57: =AA57-(IF(AND($R57>'Import avoidance model - RR'!$I$15,$R57<'Import avoidance model - RR'!$J$15),'Import avoidance model - RR'!$H$15*LOGIC!G57,LOGIC!G57*'Import avoidance model - RR'!$H$16)/100) -> 1.056611743 | AR57: =AB57 -> 0 | AS57: =IF('Import avoidance model - RR'!H19="N",0,LOGIC!G57*'Import avoidance model - RR'!$H$20)/100 -> 0 | AT57: =AC57-(IF(AND($R57>'Import avoidance model - RR'!$I$15,$R57<'Import avoidance model - RR'!$J$15),'Import avoidance model - RR'!$H$15*LOGIC!N57,LOGIC!N57*'Import avoidance model - RR'!$H$16)/100) -> 1.218245702 | AU57: =AD57 -> 0 | AV57: =IF('Import avoidance model - RR'!H19="N",0,LOGIC!N57*'Import avoidance model - RR'!$H$20)/100 -> 0 | AW57: =AE57-(IF(AND($R57>'Import avoidance model - RR'!$I$15,$R57<'Import avoidance model - RR'!$J$15),'Import avoidance model - RR'!$H$15*LOGIC!G109,LOGIC!G109*'Import avoidance model - RR'!$H$16)/100) -> 1.056611743 | AX57: =AF57 -> 0 | AY57: =IF('Import avoidance model - RR'!H19="N",0,LOGIC!G109*'Import avoidance model - RR'!$H$20)/100 -> 0 | AZ57: =AG57-(IF(AND($R57>'Import avoidance model - RR'!$I$15,$R57<'Import avoidance model - RR'!$J$15),'Import avoidance model - RR'!$H$15*LOGIC!N109,LOGIC!N109*'Import avoidance model - RR'!$H$16)/100) -> 1.218245702 | BA57: =AH57 -> 0 | BB57: =IF('Import avoidance model - RR'!H19="N",0,LOGIC!N109*'Import avoidance model - RR'!$H$20)/100 -> 0 | BC57: =AI57-(IF(AND($R57>'Import avoidance model - RR'!$I$15,$R57<'Import avoidance model - RR'!$J$15),'Import avoidance model - RR'!$H$15*LOGIC!G161,LOGIC!G161*'Import avoidance model - RR'!$H$16)/100) -> 1.056611743 | BD57: =AJ57 -> 0 | BE57: =IF('Import avoidance model - RR'!H19="N",0,LOGIC!G161*'Import avoidance model - RR'!$H$20)/100 -> 0 | BF57: =AK57-(IF(AND($R57>'Import avoidance model - RR'!$I$15,$R57<'Import avoidance model - RR'!$J$15),'Import avoidance model - RR'!$H$15*LOGIC!N161,LOGIC!N161*'Import avoidance model - RR'!$H$16)/100) -> 1.218245702 | BG57: =AL57 -> 0 | BH57: =IF('Import avoidance model - RR'!H19="N",0,LOGIC!N161*'Import avoidance model - RR'!$H$20)/100 -> 0 | BI57: =AM57-(IF(AND($R57>'Import avoidance model - RR'!$I$15,$R57<'Import avoidance model - RR'!$J$15),'Import avoidance model - RR'!$H$15*LOGIC!G5,LOGIC!G5*'Import avoidance model - RR'!$H$16)/100) -> 1.056611743 | BJ57: =AN57 -> 0 | BK57: =IF('Import avoidance model - RR'!H19="N",0,LOGIC!G5*'Import avoidance model - RR'!$H$20)/100 -> 0 | BL57: =AO57-(IF(AND($R57>'Import avoidance model - RR'!$I$15,$R57<'Import avoidance model - RR'!$J$15),'Import avoidance model - RR'!$H$15*LOGIC!N5,LOGIC!N5*'Import avoidance model - RR'!$H$16)/100) -> 1.218245702 | BM57: =AP57 -> 0 | BN57: =IF('Import avoidance model - RR'!H19="N",0,LOGIC!N5*'Import avoidance model - RR'!$H$20)/100 -> 0
B58: 00:30:00 | C58: ='PV data'!J6 -> 0 | D58: =D6 -> 17.55235099 | E58: =IF(C58>D58,(C58-D58),0) -> 0 | F58: =IF(AND((I57+E58)<$A$5,E58<=$A$7),E58,IF(E58>$A$7,$A$7,$A$5-I57)) -> 0 | G58: =IF(AND(D58>C58,I57>$A$3),IF(D58-C58<=$A$7,D58-C58,$A$7),0) -> 0 | H58: =F58-G58 -> 0 | I58: =IF(AND(I57+H58<=$A$5,I57+H58>$A$3),LOGIC!I57+LOGIC!H58,IF(I57+H58>$A$5,$A$5,$A$3)) -> 12 | J58: =C58 -> 0 | K58: =K6 -> 20.28504251 | L58: 0 | M58: =IF(AND((P57+L58)<$A$5,L58<=$A$7),L58,IF(L58>$A$7,$A$7,$A$5-P57)) -> 0 | N58: =IF(AND(K58>J58,P57>$A$3),IF(K58-J58<=$A$7,K58-J58,$A$7),0) -> 0 | O58: =M58-N58 -> 0 | P58: =IF(AND(P57+O58<=$A$5,P57+O58>$A$3),LOGIC!P57+LOGIC!O58,IF(P57+O58>$A$5,$A$5,$A$3)) -> 12 | R58: 00:30:00 | S58: =(IF(AND($R58>'Import avoidance model - RR'!$I$15,'Import avoidance model - RR'!$J$15),'Import avoidance model - RR'!$H$15,'Import avoidance model - RR'!$H$16))*D58/100 -> 1.05314106 | T58: =(IF(AND($R58>'Import avoidance model - RR'!$I$15,'Import avoidance model - RR'!$J$15),'Import avoidance model - RR'!$H$15,'Import avoidance model - RR'!$H$16))*K58/100 -> 1.217102551 | U58: =(IF(AND($R58>'Import avoidance model - RR'!$I$15,'Import avoidance model - RR'!$J$15),'Import avoidance model - RR'!$H$15,'Import avoidance model - RR'!$H$16))*D110/100 -> 1.05314106 | V58: =(IF(AND($R58>'Import avoidance model - RR'!$I$15,'Import avoidance model - RR'!$J$15),'Import avoidance model - RR'!$H$15,'Import avoidance model - RR'!$H$16))*K110/100 -> 1.217102551 | W58: =(IF(AND($R58>'Import avoidance model - RR'!$I$15,'Import avoidance model - RR'!$J$15),'Import avoidance model - RR'!$H$15,'Import avoidance model - RR'!$H$16))*D162/100 -> 1.05314106 | X58: =(IF(AND($R58>'Import avoidance model - RR'!$I$15,'Import avoidance model - RR'!$J$15),'Import avoidance model - RR'!$H$15,'Import avoidance model - RR'!$H$16))*K162/100 -> 1.217102551 | Y58: =(IF(AND($R58>'Import avoidance model - RR'!$I$15,'Import avoidance model - RR'!$J$15),'Import avoidance model - RR'!$H$15,'Import avoidance model - RR'!$H$16))*D6/100 -> 1.05314106 | Z58: =(IF(AND($R58>'Import avoidance model - RR'!$I$15,'Import avoidance model - RR'!$J$15),'Import avoidance model - RR'!$H$15,'Import avoidance model - RR'!$H$16))*K6/100 -> 1.217102551 | AA58: =IF(C58<LOGIC!D58,(LOGIC!D58-LOGIC!C58)*IF(AND(LOGIC!B58>'Import avoidance model - RR'!$I$15,LOGIC!B58<'Import avoidance model - RR'!$J$15),'Import avoidance model - RR'!$H$15,'Import avoidance model - RR'!$H$16),0)/100 -> 1.05314106 | AB58: =IF('Import avoidance model - RR'!$H$17="N",0,IF(D58<=C58,D58,C58)*'Import avoidance model - RR'!$H$18/100) -> 0 | AC58: =IF(J58<LOGIC!K58,(LOGIC!K58-LOGIC!J58)*IF(AND(LOGIC!B58>'Import avoidance model - RR'!$I$15,LOGIC!B58<'Import avoidance model - RR'!$J$15),'Import avoidance model - RR'!$H$15,'Import avoidance model - RR'!$H$16),0)/100 -> 1.217102551 | AD58: =IF('Import avoidance model - RR'!$H$17="N",0,IF(K58<=C58,K58,C58)*'Import avoidance model - RR'!$H$18/100) -> 0 | AE58: =IF(C110<LOGIC!D110,(LOGIC!D110-LOGIC!C110)*IF(AND(LOGIC!B110>'Import avoidance model - RR'!$I$15,LOGIC!B110<'Import avoidance model - RR'!$J$15),'Import avoidance model - RR'!$H$15,'Import avoidance model - RR'!$H$16),0)/100 -> 1.05314106 | AF58: =IF('Import avoidance model - RR'!$H$17="N",0,IF(D110<=C110,D110,C110)*'Import avoidance model - RR'!$H$18/100) -> 0 | AG58: =IF(J110<LOGIC!K110,(LOGIC!K110-LOGIC!J110)*IF(AND(LOGIC!B110>'Import avoidance model - RR'!$I$15,LOGIC!B110<'Import avoidance model - RR'!$J$15),'Import avoidance model - RR'!$H$15,'Import avoidance model - RR'!$H$16),0)/100 -> 1.217102551 | AH58: =IF('Import avoidance model - RR'!$H$17="N",0,IF(K110<=C110,K110,C110)*'Import avoidance model - RR'!$H$18/100) -> 0 | AI58: =IF(C162<LOGIC!D162,(LOGIC!D162-LOGIC!C162)*IF(AND(LOGIC!B162>'Import avoidance model - RR'!$I$15,LOGIC!B162<'Import avoidance model - RR'!$J$15),'Import avoidance model - RR'!$H$15,'Import avoidance model - RR'!$H$16),0)/100 -> 1.05314106 | AJ58: =IF('Import avoidance model - RR'!$H$17="N",0,IF(D162<=C162,D162,C162)*'Import avoidance model - RR'!$H$18/100) -> 0 | AK58: =IF(J162<LOGIC!K162,(LOGIC!K162-LOGIC!J162)*IF(AND(LOGIC!B162>'Import avoidance model - RR'!$I$15,LOGIC!B162<'Import avoidance model - RR'!$J$15),'Import avoidance model - RR'!$H$15,'Import avoidance model - RR'!$H$16),0)/100 -> 1.217102551 | AL58: =IF('Import avoidance model - RR'!$H$17="N",0,IF(K162<=C162,K162,C162)*'Import avoidance model - RR'!$H$18/100) -> 0 | AM58: =IF(C6<LOGIC!D6,(LOGIC!D6-LOGIC!C6)*IF(AND(LOGIC!B6>'Import avoidance model - RR'!$I$15,LOGIC!B6<'Import avoidance model - RR'!$J$15),'Import avoidance model - RR'!$H$15,'Import avoidance model - RR'!$H$16),0)/100 -> 1.05314106 | AN58: =IF('Import avoidance model - RR'!$H$17="N",0,IF(D6<=C6,D6,C6)*'Import avoidance model - RR'!$H$18/100) -> 0 | AO58: =IF(J6<LOGIC!K6,(LOGIC!K6-LOGIC!J6)*IF(AND(LOGIC!B162>'Import avoidance model - RR'!$I$15,LOGIC!B162<'Import avoidance model - RR'!$J$15),'Import avoidance model - RR'!$H$15,'Import avoidance model - RR'!$H$16),0)/100 -> 1.217102551 | AP58: =IF('Import avoidance model - RR'!$H$17="N",0,IF(K6<=C6,K6,C6)*'Import avoidance model - RR'!$H$18/100) -> 0 | AQ58: =AA58-(IF(AND($R58>'Import avoidance model - RR'!$I$15,$R58<'Import avoidance model - RR'!$J$15),'Import avoidance model - RR'!$H$15*LOGIC!G58,LOGIC!G58*'Import avoidance model - RR'!$H$16)/100) -> 1.05314106 | AR58: =AB58 -> 0 | AS58: =IF('Import avoidance model - RR'!H20="N",0,LOGIC!G58*'Import avoidance model - RR'!$H$20)/100 -> 0 | AT58: =AC58-(IF(AND($R58>'Import avoidance model - RR'!$I$15,$R58<'Import avoidance model - RR'!$J$15),'Import avoidance model - RR'!$H$15*LOGIC!N58,LOGIC!N58*'Import avoidance model - RR'!$H$16)/100) -> 1.217102551 | AU58: =AD58 -> 0 | AV58: =IF('Import avoidance model - RR'!H20="N",0,LOGIC!N58*'Import avoidance model - RR'!$H$20)/100 -> 0 | AW58: =AE58-(IF(AND($R58>'Import avoidance model - RR'!$I$15,$R58<'Import avoidance model - RR'!$J$15),'Import avoidance model - RR'!$H$15*LOGIC!G110,LOGIC!G110*'Import avoidance model - RR'!$H$16)/100) -> 1.05314106 | AX58: =AF58 -> 0 | AY58: =IF('Import avoidance model - RR'!H20="N",0,LOGIC!G110*'Import avoidance model - RR'!$H$20)/100 -> 0 | AZ58: =AG58-(IF(AND($R58>'Import avoidance model - RR'!$I$15,$R58<'Import avoidance model - RR'!$J$15),'Import avoidance model - RR'!$H$15*LOGIC!N110,LOGIC!N110*'Import avoidance model - RR'!$H$16)/100) -> 1.217102551 | BA58: =AH58 -> 0 | BB58: =IF('Import avoidance model - RR'!H20="N",0,LOGIC!N110*'Import avoidance model - RR'!$H$20)/100 -> 0 | BC58: =AI58-(IF(AND($R58>'Import avoidance model - RR'!$I$15,$R58<'Import avoidance model - RR'!$J$15),'Import avoidance model - RR'!$H$15*LOGIC!G162,LOGIC!G162*'Import avoidance model - RR'!$H$16)/100) -> 1.05314106 | BD58: =AJ58 -> 0 | BE58: =IF('Import avoidance model - RR'!H20="N",0,LOGIC!G162*'Import avoidance model - RR'!$H$20)/100 -> 0 | BF58: =AK58-(IF(AND($R58>'Import avoidance model - RR'!$I$15,$R58<'Import avoidance model - RR'!$J$15),'Import avoidance model - RR'!$H$15*LOGIC!N162,LOGIC!N162*'Import avoidance model - RR'!$H$16)/100) -> 1.217102551 | BG58: =AL58 -> 0 | BH58: =IF('Import avoidance model - RR'!H20="N",0,LOGIC!N162*'Import avoidance model - RR'!$H$20)/100 -> 0 | BI58: =AM58-(IF(AND($R58>'Import avoidance model - RR'!$I$15,$R58<'Import avoidance model - RR'!$J$15),'Import avoidance model - RR'!$H$15*LOGIC!G6,LOGIC!G6*'Import avoidance model - RR'!$H$16)/100) -> 1.05314106 | BJ58: =AN58 -> 0 | BK58: =IF('Import avoidance model - RR'!H20="N",0,LOGIC!G6*'Import avoidance model - RR'!$H$20)/100 -> 0 | BL58: =AO58-(IF(AND($R58>'Import avoidance model - RR'!$I$15,$R58<'Import avoidance model - RR'!$J$15),'Import avoidance model - RR'!$H$15*LOGIC!N6,LOGIC!N6*'Import avoidance model - RR'!$H$16)/100) -> 1.217102551 | BM58: =AP58 -> 0 | BN58: =IF('Import avoidance model - RR'!H20="N",0,LOGIC!N6*'Import avoidance model - RR'!$H$20)/100 -> 0
B59: 01:00:00 | C59: ='PV data'!J7 -> 0 | D59: 17.49151404 | E59: 0 | F59: =IF(AND((I58+E59)<$A$5,E59<=$A$7),E59,IF(E59>$A$7,$A$7,$A$5-I58)) -> 0 | G59: =IF(AND(D59>C59,I58>$A$3),IF(D59-C59<=$A$7,D59-C59,$A$7),0) -> 0 | H59: =F59-G59 -> 0 | I59: =IF(AND(I58+H59<=$A$5,I58+H59>$A$3),LOGIC!I58+LOGIC!H59,IF(I58+H59>$A$5,$A$5,$A$3)) -> 12 | J59: 0 | K59: 20.4023039 | L59: 0 | M59: =IF(AND((P58+L59)<$A$5,L59<=$A$7),L59,IF(L59>$A$7,$A$7,$A$5-P58)) -> 0 | N59: 0 | O59: =M59-N59 -> 0 | P59: =IF(AND(P58+O59<=$A$5,P58+O59>$A$3),LOGIC!P58+LOGIC!O59,IF(P58+O59>$A$5,$A$5,$A$3)) -> 12 | R59: 01:00:00 | S59: =(IF(AND($R59>'Import avoidance model - RR'!$I$15,'Import avoidance model - RR'!$J$15),'Import avoidance model - RR'!$H$15,'Import avoidance model - RR'!$H$16))*D59/100 -> 1.049490842 | T59: =(IF(AND($R59>'Import avoidance model - RR'!$I$15,'Import avoidance model - RR'!$J$15),'Import avoidance model - RR'!$H$15,'Import avoidance model - RR'!$H$16))*K59/100 -> 1.224138234 | U59: =(IF(AND($R59>'Import avoidance model - RR'!$I$15,'Import avoidance model - RR'!$J$15),'Import avoidance model - RR'!$H$15,'Import avoidance model - RR'!$H$16))*D111/100 -> 1.049490842 | V59: =(IF(AND($R59>'Import avoidance model - RR'!$I$15,'Import avoidance model - RR'!$J$15),'Import avoidance model - RR'!$H$15,'Import avoidance model - RR'!$H$16))*K111/100 -> 1.224138234 | W59: =(IF(AND($R59>'Import avoidance model - RR'!$I$15,'Import avoidance model - RR'!$J$15),'Import avoidance model - RR'!$H$15,'Import avoidance model - RR'!$H$16))*D163/100 -> 1.049490842 | X59: =(IF(AND($R59>'Import avoidance model - RR'!$I$15,'Import avoidance model - RR'!$J$15),'Import avoidance model - RR'!$H$15,'Import avoidance model - RR'!$H$16))*K163/100 -> 1.224138234 | Y59: =(IF(AND($R59>'Import avoidance model - RR'!$I$15,'Import avoidance model - RR'!$J$15),'Import avoidance model - RR'!$H$15,'Import avoidance model - RR'!$H$16))*D7/100 -> 1.049490842 | Z59: =(IF(AND($R59>'Import avoidance model - RR'!$I$15,'Import avoidance model - RR'!$J$15),'Import avoidance model - RR'!$H$15,'Import avoidance model - RR'!$H$16))*K7/100 -> 1.224138234 | AA59: =IF(C59<LOGIC!D59,(LOGIC!D59-LOGIC!C59)*IF(AND(LOGIC!B59>'Import avoidance model - RR'!$I$15,LOGIC!B59<'Import avoidance model - RR'!$J$15),'Import avoidance model - RR'!$H$15,'Import avoidance model - RR'!$H$16),0)/100 -> 1.049490842 | AB59: =IF('Import avoidance model - RR'!$H$17="N",0,IF(D59<=C59,D59,C59)*'Import avoidance model - RR'!$H$18/100) -> 0 | AC59: =IF(J59<LOGIC!K59,(LOGIC!K59-LOGIC!J59)*IF(AND(LOGIC!B59>'Import avoidance model - RR'!$I$15,LOGIC!B59<'Import avoidance model - RR'!$J$15),'Import avoidance model - RR'!$H$15,'Import avoidance model - RR'!$H$16),0)/100 -> 1.224138234 | AD59: =IF('Import avoidance model - RR'!$H$17="N",0,IF(K59<=C59,K59,C59)*'Import avoidance model - RR'!$H$18/100) -> 0 | AE59: =IF(C111<LOGIC!D111,(LOGIC!D111-LOGIC!C111)*IF(AND(LOGIC!B111>'Import avoidance model - RR'!$I$15,LOGIC!B111<'Import avoidance model - RR'!$J$15),'Import avoidance model - RR'!$H$15,'Import avoidance model - RR'!$H$16),0)/100 -> 1.049490842 | AF59: =IF('Import avoidance model - RR'!$H$17="N",0,IF(D111<=C111,D111,C111)*'Import avoidance model - RR'!$H$18/100) -> 0 | AG59: =IF(J111<LOGIC!K111,(LOGIC!K111-LOGIC!J111)*IF(AND(LOGIC!B111>'Import avoidance model - RR'!$I$15,LOGIC!B111<'Import avoidance model - RR'!$J$15),'Import avoidance model - RR'!$H$15,'Import avoidance model - RR'!$H$16),0)/100 -> 1.224138234 | AH59: =IF('Import avoidance model - RR'!$H$17="N",0,IF(K111<=C111,K111,C111)*'Import avoidance model - RR'!$H$18/100) -> 0 | AI59: =IF(C163<LOGIC!D163,(LOGIC!D163-LOGIC!C163)*IF(AND(LOGIC!B163>'Import avoidance model - RR'!$I$15,LOGIC!B163<'Import avoidance model - RR'!$J$15),'Import avoidance model - RR'!$H$15,'Import avoidance model - RR'!$H$16),0)/100 -> 1.049490842 | AJ59: =IF('Import avoidance model - RR'!$H$17="N",0,IF(D163<=C163,D163,C163)*'Import avoidance model - RR'!$H$18/100) -> 0 | AK59: =IF(J163<LOGIC!K163,(LOGIC!K163-LOGIC!J163)*IF(AND(LOGIC!B163>'Import avoidance model - RR'!$I$15,LOGIC!B163<'Import avoidance model - RR'!$J$15),'Import avoidance model - RR'!$H$15,'Import avoidance model - RR'!$H$16),0)/100 -> 1.224138234 | AL59: =IF('Import avoidance model - RR'!$H$17="N",0,IF(K163<=C163,K163,C163)*'Import avoidance model - RR'!$H$18/100) -> 0 | AM59: =IF(C7<LOGIC!D7,(LOGIC!D7-LOGIC!C7)*IF(AND(LOGIC!B7>'Import avoidance model - RR'!$I$15,LOGIC!B7<'Import avoidance model - RR'!$J$15),'Import avoidance model - RR'!$H$15,'Import avoidance model - RR'!$H$16),0)/100 -> 1.049490842 | AN59: =IF('Import avoidance model - RR'!$H$17="N",0,IF(D7<=C7,D7,C7)*'Import avoidance model - RR'!$H$18/100) -> 0 | AO59: =IF(J7<LOGIC!K7,(LOGIC!K7-LOGIC!J7)*IF(AND(LOGIC!B163>'Import avoidance model - RR'!$I$15,LOGIC!B163<'Import avoidance model - RR'!$J$15),'Import avoidance model - RR'!$H$15,'Import avoidance model - RR'!$H$16),0)/100 -> 1.224138234 | AP59: =IF('Import avoidance model - RR'!$H$17="N",0,IF(K7<=C7,K7,C7)*'Import avoidance model - RR'!$H$18/100) -> 0 | AQ59: =AA59-(IF(AND($R59>'Import avoidance model - RR'!$I$15,$R59<'Import avoidance model - RR'!$J$15),'Import avoidance model - RR'!$H$15*LOGIC!G59,LOGIC!G59*'Import avoidance model - RR'!$H$16)/100) -> 1.049490842 | AR59: 0 | AS59: =IF('Import avoidance model - RR'!H21="N",0,LOGIC!G59*'Import avoidance model - RR'!$H$20)/100 -> 0 | AT59: =AC59-(IF(AND($R59>'Import avoidance model - RR'!$I$15,$R59<'Import avoidance model - RR'!$J$15),'Import avoidance model - RR'!$H$15*LOGIC!N59,LOGIC!N59*'Import avoidance model - RR'!$H$16)/100) -> 1.224138234 | AU59: 0 | AV59: =IF('Import avoidance model - RR'!H21="N",0,LOGIC!N59*'Import avoidance model - RR'!$H$20)/100 -> 0 | AW59: =AE59-(IF(AND($R59>'Import avoidance model - RR'!$I$15,$R59<'Import avoidance model - RR'!$J$15),'Import avoidance model - RR'!$H$15*LOGIC!G111,LOGIC!G111*'Import avoidance model - RR'!$H$16)/100) -> 1.049490842 | AX59: 0 | AY59: =IF('Import avoidance model - RR'!H21="N",0,LOGIC!G111*'Import avoidance model - RR'!$H$20)/100 -> 0 | AZ59: =AG59-(IF(AND($R59>'Import avoidance model - RR'!$I$15,$R59<'Import avoidance model - RR'!$J$15),'Import avoidance model - RR'!$H$15*LOGIC!N111,LOGIC!N111*'Import avoidance model - RR'!$H$16)/100) -> 1.224138234 | BA59: 0 | BB59: =IF('Import avoidance model - RR'!H21="N",0,LOGIC!N111*'Import avoidance model - RR'!$H$20)/100 -> 0 | BC59: =AI59-(IF(AND($R59>'Import avoidance model - RR'!$I$15,$R59<'Import avoidance model - RR'!$J$15),'Import avoidance model - RR'!$H$15*LOGIC!G163,LOGIC!G163*'Import avoidance model - RR'!$H$16)/100) -> 1.049490842 | BD59: 0 | BE59: =IF('Import avoidance model - RR'!H21="N",0,LOGIC!G163*'Import avoidance model - RR'!$H$20)/100 -> 0 | BF59: =AK59-(IF(AND($R59>'Import avoidance model - RR'!$I$15,$R59<'Import avoidance model - RR'!$J$15),'Import avoidance model - RR'!$H$15*LOGIC!N163,LOGIC!N163*'Import avoidance model - RR'!$H$16)/100) -> 1.224138234 | BG59: 0 | BH59: =IF('Import avoidance model - RR'!H21="N",0,LOGIC!N163*'Import avoidance model - RR'!$H$20)/100 -> 0 | BI59: =AM59-(IF(AND($R59>'Import avoidance model - RR'!$I$15,$R59<'Import avoidance model - RR'!$J$15),'Import avoidance model - RR'!$H$15*LOGIC!G7,LOGIC!G7*'Import avoidance model - RR'!$H$16)/100) -> 1.049490842 | BJ59: 0 | BK59: =IF('Import avoidance model - RR'!H21="N",0,LOGIC!G7*'Import avoidance model - RR'!$H$20)/100 -> 0 | BL59: =AO59-(IF(AND($R59>'Import avoidance model - RR'!$I$15,$R59<'Import avoidance model - RR'!$J$15),'Import avoidance model - RR'!$H$15*LOGIC!N7,LOGIC!N7*'Import avoidance model - RR'!$H$16)/100) -> 1.224138234 | BM59: 0 | BN59: =IF('Import avoidance model - RR'!H21="N",0,LOGIC!N7*'Import avoidance model - RR'!$H$20)/100 -> 0
B60: 01:30:00 | C60: ='PV data'!J8 -> 0 | D60: 17.47750895 | E60: 0 | F60: 0 | G60: 0 | H60: 0 | I60: =IF(AND(I59+H60<=$A$5,I59+H60>$A$3),LOGIC!I59+LOGIC!H60,IF(I59+H60>$A$5,$A$5,$A$3)) -> 12 | J60: 0 | K60: 20.37873377 | L60: 0 | M60: 0 | N60: 0 | O60: 0 | P60: =IF(AND(P59+O60<=$A$5,P59+O60>$A$3),LOGIC!P59+LOGIC!O60,IF(P59+O60>$A$5,$A$5,$A$3)) -> 12 | R60: 01:30:00 | S60: =(IF(AND($R60>'Import avoidance model - RR'!$I$15,'Import avoidance model - RR'!$J$15),'Import avoidance model - RR'!$H$15,'Import avoidance model - RR'!$H$16))*D60/100 -> 1.048650537 | T60: =(IF(AND($R60>'Import avoidance model - RR'!$I$15,'Import avoidance model - RR'!$J$15),'Import avoidance model - RR'!$H$15,'Import avoidance model - RR'!$H$16))*K60/100 -> 1.222724026 | U60: =(IF(AND($R60>'Import avoidance model - RR'!$I$15,'Import avoidance model - RR'!$J$15),'Import avoidance model - RR'!$H$15,'Import avoidance model - RR'!$H$16))*D112/100 -> 1.048650537 | V60: =(IF(AND($R60>'Import avoidance model - RR'!$I$15,'Import avoidance model - RR'!$J$15),'Import avoidance model - RR'!$H$15,'Import avoidance model - RR'!$H$16))*K112/100 -> 1.222724026 | W60: =(IF(AND($R60>'Import avoidance model - RR'!$I$15,'Import avoidance model - RR'!$J$15),'Import avoidance model - RR'!$H$15,'Import avoidance model - RR'!$H$16))*D164/100 -> 1.048650537 | X60: =(IF(AND($R60>'Import avoidance model - RR'!$I$15,'Import avoidance model - RR'!$J$15),'Import avoidance model - RR'!$H$15,'Import avoidance model - RR'!$H$16))*K164/100 -> 1.222724026 | Y60: =(IF(AND($R60>'Import avoidance model - RR'!$I$15,'Import avoidance model - RR'!$J$15),'Import avoidance model - RR'!$H$15,'Import avoidance model - RR'!$H$16))*D8/100 -> 1.048650537 | Z60: =(IF(AND($R60>'Import avoidance model - RR'!$I$15,'Import avoidance model - RR'!$J$15),'Import avoidance model - RR'!$H$15,'Import avoidance model - RR'!$H$16))*K8/100 -> 1.222724026 | AA60: =IF(C60<LOGIC!D60,(LOGIC!D60-LOGIC!C60)*IF(AND(LOGIC!B60>'Import avoidance model - RR'!$I$15,LOGIC!B60<'Import avoidance model - RR'!$J$15),'Import avoidance model - RR'!$H$15,'Import avoidance model - RR'!$H$16),0)/100 -> 1.048650537 | AB60: =IF('Import avoidance model - RR'!$H$17="N",0,IF(D60<=C60,D60,C60)*'Import avoidance model - RR'!$H$18/100) -> 0 | AC60: =IF(J60<LOGIC!K60,(LOGIC!K60-LOGIC!J60)*IF(AND(LOGIC!B60>'Import avoidance model - RR'!$I$15,LOGIC!B60<'Import avoidance model - RR'!$J$15),'Import avoidance model - RR'!$H$15,'Import avoidance model - RR'!$H$16),0)/100 -> 1.222724026 | AD60: =IF('Import avoidance model - RR'!$H$17="N",0,IF(K60<=C60,K60,C60)*'Import avoidance model - RR'!$H$18/100) -> 0 | AE60: =IF(C112<LOGIC!D112,(LOGIC!D112-LOGIC!C112)*IF(AND(LOGIC!B112>'Import avoidance model - RR'!$I$15,LOGIC!B112<'Import avoidance model - RR'!$J$15),'Import avoidance model - RR'!$H$15,'Import avoidance model - RR'!$H$16),0)/100 -> 1.048650537 | AF60: =IF('Import avoidance model - RR'!$H$17="N",0,IF(D112<=C112,D112,C112)*'Import avoidance model - RR'!$H$18/100) -> 0 | AG60: =IF(J112<LOGIC!K112,(LOGIC!K112-LOGIC!J112)*IF(AND(LOGIC!B112>'Import avoidance model - RR'!$I$15,LOGIC!B112<'Import avoidance model - RR'!$J$15),'Import avoidance model - RR'!$H$15,'Import avoidance model - RR'!$H$16),0)/100 -> 1.222724026 | AH60: =IF('Import avoidance model - RR'!$H$17="N",0,IF(K112<=C112,K112,C112)*'Import avoidance model - RR'!$H$18/100) -> 0 | AI60: =IF(C164<LOGIC!D164,(LOGIC!D164-LOGIC!C164)*IF(AND(LOGIC!B164>'Import avoidance model - RR'!$I$15,LOGIC!B164<'Import avoidance model - RR'!$J$15),'Import avoidance model - RR'!$H$15,'Import avoidance model - RR'!$H$16),0)/100 -> 1.048650537 | AJ60: =IF('Import avoidance model - RR'!$H$17="N",0,IF(D164<=C164,D164,C164)*'Import avoidance model - RR'!$H$18/100) -> 0 | AK60: =IF(J164<LOGIC!K164,(LOGIC!K164-LOGIC!J164)*IF(AND(LOGIC!B164>'Import avoidance model - RR'!$I$15,LOGIC!B164<'Import avoidance model - RR'!$J$15),'Import avoidance model - RR'!$H$15,'Import avoidance model - RR'!$H$16),0)/100 -> 1.222724026 | AL60: =IF('Import avoidance model - RR'!$H$17="N",0,IF(K164<=C164,K164,C164)*'Import avoidance model - RR'!$H$18/100) -> 0 | AM60: =IF(C8<LOGIC!D8,(LOGIC!D8-LOGIC!C8)*IF(AND(LOGIC!B8>'Import avoidance model - RR'!$I$15,LOGIC!B8<'Import avoidance model - RR'!$J$15),'Import avoidance model - RR'!$H$15,'Import avoidance model - RR'!$H$16),0)/100 -> 1.048650537 | AN60: =IF('Import avoidance model - RR'!$H$17="N",0,IF(D8<=C8,D8,C8)*'Import avoidance model - RR'!$H$18/100) -> 0 | AO60: =IF(J8<LOGIC!K8,(LOGIC!K8-LOGIC!J8)*IF(AND(LOGIC!B164>'Import avoidance model - RR'!$I$15,LOGIC!B164<'Import avoidance model - RR'!$J$15),'Import avoidance model - RR'!$H$15,'Import avoidance model - RR'!$H$16),0)/100 -> 1.222724026 | AP60: =IF('Import avoidance model - RR'!$H$17="N",0,IF(K8<=C8,K8,C8)*'Import avoidance model - RR'!$H$18/100) -> 0 | AQ60: =AA60-(IF(AND($R60>'Import avoidance model - RR'!$I$15,$R60<'Import avoidance model - RR'!$J$15),'Import avoidance model - RR'!$H$15*LOGIC!G60,LOGIC!G60*'Import avoidance model - RR'!$H$16)/100) -> 1.048650537 | AR60: 0 | AS60: =IF('Import avoidance model - RR'!H22="N",0,LOGIC!G60*'Import avoidance model - RR'!$H$20)/100 -> 0 | AT60: =AC60-(IF(AND($R60>'Import avoidance model - RR'!$I$15,$R60<'Import avoidance model - RR'!$J$15),'Import avoidance model - RR'!$H$15*LOGIC!N60,LOGIC!N60*'Import avoidance model - RR'!$H$16)/100) -> 1.222724026 | AU60: 0 | AV60: =IF('Import avoidance model - RR'!H22="N",0,LOGIC!N60*'Import avoidance model - RR'!$H$20)/100 -> 0 | AW60: =AE60-(IF(AND($R60>'Import avoidance model - RR'!$I$15,$R60<'Import avoidance model - RR'!$J$15),'Import avoidance model - RR'!$H$15*LOGIC!G112,LOGIC!G112*'Import avoidance model - RR'!$H$16)/100) -> 1.048650537 | AX60: 0 | AY60: =IF('Import avoidance model - RR'!H22="N",0,LOGIC!G112*'Import avoidance model - RR'!$H$20)/100 -> 0 | AZ60: =AG60-(IF(AND($R60>'Import avoidance model - RR'!$I$15,$R60<'Import avoidance model - RR'!$J$15),'Import avoidance model - RR'!$H$15*LOGIC!N112,LOGIC!N112*'Import avoidance model - RR'!$H$16)/100) -> 1.222724026 | BA60: 0 | BB60: =IF('Import avoidance model - RR'!H22="N",0,LOGIC!N112*'Import avoidance model - RR'!$H$20)/100 -> 0 | BC60: =AI60-(IF(AND($R60>'Import avoidance model - RR'!$I$15,$R60<'Import avoidance model - RR'!$J$15),'Import avoidance model - RR'!$H$15*LOGIC!G164,LOGIC!G164*'Import avoidance model - RR'!$H$16)/100) -> 1.048650537 | BD60: 0 | BE60: =IF('Import avoidance model - RR'!H22="N",0,LOGIC!G164*'Import avoidance model - RR'!$H$20)/100 -> 0 | BF60: =AK60-(IF(AND($R60>'Import avoidance model - RR'!$I$15,$R60<'Import avoidance model - RR'!$J$15),'Import avoidance model - RR'!$H$15*LOGIC!N164,LOGIC!N164*'Import avoidance model - RR'!$H$16)/100) -> 1.222724026 | BG60: 0 | BH60: =IF('Import avoidance model - RR'!H22="N",0,LOGIC!N164*'Import avoidance model - RR'!$H$20)/100 -> 0 | BI60: =AM60-(IF(AND($R60>'Import avoidance model - RR'!$I$15,$R60<'Import avoidance model - RR'!$J$15),'Import avoidance model - RR'!$H$15*LOGIC!G8,LOGIC!G8*'Import avoidance model - RR'!$H$16)/100) -> 1.048650537 | BJ60: 0 | BK60: =IF('Import avoidance model - RR'!H22="N",0,LOGIC!G8*'Import avoidance model - RR'!$H$20)/100 -> 0 | BL60: =AO60-(IF(AND($R60>'Import avoidance model - RR'!$I$15,$R60<'Import avoidance model - RR'!$J$15),'Import avoidance model - RR'!$H$15*LOGIC!N8,LOGIC!N8*'Import avoidance model - RR'!$H$16)/100) -> 1.222724026 | BM60: 0 | BN60: =IF('Import avoidance model - RR'!H22="N",0,LOGIC!N8*'Import avoidance model - RR'!$H$20)/100 -> 0
B61: 02:00:00 | C61: ='PV data'!J9 -> 0 | D61: 17.49849389 | E61: 0 | F61: 0 | G61: 0 | H61: 0 | I61: =IF(AND(I60+H61<=$A$5,I60+H61>$A$3),LOGIC!I60+LOGIC!H61,IF(I60+H61>$A$5,$A$5,$A$3)) -> 12 | J61: 0 | K61: 20.40289316 | L61: 0 | M61: 0 | N61: 0 | O61: 0 | P61: =IF(AND(P60+O61<=$A$5,P60+O61>$A$3),LOGIC!P60+LOGIC!O61,IF(P60+O61>$A$5,$A$5,$A$3)) -> 12 | R61: 02:00:00 | S61: =(IF(AND($R61>'Import avoidance model - RR'!$I$15,'Import avoidance model - RR'!$J$15),'Import avoidance model - RR'!$H$15,'Import avoidance model - RR'!$H$16))*D61/100 -> 1.049909633 | T61: =(IF(AND($R61>'Import avoidance model - RR'!$I$15,'Import avoidance model - RR'!$J$15),'Import avoidance model - RR'!$H$15,'Import avoidance model - RR'!$H$16))*K61/100 -> 1.224173589 | U61: =(IF(AND($R61>'Import avoidance model - RR'!$I$15,'Import avoidance model - RR'!$J$15),'Import avoidance model - RR'!$H$15,'Import avoidance model - RR'!$H$16))*D113/100 -> 1.049909633 | V61: =(IF(AND($R61>'Import avoidance model - RR'!$I$15,'Import avoidance model - RR'!$J$15),'Import avoidance model - RR'!$H$15,'Import avoidance model - RR'!$H$16))*K113/100 -> 1.224173589 | W61: =(IF(AND($R61>'Import avoidance model - RR'!$I$15,'Import avoidance model - RR'!$J$15),'Import avoidance model - RR'!$H$15,'Import avoidance model - RR'!$H$16))*D165/100 -> 1.049909633 | X61: =(IF(AND($R61>'Import avoidance model - RR'!$I$15,'Import avoidance model - RR'!$J$15),'Import avoidance model - RR'!$H$15,'Import avoidance model - RR'!$H$16))*K165/100 -> 1.224173589 | Y61: =(IF(AND($R61>'Import avoidance model - RR'!$I$15,'Import avoidance model - RR'!$J$15),'Import avoidance model - RR'!$H$15,'Import avoidance model - RR'!$H$16))*D9/100 -> 1.049909633 | Z61: =(IF(AND($R61>'Import avoidance model - RR'!$I$15,'Import avoidance model - RR'!$J$15),'Import avoidance model - RR'!$H$15,'Import avoidance model - RR'!$H$16))*K9/100 -> 1.224173589 | AA61: =IF(C61<LOGIC!D61,(LOGIC!D61-LOGIC!C61)*IF(AND(LOGIC!B61>'Import avoidance model - RR'!$I$15,LOGIC!B61<'Import avoidance model - RR'!$J$15),'Import avoidance model - RR'!$H$15,'Import avoidance model - RR'!$H$16),0)/100 -> 1.049909633 | AB61: =IF('Import avoidance model - RR'!$H$17="N",0,IF(D61<=C61,D61,C61)*'Import avoidance model - RR'!$H$18/100) -> 0 | AC61: =IF(J61<LOGIC!K61,(LOGIC!K61-LOGIC!J61)*IF(AND(LOGIC!B61>'Import avoidance model - RR'!$I$15,LOGIC!B61<'Import avoidance model - RR'!$J$15),'Import avoidance model - RR'!$H$15,'Import avoidance model - RR'!$H$16),0)/100 -> 1.224173589 | AD61: =IF('Import avoidance model - RR'!$H$17="N",0,IF(K61<=C61,K61,C61)*'Import avoidance model - RR'!$H$18/100) -> 0 | AE61: =IF(C113<LOGIC!D113,(LOGIC!D113-LOGIC!C113)*IF(AND(LOGIC!B113>'Import avoidance model - RR'!$I$15,LOGIC!B113<'Import avoidance model - RR'!$J$15),'Import avoidance model - RR'!$H$15,'Import avoidance model - RR'!$H$16),0)/100 -> 1.049909633 | AF61: =IF('Import avoidance model - RR'!$H$17="N",0,IF(D113<=C113,D113,C113)*'Import avoidance model - RR'!$H$18/100) -> 0 | AG61: =IF(J113<LOGIC!K113,(LOGIC!K113-LOGIC!J113)*IF(AND(LOGIC!B113>'Import avoidance model - RR'!$I$15,LOGIC!B113<'Import avoidance model - RR'!$J$15),'Import avoidance model - RR'!$H$15,'Import avoidance model - RR'!$H$16),0)/100 -> 1.224173589 | AH61: =IF('Import avoidance model - RR'!$H$17="N",0,IF(K113<=C113,K113,C113)*'Import avoidance model - RR'!$H$18/100) -> 0 | AI61: =IF(C165<LOGIC!D165,(LOGIC!D165-LOGIC!C165)*IF(AND(LOGIC!B165>'Import avoidance model - RR'!$I$15,LOGIC!B165<'Import avoidance model - RR'!$J$15),'Import avoidance model - RR'!$H$15,'Import avoidance model - RR'!$H$16),0)/100 -> 1.049909633 | AJ61: =IF('Import avoidance model - RR'!$H$17="N",0,IF(D165<=C165,D165,C165)*'Import avoidance model - RR'!$H$18/100) -> 0 | AK61: =IF(J165<LOGIC!K165,(LOGIC!K165-LOGIC!J165)*IF(AND(LOGIC!B165>'Import avoidance model - RR'!$I$15,LOGIC!B165<'Import avoidance model - RR'!$J$15),'Import avoidance model - RR'!$H$15,'Import avoidance model - RR'!$H$16),0)/100 -> 1.224173589 | AL61: =IF('Import avoidance model - RR'!$H$17="N",0,IF(K165<=C165,K165,C165)*'Import avoidance model - RR'!$H$18/100) -> 0 | AM61: =IF(C9<LOGIC!D9,(LOGIC!D9-LOGIC!C9)*IF(AND(LOGIC!B9>'Import avoidance model - RR'!$I$15,LOGIC!B9<'Import avoidance model - RR'!$J$15),'Import avoidance model - RR'!$H$15,'Import avoidance model - RR'!$H$16),0)/100 -> 1.049909633 | AN61: =IF('Import avoidance model - RR'!$H$17="N",0,IF(D9<=C9,D9,C9)*'Import avoidance model - RR'!$H$18/100) -> 0 | AO61: =IF(J9<LOGIC!K9,(LOGIC!K9-LOGIC!J9)*IF(AND(LOGIC!B165>'Import avoidance model - RR'!$I$15,LOGIC!B165<'Import avoidance model - RR'!$J$15),'Import avoidance model - RR'!$H$15,'Import avoidance model - RR'!$H$16),0)/100 -> 1.224173589 | AP61: =IF('Import avoidance model - RR'!$H$17="N",0,IF(K9<=C9,K9,C9)*'Import avoidance model - RR'!$H$18/100) -> 0 | AQ61: =AA61-(IF(AND($R61>'Import avoidance model - RR'!$I$15,$R61<'Import avoidance model - RR'!$J$15),'Import avoidance model - RR'!$H$15*LOGIC!G61,LOGIC!G61*'Import avoidance model - RR'!$H$16)/100) -> 1.049909633 | AR61: 0 | AS61: =IF('Import avoidance model - RR'!H24="N",0,LOGIC!G61*'Import avoidance model - RR'!$H$20)/100 -> 0 | AT61: =AC61-(IF(AND($R61>'Import avoidance model - RR'!$I$15,$R61<'Import avoidance model - RR'!$J$15),'Import avoidance model - RR'!$H$15*LOGIC!N61,LOGIC!N61*'Import avoidance model - RR'!$H$16)/100) -> 1.224173589 | AU61: 0 | AV61: =IF('Import avoidance model - RR'!H24="N",0,LOGIC!N61*'Import avoidance model - RR'!$H$20)/100 -> 0 | AW61: =AE61-(IF(AND($R61>'Import avoidance model - RR'!$I$15,$R61<'Import avoidance model - RR'!$J$15),'Import avoidance model - RR'!$H$15*LOGIC!G113,LOGIC!G113*'Import avoidance model - RR'!$H$16)/100) -> 1.049909633 | AX61: 0 | AY61: =IF('Import avoidance model - RR'!H24="N",0,LOGIC!G113*'Import avoidance model - RR'!$H$20)/100 -> 0 | AZ61: =AG61-(IF(AND($R61>'Import avoidance model - RR'!$I$15,$R61<'Import avoidance model - RR'!$J$15),'Import avoidance model - RR'!$H$15*LOGIC!N113,LOGIC!N113*'Import avoidance model - RR'!$H$16)/100) -> 1.224173589 | BA61: 0 | BB61: =IF('Import avoidance model - RR'!H24="N",0,LOGIC!N113*'Import avoidance model - RR'!$H$20)/100 -> 0 | BC61: =AI61-(IF(AND($R61>'Import avoidance model - RR'!$I$15,$R61<'Import avoidance model - RR'!$J$15),'Import avoidance model - RR'!$H$15*LOGIC!G165,LOGIC!G165*'Import avoidance model - RR'!$H$16)/100) -> 1.049909633 | BD61: 0 | BE61: =IF('Import avoidance model - RR'!H24="N",0,LOGIC!G165*'Import avoidance model - RR'!$H$20)/100 -> 0 | BF61: =AK61-(IF(AND($R61>'Import avoidance model - RR'!$I$15,$R61<'Import avoidance model - RR'!$J$15),'Import avoidance model - RR'!$H$15*LOGIC!N165,LOGIC!N165*'Import avoidance model - RR'!$H$16)/100) -> 1.224173589 | BG61: 0 | BH61: =IF('Import avoidance model - RR'!H24="N",0,LOGIC!N165*'Import avoidance model - RR'!$H$20)/100 -> 0 | BI61: =AM61-(IF(AND($R61>'Import avoidance model - RR'!$I$15,$R61<'Import avoidance model - RR'!$J$15),'Import avoidance model - RR'!$H$15*LOGIC!G9,LOGIC!G9*'Import avoidance model - RR'!$H$16)/100) -> 1.049909633 | BJ61: 0 | BK61: =IF('Import avoidance model - RR'!H24="N",0,LOGIC!G9*'Import avoidance model - RR'!$H$20)/100 -> 0 | BL61: =AO61-(IF(AND($R61>'Import avoidance model - RR'!$I$15,$R61<'Import avoidance model - RR'!$J$15),'Import avoidance model - RR'!$H$15*LOGIC!N9,LOGIC!N9*'Import avoidance model - RR'!$H$16)/100) -> 1.224173589 | BM61: 0 | BN61: =IF('Import avoidance model - RR'!H24="N",0,LOGIC!N9*'Import avoidance model - RR'!$H$20)/100 -> 0
B62: 02:30:00 | C62: ='PV data'!J10 -> 0 | D62: 17.76830282 | E62: 0 | F62: 0 | G62: 0 | H62: 0 | I62: =IF(AND(I61+H62<=$A$5,I61+H62>$A$3),LOGIC!I61+LOGIC!H62,IF(I61+H62>$A$5,$A$5,$A$3)) -> 12 | J62: 0 | K62: 20.44787282 | L62: 0 | M62: 0 | N62: 0 | O62: 0 | P62: =IF(AND(P61+O62<=$A$5,P61+O62>$A$3),LOGIC!P61+LOGIC!O62,IF(P61+O62>$A$5,$A$5,$A$3)) -> 12 | R62: 02:30:00 | S62: =(IF(AND($R62>'Import avoidance model - RR'!$I$15,'Import avoidance model - RR'!$J$15),'Import avoidance model - RR'!$H$15,'Import avoidance model - RR'!$H$16))*D62/100 -> 1.066098169 | T62: =(IF(AND($R62>'Import avoidance model - RR'!$I$15,'Import avoidance model - RR'!$J$15),'Import avoidance model - RR'!$H$15,'Import avoidance model - RR'!$H$16))*K62/100 -> 1.226872369 | U62: =(IF(AND($R62>'Import avoidance model - RR'!$I$15,'Import avoidance model - RR'!$J$15),'Import avoidance model - RR'!$H$15,'Import avoidance model - RR'!$H$16))*D114/100 -> 1.066098169 | V62: =(IF(AND($R62>'Import avoidance model - RR'!$I$15,'Import avoidance model - RR'!$J$15),'Import avoidance model - RR'!$H$15,'Import avoidance model - RR'!$H$16))*K114/100 -> 1.226872369 | W62: =(IF(AND($R62>'Import avoidance model - RR'!$I$15,'Import avoidance model - RR'!$J$15),'Import avoidance model - RR'!$H$15,'Import avoidance model - RR'!$H$16))*D166/100 -> 1.066098169 | X62: =(IF(AND($R62>'Import avoidance model - RR'!$I$15,'Import avoidance model - RR'!$J$15),'Import avoidance model - RR'!$H$15,'Import avoidance model - RR'!$H$16))*K166/100 -> 1.226872369 | Y62: =(IF(AND($R62>'Import avoidance model - RR'!$I$15,'Import avoidance model - RR'!$J$15),'Import avoidance model - RR'!$H$15,'Import avoidance model - RR'!$H$16))*D10/100 -> 1.066098169 | Z62: =(IF(AND($R62>'Import avoidance model - RR'!$I$15,'Import avoidance model - RR'!$J$15),'Import avoidance model - RR'!$H$15,'Import avoidance model - RR'!$H$16))*K10/100 -> 1.226872369 | AA62: =IF(C62<LOGIC!D62,(LOGIC!D62-LOGIC!C62)*IF(AND(LOGIC!B62>'Import avoidance model - RR'!$I$15,LOGIC!B62<'Import avoidance model - RR'!$J$15),'Import avoidance model - RR'!$H$15,'Import avoidance model - RR'!$H$16),0)/100 -> 1.066098169 | AB62: =IF('Import avoidance model - RR'!$H$17="N",0,IF(D62<=C62,D62,C62)*'Import avoidance model - RR'!$H$18/100) -> 0 | AC62: =IF(J62<LOGIC!K62,(LOGIC!K62-LOGIC!J62)*IF(AND(LOGIC!B62>'Import avoidance model - RR'!$I$15,LOGIC!B62<'Import avoidance model - RR'!$J$15),'Import avoidance model - RR'!$H$15,'Import avoidance model - RR'!$H$16),0)/100 -> 1.226872369 | AD62: =IF('Import avoidance model - RR'!$H$17="N",0,IF(K62<=C62,K62,C62)*'Import avoidance model - RR'!$H$18/100) -> 0 | AE62: =IF(C114<LOGIC!D114,(LOGIC!D114-LOGIC!C114)*IF(AND(LOGIC!B114>'Import avoidance model - RR'!$I$15,LOGIC!B114<'Import avoidance model - RR'!$J$15),'Import avoidance model - RR'!$H$15,'Import avoidance model - RR'!$H$16),0)/100 -> 1.066098169 | AF62: =IF('Import avoidance model - RR'!$H$17="N",0,IF(D114<=C114,D114,C114)*'Import avoidance model - RR'!$H$18/100) -> 0 | AG62: =IF(J114<LOGIC!K114,(LOGIC!K114-LOGIC!J114)*IF(AND(LOGIC!B114>'Import avoidance model - RR'!$I$15,LOGIC!B114<'Import avoidance model - RR'!$J$15),'Import avoidance model - RR'!$H$15,'Import avoidance model - RR'!$H$16),0)/100 -> 1.226872369 | AH62: =IF('Import avoidance model - RR'!$H$17="N",0,IF(K114<=C114,K114,C114)*'Import avoidance model - RR'!$H$18/100) -> 0 | AI62: =IF(C166<LOGIC!D166,(LOGIC!D166-LOGIC!C166)*IF(AND(LOGIC!B166>'Import avoidance model - RR'!$I$15,LOGIC!B166<'Import avoidance model - RR'!$J$15),'Import avoidance model - RR'!$H$15,'Import avoidance model - RR'!$H$16),0)/100 -> 1.066098169 | AJ62: =IF('Import avoidance model - RR'!$H$17="N",0,IF(D166<=C166,D166,C166)*'Import avoidance model - RR'!$H$18/100) -> 0 | AK62: =IF(J166<LOGIC!K166,(LOGIC!K166-LOGIC!J166)*IF(AND(LOGIC!B166>'Import avoidance model - RR'!$I$15,LOGIC!B166<'Import avoidance model - RR'!$J$15),'Import avoidance model - RR'!$H$15,'Import avoidance model - RR'!$H$16),0)/100 -> 1.226872369 | AL62: =IF('Import avoidance model - RR'!$H$17="N",0,IF(K166<=C166,K166,C166)*'Import avoidance model - RR'!$H$18/100) -> 0 | AM62: =IF(C10<LOGIC!D10,(LOGIC!D10-LOGIC!C10)*IF(AND(LOGIC!B10>'Import avoidance model - RR'!$I$15,LOGIC!B10<'Import avoidance model - RR'!$J$15),'Import avoidance model - RR'!$H$15,'Import avoidance model - RR'!$H$16),0)/100 -> 1.066098169 | AN62: =IF('Import avoidance model - RR'!$H$17="N",0,IF(D10<=C10,D10,C10)*'Import avoidance model - RR'!$H$18/100) -> 0 | AO62: =IF(J10<LOGIC!K10,(LOGIC!K10-LOGIC!J10)*IF(AND(LOGIC!B166>'Import avoidance model - RR'!$I$15,LOGIC!B166<'Import avoidance model - RR'!$J$15),'Import avoidance model - RR'!$H$15,'Import avoidance model - RR'!$H$16),0)/100 -> 1.226872369 | AP62: =IF('Import avoidance model - RR'!$H$17="N",0,IF(K10<=C10,K10,C10)*'Import avoidance model - RR'!$H$18/100) -> 0 | AQ62: =AA62-(IF(AND($R62>'Import avoidance model - RR'!$I$15,$R62<'Import avoidance model - RR'!$J$15),'Import avoidance model - RR'!$H$15*LOGIC!G62,LOGIC!G62*'Import avoidance model - RR'!$H$16)/100) -> 1.066098169 | AR62: 0 | AS62: =IF('Import avoidance model - RR'!H25="N",0,LOGIC!G62*'Import avoidance model - RR'!$H$20)/100 -> 0 | AT62: =AC62-(IF(AND($R62>'Import avoidance model - RR'!$I$15,$R62<'Import avoidance model - RR'!$J$15),'Import avoidance model - RR'!$H$15*LOGIC!N62,LOGIC!N62*'Import avoidance model - RR'!$H$16)/100) -> 1.226872369 | AU62: 0 | AV62: =IF('Import avoidance model - RR'!H25="N",0,LOGIC!N62*'Import avoidance model - RR'!$H$20)/100 -> 0 | AW62: =AE62-(IF(AND($R62>'Import avoidance model - RR'!$I$15,$R62<'Import avoidance model - RR'!$J$15),'Import avoidance model - RR'!$H$15*LOGIC!G114,LOGIC!G114*'Import avoidance model - RR'!$H$16)/100) -> 1.066098169 | AX62: 0 | AY62: =IF('Import avoidance model - RR'!H25="N",0,LOGIC!G114*'Import avoidance model - RR'!$H$20)/100 -> 0 | AZ62: =AG62-(IF(AND($R62>'Import avoidance model - RR'!$I$15,$R62<'Import avoidance model - RR'!$J$15),'Import avoidance model - RR'!$H$15*LOGIC!N114,LOGIC!N114*'Import avoidance model - RR'!$H$16)/100) -> 1.226872369 | BA62: 0 | BB62: =IF('Import avoidance model - RR'!H25="N",0,LOGIC!N114*'Import avoidance model - RR'!$H$20)/100 -> 0 | BC62: =AI62-(IF(AND($R62>'Import avoidance model - RR'!$I$15,$R62<'Import avoidance model - RR'!$J$15),'Import avoidance model - RR'!$H$15*LOGIC!G166,LOGIC!G166*'Import avoidance model - RR'!$H$16)/100) -> 1.066098169 | BD62: 0 | BE62: =IF('Import avoidance model - RR'!H25="N",0,LOGIC!G166*'Import avoidance model - RR'!$H$20)/100 -> 0 | BF62: =AK62-(IF(AND($R62>'Import avoidance model - RR'!$I$15,$R62<'Import avoidance model - RR'!$J$15),'Import avoidance model - RR'!$H$15*LOGIC!N166,LOGIC!N166*'Import avoidance model - RR'!$H$16)/100) -> 1.226872369 | BG62: 0 | BH62: =IF('Import avoidance model - RR'!H25="N",0,LOGIC!N166*'Import avoidance model - RR'!$H$20)/100 -> 0 | BI62: =AM62-(IF(AND($R62>'Import avoidance model - RR'!$I$15,$R62<'Import avoidance model - RR'!$J$15),'Import avoidance model - RR'!$H$15*LOGIC!G10,LOGIC!G10*'Import avoidance model - RR'!$H$16)/100) -> 1.066098169 | BJ62: 0 | BK62: =IF('Import avoidance model - RR'!H25="N",0,LOGIC!G10*'Import avoidance model - RR'!$H$20)/100 -> 0 | BL62: =AO62-(IF(AND($R62>'Import avoidance model - RR'!$I$15,$R62<'Import avoidance model - RR'!$J$15),'Import avoidance model - RR'!$H$15*LOGIC!N10,LOGIC!N10*'Import avoidance model - RR'!$H$16)/100) -> 1.226872369 | BM62: 0 | BN62: =IF('Import avoidance model - RR'!H25="N",0,LOGIC!N10*'Import avoidance model - RR'!$H$20)/100 -> 0
B63: 03:00:00 | C63: ='PV data'!J11 -> 0 | D63: 19.06674582 | E63: 0 | F63: 0 | G63: 0 | H63: 0 | I63: =IF(AND(I62+H63<=$A$5,I62+H63>$A$3),LOGIC!I62+LOGIC!H63,IF(I62+H63>$A$5,$A$5,$A$3)) -> 12 | J63: 0 | K63: 20.43019522 | L63: 0 | M63: 0 | N63: 0 | O63: 0 | P63: =IF(AND(P62+O63<=$A$5,P62+O63>$A$3),LOGIC!P62+LOGIC!O63,IF(P62+O63>$A$5,$A$5,$A$3)) -> 12 | R63: 03:00:00 | S63: =(IF(AND($R63>'Import avoidance model - RR'!$I$15,'Import avoidance model - RR'!$J$15),'Import avoidance model - RR'!$H$15,'Import avoidance model - RR'!$H$16))*D63/100 -> 1.144004749 | T63: =(IF(AND($R63>'Import avoidance model - RR'!$I$15,'Import avoidance model - RR'!$J$15),'Import avoidance model - RR'!$H$15,'Import avoidance model - RR'!$H$16))*K63/100 -> 1.225811713 | U63: =(IF(AND($R63>'Import avoidance model - RR'!$I$15,'Import avoidance model - RR'!$J$15),'Import avoidance model - RR'!$H$15,'Import avoidance model - RR'!$H$16))*D115/100 -> 1.144004749 | V63: =(IF(AND($R63>'Import avoidance model - RR'!$I$15,'Import avoidance model - RR'!$J$15),'Import avoidance model - RR'!$H$15,'Import avoidance model - RR'!$H$16))*K115/100 -> 1.225811713 | W63: =(IF(AND($R63>'Import avoidance model - RR'!$I$15,'Import avoidance model - RR'!$J$15),'Import avoidance model - RR'!$H$15,'Import avoidance model - RR'!$H$16))*D167/100 -> 1.144004749 | X63: =(IF(AND($R63>'Import avoidance model - RR'!$I$15,'Import avoidance model - RR'!$J$15),'Import avoidance model - RR'!$H$15,'Import avoidance model - RR'!$H$16))*K167/100 -> 1.225811713 | Y63: =(IF(AND($R63>'Import avoidance model - RR'!$I$15,'Import avoidance model - RR'!$J$15),'Import avoidance model - RR'!$H$15,'Import avoidance model - RR'!$H$16))*D11/100 -> 1.144004749 | Z63: =(IF(AND($R63>'Import avoidance model - RR'!$I$15,'Import avoidance model - RR'!$J$15),'Import avoidance model - RR'!$H$15,'Import avoidance model - RR'!$H$16))*K11/100 -> 1.225811713 | AA63: =IF(C63<LOGIC!D63,(LOGIC!D63-LOGIC!C63)*IF(AND(LOGIC!B63>'Import avoidance model - RR'!$I$15,LOGIC!B63<'Import avoidance model - RR'!$J$15),'Import avoidance model - RR'!$H$15,'Import avoidance model - RR'!$H$16),0)/100 -> 1.144004749 | AB63: =IF('Import avoidance model - RR'!$H$17="N",0,IF(D63<=C63,D63,C63)*'Import avoidance model - RR'!$H$18/100) -> 0 | AC63: =IF(J63<LOGIC!K63,(LOGIC!K63-LOGIC!J63)*IF(AND(LOGIC!B63>'Import avoidance model - RR'!$I$15,LOGIC!B63<'Import avoidance model - RR'!$J$15),'Import avoidance model - RR'!$H$15,'Import avoidance model - RR'!$H$16),0)/100 -> 1.225811713 | AD63: =IF('Import avoidance model - RR'!$H$17="N",0,IF(K63<=C63,K63,C63)*'Import avoidance model - RR'!$H$18/100) -> 0 | AE63: =IF(C115<LOGIC!D115,(LOGIC!D115-LOGIC!C115)*IF(AND(LOGIC!B115>'Import avoidance model - RR'!$I$15,LOGIC!B115<'Import avoidance model - RR'!$J$15),'Import avoidance model - RR'!$H$15,'Import avoidance model - RR'!$H$16),0)/100 -> 1.144004749 | AF63: =IF('Import avoidance model - RR'!$H$17="N",0,IF(D115<=C115,D115,C115)*'Import avoidance model - RR'!$H$18/100) -> 0 | AG63: =IF(J115<LOGIC!K115,(LOGIC!K115-LOGIC!J115)*IF(AND(LOGIC!B115>'Import avoidance model - RR'!$I$15,LOGIC!B115<'Import avoidance model - RR'!$J$15),'Import avoidance model - RR'!$H$15,'Import avoidance model - RR'!$H$16),0)/100 -> 1.225811713 | AH63: =IF('Import avoidance model - RR'!$H$17="N",0,IF(K115<=C115,K115,C115)*'Import avoidance model - RR'!$H$18/100) -> 0 | AI63: =IF(C167<LOGIC!D167,(LOGIC!D167-LOGIC!C167)*IF(AND(LOGIC!B167>'Import avoidance model - RR'!$I$15,LOGIC!B167<'Import avoidance model - RR'!$J$15),'Import avoidance model - RR'!$H$15,'Import avoidance model - RR'!$H$16),0)/100 -> 1.144004749 | AJ63: =IF('Import avoidance model - RR'!$H$17="N",0,IF(D167<=C167,D167,C167)*'Import avoidance model - RR'!$H$18/100) -> 0 | AK63: =IF(J167<LOGIC!K167,(LOGIC!K167-LOGIC!J167)*IF(AND(LOGIC!B167>'Import avoidance model - RR'!$I$15,LOGIC!B167<'Import avoidance model - RR'!$J$15),'Import avoidance model - RR'!$H$15,'Import avoidance model - RR'!$H$16),0)/100 -> 1.225811713 | AL63: =IF('Import avoidance model - RR'!$H$17="N",0,IF(K167<=C167,K167,C167)*'Import avoidance model - RR'!$H$18/100) -> 0 | AM63: =IF(C11<LOGIC!D11,(LOGIC!D11-LOGIC!C11)*IF(AND(LOGIC!B11>'Import avoidance model - RR'!$I$15,LOGIC!B11<'Import avoidance model - RR'!$J$15),'Import avoidance model - RR'!$H$15,'Import avoidance model - RR'!$H$16),0)/100 -> 1.144004749 | AN63: =IF('Import avoidance model - RR'!$H$17="N",0,IF(D11<=C11,D11,C11)*'Import avoidance model - RR'!$H$18/100) -> 0 | AO63: =IF(J11<LOGIC!K11,(LOGIC!K11-LOGIC!J11)*IF(AND(LOGIC!B167>'Import avoidance model - RR'!$I$15,LOGIC!B167<'Import avoidance model - RR'!$J$15),'Import avoidance model - RR'!$H$15,'Import avoidance model - RR'!$H$16),0)/100 -> 1.225811713 | AP63: =IF('Import avoidance model - RR'!$H$17="N",0,IF(K11<=C11,K11,C11)*'Import avoidance model - RR'!$H$18/100) -> 0 | AQ63: =AA63-(IF(AND($R63>'Import avoidance model - RR'!$I$15,$R63<'Import avoidance model - RR'!$J$15),'Import avoidance model - RR'!$H$15*LOGIC!G63,LOGIC!G63*'Import avoidance model - RR'!$H$16)/100) -> 1.144004749 | AR63: 0 | AS63: =IF('Import avoidance model - RR'!H26="N",0,LOGIC!G63*'Import avoidance model - RR'!$H$20)/100 -> 0 | AT63: =AC63-(IF(AND($R63>'Import avoidance model - RR'!$I$15,$R63<'Import avoidance model - RR'!$J$15),'Import avoidance model - RR'!$H$15*LOGIC!N63,LOGIC!N63*'Import avoidance model - RR'!$H$16)/100) -> 1.225811713 | AU63: 0 | AV63: =IF('Import avoidance model - RR'!H26="N",0,LOGIC!N63*'Import avoidance model - RR'!$H$20)/100 -> 0 | AW63: =AE63-(IF(AND($R63>'Import avoidance model - RR'!$I$15,$R63<'Import avoidance model - RR'!$J$15),'Import avoidance model - RR'!$H$15*LOGIC!G115,LOGIC!G115*'Import avoidance model - RR'!$H$16)/100) -> 1.144004749 | AX63: 0 | AY63: =IF('Import avoidance model - RR'!H26="N",0,LOGIC!G115*'Import avoidance model - RR'!$H$20)/100 -> 0 | AZ63: =AG63-(IF(AND($R63>'Import avoidance model - RR'!$I$15,$R63<'Import avoidance model - RR'!$J$15),'Import avoidance model - RR'!$H$15*LOGIC!N115,LOGIC!N115*'Import avoidance model - RR'!$H$16)/100) -> 1.225811713 | BA63: 0 | BB63: =IF('Import avoidance model - RR'!H26="N",0,LOGIC!N115*'Import avoidance model - RR'!$H$20)/100 -> 0 | BC63: =AI63-(IF(AND($R63>'Import avoidance model - RR'!$I$15,$R63<'Import avoidance model - RR'!$J$15),'Import avoidance model - RR'!$H$15*LOGIC!G167,LOGIC!G167*'Import avoidance model - RR'!$H$16)/100) -> 1.144004749 | BD63: 0 | BE63: =IF('Import avoidance model - RR'!H26="N",0,LOGIC!G167*'Import avoidance model - RR'!$H$20)/100 -> 0 | BF63: =AK63-(IF(AND($R63>'Import avoidance model - RR'!$I$15,$R63<'Import avoidance model - RR'!$J$15),'Import avoidance model - RR'!$H$15*LOGIC!N167,LOGIC!N167*'Import avoidance model - RR'!$H$16)/100) -> 1.225811713 | BG63: 0 | BH63: =IF('Import avoidance model - RR'!H26="N",0,LOGIC!N167*'Import avoidance model - RR'!$H$20)/100 -> 0 | BI63: =AM63-(IF(AND($R63>'Import avoidance model - RR'!$I$15,$R63<'Import avoidance model - RR'!$J$15),'Import avoidance model - RR'!$H$15*LOGIC!G11,LOGIC!G11*'Import avoidance model - RR'!$H$16)/100) -> 1.144004749 | BJ63: 0 | BK63: =IF('Import avoidance model - RR'!H26="N",0,LOGIC!G11*'Import avoidance model - RR'!$H$20)/100 -> 0 | BL63: =AO63-(IF(AND($R63>'Import avoidance model - RR'!$I$15,$R63<'Import avoidance model - RR'!$J$15),'Import avoidance model - RR'!$H$15*LOGIC!N11,LOGIC!N11*'Import avoidance model - RR'!$H$16)/100) -> 1.225811713 | BM63: 0 | BN63: =IF('Import avoidance model - RR'!H26="N",0,LOGIC!N11*'Import avoidance model - RR'!$H$20)/100 -> 0
B64: 03:30:00 | C64: ='PV data'!J12 -> 0 | D64: 21.08441305 | E64: 0 | F64: 0 | G64: 0 | H64: 0 | I64: =IF(AND(I63+H64<=$A$5,I63+H64>$A$3),LOGIC!I63+LOGIC!H64,IF(I63+H64>$A$5,$A$5,$A$3)) -> 12 | J64: 0 | K64: 20.45356893 | L64: 0 | M64: 0 | N64: 0 | O64: 0 | P64: =IF(AND(P63+O64<=$A$5,P63+O64>$A$3),LOGIC!P63+LOGIC!O64,IF(P63+O64>$A$5,$A$5,$A$3)) -> 12 | R64: 03:30:00 | S64: =(IF(AND($R64>'Import avoidance model - RR'!$I$15,'Import avoidance model - RR'!$J$15),'Import avoidance model - RR'!$H$15,'Import avoidance model - RR'!$H$16))*D64/100 -> 1.265064783 | T64: =(IF(AND($R64>'Import avoidance model - RR'!$I$15,'Import avoidance model - RR'!$J$15),'Import avoidance model - RR'!$H$15,'Import avoidance model - RR'!$H$16))*K64/100 -> 1.227214136 | U64: =(IF(AND($R64>'Import avoidance model - RR'!$I$15,'Import avoidance model - RR'!$J$15),'Import avoidance model - RR'!$H$15,'Import avoidance model - RR'!$H$16))*D116/100 -> 1.265064783 | V64: =(IF(AND($R64>'Import avoidance model - RR'!$I$15,'Import avoidance model - RR'!$J$15),'Import avoidance model - RR'!$H$15,'Import avoidance model - RR'!$H$16))*K116/100 -> 1.227214136 | W64: =(IF(AND($R64>'Import avoidance model - RR'!$I$15,'Import avoidance model - RR'!$J$15),'Import avoidance model - RR'!$H$15,'Import avoidance model - RR'!$H$16))*D168/100 -> 1.265064783 | X64: =(IF(AND($R64>'Import avoidance model - RR'!$I$15,'Import avoidance model - RR'!$J$15),'Import avoidance model - RR'!$H$15,'Import avoidance model - RR'!$H$16))*K168/100 -> 1.227214136 | Y64: =(IF(AND($R64>'Import avoidance model - RR'!$I$15,'Import avoidance model - RR'!$J$15),'Import avoidance model - RR'!$H$15,'Import avoidance model - RR'!$H$16))*D12/100 -> 1.265064783 | Z64: =(IF(AND($R64>'Import avoidance model - RR'!$I$15,'Import avoidance model - RR'!$J$15),'Import avoidance model - RR'!$H$15,'Import avoidance model - RR'!$H$16))*K12/100 -> 1.227214136 | AA64: =IF(C64<LOGIC!D64,(LOGIC!D64-LOGIC!C64)*IF(AND(LOGIC!B64>'Import avoidance model - RR'!$I$15,LOGIC!B64<'Import avoidance model - RR'!$J$15),'Import avoidance model - RR'!$H$15,'Import avoidance model - RR'!$H$16),0)/100 -> 1.265064783 | AB64: =IF('Import avoidance model - RR'!$H$17="N",0,IF(D64<=C64,D64,C64)*'Import avoidance model - RR'!$H$18/100) -> 0 | AC64: =IF(J64<LOGIC!K64,(LOGIC!K64-LOGIC!J64)*IF(AND(LOGIC!B64>'Import avoidance model - RR'!$I$15,LOGIC!B64<'Import avoidance model - RR'!$J$15),'Import avoidance model - RR'!$H$15,'Import avoidance model - RR'!$H$16),0)/100 -> 1.227214136 | AD64: =IF('Import avoidance model - RR'!$H$17="N",0,IF(K64<=C64,K64,C64)*'Import avoidance model - RR'!$H$18/100) -> 0 | AE64: =IF(C116<LOGIC!D116,(LOGIC!D116-LOGIC!C116)*IF(AND(LOGIC!B116>'Import avoidance model - RR'!$I$15,LOGIC!B116<'Import avoidance model - RR'!$J$15),'Import avoidance model - RR'!$H$15,'Import avoidance model - RR'!$H$16),0)/100 -> 1.265064783 | AF64: =IF('Import avoidance model - RR'!$H$17="N",0,IF(D116<=C116,D116,C116)*'Import avoidance model - RR'!$H$18/100) -> 0 | AG64: =IF(J116<LOGIC!K116,(LOGIC!K116-LOGIC!J116)*IF(AND(LOGIC!B116>'Import avoidance model - RR'!$I$15,LOGIC!B116<'Import avoidance model - RR'!$J$15),'Import avoidance model - RR'!$H$15,'Import avoidance model - RR'!$H$16),0)/100 -> 1.227214136 | AH64: =IF('Import avoidance model - RR'!$H$17="N",0,IF(K116<=C116,K116,C116)*'Import avoidance model - RR'!$H$18/100) -> 0 | AI64: =IF(C168<LOGIC!D168,(LOGIC!D168-LOGIC!C168)*IF(AND(LOGIC!B168>'Import avoidance model - RR'!$I$15,LOGIC!B168<'Import avoidance model - RR'!$J$15),'Import avoidance model - RR'!$H$15,'Import avoidance model - RR'!$H$16),0)/100 -> 1.265064783 | AJ64: =IF('Import avoidance model - RR'!$H$17="N",0,IF(D168<=C168,D168,C168)*'Import avoidance model - RR'!$H$18/100) -> 0 | AK64: =IF(J168<LOGIC!K168,(LOGIC!K168-LOGIC!J168)*IF(AND(LOGIC!B168>'Import avoidance model - RR'!$I$15,LOGIC!B168<'Import avoidance model - RR'!$J$15),'Import avoidance model - RR'!$H$15,'Import avoidance model - RR'!$H$16),0)/100 -> 1.227214136 | AL64: =IF('Import avoidance model - RR'!$H$17="N",0,IF(K168<=C168,K168,C168)*'Import avoidance model - RR'!$H$18/100) -> 0 | AM64: =IF(C12<LOGIC!D12,(LOGIC!D12-LOGIC!C12)*IF(AND(LOGIC!B12>'Import avoidance model - RR'!$I$15,LOGIC!B12<'Import avoidance model - RR'!$J$15),'Import avoidance model - RR'!$H$15,'Import avoidance model - RR'!$H$16),0)/100 -> 1.265064783 | AN64: =IF('Import avoidance model - RR'!$H$17="N",0,IF(D12<=C12,D12,C12)*'Import avoidance model - RR'!$H$18/100) -> 0 | AO64: =IF(J12<LOGIC!K12,(LOGIC!K12-LOGIC!J12)*IF(AND(LOGIC!B168>'Import avoidance model - RR'!$I$15,LOGIC!B168<'Import avoidance model - RR'!$J$15),'Import avoidance model - RR'!$H$15,'Import avoidance model - RR'!$H$16),0)/100 -> 1.227214136 | AP64: =IF('Import avoidance model - RR'!$H$17="N",0,IF(K12<=C12,K12,C12)*'Import avoidance model - RR'!$H$18/100) -> 0 | AQ64: =AA64-(IF(AND($R64>'Import avoidance model - RR'!$I$15,$R64<'Import avoidance model - RR'!$J$15),'Import avoidance model - RR'!$H$15*LOGIC!G64,LOGIC!G64*'Import avoidance model - RR'!$H$16)/100) -> 1.265064783 | AR64: 0 | AS64: =IF('Import avoidance model - RR'!H27="N",0,LOGIC!G64*'Import avoidance model - RR'!$H$20)/100 -> 0 | AT64: =AC64-(IF(AND($R64>'Import avoidance model - RR'!$I$15,$R64<'Import avoidance model - RR'!$J$15),'Import avoidance model - RR'!$H$15*LOGIC!N64,LOGIC!N64*'Import avoidance model - RR'!$H$16)/100) -> 1.227214136 | AU64: 0 | AV64: =IF('Import avoidance model - RR'!H27="N",0,LOGIC!N64*'Import avoidance model - RR'!$H$20)/100 -> 0 | AW64: =AE64-(IF(AND($R64>'Import avoidance model - RR'!$I$15,$R64<'Import avoidance model - RR'!$J$15),'Import avoidance model - RR'!$H$15*LOGIC!G116,LOGIC!G116*'Import avoidance model - RR'!$H$16)/100) -> 1.265064783 | AX64: 0 | AY64: =IF('Import avoidance model - RR'!H27="N",0,LOGIC!G116*'Import avoidance model - RR'!$H$20)/100 -> 0 | AZ64: =AG64-(IF(AND($R64>'Import avoidance model - RR'!$I$15,$R64<'Import avoidance model - RR'!$J$15),'Import avoidance model - RR'!$H$15*LOGIC!N116,LOGIC!N116*'Import avoidance model - RR'!$H$16)/100) -> 1.227214136 | BA64: 0 | BB64: =IF('Import avoidance model - RR'!H27="N",0,LOGIC!N116*'Import avoidance model - RR'!$H$20)/100 -> 0 | BC64: =AI64-(IF(AND($R64>'Import avoidance model - RR'!$I$15,$R64<'Import avoidance model - RR'!$J$15),'Import avoidance model - RR'!$H$15*LOGIC!G168,LOGIC!G168*'Import avoidance model - RR'!$H$16)/100) -> 1.265064783 | BD64: 0 | BE64: =IF('Import avoidance model - RR'!H27="N",0,LOGIC!G168*'Import avoidance model - RR'!$H$20)/100 -> 0 | BF64: =AK64-(IF(AND($R64>'Import avoidance model - RR'!$I$15,$R64<'Import avoidance model - RR'!$J$15),'Import avoidance model - RR'!$H$15*LOGIC!N168,LOGIC!N168*'Import avoidance model - RR'!$H$16)/100) -> 1.227214136 | BG64: 0 | BH64: =IF('Import avoidance model - RR'!H27="N",0,LOGIC!N168*'Import avoidance model - RR'!$H$20)/100 -> 0 | BI64: =AM64-(IF(AND($R64>'Import avoidance model - RR'!$I$15,$R64<'Import avoidance model - RR'!$J$15),'Import avoidance model - RR'!$H$15*LOGIC!G12,LOGIC!G12*'Import avoidance model - RR'!$H$16)/100) -> 1.265064783 | BJ64: 0 | BK64: =IF('Import avoidance model - RR'!H27="N",0,LOGIC!G12*'Import avoidance model - RR'!$H$20)/100 -> 0 | BL64: =AO64-(IF(AND($R64>'Import avoidance model - RR'!$I$15,$R64<'Import avoidance model - RR'!$J$15),'Import avoidance model - RR'!$H$15*LOGIC!N12,LOGIC!N12*'Import avoidance model - RR'!$H$16)/100) -> 1.227214136 | BM64: 0 | BN64: =IF('Import avoidance model - RR'!H27="N",0,LOGIC!N12*'Import avoidance model - RR'!$H$20)/100 -> 0
B65: 04:00:00 | C65: ='PV data'!J13 -> 0 | D65: 24.81712087 | E65: 0 | F65: 0 | G65: 0 | H65: 0 | I65: =IF(AND(I64+H65<=$A$5,I64+H65>$A$3),LOGIC!I64+LOGIC!H65,IF(I64+H65>$A$5,$A$5,$A$3)) -> 12 | J65: 0 | K65: 20.024789 | L65: 0 | M65: 0 | N65: 0 | O65: 0 | P65: =IF(AND(P64+O65<=$A$5,P64+O65>$A$3),LOGIC!P64+LOGIC!O65,IF(P64+O65>$A$5,$A$5,$A$3)) -> 12 | R65: 04:00:00 | S65: =(IF(AND($R65>'Import avoidance model - RR'!$I$15,'Import avoidance model - RR'!$J$15),'Import avoidance model - RR'!$H$15,'Import avoidance model - RR'!$H$16))*D65/100 -> 1.489027252 | T65: =(IF(AND($R65>'Import avoidance model - RR'!$I$15,'Import avoidance model - RR'!$J$15),'Import avoidance model - RR'!$H$15,'Import avoidance model - RR'!$H$16))*K65/100 -> 1.20148734 | U65: =(IF(AND($R65>'Import avoidance model - RR'!$I$15,'Import avoidance model - RR'!$J$15),'Import avoidance model - RR'!$H$15,'Import avoidance model - RR'!$H$16))*D117/100 -> 1.489027252 | V65: =(IF(AND($R65>'Import avoidance model - RR'!$I$15,'Import avoidance model - RR'!$J$15),'Import avoidance model - RR'!$H$15,'Import avoidance model - RR'!$H$16))*K117/100 -> 1.20148734 | W65: =(IF(AND($R65>'Import avoidance model - RR'!$I$15,'Import avoidance model - RR'!$J$15),'Import avoidance model - RR'!$H$15,'Import avoidance model - RR'!$H$16))*D169/100 -> 1.489027252 | X65: =(IF(AND($R65>'Import avoidance model - RR'!$I$15,'Import avoidance model - RR'!$J$15),'Import avoidance model - RR'!$H$15,'Import avoidance model - RR'!$H$16))*K169/100 -> 1.20148734 | Y65: =(IF(AND($R65>'Import avoidance model - RR'!$I$15,'Import avoidance model - RR'!$J$15),'Import avoidance model - RR'!$H$15,'Import avoidance model - RR'!$H$16))*D13/100 -> 1.489027252 | Z65: =(IF(AND($R65>'Import avoidance model - RR'!$I$15,'Import avoidance model - RR'!$J$15),'Import avoidance model - RR'!$H$15,'Import avoidance model - RR'!$H$16))*K13/100 -> 1.20148734 | AA65: =IF(C65<LOGIC!D65,(LOGIC!D65-LOGIC!C65)*IF(AND(LOGIC!B65>'Import avoidance model - RR'!$I$15,LOGIC!B65<'Import avoidance model - RR'!$J$15),'Import avoidance model - RR'!$H$15,'Import avoidance model - RR'!$H$16),0)/100 -> 1.489027252 | AB65: =IF('Import avoidance model - RR'!$H$17="N",0,IF(D65<=C65,D65,C65)*'Import avoidance model - RR'!$H$18/100) -> 0 | AC65: =IF(J65<LOGIC!K65,(LOGIC!K65-LOGIC!J65)*IF(AND(LOGIC!B65>'Import avoidance model - RR'!$I$15,LOGIC!B65<'Import avoidance model - RR'!$J$15),'Import avoidance model - RR'!$H$15,'Import avoidance model - RR'!$H$16),0)/100 -> 1.20148734 | AD65: =IF('Import avoidance model - RR'!$H$17="N",0,IF(K65<=C65,K65,C65)*'Import avoidance model - RR'!$H$18/100) -> 0 | AE65: =IF(C117<LOGIC!D117,(LOGIC!D117-LOGIC!C117)*IF(AND(LOGIC!B117>'Import avoidance model - RR'!$I$15,LOGIC!B117<'Import avoidance model - RR'!$J$15),'Import avoidance model - RR'!$H$15,'Import avoidance model - RR'!$H$16),0)/100 -> 1.489027252 | AF65: =IF('Import avoidance model - RR'!$H$17="N",0,IF(D117<=C117,D117,C117)*'Import avoidance model - RR'!$H$18/100) -> 0 | AG65: =IF(J117<LOGIC!K117,(LOGIC!K117-LOGIC!J117)*IF(AND(LOGIC!B117>'Import avoidance model - RR'!$I$15,LOGIC!B117<'Import avoidance model - RR'!$J$15),'Import avoidance model - RR'!$H$15,'Import avoidance model - RR'!$H$16),0)/100 -> 1.20148734 | AH65: =IF('Import avoidance model - RR'!$H$17="N",0,IF(K117<=C117,K117,C117)*'Import avoidance model - RR'!$H$18/100) -> 0 | AI65: =IF(C169<LOGIC!D169,(LOGIC!D169-LOGIC!C169)*IF(AND(LOGIC!B169>'Import avoidance model - RR'!$I$15,LOGIC!B169<'Import avoidance model - RR'!$J$15),'Import avoidance model - RR'!$H$15,'Import avoidance model - RR'!$H$16),0)/100 -> 1.489027252 | AJ65: =IF('Import avoidance model - RR'!$H$17="N",0,IF(D169<=C169,D169,C169)*'Import avoidance model - RR'!$H$18/100) -> 0 | AK65: =IF(J169<LOGIC!K169,(LOGIC!K169-LOGIC!J169)*IF(AND(LOGIC!B169>'Import avoidance model - RR'!$I$15,LOGIC!B169<'Import avoidance model - RR'!$J$15),'Import avoidance model - RR'!$H$15,'Import avoidance model - RR'!$H$16),0)/100 -> 1.20148734 | AL65: =IF('Import avoidance model - RR'!$H$17="N",0,IF(K169<=C169,K169,C169)*'Import avoidance model - RR'!$H$18/100) -> 0 | AM65: =IF(C13<LOGIC!D13,(LOGIC!D13-LOGIC!C13)*IF(AND(LOGIC!B13>'Import avoidance model - RR'!$I$15,LOGIC!B13<'Import avoidance model - RR'!$J$15),'Import avoidance model - RR'!$H$15,'Import avoidance model - RR'!$H$16),0)/100 -> 1.489027252 | AN65: =IF('Import avoidance model - RR'!$H$17="N",0,IF(D13<=C13,D13,C13)*'Import avoidance model - RR'!$H$18/100) -> 0 | AO65: =IF(J13<LOGIC!K13,(LOGIC!K13-LOGIC!J13)*IF(AND(LOGIC!B169>'Import avoidance model - RR'!$I$15,LOGIC!B169<'Import avoidance model - RR'!$J$15),'Import avoidance model - RR'!$H$15,'Import avoidance model - RR'!$H$16),0)/100 -> 1.20148734 | AP65: =IF('Import avoidance model - RR'!$H$17="N",0,IF(K13<=C13,K13,C13)*'Import avoidance model - RR'!$H$18/100) -> 0 | AQ65: =AA65-(IF(AND($R65>'Import avoidance model - RR'!$I$15,$R65<'Import avoidance model - RR'!$J$15),'Import avoidance model - RR'!$H$15*LOGIC!G65,LOGIC!G65*'Import avoidance model - RR'!$H$16)/100) -> 1.489027252 | AR65: 0 | AS65: =IF('Import avoidance model - RR'!H28="N",0,LOGIC!G65*'Import avoidance model - RR'!$H$20)/100 -> 0 | AT65: =AC65-(IF(AND($R65>'Import avoidance model - RR'!$I$15,$R65<'Import avoidance model - RR'!$J$15),'Import avoidance model - RR'!$H$15*LOGIC!N65,LOGIC!N65*'Import avoidance model - RR'!$H$16)/100) -> 1.20148734 | AU65: 0 | AV65: =IF('Import avoidance model - RR'!H28="N",0,LOGIC!N65*'Import avoidance model - RR'!$H$20)/100 -> 0 | AW65: =AE65-(IF(AND($R65>'Import avoidance model - RR'!$I$15,$R65<'Import avoidance model - RR'!$J$15),'Import avoidance model - RR'!$H$15*LOGIC!G117,LOGIC!G117*'Import avoidance model - RR'!$H$16)/100) -> 1.489027252 | AX65: 0 | AY65: =IF('Import avoidance model - RR'!H28="N",0,LOGIC!G117*'Import avoidance model - RR'!$H$20)/100 -> 0 | AZ65: =AG65-(IF(AND($R65>'Import avoidance model - RR'!$I$15,$R65<'Import avoidance model - RR'!$J$15),'Import avoidance model - RR'!$H$15*LOGIC!N117,LOGIC!N117*'Import avoidance model - RR'!$H$16)/100) -> 1.20148734 | BA65: 0 | BB65: =IF('Import avoidance model - RR'!H28="N",0,LOGIC!N117*'Import avoidance model - RR'!$H$20)/100 -> 0 | BC65: =AI65-(IF(AND($R65>'Import avoidance model - RR'!$I$15,$R65<'Import avoidance model - RR'!$J$15),'Import avoidance model - RR'!$H$15*LOGIC!G169,LOGIC!G169*'Import avoidance model - RR'!$H$16)/100) -> 1.489027252 | BD65: 0 | BE65: =IF('Import avoidance model - RR'!H28="N",0,LOGIC!G169*'Import avoidance model - RR'!$H$20)/100 -> 0 | BF65: =AK65-(IF(AND($R65>'Import avoidance model - RR'!$I$15,$R65<'Import avoidance model - RR'!$J$15),'Import avoidance model - RR'!$H$15*LOGIC!N169,LOGIC!N169*'Import avoidance model - RR'!$H$16)/100) -> 1.20148734 | BG65: 0 | BH65: =IF('Import avoidance model - RR'!H28="N",0,LOGIC!N169*'Import avoidance model - RR'!$H$20)/100 -> 0 | BI65: =AM65-(IF(AND($R65>'Import avoidance model - RR'!$I$15,$R65<'Import avoidance model - RR'!$J$15),'Import avoidance model - RR'!$H$15*LOGIC!G13,LOGIC!G13*'Import avoidance model - RR'!$H$16)/100) -> 1.489027252 | BJ65: 0 | BK65: =IF('Import avoidance model - RR'!H28="N",0,LOGIC!G13*'Import avoidance model - RR'!$H$20)/100 -> 0 | BL65: =AO65-(IF(AND($R65>'Import avoidance model - RR'!$I$15,$R65<'Import avoidance model - RR'!$J$15),'Import avoidance model - RR'!$H$15*LOGIC!N13,LOGIC!N13*'Import avoidance model - RR'!$H$16)/100) -> 1.20148734 | BM65: 0 | BN65: =IF('Import avoidance model - RR'!H28="N",0,LOGIC!N13*'Import avoidance model - RR'!$H$20)/100 -> 0
B66: 04:30:00 | C66: ='PV data'!J14 -> 0 | D66: 29.0457945 | E66: 0 | F66: 0 | G66: 0 | H66: 0 | I66: =IF(AND(I65+H66<=$A$5,I65+H66>$A$3),LOGIC!I65+LOGIC!H66,IF(I65+H66>$A$5,$A$5,$A$3)) -> 12 | J66: 0 | K66: 19.33673764 | L66: 0 | M66: 0 | N66: 0 | O66: 0 | P66: =IF(AND(P65+O66<=$A$5,P65+O66>$A$3),LOGIC!P65+LOGIC!O66,IF(P65+O66>$A$5,$A$5,$A$3)) -> 12 | R66: 04:30:00 | S66: =(IF(AND($R66>'Import avoidance model - RR'!$I$15,'Import avoidance model - RR'!$J$15),'Import avoidance model - RR'!$H$15,'Import avoidance model - RR'!$H$16))*D66/100 -> 1.74274767 | T66: =(IF(AND($R66>'Import avoidance model - RR'!$I$15,'Import avoidance model - RR'!$J$15),'Import avoidance model - RR'!$H$15,'Import avoidance model - RR'!$H$16))*K66/100 -> 1.160204258 | U66: =(IF(AND($R66>'Import avoidance model - RR'!$I$15,'Import avoidance model - RR'!$J$15),'Import avoidance model - RR'!$H$15,'Import avoidance model - RR'!$H$16))*D118/100 -> 1.74274767 | V66: =(IF(AND($R66>'Import avoidance model - RR'!$I$15,'Import avoidance model - RR'!$J$15),'Import avoidance model - RR'!$H$15,'Import avoidance model - RR'!$H$16))*K118/100 -> 1.160204258 | W66: =(IF(AND($R66>'Import avoidance model - RR'!$I$15,'Import avoidance model - RR'!$J$15),'Import avoidance model - RR'!$H$15,'Import avoidance model - RR'!$H$16))*D170/100 -> 1.74274767 | X66: =(IF(AND($R66>'Import avoidance model - RR'!$I$15,'Import avoidance model - RR'!$J$15),'Import avoidance model - RR'!$H$15,'Import avoidance model - RR'!$H$16))*K170/100 -> 1.160204258 | Y66: =(IF(AND($R66>'Import avoidance model - RR'!$I$15,'Import avoidance model - RR'!$J$15),'Import avoidance model - RR'!$H$15,'Import avoidance model - RR'!$H$16))*D14/100 -> 1.74274767 | Z66: =(IF(AND($R66>'Import avoidance model - RR'!$I$15,'Import avoidance model - RR'!$J$15),'Import avoidance model - RR'!$H$15,'Import avoidance model - RR'!$H$16))*K14/100 -> 1.160204258 | AA66: =IF(C66<LOGIC!D66,(LOGIC!D66-LOGIC!C66)*IF(AND(LOGIC!B66>'Import avoidance model - RR'!$I$15,LOGIC!B66<'Import avoidance model - RR'!$J$15),'Import avoidance model - RR'!$H$15,'Import avoidance model - RR'!$H$16),0)/100 -> 1.74274767 | AB66: =IF('Import avoidance model - RR'!$H$17="N",0,IF(D66<=C66,D66,C66)*'Import avoidance model - RR'!$H$18/100) -> 0 | AC66: =IF(J66<LOGIC!K66,(LOGIC!K66-LOGIC!J66)*IF(AND(LOGIC!B66>'Import avoidance model - RR'!$I$15,LOGIC!B66<'Import avoidance model - RR'!$J$15),'Import avoidance model - RR'!$H$15,'Import avoidance model - RR'!$H$16),0)/100 -> 1.160204258 | AD66: =IF('Import avoidance model - RR'!$H$17="N",0,IF(K66<=C66,K66,C66)*'Import avoidance model - RR'!$H$18/100) -> 0 | AE66: =IF(C118<LOGIC!D118,(LOGIC!D118-LOGIC!C118)*IF(AND(LOGIC!B118>'Import avoidance model - RR'!$I$15,LOGIC!B118<'Import avoidance model - RR'!$J$15),'Import avoidance model - RR'!$H$15,'Import avoidance model - RR'!$H$16),0)/100 -> 1.74274767 | AF66: =IF('Import avoidance model - RR'!$H$17="N",0,IF(D118<=C118,D118,C118)*'Import avoidance model - RR'!$H$18/100) -> 0 | AG66: =IF(J118<LOGIC!K118,(LOGIC!K118-LOGIC!J118)*IF(AND(LOGIC!B118>'Import avoidance model - RR'!$I$15,LOGIC!B118<'Import avoidance model - RR'!$J$15),'Import avoidance model - RR'!$H$15,'Import avoidance model - RR'!$H$16),0)/100 -> 1.160204258 | AH66: =IF('Import avoidance model - RR'!$H$17="N",0,IF(K118<=C118,K118,C118)*'Import avoidance model - RR'!$H$18/100) -> 0 | AI66: =IF(C170<LOGIC!D170,(LOGIC!D170-LOGIC!C170)*IF(AND(LOGIC!B170>'Import avoidance model - RR'!$I$15,LOGIC!B170<'Import avoidance model - RR'!$J$15),'Import avoidance model - RR'!$H$15,'Import avoidance model - RR'!$H$16),0)/100 -> 1.74274767 | AJ66: =IF('Import avoidance model - RR'!$H$17="N",0,IF(D170<=C170,D170,C170)*'Import avoidance model - RR'!$H$18/100) -> 0 | AK66: =IF(J170<LOGIC!K170,(LOGIC!K170-LOGIC!J170)*IF(AND(LOGIC!B170>'Import avoidance model - RR'!$I$15,LOGIC!B170<'Import avoidance model - RR'!$J$15),'Import avoidance model - RR'!$H$15,'Import avoidance model - RR'!$H$16),0)/100 -> 1.160204258 | AL66: =IF('Import avoidance model - RR'!$H$17="N",0,IF(K170<=C170,K170,C170)*'Import avoidance model - RR'!$H$18/100) -> 0 | AM66: =IF(C14<LOGIC!D14,(LOGIC!D14-LOGIC!C14)*IF(AND(LOGIC!B14>'Import avoidance model - RR'!$I$15,LOGIC!B14<'Import avoidance model - RR'!$J$15),'Import avoidance model - RR'!$H$15,'Import avoidance model - RR'!$H$16),0)/100 -> 1.74274767 | AN66: =IF('Import avoidance model - RR'!$H$17="N",0,IF(D14<=C14,D14,C14)*'Import avoidance model - RR'!$H$18/100) -> 0 | AO66: =IF(J14<LOGIC!K14,(LOGIC!K14-LOGIC!J14)*IF(AND(LOGIC!B170>'Import avoidance model - RR'!$I$15,LOGIC!B170<'Import avoidance model - RR'!$J$15),'Import avoidance model - RR'!$H$15,'Import avoidance model - RR'!$H$16),0)/100 -> 1.160204258 | AP66: =IF('Import avoidance model - RR'!$H$17="N",0,IF(K14<=C14,K14,C14)*'Import avoidance model - RR'!$H$18/100) -> 0 | AQ66: =AA66-(IF(AND($R66>'Import avoidance model - RR'!$I$15,$R66<'Import avoidance model - RR'!$J$15),'Import avoidance model - RR'!$H$15*LOGIC!G66,LOGIC!G66*'Import avoidance model - RR'!$H$16)/100) -> 1.74274767 | AR66: 0 | AS66: =IF('Import avoidance model - RR'!H29="N",0,LOGIC!G66*'Import avoidance model - RR'!$H$20)/100 -> 0 | AT66: =AC66-(IF(AND($R66>'Import avoidance model - RR'!$I$15,$R66<'Import avoidance model - RR'!$J$15),'Import avoidance model - RR'!$H$15*LOGIC!N66,LOGIC!N66*'Import avoidance model - RR'!$H$16)/100) -> 1.160204258 | AU66: 0 | AV66: =IF('Import avoidance model - RR'!H29="N",0,LOGIC!N66*'Import avoidance model - RR'!$H$20)/100 -> 0 | AW66: =AE66-(IF(AND($R66>'Import avoidance model - RR'!$I$15,$R66<'Import avoidance model - RR'!$J$15),'Import avoidance model - RR'!$H$15*LOGIC!G118,LOGIC!G118*'Import avoidance model - RR'!$H$16)/100) -> 1.74274767 | AX66: 0 | AY66: =IF('Import avoidance model - RR'!H29="N",0,LOGIC!G118*'Import avoidance model - RR'!$H$20)/100 -> 0 | AZ66: =AG66-(IF(AND($R66>'Import avoidance model - RR'!$I$15,$R66<'Import avoidance model - RR'!$J$15),'Import avoidance model - RR'!$H$15*LOGIC!N118,LOGIC!N118*'Import avoidance model - RR'!$H$16)/100) -> 1.160204258 | BA66: 0 | BB66: =IF('Import avoidance model - RR'!H29="N",0,LOGIC!N118*'Import avoidance model - RR'!$H$20)/100 -> 0 | BC66: =AI66-(IF(AND($R66>'Import avoidance model - RR'!$I$15,$R66<'Import avoidance model - RR'!$J$15),'Import avoidance model - RR'!$H$15*LOGIC!G170,LOGIC!G170*'Import avoidance model - RR'!$H$16)/100) -> 1.74274767 | BD66: 0 | BE66: =IF('Import avoidance model - RR'!H29="N",0,LOGIC!G170*'Import avoidance model - RR'!$H$20)/100 -> 0 | BF66: =AK66-(IF(AND($R66>'Import avoidance model - RR'!$I$15,$R66<'Import avoidance model - RR'!$J$15),'Import avoidance model - RR'!$H$15*LOGIC!N170,LOGIC!N170*'Import avoidance model - RR'!$H$16)/100) -> 1.160204258 | BG66: 0 | BH66: =IF('Import avoidance model - RR'!H29="N",0,LOGIC!N170*'Import avoidance model - RR'!$H$20)/100 -> 0 | BI66: =AM66-(IF(AND($R66>'Import avoidance model - RR'!$I$15,$R66<'Import avoidance model - RR'!$J$15),'Import avoidance model - RR'!$H$15*LOGIC!G14,LOGIC!G14*'Import avoidance model - RR'!$H$16)/100) -> 1.74274767 | BJ66: 0 | BK66: =IF('Import avoidance model - RR'!H29="N",0,LOGIC!G14*'Import avoidance model - RR'!$H$20)/100 -> 0 | BL66: =AO66-(IF(AND($R66>'Import avoidance model - RR'!$I$15,$R66<'Import avoidance model - RR'!$J$15),'Import avoidance model - RR'!$H$15*LOGIC!N14,LOGIC!N14*'Import avoidance model - RR'!$H$16)/100) -> 1.160204258 | BM66: 0 | BN66: =IF('Import avoidance model - RR'!H29="N",0,LOGIC!N14*'Import avoidance model - RR'!$H$20)/100 -> 0
B67: 05:00:00 | C67: ='PV data'!J15 -> 0 | D67: 34.49894345 | E67: 0 | F67: 0 | G67: 0 | H67: 0 | I67: =IF(AND(I66+H67<=$A$5,I66+H67>$A$3),LOGIC!I66+LOGIC!H67,IF(I66+H67>$A$5,$A$5,$A$3)) -> 12 | J67: 0 | K67: 18.72961039 | L67: 0 | M67: 0 | N67: 0 | O67: 0 | P67: =IF(AND(P66+O67<=$A$5,P66+O67>$A$3),LOGIC!P66+LOGIC!O67,IF(P66+O67>$A$5,$A$5,$A$3)) -> 12 | R67: 05:00:00 | S67: =(IF(AND($R67>'Import avoidance model - RR'!$I$15,'Import avoidance model - RR'!$J$15),'Import avoidance model - RR'!$H$15,'Import avoidance model - RR'!$H$16))*D67/100 -> 2.069936607 | T67: =(IF(AND($R67>'Import avoidance model - RR'!$I$15,'Import avoidance model - RR'!$J$15),'Import avoidance model - RR'!$H$15,'Import avoidance model - RR'!$H$16))*K67/100 -> 1.123776624 | U67: =(IF(AND($R67>'Import avoidance model - RR'!$I$15,'Import avoidance model - RR'!$J$15),'Import avoidance model - RR'!$H$15,'Import avoidance model - RR'!$H$16))*D119/100 -> 2.069936607 | V67: =(IF(AND($R67>'Import avoidance model - RR'!$I$15,'Import avoidance model - RR'!$J$15),'Import avoidance model - RR'!$H$15,'Import avoidance model - RR'!$H$16))*K119/100 -> 1.123776624 | W67: =(IF(AND($R67>'Import avoidance model - RR'!$I$15,'Import avoidance model - RR'!$J$15),'Import avoidance model - RR'!$H$15,'Import avoidance model - RR'!$H$16))*D171/100 -> 2.069936607 | X67: =(IF(AND($R67>'Import avoidance model - RR'!$I$15,'Import avoidance model - RR'!$J$15),'Import avoidance model - RR'!$H$15,'Import avoidance model - RR'!$H$16))*K171/100 -> 1.123776624 | Y67: =(IF(AND($R67>'Import avoidance model - RR'!$I$15,'Import avoidance model - RR'!$J$15),'Import avoidance model - RR'!$H$15,'Import avoidance model - RR'!$H$16))*D15/100 -> 2.069936607 | Z67: =(IF(AND($R67>'Import avoidance model - RR'!$I$15,'Import avoidance model - RR'!$J$15),'Import avoidance model - RR'!$H$15,'Import avoidance model - RR'!$H$16))*K15/100 -> 1.123776624 | AA67: =IF(C67<LOGIC!D67,(LOGIC!D67-LOGIC!C67)*IF(AND(LOGIC!B67>'Import avoidance model - RR'!$I$15,LOGIC!B67<'Import avoidance model - RR'!$J$15),'Import avoidance model - RR'!$H$15,'Import avoidance model - RR'!$H$16),0)/100 -> 2.069936607 | AB67: =IF('Import avoidance model - RR'!$H$17="N",0,IF(D67<=C67,D67,C67)*'Import avoidance model - RR'!$H$18/100) -> 0 | AC67: =IF(J67<LOGIC!K67,(LOGIC!K67-LOGIC!J67)*IF(AND(LOGIC!B67>'Import avoidance model - RR'!$I$15,LOGIC!B67<'Import avoidance model - RR'!$J$15),'Import avoidance model - RR'!$H$15,'Import avoidance model - RR'!$H$16),0)/100 -> 1.123776624 | AD67: =IF('Import avoidance model - RR'!$H$17="N",0,IF(K67<=C67,K67,C67)*'Import avoidance model - RR'!$H$18/100) -> 0 | AE67: =IF(C119<LOGIC!D119,(LOGIC!D119-LOGIC!C119)*IF(AND(LOGIC!B119>'Import avoidance model - RR'!$I$15,LOGIC!B119<'Import avoidance model - RR'!$J$15),'Import avoidance model - RR'!$H$15,'Import avoidance model - RR'!$H$16),0)/100 -> 2.069936607 | AF67: =IF('Import avoidance model - RR'!$H$17="N",0,IF(D119<=C119,D119,C119)*'Import avoidance model - RR'!$H$18/100) -> 0 | AG67: =IF(J119<LOGIC!K119,(LOGIC!K119-LOGIC!J119)*IF(AND(LOGIC!B119>'Import avoidance model - RR'!$I$15,LOGIC!B119<'Import avoidance model - RR'!$J$15),'Import avoidance model - RR'!$H$15,'Import avoidance model - RR'!$H$16),0)/100 -> 1.123776624 | AH67: =IF('Import avoidance model - RR'!$H$17="N",0,IF(K119<=C119,K119,C119)*'Import avoidance model - RR'!$H$18/100) -> 0 | AI67: =IF(C171<LOGIC!D171,(LOGIC!D171-LOGIC!C171)*IF(AND(LOGIC!B171>'Import avoidance model - RR'!$I$15,LOGIC!B171<'Import avoidance model - RR'!$J$15),'Import avoidance model - RR'!$H$15,'Import avoidance model - RR'!$H$16),0)/100 -> 2.069936607 | AJ67: =IF('Import avoidance model - RR'!$H$17="N",0,IF(D171<=C171,D171,C171)*'Import avoidance model - RR'!$H$18/100) -> 0 | AK67: =IF(J171<LOGIC!K171,(LOGIC!K171-LOGIC!J171)*IF(AND(LOGIC!B171>'Import avoidance model - RR'!$I$15,LOGIC!B171<'Import avoidance model - RR'!$J$15),'Import avoidance model - RR'!$H$15,'Import avoidance model - RR'!$H$16),0)/100 -> 1.123776624 | AL67: =IF('Import avoidance model - RR'!$H$17="N",0,IF(K171<=C171,K171,C171)*'Import avoidance model - RR'!$H$18/100) -> 0 | AM67: =IF(C15<LOGIC!D15,(LOGIC!D15-LOGIC!C15)*IF(AND(LOGIC!B15>'Import avoidance model - RR'!$I$15,LOGIC!B15<'Import avoidance model - RR'!$J$15),'Import avoidance model - RR'!$H$15,'Import avoidance model - RR'!$H$16),0)/100 -> 2.069936607 | AN67: =IF('Import avoidance model - RR'!$H$17="N",0,IF(D15<=C15,D15,C15)*'Import avoidance model - RR'!$H$18/100) -> 0 | AO67: =IF(J15<LOGIC!K15,(LOGIC!K15-LOGIC!J15)*IF(AND(LOGIC!B171>'Import avoidance model - RR'!$I$15,LOGIC!B171<'Import avoidance model - RR'!$J$15),'Import avoidance model - RR'!$H$15,'Import avoidance model - RR'!$H$16),0)/100 -> 1.123776624 | AP67: =IF('Import avoidance model - RR'!$H$17="N",0,IF(K15<=C15,K15,C15)*'Import avoidance model - RR'!$H$18/100) -> 0 | AQ67: =AA67-(IF(AND($R67>'Import avoidance model - RR'!$I$15,$R67<'Import avoidance model - RR'!$J$15),'Import avoidance model - RR'!$H$15*LOGIC!G67,LOGIC!G67*'Import avoidance model - RR'!$H$16)/100) -> 2.069936607 | AR67: 0 | AS67: =IF('Import avoidance model - RR'!H30="N",0,LOGIC!G67*'Import avoidance model - RR'!$H$20)/100 -> 0 | AT67: =AC67-(IF(AND($R67>'Import avoidance model - RR'!$I$15,$R67<'Import avoidance model - RR'!$J$15),'Import avoidance model - RR'!$H$15*LOGIC!N67,LOGIC!N67*'Import avoidance model - RR'!$H$16)/100) -> 1.123776624 | AU67: 0 | AV67: =IF('Import avoidance model - RR'!H30="N",0,LOGIC!N67*'Import avoidance model - RR'!$H$20)/100 -> 0 | AW67: =AE67-(IF(AND($R67>'Import avoidance model - RR'!$I$15,$R67<'Import avoidance model - RR'!$J$15),'Import avoidance model - RR'!$H$15*LOGIC!G119,LOGIC!G119*'Import avoidance model - RR'!$H$16)/100) -> 2.069936607 | AX67: 0 | AY67: =IF('Import avoidance model - RR'!H30="N",0,LOGIC!G119*'Import avoidance model - RR'!$H$20)/100 -> 0 | AZ67: =AG67-(IF(AND($R67>'Import avoidance model - RR'!$I$15,$R67<'Import avoidance model - RR'!$J$15),'Import avoidance model - RR'!$H$15*LOGIC!N119,LOGIC!N119*'Import avoidance model - RR'!$H$16)/100) -> 1.123776624 | BA67: 0 | BB67: =IF('Import avoidance model - RR'!H30="N",0,LOGIC!N119*'Import avoidance model - RR'!$H$20)/100 -> 0 | BC67: =AI67-(IF(AND($R67>'Import avoidance model - RR'!$I$15,$R67<'Import avoidance model - RR'!$J$15),'Import avoidance model - RR'!$H$15*LOGIC!G171,LOGIC!G171*'Import avoidance model - RR'!$H$16)/100) -> 2.069936607 | BD67: 0 | BE67: =IF('Import avoidance model - RR'!H30="N",0,LOGIC!G171*'Import avoidance model - RR'!$H$20)/100 -> 0 | BF67: =AK67-(IF(AND($R67>'Import avoidance model - RR'!$I$15,$R67<'Import avoidance model - RR'!$J$15),'Import avoidance model - RR'!$H$15*LOGIC!N171,LOGIC!N171*'Import avoidance model - RR'!$H$16)/100) -> 1.123776624 | BG67: 0 | BH67: =IF('Import avoidance model - RR'!H30="N",0,LOGIC!N171*'Import avoidance model - RR'!$H$20)/100 -> 0 | BI67: =AM67-(IF(AND($R67>'Import avoidance model - RR'!$I$15,$R67<'Import avoidance model - RR'!$J$15),'Import avoidance model - RR'!$H$15*LOGIC!G15,LOGIC!G15*'Import avoidance model - RR'!$H$16)/100) -> 2.069936607 | BJ67: 0 | BK67: =IF('Import avoidance model - RR'!H30="N",0,LOGIC!G15*'Import avoidance model - RR'!$H$20)/100 -> 0 | BL67: =AO67-(IF(AND($R67>'Import avoidance model - RR'!$I$15,$R67<'Import avoidance model - RR'!$J$15),'Import avoidance model - RR'!$H$15*LOGIC!N15,LOGIC!N15*'Import avoidance model - RR'!$H$16)/100) -> 1.123776624 | BM67: 0 | BN67: =IF('Import avoidance model - RR'!H30="N",0,LOGIC!N15*'Import avoidance model - RR'!$H$20)/100 -> 0
B68: 05:30:00 | C68: ='PV data'!J16 -> 0 | D68: 36.37189449 | E68: 0 | F68: 0 | G68: 0 | H68: 0 | I68: =IF(AND(I67+H68<=$A$5,I67+H68>$A$3),LOGIC!I67+LOGIC!H68,IF(I67+H68>$A$5,$A$5,$A$3)) -> 12 | J68: 0 | K68: 18.5779759 | L68: 0 | M68: 0 | N68: 0 | O68: 0 | P68: =IF(AND(P67+O68<=$A$5,P67+O68>$A$3),LOGIC!P67+LOGIC!O68,IF(P67+O68>$A$5,$A$5,$A$3)) -> 12 | R68: 05:30:00 | S68: =(IF(AND($R68>'Import avoidance model - RR'!$I$15,'Import avoidance model - RR'!$J$15),'Import avoidance model - RR'!$H$15,'Import avoidance model - RR'!$H$16))*D68/100 -> 2.182313669 | T68: =(IF(AND($R68>'Import avoidance model - RR'!$I$15,'Import avoidance model - RR'!$J$15),'Import avoidance model - RR'!$H$15,'Import avoidance model - RR'!$H$16))*K68/100 -> 1.114678554 | U68: =(IF(AND($R68>'Import avoidance model - RR'!$I$15,'Import avoidance model - RR'!$J$15),'Import avoidance model - RR'!$H$15,'Import avoidance model - RR'!$H$16))*D120/100 -> 2.182313669 | V68: =(IF(AND($R68>'Import avoidance model - RR'!$I$15,'Import avoidance model - RR'!$J$15),'Import avoidance model - RR'!$H$15,'Import avoidance model - RR'!$H$16))*K120/100 -> 1.114678554 | W68: =(IF(AND($R68>'Import avoidance model - RR'!$I$15,'Import avoidance model - RR'!$J$15),'Import avoidance model - RR'!$H$15,'Import avoidance model - RR'!$H$16))*D172/100 -> 2.182313669 | X68: =(IF(AND($R68>'Import avoidance model - RR'!$I$15,'Import avoidance model - RR'!$J$15),'Import avoidance model - RR'!$H$15,'Import avoidance model - RR'!$H$16))*K172/100 -> 1.114678554 | Y68: =(IF(AND($R68>'Import avoidance model - RR'!$I$15,'Import avoidance model - RR'!$J$15),'Import avoidance model - RR'!$H$15,'Import avoidance model - RR'!$H$16))*D16/100 -> 2.182313669 | Z68: =(IF(AND($R68>'Import avoidance model - RR'!$I$15,'Import avoidance model - RR'!$J$15),'Import avoidance model - RR'!$H$15,'Import avoidance model - RR'!$H$16))*K16/100 -> 1.114678554 | AA68: =IF(C68<LOGIC!D68,(LOGIC!D68-LOGIC!C68)*IF(AND(LOGIC!B68>'Import avoidance model - RR'!$I$15,LOGIC!B68<'Import avoidance model - RR'!$J$15),'Import avoidance model - RR'!$H$15,'Import avoidance model - RR'!$H$16),0)/100 -> 2.182313669 | AB68: =IF('Import avoidance model - RR'!$H$17="N",0,IF(D68<=C68,D68,C68)*'Import avoidance model - RR'!$H$18/100) -> 0 | AC68: =IF(J68<LOGIC!K68,(LOGIC!K68-LOGIC!J68)*IF(AND(LOGIC!B68>'Import avoidance model - RR'!$I$15,LOGIC!B68<'Import avoidance model - RR'!$J$15),'Import avoidance model - RR'!$H$15,'Import avoidance model - RR'!$H$16),0)/100 -> 1.114678554 | AD68: =IF('Import avoidance model - RR'!$H$17="N",0,IF(K68<=C68,K68,C68)*'Import avoidance model - RR'!$H$18/100) -> 0 | AE68: =IF(C120<LOGIC!D120,(LOGIC!D120-LOGIC!C120)*IF(AND(LOGIC!B120>'Import avoidance model - RR'!$I$15,LOGIC!B120<'Import avoidance model - RR'!$J$15),'Import avoidance model - RR'!$H$15,'Import avoidance model - RR'!$H$16),0)/100 -> 2.182313669 | AF68: =IF('Import avoidance model - RR'!$H$17="N",0,IF(D120<=C120,D120,C120)*'Import avoidance model - RR'!$H$18/100) -> 0 | AG68: =IF(J120<LOGIC!K120,(LOGIC!K120-LOGIC!J120)*IF(AND(LOGIC!B120>'Import avoidance model - RR'!$I$15,LOGIC!B120<'Import avoidance model - RR'!$J$15),'Import avoidance model - RR'!$H$15,'Import avoidance model - RR'!$H$16),0)/100 -> 1.114678554 | AH68: =IF('Import avoidance model - RR'!$H$17="N",0,IF(K120<=C120,K120,C120)*'Import avoidance model - RR'!$H$18/100) -> 0 | AI68: =IF(C172<LOGIC!D172,(LOGIC!D172-LOGIC!C172)*IF(AND(LOGIC!B172>'Import avoidance model - RR'!$I$15,LOGIC!B172<'Import avoidance model - RR'!$J$15),'Import avoidance model - RR'!$H$15,'Import avoidance model - RR'!$H$16),0)/100 -> 2.182313669 | AJ68: =IF('Import avoidance model - RR'!$H$17="N",0,IF(D172<=C172,D172,C172)*'Import avoidance model - RR'!$H$18/100) -> 0 | AK68: =IF(J172<LOGIC!K172,(LOGIC!K172-LOGIC!J172)*IF(AND(LOGIC!B172>'Import avoidance model - RR'!$I$15,LOGIC!B172<'Import avoidance model - RR'!$J$15),'Import avoidance model - RR'!$H$15,'Import avoidance model - RR'!$H$16),0)/100 -> 1.114678554 | AL68: =IF('Import avoidance model - RR'!$H$17="N",0,IF(K172<=C172,K172,C172)*'Import avoidance model - RR'!$H$18/100) -> 0 | AM68: =IF(C16<LOGIC!D16,(LOGIC!D16-LOGIC!C16)*IF(AND(LOGIC!B16>'Import avoidance model - RR'!$I$15,LOGIC!B16<'Import avoidance model - RR'!$J$15),'Import avoidance model - RR'!$H$15,'Import avoidance model - RR'!$H$16),0)/100 -> 2.182313669 | AN68: =IF('Import avoidance model - RR'!$H$17="N",0,IF(D16<=C16,D16,C16)*'Import avoidance model - RR'!$H$18/100) -> 0 | AO68: =IF(J16<LOGIC!K16,(LOGIC!K16-LOGIC!J16)*IF(AND(LOGIC!B172>'Import avoidance model - RR'!$I$15,LOGIC!B172<'Import avoidance model - RR'!$J$15),'Import avoidance model - RR'!$H$15,'Import avoidance model - RR'!$H$16),0)/100 -> 1.114678554 | AP68: =IF('Import avoidance model - RR'!$H$17="N",0,IF(K16<=C16,K16,C16)*'Import avoidance model - RR'!$H$18/100) -> 0 | AQ68: =AA68-(IF(AND($R68>'Import avoidance model - RR'!$I$15,$R68<'Import avoidance model - RR'!$J$15),'Import avoidance model - RR'!$H$15*LOGIC!G68,LOGIC!G68*'Import avoidance model - RR'!$H$16)/100) -> 2.182313669 | AR68: 0 | AS68: =IF('Import avoidance model - RR'!H31="N",0,LOGIC!G68*'Import avoidance model - RR'!$H$20)/100 -> 0 | AT68: =AC68-(IF(AND($R68>'Import avoidance model - RR'!$I$15,$R68<'Import avoidance model - RR'!$J$15),'Import avoidance model - RR'!$H$15*LOGIC!N68,LOGIC!N68*'Import avoidance model - RR'!$H$16)/100) -> 1.114678554 | AU68: 0 | AV68: =IF('Import avoidance model - RR'!H31="N",0,LOGIC!N68*'Import avoidance model - RR'!$H$20)/100 -> 0 | AW68: =AE68-(IF(AND($R68>'Import avoidance model - RR'!$I$15,$R68<'Import avoidance model - RR'!$J$15),'Import avoidance model - RR'!$H$15*LOGIC!G120,LOGIC!G120*'Import avoidance model - RR'!$H$16)/100) -> 2.182313669 | AX68: 0 | AY68: =IF('Import avoidance model - RR'!H31="N",0,LOGIC!G120*'Import avoidance model - RR'!$H$20)/100 -> 0 | AZ68: =AG68-(IF(AND($R68>'Import avoidance model - RR'!$I$15,$R68<'Import avoidance model - RR'!$J$15),'Import avoidance model - RR'!$H$15*LOGIC!N120,LOGIC!N120*'Import avoidance model - RR'!$H$16)/100) -> 1.114678554 | BA68: 0 | BB68: =IF('Import avoidance model - RR'!H31="N",0,LOGIC!N120*'Import avoidance model - RR'!$H$20)/100 -> 0 | BC68: =AI68-(IF(AND($R68>'Import avoidance model - RR'!$I$15,$R68<'Import avoidance model - RR'!$J$15),'Import avoidance model - RR'!$H$15*LOGIC!G172,LOGIC!G172*'Import avoidance model - RR'!$H$16)/100) -> 2.182313669 | BD68: 0 | BE68: =IF('Import avoidance model - RR'!H31="N",0,LOGIC!G172*'Import avoidance model - RR'!$H$20)/100 -> 0 | BF68: =AK68-(IF(AND($R68>'Import avoidance model - RR'!$I$15,$R68<'Import avoidance model - RR'!$J$15),'Import avoidance model - RR'!$H$15*LOGIC!N172,LOGIC!N172*'Import avoidance model - RR'!$H$16)/100) -> 1.114678554 | BG68: 0 | BH68: =IF('Import avoidance model - RR'!H31="N",0,LOGIC!N172*'Import avoidance model - RR'!$H$20)/100 -> 0 | BI68: =AM68-(IF(AND($R68>'Import avoidance model - RR'!$I$15,$R68<'Import avoidance model - RR'!$J$15),'Import avoidance model - RR'!$H$15*LOGIC!G16,LOGIC!G16*'Import avoidance model - RR'!$H$16)/100) -> 2.182313669 | BJ68: 0 | BK68: =IF('Import avoidance model - RR'!H31="N",0,LOGIC!G16*'Import avoidance model - RR'!$H$20)/100 -> 0 | BL68: =AO68-(IF(AND($R68>'Import avoidance model - RR'!$I$15,$R68<'Import avoidance model - RR'!$J$15),'Import avoidance model - RR'!$H$15*LOGIC!N16,LOGIC!N16*'Import avoidance model - RR'!$H$16)/100) -> 1.114678554 | BM68: 0 | BN68: =IF('Import avoidance model - RR'!H31="N",0,LOGIC!N16*'Import avoidance model - RR'!$H$20)/100 -> 0
B69: 06:00:00 | C69: ='PV data'!J17 -> 0 | D69: 36.14443362 | E69: 0 | F69: 0 | G69: 0 | H69: 0 | I69: =IF(AND(I68+H69<=$A$5,I68+H69>$A$3),LOGIC!I68+LOGIC!H69,IF(I68+H69>$A$5,$A$5,$A$3)) -> 12 | J69: 0 | K69: 18.40571753 | L69: 0 | M69: 0 | N69: 0 | O69: 0 | P69: =IF(AND(P68+O69<=$A$5,P68+O69>$A$3),LOGIC!P68+LOGIC!O69,IF(P68+O69>$A$5,$A$5,$A$3)) -> 12 | R69: 06:00:00 | S69: =(IF(AND($R69>'Import avoidance model - RR'!$I$15,'Import avoidance model - RR'!$J$15),'Import avoidance model - RR'!$H$15,'Import avoidance model - RR'!$H$16))*D69/100 -> 2.168666017 | T69: =(IF(AND($R69>'Import avoidance model - RR'!$I$15,'Import avoidance model - RR'!$J$15),'Import avoidance model - RR'!$H$15,'Import avoidance model - RR'!$H$16))*K69/100 -> 1.104343052 | U69: =(IF(AND($R69>'Import avoidance model - RR'!$I$15,'Import avoidance model - RR'!$J$15),'Import avoidance model - RR'!$H$15,'Import avoidance model - RR'!$H$16))*D121/100 -> 2.168666017 | V69: =(IF(AND($R69>'Import avoidance model - RR'!$I$15,'Import avoidance model - RR'!$J$15),'Import avoidance model - RR'!$H$15,'Import avoidance model - RR'!$H$16))*K121/100 -> 1.104343052 | W69: =(IF(AND($R69>'Import avoidance model - RR'!$I$15,'Import avoidance model - RR'!$J$15),'Import avoidance model - RR'!$H$15,'Import avoidance model - RR'!$H$16))*D173/100 -> 2.168666017 | X69: =(IF(AND($R69>'Import avoidance model - RR'!$I$15,'Import avoidance model - RR'!$J$15),'Import avoidance model - RR'!$H$15,'Import avoidance model - RR'!$H$16))*K173/100 -> 1.104343052 | Y69: =(IF(AND($R69>'Import avoidance model - RR'!$I$15,'Import avoidance model - RR'!$J$15),'Import avoidance model - RR'!$H$15,'Import avoidance model - RR'!$H$16))*D17/100 -> 2.168666017 | Z69: =(IF(AND($R69>'Import avoidance model - RR'!$I$15,'Import avoidance model - RR'!$J$15),'Import avoidance model - RR'!$H$15,'Import avoidance model - RR'!$H$16))*K17/100 -> 1.104343052 | AA69: =IF(C69<LOGIC!D69,(LOGIC!D69-LOGIC!C69)*IF(AND(LOGIC!B69>'Import avoidance model - RR'!$I$15,LOGIC!B69<'Import avoidance model - RR'!$J$15),'Import avoidance model - RR'!$H$15,'Import avoidance model - RR'!$H$16),0)/100 -> 2.168666017 | AB69: =IF('Import avoidance model - RR'!$H$17="N",0,IF(D69<=C69,D69,C69)*'Import avoidance model - RR'!$H$18/100) -> 0 | AC69: =IF(J69<LOGIC!K69,(LOGIC!K69-LOGIC!J69)*IF(AND(LOGIC!B69>'Import avoidance model - RR'!$I$15,LOGIC!B69<'Import avoidance model - RR'!$J$15),'Import avoidance model - RR'!$H$15,'Import avoidance model - RR'!$H$16),0)/100 -> 1.104343052 | AD69: =IF('Import avoidance model - RR'!$H$17="N",0,IF(K69<=C69,K69,C69)*'Import avoidance model - RR'!$H$18/100) -> 0 | AE69: =IF(C121<LOGIC!D121,(LOGIC!D121-LOGIC!C121)*IF(AND(LOGIC!B121>'Import avoidance model - RR'!$I$15,LOGIC!B121<'Import avoidance model - RR'!$J$15),'Import avoidance model - RR'!$H$15,'Import avoidance model - RR'!$H$16),0)/100 -> 1.689252685 | AF69: =IF('Import avoidance model - RR'!$H$17="N",0,IF(D121<=C121,D121,C121)*'Import avoidance model - RR'!$H$18/100) -> 0.599266665 | AG69: =IF(J121<LOGIC!K121,(LOGIC!K121-LOGIC!J121)*IF(AND(LOGIC!B121>'Import avoidance model - RR'!$I$15,LOGIC!B121<'Import avoidance model - RR'!$J$15),'Import avoidance model - RR'!$H$15,'Import avoidance model - RR'!$H$16),0)/100 -> 0.6249297201 | AH69: =IF('Import avoidance model - RR'!$H$17="N",0,IF(K121<=C121,K121,C121)*'Import avoidance model - RR'!$H$18/100) -> 0.599266665 | AI69: =IF(C173<LOGIC!D173,(LOGIC!D173-LOGIC!C173)*IF(AND(LOGIC!B173>'Import avoidance model - RR'!$I$15,LOGIC!B173<'Import avoidance model - RR'!$J$15),'Import avoidance model - RR'!$H$15,'Import avoidance model - RR'!$H$16),0)/100 -> 2.168666017 | AJ69: =IF('Import avoidance model - RR'!$H$17="N",0,IF(D173<=C173,D173,C173)*'Import avoidance model - RR'!$H$18/100) -> 0 | AK69: =IF(J173<LOGIC!K173,(LOGIC!K173-LOGIC!J173)*IF(AND(LOGIC!B173>'Import avoidance model - RR'!$I$15,LOGIC!B173<'Import avoidance model - RR'!$J$15),'Import avoidance model - RR'!$H$15,'Import avoidance model - RR'!$H$16),0)/100 -> 1.104343052 | AL69: =IF('Import avoidance model - RR'!$H$17="N",0,IF(K173<=C173,K173,C173)*'Import avoidance model - RR'!$H$18/100) -> 0 | AM69: =IF(C17<LOGIC!D17,(LOGIC!D17-LOGIC!C17)*IF(AND(LOGIC!B17>'Import avoidance model - RR'!$I$15,LOGIC!B17<'Import avoidance model - RR'!$J$15),'Import avoidance model - RR'!$H$15,'Import avoidance model - RR'!$H$16),0)/100 -> 2.168666017 | AN69: =IF('Import avoidance model - RR'!$H$17="N",0,IF(D17<=C17,D17,C17)*'Import avoidance model - RR'!$H$18/100) -> 0 | AO69: =IF(J17<LOGIC!K17,(LOGIC!K17-LOGIC!J17)*IF(AND(LOGIC!B173>'Import avoidance model - RR'!$I$15,LOGIC!B173<'Import avoidance model - RR'!$J$15),'Import avoidance model - RR'!$H$15,'Import avoidance model - RR'!$H$16),0)/100 -> 1.104343052 | AP69: =IF('Import avoidance model - RR'!$H$17="N",0,IF(K17<=C17,K17,C17)*'Import avoidance model - RR'!$H$18/100) -> 0 | AQ69: =AA69-(IF(AND($R69>'Import avoidance model - RR'!$I$15,$R69<'Import avoidance model - RR'!$J$15),'Import avoidance model - RR'!$H$15*LOGIC!G69,LOGIC!G69*'Import avoidance model - RR'!$H$16)/100) -> 2.168666017 | AR69: 0 | AS69: =IF('Import avoidance model - RR'!H32="N",0,LOGIC!G69*'Import avoidance model - RR'!$H$20)/100 -> 0 | AT69: =AC69-(IF(AND($R69>'Import avoidance model - RR'!$I$15,$R69<'Import avoidance model - RR'!$J$15),'Import avoidance model - RR'!$H$15*LOGIC!N69,LOGIC!N69*'Import avoidance model - RR'!$H$16)/100) -> 1.104343052 | AU69: 0 | AV69: =IF('Import avoidance model - RR'!H32="N",0,LOGIC!N69*'Import avoidance model - RR'!$H$20)/100 -> 0 | AW69: =AE69-(IF(AND($R69>'Import avoidance model - RR'!$I$15,$R69<'Import avoidance model - RR'!$J$15),'Import avoidance model - RR'!$H$15*LOGIC!G121,LOGIC!G121*'Import avoidance model - RR'!$H$16)/100) -> 1.689252685 | AX69: 0.599266665 | AY69: =IF('Import avoidance model - RR'!H32="N",0,LOGIC!G121*'Import avoidance model - RR'!$H$20)/100 -> 0 | AZ69: =AG69-(IF(AND($R69>'Import avoidance model - RR'!$I$15,$R69<'Import avoidance model - RR'!$J$15),'Import avoidance model - RR'!$H$15*LOGIC!N121,LOGIC!N121*'Import avoidance model - RR'!$H$16)/100) -> 0.6249297201 | BA69: 0.599266665 | BB69: =IF('Import avoidance model - RR'!H32="N",0,LOGIC!N121*'Import avoidance model - RR'!$H$20)/100 -> 0 | BC69: =AI69-(IF(AND($R69>'Import avoidance model - RR'!$I$15,$R69<'Import avoidance model - RR'!$J$15),'Import avoidance model - RR'!$H$15*LOGIC!G173,LOGIC!G173*'Import avoidance model - RR'!$H$16)/100) -> 2.168666017 | BD69: 0 | BE69: =IF('Import avoidance model - RR'!H32="N",0,LOGIC!G173*'Import avoidance model - RR'!$H$20)/100 -> 0 | BF69: =AK69-(IF(AND($R69>'Import avoidance model - RR'!$I$15,$R69<'Import avoidance model - RR'!$J$15),'Import avoidance model - RR'!$H$15*LOGIC!N173,LOGIC!N173*'Import avoidance model - RR'!$H$16)/100) -> 1.104343052 | BG69: 0 | BH69: =IF('Import avoidance model - RR'!H32="N",0,LOGIC!N173*'Import avoidance model - RR'!$H$20)/100 -> 0 | BI69: =AM69-(IF(AND($R69>'Import avoidance model - RR'!$I$15,$R69<'Import avoidance model - RR'!$J$15),'Import avoidance model - RR'!$H$15*LOGIC!G17,LOGIC!G17*'Import avoidance model - RR'!$H$16)/100) -> 2.168666017 | BJ69: 0 | BK69: =IF('Import avoidance model - RR'!H32="N",0,LOGIC!G17*'Import avoidance model - RR'!$H$20)/100 -> 0 | BL69: =AO69-(IF(AND($R69>'Import avoidance model - RR'!$I$15,$R69<'Import avoidance model - RR'!$J$15),'Import avoidance model - RR'!$H$15*LOGIC!N17,LOGIC!N17*'Import avoidance model - RR'!$H$16)/100) -> 1.104343052 | BM69: 0 | BN69: =IF('Import avoidance model - RR'!H32="N",0,LOGIC!N17*'Import avoidance model - RR'!$H$20)/100 -> 0
B70: 06:30:00 | C70: ='PV data'!J18 -> 0 | D70: 40.65250402 | E70: 0 | F70: 0 | G70: 0 | H70: 0 | I70: =IF(AND(I69+H70<=$A$5,I69+H70>$A$3),LOGIC!I69+LOGIC!H70,IF(I69+H70>$A$5,$A$5,$A$3)) -> 12 | J70: 0 | K70: 18.03468442 | L70: 0 | M70: 0 | N70: 0 | O70: 0 | P70: =IF(AND(P69+O70<=$A$5,P69+O70>$A$3),LOGIC!P69+LOGIC!O70,IF(P69+O70>$A$5,$A$5,$A$3)) -> 12 | R70: 06:30:00 | S70: =(IF(AND($R70>'Import avoidance model - RR'!$I$15,'Import avoidance model - RR'!$J$15),'Import avoidance model - RR'!$H$15,'Import avoidance model - RR'!$H$16))*D70/100 -> 2.439150241 | T70: =(IF(AND($R70>'Import avoidance model - RR'!$I$15,'Import avoidance model - RR'!$J$15),'Import avoidance model - RR'!$H$15,'Import avoidance model - RR'!$H$16))*K70/100 -> 1.082081065 | U70: =(IF(AND($R70>'Import avoidance model - RR'!$I$15,'Import avoidance model - RR'!$J$15),'Import avoidance model - RR'!$H$15,'Import avoidance model - RR'!$H$16))*D122/100 -> 2.439150241 | V70: =(IF(AND($R70>'Import avoidance model - RR'!$I$15,'Import avoidance model - RR'!$J$15),'Import avoidance model - RR'!$H$15,'Import avoidance model - RR'!$H$16))*K122/100 -> 1.082081065 | W70: =(IF(AND($R70>'Import avoidance model - RR'!$I$15,'Import avoidance model - RR'!$J$15),'Import avoidance model - RR'!$H$15,'Import avoidance model - RR'!$H$16))*D174/100 -> 2.439150241 | X70: =(IF(AND($R70>'Import avoidance model - RR'!$I$15,'Import avoidance model - RR'!$J$15),'Import avoidance model - RR'!$H$15,'Import avoidance model - RR'!$H$16))*K174/100 -> 1.082081065 | Y70: =(IF(AND($R70>'Import avoidance model - RR'!$I$15,'Import avoidance model - RR'!$J$15),'Import avoidance model - RR'!$H$15,'Import avoidance model - RR'!$H$16))*D18/100 -> 2.439150241 | Z70: =(IF(AND($R70>'Import avoidance model - RR'!$I$15,'Import avoidance model - RR'!$J$15),'Import avoidance model - RR'!$H$15,'Import avoidance model - RR'!$H$16))*K18/100 -> 1.082081065 | AA70: =IF(C70<LOGIC!D70,(LOGIC!D70-LOGIC!C70)*IF(AND(LOGIC!B70>'Import avoidance model - RR'!$I$15,LOGIC!B70<'Import avoidance model - RR'!$J$15),'Import avoidance model - RR'!$H$15,'Import avoidance model - RR'!$H$16),0)/100 -> 2.439150241 | AB70: =IF('Import avoidance model - RR'!$H$17="N",0,IF(D70<=C70,D70,C70)*'Import avoidance model - RR'!$H$18/100) -> 0 | AC70: =IF(J70<LOGIC!K70,(LOGIC!K70-LOGIC!J70)*IF(AND(LOGIC!B70>'Import avoidance model - RR'!$I$15,LOGIC!B70<'Import avoidance model - RR'!$J$15),'Import avoidance model - RR'!$H$15,'Import avoidance model - RR'!$H$16),0)/100 -> 1.082081065 | AD70: =IF('Import avoidance model - RR'!$H$17="N",0,IF(K70<=C70,K70,C70)*'Import avoidance model - RR'!$H$18/100) -> 0 | AE70: =IF(C122<LOGIC!D122,(LOGIC!D122-LOGIC!C122)*IF(AND(LOGIC!B122>'Import avoidance model - RR'!$I$15,LOGIC!B122<'Import avoidance model - RR'!$J$15),'Import avoidance model - RR'!$H$15,'Import avoidance model - RR'!$H$16),0)/100 -> 1.229321149 | AF70: =IF('Import avoidance model - RR'!$H$17="N",0,IF(D122<=C122,D122,C122)*'Import avoidance model - RR'!$H$18/100) -> 1.512286365 | AG70: =IF(J122<LOGIC!K122,(LOGIC!K122-LOGIC!J122)*IF(AND(LOGIC!B122>'Import avoidance model - RR'!$I$15,LOGIC!B122<'Import avoidance model - RR'!$J$15),'Import avoidance model - RR'!$H$15,'Import avoidance model - RR'!$H$16),0)/100 -> 0 | AH70: =IF('Import avoidance model - RR'!$H$17="N",0,IF(K122<=C122,K122,C122)*'Import avoidance model - RR'!$H$18/100) -> 1.352601331 | AI70: =IF(C174<LOGIC!D174,(LOGIC!D174-LOGIC!C174)*IF(AND(LOGIC!B174>'Import avoidance model - RR'!$I$15,LOGIC!B174<'Import avoidance model - RR'!$J$15),'Import avoidance model - RR'!$H$15,'Import avoidance model - RR'!$H$16),0)/100 -> 2.439150241 | AJ70: =IF('Import avoidance model - RR'!$H$17="N",0,IF(D174<=C174,D174,C174)*'Import avoidance model - RR'!$H$18/100) -> 0 | AK70: =IF(J174<LOGIC!K174,(LOGIC!K174-LOGIC!J174)*IF(AND(LOGIC!B174>'Import avoidance model - RR'!$I$15,LOGIC!B174<'Import avoidance model - RR'!$J$15),'Import avoidance model - RR'!$H$15,'Import avoidance model - RR'!$H$16),0)/100 -> 1.082081065 | AL70: =IF('Import avoidance model - RR'!$H$17="N",0,IF(K174<=C174,K174,C174)*'Import avoidance model - RR'!$H$18/100) -> 0 | AM70: =IF(C18<LOGIC!D18,(LOGIC!D18-LOGIC!C18)*IF(AND(LOGIC!B18>'Import avoidance model - RR'!$I$15,LOGIC!B18<'Import avoidance model - RR'!$J$15),'Import avoidance model - RR'!$H$15,'Import avoidance model - RR'!$H$16),0)/100 -> 2.439150241 | AN70: =IF('Import avoidance model - RR'!$H$17="N",0,IF(D18<=C18,D18,C18)*'Import avoidance model - RR'!$H$18/100) -> 0 | AO70: =IF(J18<LOGIC!K18,(LOGIC!K18-LOGIC!J18)*IF(AND(LOGIC!B174>'Import avoidance model - RR'!$I$15,LOGIC!B174<'Import avoidance model - RR'!$J$15),'Import avoidance model - RR'!$H$15,'Import avoidance model - RR'!$H$16),0)/100 -> 1.082081065 | AP70: =IF('Import avoidance model - RR'!$H$17="N",0,IF(K18<=C18,K18,C18)*'Import avoidance model - RR'!$H$18/100) -> 0 | AQ70: =AA70-(IF(AND($R70>'Import avoidance model - RR'!$I$15,$R70<'Import avoidance model - RR'!$J$15),'Import avoidance model - RR'!$H$15*LOGIC!G70,LOGIC!G70*'Import avoidance model - RR'!$H$16)/100) -> 2.439150241 | AR70: 0 | AS70: =IF('Import avoidance model - RR'!H33="N",0,LOGIC!G70*'Import avoidance model - RR'!$H$20)/100 -> 0 | AT70: =AC70-(IF(AND($R70>'Import avoidance model - RR'!$I$15,$R70<'Import avoidance model - RR'!$J$15),'Import avoidance model - RR'!$H$15*LOGIC!N70,LOGIC!N70*'Import avoidance model - RR'!$H$16)/100) -> 1.082081065 | AU70: 0 | AV70: =IF('Import avoidance model - RR'!H33="N",0,LOGIC!N70*'Import avoidance model - RR'!$H$20)/100 -> 0 | AW70: =AE70-(IF(AND($R70>'Import avoidance model - RR'!$I$15,$R70<'Import avoidance model - RR'!$J$15),'Import avoidance model - RR'!$H$15*LOGIC!G122,LOGIC!G122*'Import avoidance model - RR'!$H$16)/100) -> 1.229321149 | AX70: 1.512286365 | AY70: =IF('Import avoidance model - RR'!H33="N",0,LOGIC!G122*'Import avoidance model - RR'!$H$20)/100 -> 0 | AZ70: =AG70-(IF(AND($R70>'Import avoidance model - RR'!$I$15,$R70<'Import avoidance model - RR'!$J$15),'Import avoidance model - RR'!$H$15*LOGIC!N122,LOGIC!N122*'Import avoidance model - RR'!$H$16)/100) -> 0 | BA70: 1.352601331 | BB70: =IF('Import avoidance model - RR'!H33="N",0,LOGIC!N122*'Import avoidance model - RR'!$H$20)/100 -> 0 | BC70: =AI70-(IF(AND($R70>'Import avoidance model - RR'!$I$15,$R70<'Import avoidance model - RR'!$J$15),'Import avoidance model - RR'!$H$15*LOGIC!G174,LOGIC!G174*'Import avoidance model - RR'!$H$16)/100) -> 2.439150241 | BD70: 0 | BE70: =IF('Import avoidance model - RR'!H33="N",0,LOGIC!G174*'Import avoidance model - RR'!$H$20)/100 -> 0 | BF70: =AK70-(IF(AND($R70>'Import avoidance model - RR'!$I$15,$R70<'Import avoidance model - RR'!$J$15),'Import avoidance model - RR'!$H$15*LOGIC!N174,LOGIC!N174*'Import avoidance model - RR'!$H$16)/100) -> 1.082081065 | BG70: 0 | BH70: =IF('Import avoidance model - RR'!H33="N",0,LOGIC!N174*'Import avoidance model - RR'!$H$20)/100 -> 0 | BI70: =AM70-(IF(AND($R70>'Import avoidance model - RR'!$I$15,$R70<'Import avoidance model - RR'!$J$15),'Import avoidance model - RR'!$H$15*LOGIC!G18,LOGIC!G18*'Import avoidance model - RR'!$H$16)/100) -> 2.439150241 | BJ70: 0 | BK70: =IF('Import avoidance model - RR'!H33="N",0,LOGIC!G18*'Import avoidance model - RR'!$H$20)/100 -> 0 | BL70: =AO70-(IF(AND($R70>'Import avoidance model - RR'!$I$15,$R70<'Import avoidance model - RR'!$J$15),'Import avoidance model - RR'!$H$15*LOGIC!N18,LOGIC!N18*'Import avoidance model - RR'!$H$16)/100) -> 1.082081065 | BM70: 0 | BN70: =IF('Import avoidance model - RR'!H33="N",0,LOGIC!N18*'Import avoidance model - RR'!$H$20)/100 -> 0
B71: 07:00:00 | C71: ='PV data'!J19 -> 24.87066999 | D71: 45.10436649 | E71: 0 | F71: =IF(AND((I70+E71)<$A$5,E71<=$A$7),E71,IF(E71>$A$7,$A$7,$A$5-I70)) -> 0 | G71: 0 | H71: 0 | I71: =IF(AND(I70+H71<=$A$5,I70+H71>$A$3),LOGIC!I70+LOGIC!H71,IF(I70+H71>$A$5,$A$5,$A$3)) -> 12 | J71: 24.87066999 | K71: 18.26822511 | L71: 6.60244488 | M71: 6.60244488 | N71: 0 | O71: 6.60244488 | P71: =IF(AND(P70+O71<=$A$5,P70+O71>$A$3),LOGIC!P70+LOGIC!O71,IF(P70+O71>$A$5,$A$5,$A$3)) -> 18.60244488 | R71: 07:00:00 | S71: =(IF(AND($R71>'Import avoidance model - RR'!$I$15,'Import avoidance model - RR'!$J$15),'Import avoidance model - RR'!$H$15,'Import avoidance model - RR'!$H$16))*D71/100 -> 2.70626199 | T71: =(IF(AND($R71>'Import avoidance model - RR'!$I$15,'Import avoidance model - RR'!$J$15),'Import avoidance model - RR'!$H$15,'Import avoidance model - RR'!$H$16))*K71/100 -> 1.096093507 | U71: =(IF(AND($R71>'Import avoidance model - RR'!$I$15,'Import avoidance model - RR'!$J$15),'Import avoidance model - RR'!$H$15,'Import avoidance model - RR'!$H$16))*D123/100 -> 2.70626199 | V71: =(IF(AND($R71>'Import avoidance model - RR'!$I$15,'Import avoidance model - RR'!$J$15),'Import avoidance model - RR'!$H$15,'Import avoidance model - RR'!$H$16))*K123/100 -> 1.096093507 | W71: =(IF(AND($R71>'Import avoidance model - RR'!$I$15,'Import avoidance model - RR'!$J$15),'Import avoidance model - RR'!$H$15,'Import avoidance model - RR'!$H$16))*D175/100 -> 2.70626199 | X71: =(IF(AND($R71>'Import avoidance model - RR'!$I$15,'Import avoidance model - RR'!$J$15),'Import avoidance model - RR'!$H$15,'Import avoidance model - RR'!$H$16))*K175/100 -> 1.096093507 | Y71: =(IF(AND($R71>'Import avoidance model - RR'!$I$15,'Import avoidance model - RR'!$J$15),'Import avoidance model - RR'!$H$15,'Import avoidance model - RR'!$H$16))*D19/100 -> 2.70626199 | Z71: =(IF(AND($R71>'Import avoidance model - RR'!$I$15,'Import avoidance model - RR'!$J$15),'Import avoidance model - RR'!$H$15,'Import avoidance model - RR'!$H$16))*K19/100 -> 1.096093507 | AA71: =IF(C71<LOGIC!D71,(LOGIC!D71-LOGIC!C71)*IF(AND(LOGIC!B71>'Import avoidance model - RR'!$I$15,LOGIC!B71<'Import avoidance model - RR'!$J$15),'Import avoidance model - RR'!$H$15,'Import avoidance model - RR'!$H$16),0)/100 -> 1.21402179 | AB71: =IF('Import avoidance model - RR'!$H$17="N",0,IF(D71<=C71,D71,C71)*'Import avoidance model - RR'!$H$18/100) -> 1.86530025 | AC71: =IF(J71<LOGIC!K71,(LOGIC!K71-LOGIC!J71)*IF(AND(LOGIC!B71>'Import avoidance model - RR'!$I$15,LOGIC!B71<'Import avoidance model - RR'!$J$15),'Import avoidance model - RR'!$H$15,'Import avoidance model - RR'!$H$16),0)/100 -> 0 | AD71: =IF('Import avoidance model - RR'!$H$17="N",0,IF(K71<=C71,K71,C71)*'Import avoidance model - RR'!$H$18/100) -> 1.370116884 | AE71: =IF(C123<LOGIC!D123,(LOGIC!D123-LOGIC!C123)*IF(AND(LOGIC!B123>'Import avoidance model - RR'!$I$15,LOGIC!B123<'Import avoidance model - RR'!$J$15),'Import avoidance model - RR'!$H$15,'Import avoidance model - RR'!$H$16),0)/100 -> 0.5226611612 | AF71: =IF('Import avoidance model - RR'!$H$17="N",0,IF(D123<=C123,D123,C123)*'Import avoidance model - RR'!$H$18/100) -> 2.729501036 | AG71: =IF(J123<LOGIC!K123,(LOGIC!K123-LOGIC!J123)*IF(AND(LOGIC!B123>'Import avoidance model - RR'!$I$15,LOGIC!B123<'Import avoidance model - RR'!$J$15),'Import avoidance model - RR'!$H$15,'Import avoidance model - RR'!$H$16),0)/100 -> 0 | AH71: =IF('Import avoidance model - RR'!$H$17="N",0,IF(K123<=C123,K123,C123)*'Import avoidance model - RR'!$H$18/100) -> 1.370116884 | AI71: =IF(C175<LOGIC!D175,(LOGIC!D175-LOGIC!C175)*IF(AND(LOGIC!B175>'Import avoidance model - RR'!$I$15,LOGIC!B175<'Import avoidance model - RR'!$J$15),'Import avoidance model - RR'!$H$15,'Import avoidance model - RR'!$H$16),0)/100 -> 2.70626199 | AJ71: =IF('Import avoidance model - RR'!$H$17="N",0,IF(D175<=C175,D175,C175)*'Import avoidance model - RR'!$H$18/100) -> 0 | AK71: =IF(J175<LOGIC!K175,(LOGIC!K175-LOGIC!J175)*IF(AND(LOGIC!B175>'Import avoidance model - RR'!$I$15,LOGIC!B175<'Import avoidance model - RR'!$J$15),'Import avoidance model - RR'!$H$15,'Import avoidance model - RR'!$H$16),0)/100 -> 1.096093507 | AL71: =IF('Import avoidance model - RR'!$H$17="N",0,IF(K175<=C175,K175,C175)*'Import avoidance model - RR'!$H$18/100) -> 0 | AM71: =IF(C19<LOGIC!D19,(LOGIC!D19-LOGIC!C19)*IF(AND(LOGIC!B19>'Import avoidance model - RR'!$I$15,LOGIC!B19<'Import avoidance model - RR'!$J$15),'Import avoidance model - RR'!$H$15,'Import avoidance model - RR'!$H$16),0)/100 -> 2.70626199 | AN71: =IF('Import avoidance model - RR'!$H$17="N",0,IF(D19<=C19,D19,C19)*'Import avoidance model - RR'!$H$18/100) -> 0 | AO71: =IF(J19<LOGIC!K19,(LOGIC!K19-LOGIC!J19)*IF(AND(LOGIC!B175>'Import avoidance model - RR'!$I$15,LOGIC!B175<'Import avoidance model - RR'!$J$15),'Import avoidance model - RR'!$H$15,'Import avoidance model - RR'!$H$16),0)/100 -> 1.096093507 | AP71: =IF('Import avoidance model - RR'!$H$17="N",0,IF(K19<=C19,K19,C19)*'Import avoidance model - RR'!$H$18/100) -> 0 | AQ71: =AA71-(IF(AND($R71>'Import avoidance model - RR'!$I$15,$R71<'Import avoidance model - RR'!$J$15),'Import avoidance model - RR'!$H$15*LOGIC!G71,LOGIC!G71*'Import avoidance model - RR'!$H$16)/100) -> 1.21402179 | AR71: =AB71 -> 1.86530025 | AS71: =IF('Import avoidance model - RR'!H34="N",0,LOGIC!G71*'Import avoidance model - RR'!$H$20)/100 -> 0 | AT71: =AC71-(IF(AND($R71>'Import avoidance model - RR'!$I$15,$R71<'Import avoidance model - RR'!$J$15),'Import avoidance model - RR'!$H$15*LOGIC!N71,LOGIC!N71*'Import avoidance model - RR'!$H$16)/100) -> 0 | AU71: 1.370116884 | AV71: =IF('Import avoidance model - RR'!H34="N",0,LOGIC!N71*'Import avoidance model - RR'!$H$20)/100 -> 0 | AW71: =AE71-(IF(AND($R71>'Import avoidance model - RR'!$I$15,$R71<'Import avoidance model - RR'!$J$15),'Import avoidance model - RR'!$H$15*LOGIC!G123,LOGIC!G123*'Import avoidance model - RR'!$H$16)/100) -> 0.5226611612 | AX71: 2.729501036 | AY71: =IF('Import avoidance model - RR'!H34="N",0,LOGIC!G123*'Import avoidance model - RR'!$H$20)/100 -> 0 | AZ71: =AG71-(IF(AND($R71>'Import avoidance model - RR'!$I$15,$R71<'Import avoidance model - RR'!$J$15),'Import avoidance model - RR'!$H$15*LOGIC!N123,LOGIC!N123*'Import avoidance model - RR'!$H$16)/100) -> 0 | BA71: 1.370116884 | BB71: =IF('Import avoidance model - RR'!H34="N",0,LOGIC!N123*'Import avoidance model - RR'!$H$20)/100 -> 0 | BC71: =AI71-(IF(AND($R71>'Import avoidance model - RR'!$I$15,$R71<'Import avoidance model - RR'!$J$15),'Import avoidance model - RR'!$H$15*LOGIC!G175,LOGIC!G175*'Import avoidance model - RR'!$H$16)/100) -> 2.70626199 | BD71: 0 | BE71: =IF('Import avoidance model - RR'!H34="N",0,LOGIC!G175*'Import avoidance model - RR'!$H$20)/100 -> 0 | BF71: =AK71-(IF(AND($R71>'Import avoidance model - RR'!$I$15,$R71<'Import avoidance model - RR'!$J$15),'Import avoidance model - RR'!$H$15*LOGIC!N175,LOGIC!N175*'Import avoidance model - RR'!$H$16)/100) -> 1.096093507 | BG71: 0 | BH71: =IF('Import avoidance model - RR'!H34="N",0,LOGIC!N175*'Import avoidance model - RR'!$H$20)/100 -> 0 | BI71: =AM71-(IF(AND($R71>'Import avoidance model - RR'!$I$15,$R71<'Import avoidance model - RR'!$J$15),'Import avoidance model - RR'!$H$15*LOGIC!G19,LOGIC!G19*'Import avoidance model - RR'!$H$16)/100) -> 2.70626199 | BJ71: 0 | BK71: =IF('Import avoidance model - RR'!H34="N",0,LOGIC!G19*'Import avoidance model - RR'!$H$20)/100 -> 0 | BL71: =AO71-(IF(AND($R71>'Import avoidance model - RR'!$I$15,$R71<'Import avoidance model - RR'!$J$15),'Import avoidance model - RR'!$H$15*LOGIC!N19,LOGIC!N19*'Import avoidance model - RR'!$H$16)/100) -> 1.096093507 | BM71: 0 | BN71: =IF('Import avoidance model - RR'!H34="N",0,LOGIC!N19*'Import avoidance model - RR'!$H$20)/100 -> 0
B72: 07:30:00 | C72: ='PV data'!J20 -> 36.26890865 | D72: 49.08724466 | E72: 0 | F72: 0 | G72: 0 | H72: 0 | I72: =IF(AND(I71+H72<=$A$5,I71+H72>$A$3),LOGIC!I71+LOGIC!H72,IF(I71+H72>$A$5,$A$5,$A$3)) -> 12 | J72: 36.26890865 | K72: 18.51237237 | L72: 17.75653628 | M72: 15 | N72: 0 | O72: 15 | P72: =IF(AND(P71+O72<=$A$5,P71+O72>$A$3),LOGIC!P71+LOGIC!O72,IF(P71+O72>$A$5,$A$5,$A$3)) -> 33.60244488 | R72: 07:30:00 | S72: =(IF(AND($R72>'Import avoidance model - RR'!$I$15,'Import avoidance model - RR'!$J$15),'Import avoidance model - RR'!$H$15,'Import avoidance model - RR'!$H$16))*D72/100 -> 2.94523468 | T72: =(IF(AND($R72>'Import avoidance model - RR'!$I$15,'Import avoidance model - RR'!$J$15),'Import avoidance model - RR'!$H$15,'Import avoidance model - RR'!$H$16))*K72/100 -> 1.110742342 | U72: =(IF(AND($R72>'Import avoidance model - RR'!$I$15,'Import avoidance model - RR'!$J$15),'Import avoidance model - RR'!$H$15,'Import avoidance model - RR'!$H$16))*D124/100 -> 2.94523468 | V72: =(IF(AND($R72>'Import avoidance model - RR'!$I$15,'Import avoidance model - RR'!$J$15),'Import avoidance model - RR'!$H$15,'Import avoidance model - RR'!$H$16))*K124/100 -> 1.110742342 | W72: =(IF(AND($R72>'Import avoidance model - RR'!$I$15,'Import avoidance model - RR'!$J$15),'Import avoidance model - RR'!$H$15,'Import avoidance model - RR'!$H$16))*D176/100 -> 2.94523468 | X72: =(IF(AND($R72>'Import avoidance model - RR'!$I$15,'Import avoidance model - RR'!$J$15),'Import avoidance model - RR'!$H$15,'Import avoidance model - RR'!$H$16))*K176/100 -> 1.110742342 | Y72: =(IF(AND($R72>'Import avoidance model - RR'!$I$15,'Import avoidance model - RR'!$J$15),'Import avoidance model - RR'!$H$15,'Import avoidance model - RR'!$H$16))*D20/100 -> 2.94523468 | Z72: =(IF(AND($R72>'Import avoidance model - RR'!$I$15,'Import avoidance model - RR'!$J$15),'Import avoidance model - RR'!$H$15,'Import avoidance model - RR'!$H$16))*K20/100 -> 1.110742342 | AA72: =IF(C72<LOGIC!D72,(LOGIC!D72-LOGIC!C72)*IF(AND(LOGIC!B72>'Import avoidance model - RR'!$I$15,LOGIC!B72<'Import avoidance model - RR'!$J$15),'Import avoidance model - RR'!$H$15,'Import avoidance model - RR'!$H$16),0)/100 -> 0.7691001611 | AB72: =IF('Import avoidance model - RR'!$H$17="N",0,IF(D72<=C72,D72,C72)*'Import avoidance model - RR'!$H$18/100) -> 2.720168148 | AC72: =IF(J72<LOGIC!K72,(LOGIC!K72-LOGIC!J72)*IF(AND(LOGIC!B72>'Import avoidance model - RR'!$I$15,LOGIC!B72<'Import avoidance model - RR'!$J$15),'Import avoidance model - RR'!$H$15,'Import avoidance model - RR'!$H$16),0)/100 -> 0 | AD72: =IF('Import avoidance model - RR'!$H$17="N",0,IF(K72<=C72,K72,C72)*'Import avoidance model - RR'!$H$18/100) -> 1.388427928 | AE72: =IF(C124<LOGIC!D124,(LOGIC!D124-LOGIC!C124)*IF(AND(LOGIC!B124>'Import avoidance model - RR'!$I$15,LOGIC!B124<'Import avoidance model - RR'!$J$15),'Import avoidance model - RR'!$H$15,'Import avoidance model - RR'!$H$16),0)/100 -> 1.364732064 | AF72: =IF('Import avoidance model - RR'!$H$17="N",0,IF(D124<=C124,D124,C124)*'Import avoidance model - RR'!$H$18/100) -> 1.975628269 | AG72: =IF(J124<LOGIC!K124,(LOGIC!K124-LOGIC!J124)*IF(AND(LOGIC!B124>'Import avoidance model - RR'!$I$15,LOGIC!B124<'Import avoidance model - RR'!$J$15),'Import avoidance model - RR'!$H$15,'Import avoidance model - RR'!$H$16),0)/100 -> 0 | AH72: =IF('Import avoidance model - RR'!$H$17="N",0,IF(K124<=C124,K124,C124)*'Import avoidance model - RR'!$H$18/100) -> 1.388427928 | AI72: =IF(C176<LOGIC!D176,(LOGIC!D176-LOGIC!C176)*IF(AND(LOGIC!B176>'Import avoidance model - RR'!$I$15,LOGIC!B176<'Import avoidance model - RR'!$J$15),'Import avoidance model - RR'!$H$15,'Import avoidance model - RR'!$H$16),0)/100 -> 2.94523468 | AJ72: =IF('Import avoidance model - RR'!$H$17="N",0,IF(D176<=C176,D176,C176)*'Import avoidance model - RR'!$H$18/100) -> 0 | AK72: =IF(J176<LOGIC!K176,(LOGIC!K176-LOGIC!J176)*IF(AND(LOGIC!B176>'Import avoidance model - RR'!$I$15,LOGIC!B176<'Import avoidance model - RR'!$J$15),'Import avoidance model - RR'!$H$15,'Import avoidance model - RR'!$H$16),0)/100 -> 1.110742342 | AL72: =IF('Import avoidance model - RR'!$H$17="N",0,IF(K176<=C176,K176,C176)*'Import avoidance model - RR'!$H$18/100) -> 0 | AM72: =IF(C20<LOGIC!D20,(LOGIC!D20-LOGIC!C20)*IF(AND(LOGIC!B20>'Import avoidance model - RR'!$I$15,LOGIC!B20<'Import avoidance model - RR'!$J$15),'Import avoidance model - RR'!$H$15,'Import avoidance model - RR'!$H$16),0)/100 -> 2.94523468 | AN72: =IF('Import avoidance model - RR'!$H$17="N",0,IF(D20<=C20,D20,C20)*'Import avoidance model - RR'!$H$18/100) -> 0 | AO72: =IF(J20<LOGIC!K20,(LOGIC!K20-LOGIC!J20)*IF(AND(LOGIC!B176>'Import avoidance model - RR'!$I$15,LOGIC!B176<'Import avoidance model - RR'!$J$15),'Import avoidance model - RR'!$H$15,'Import avoidance model - RR'!$H$16),0)/100 -> 1.110742342 | AP72: =IF('Import avoidance model - RR'!$H$17="N",0,IF(K20<=C20,K20,C20)*'Import avoidance model - RR'!$H$18/100) -> 0 | AQ72: =AA72-(IF(AND($R72>'Import avoidance model - RR'!$I$15,$R72<'Import avoidance model - RR'!$J$15),'Import avoidance model - RR'!$H$15*LOGIC!G72,LOGIC!G72*'Import avoidance model - RR'!$H$16)/100) -> 0.7691001611 | AR72: 2.720168148 | AS72: =IF('Import avoidance model - RR'!H35="N",0,LOGIC!G72*'Import avoidance model - RR'!$H$20)/100 -> 0 | AT72: =AC72-(IF(AND($R72>'Import avoidance model - RR'!$I$15,$R72<'Import avoidance model - RR'!$J$15),'Import avoidance model - RR'!$H$15*LOGIC!N72,LOGIC!N72*'Import avoidance model - RR'!$H$16)/100) -> 0 | AU72: 1.388427928 | AV72: =IF('Import avoidance model - RR'!H35="N",0,LOGIC!N72*'Import avoidance model - RR'!$H$20)/100 -> 0 | AW72: =AE72-(IF(AND($R72>'Import avoidance model - RR'!$I$15,$R72<'Import avoidance model - RR'!$J$15),'Import avoidance model - RR'!$H$15*LOGIC!G124,LOGIC!G124*'Import avoidance model - RR'!$H$16)/100) -> 1.364732064 | AX72: 1.975628269 | AY72: =IF('Import avoidance model - RR'!H35="N",0,LOGIC!G124*'Import avoidance model - RR'!$H$20)/100 -> 0 | AZ72: =AG72-(IF(AND($R72>'Import avoidance model - RR'!$I$15,$R72<'Import avoidance model - RR'!$J$15),'Import avoidance model - RR'!$H$15*LOGIC!N124,LOGIC!N124*'Import avoidance model - RR'!$H$16)/100) -> 0 | BA72: 1.388427928 | BB72: =IF('Import avoidance model - RR'!H35="N",0,LOGIC!N124*'Import avoidance model - RR'!$H$20)/100 -> 0 | BC72: =AI72-(IF(AND($R72>'Import avoidance model - RR'!$I$15,$R72<'Import avoidance model - RR'!$J$15),'Import avoidance model - RR'!$H$15*LOGIC!G176,LOGIC!G176*'Import avoidance model - RR'!$H$16)/100) -> 2.94523468 | BD72: 0 | BE72: =IF('Import avoidance model - RR'!H35="N",0,LOGIC!G176*'Import avoidance model - RR'!$H$20)/100 -> 0 | BF72: =AK72-(IF(AND($R72>'Import avoidance model - RR'!$I$15,$R72<'Import avoidance model - RR'!$J$15),'Import avoidance model - RR'!$H$15*LOGIC!N176,LOGIC!N176*'Import avoidance model - RR'!$H$16)/100) -> 1.110742342 | BG72: 0 | BH72: =IF('Import avoidance model - RR'!H35="N",0,LOGIC!N176*'Import avoidance model - RR'!$H$20)/100 -> 0 | BI72: =AM72-(IF(AND($R72>'Import avoidance model - RR'!$I$15,$R72<'Import avoidance model - RR'!$J$15),'Import avoidance model - RR'!$H$15*LOGIC!G20,LOGIC!G20*'Import avoidance model - RR'!$H$16)/100) -> 2.94523468 | BJ72: 0 | BK72: =IF('Import avoidance model - RR'!H35="N",0,LOGIC!G20*'Import avoidance model - RR'!$H$20)/100 -> 0 | BL72: =AO72-(IF(AND($R72>'Import avoidance model - RR'!$I$15,$R72<'Import avoidance model - RR'!$J$15),'Import avoidance model - RR'!$H$15*LOGIC!N20,LOGIC!N20*'Import avoidance model - RR'!$H$16)/100) -> 1.110742342 | BM72: 0 | BN72: =IF('Import avoidance model - RR'!H35="N",0,LOGIC!N20*'Import avoidance model - RR'!$H$20)/100 -> 0
B73: 08:00:00 | C73: ='PV data'!J21 -> 29.03958909 | D73: 53.26043951 | E73: 0 | F73: 0 | G73: 0 | H73: 0 | I73: =IF(AND(I72+H73<=$A$5,I72+H73>$A$3),LOGIC!I72+LOGIC!H73,IF(I72+H73>$A$5,$A$5,$A$3)) -> 12 | J73: 29.03958909 | K73: 18.72627129 | L73: 10.3133178 | M73: 10.3133178 | N73: 0 | O73: 10.3133178 | P73: =IF(AND(P72+O73<=$A$5,P72+O73>$A$3),LOGIC!P72+LOGIC!O73,IF(P72+O73>$A$5,$A$5,$A$3)) -> 43.91576268 | R73: 08:00:00 | S73: =(IF(AND($R73>'Import avoidance model - RR'!$I$15,'Import avoidance model - RR'!$J$15),'Import avoidance model - RR'!$H$15,'Import avoidance model - RR'!$H$16))*D73/100 -> 5.326043951 | T73: =(IF(AND($R73>'Import avoidance model - RR'!$I$15,'Import avoidance model - RR'!$J$15),'Import avoidance model - RR'!$H$15,'Import avoidance model - RR'!$H$16))*K73/100 -> 1.872627129 | U73: =(IF(AND($R73>'Import avoidance model - RR'!$I$15,'Import avoidance model - RR'!$J$15),'Import avoidance model - RR'!$H$15,'Import avoidance model - RR'!$H$16))*D125/100 -> 5.326043951 | V73: =(IF(AND($R73>'Import avoidance model - RR'!$I$15,'Import avoidance model - RR'!$J$15),'Import avoidance model - RR'!$H$15,'Import avoidance model - RR'!$H$16))*K125/100 -> 1.872627129 | W73: =(IF(AND($R73>'Import avoidance model - RR'!$I$15,'Import avoidance model - RR'!$J$15),'Import avoidance model - RR'!$H$15,'Import avoidance model - RR'!$H$16))*D177/100 -> 5.326043951 | X73: =(IF(AND($R73>'Import avoidance model - RR'!$I$15,'Import avoidance model - RR'!$J$15),'Import avoidance model - RR'!$H$15,'Import avoidance model - RR'!$H$16))*K177/100 -> 1.872627129 | Y73: =(IF(AND($R73>'Import avoidance model - RR'!$I$15,'Import avoidance model - RR'!$J$15),'Import avoidance model - RR'!$H$15,'Import avoidance model - RR'!$H$16))*D21/100 -> 5.326043951 | Z73: =(IF(AND($R73>'Import avoidance model - RR'!$I$15,'Import avoidance model - RR'!$J$15),'Import avoidance model - RR'!$H$15,'Import avoidance model - RR'!$H$16))*K21/100 -> 1.872627129 | AA73: =IF(C73<LOGIC!D73,(LOGIC!D73-LOGIC!C73)*IF(AND(LOGIC!B73>'Import avoidance model - RR'!$I$15,LOGIC!B73<'Import avoidance model - RR'!$J$15),'Import avoidance model - RR'!$H$15,'Import avoidance model - RR'!$H$16),0)/100 -> 2.422085042 | AB73: =IF('Import avoidance model - RR'!$H$17="N",0,IF(D73<=C73,D73,C73)*'Import avoidance model - RR'!$H$18/100) -> 2.177969182 | AC73: =IF(J73<LOGIC!K73,(LOGIC!K73-LOGIC!J73)*IF(AND(LOGIC!B73>'Import avoidance model - RR'!$I$15,LOGIC!B73<'Import avoidance model - RR'!$J$15),'Import avoidance model - RR'!$H$15,'Import avoidance model - RR'!$H$16),0)/100 -> 0 | AD73: =IF('Import avoidance model - RR'!$H$17="N",0,IF(K73<=C73,K73,C73)*'Import avoidance model - RR'!$H$18/100) -> 1.404470347 | AE73: =IF(C125<LOGIC!D125,(LOGIC!D125-LOGIC!C125)*IF(AND(LOGIC!B125>'Import avoidance model - RR'!$I$15,LOGIC!B125<'Import avoidance model - RR'!$J$15),'Import avoidance model - RR'!$H$15,'Import avoidance model - RR'!$H$16),0)/100 -> 0 | AF73: =IF('Import avoidance model - RR'!$H$17="N",0,IF(D125<=C125,D125,C125)*'Import avoidance model - RR'!$H$18/100) -> 3.994532964 | AG73: =IF(J125<LOGIC!K125,(LOGIC!K125-LOGIC!J125)*IF(AND(LOGIC!B125>'Import avoidance model - RR'!$I$15,LOGIC!B125<'Import avoidance model - RR'!$J$15),'Import avoidance model - RR'!$H$15,'Import avoidance model - RR'!$H$16),0)/100 -> 0 | AH73: =IF('Import avoidance model - RR'!$H$17="N",0,IF(K125<=C125,K125,C125)*'Import avoidance model - RR'!$H$18/100) -> 1.404470347 | AI73: =IF(C177<LOGIC!D177,(LOGIC!D177-LOGIC!C177)*IF(AND(LOGIC!B177>'Import avoidance model - RR'!$I$15,LOGIC!B177<'Import avoidance model - RR'!$J$15),'Import avoidance model - RR'!$H$15,'Import avoidance model - RR'!$H$16),0)/100 -> 3.488222082 | AJ73: =IF('Import avoidance model - RR'!$H$17="N",0,IF(D177<=C177,D177,C177)*'Import avoidance model - RR'!$H$18/100) -> 1.378366402 | AK73: =IF(J177<LOGIC!K177,(LOGIC!K177-LOGIC!J177)*IF(AND(LOGIC!B177>'Import avoidance model - RR'!$I$15,LOGIC!B177<'Import avoidance model - RR'!$J$15),'Import avoidance model - RR'!$H$15,'Import avoidance model - RR'!$H$16),0)/100 -> 0.03480525945 | AL73: =IF('Import avoidance model - RR'!$H$17="N",0,IF(K177<=C177,K177,C177)*'Import avoidance model - RR'!$H$18/100) -> 1.378366402 | AM73: =IF(C21<LOGIC!D21,(LOGIC!D21-LOGIC!C21)*IF(AND(LOGIC!B21>'Import avoidance model - RR'!$I$15,LOGIC!B21<'Import avoidance model - RR'!$J$15),'Import avoidance model - RR'!$H$15,'Import avoidance model - RR'!$H$16),0)/100 -> 5.326043951 | AN73: =IF('Import avoidance model - RR'!$H$17="N",0,IF(D21<=C21,D21,C21)*'Import avoidance model - RR'!$H$18/100) -> 0 | AO73: =IF(J21<LOGIC!K21,(LOGIC!K21-LOGIC!J21)*IF(AND(LOGIC!B177>'Import avoidance model - RR'!$I$15,LOGIC!B177<'Import avoidance model - RR'!$J$15),'Import avoidance model - RR'!$H$15,'Import avoidance model - RR'!$H$16),0)/100 -> 1.872627129 | AP73: =IF('Import avoidance model - RR'!$H$17="N",0,IF(K21<=C21,K21,C21)*'Import avoidance model - RR'!$H$18/100) -> 0 | AQ73: =AA73-(IF(AND($R73>'Import avoidance model - RR'!$I$15,$R73<'Import avoidance model - RR'!$J$15),'Import avoidance model - RR'!$H$15*LOGIC!G73,LOGIC!G73*'Import avoidance model - RR'!$H$16)/100) -> 2.422085042 | AR73: 2.177969182 | AS73: =IF('Import avoidance model - RR'!H36="N",0,LOGIC!G73*'Import avoidance model - RR'!$H$20)/100 -> 0 | AT73: =AC73-(IF(AND($R73>'Import avoidance model - RR'!$I$15,$R73<'Import avoidance model - RR'!$J$15),'Import avoidance model - RR'!$H$15*LOGIC!N73,LOGIC!N73*'Import avoidance model - RR'!$H$16)/100) -> 0 | AU73: 1.404470347 | AV73: =IF('Import avoidance model - RR'!H36="N",0,LOGIC!N73*'Import avoidance model - RR'!$H$20)/100 -> 0 | AW73: =AE73-(IF(AND($R73>'Import avoidance model - RR'!$I$15,$R73<'Import avoidance model - RR'!$J$15),'Import avoidance model - RR'!$H$15*LOGIC!G125,LOGIC!G125*'Import avoidance model - RR'!$H$16)/100) -> 0 | AX73: 3.994532964 | AY73: =IF('Import avoidance model - RR'!H36="N",0,LOGIC!G125*'Import avoidance model - RR'!$H$20)/100 -> 0 | AZ73: =AG73-(IF(AND($R73>'Import avoidance model - RR'!$I$15,$R73<'Import avoidance model - RR'!$J$15),'Import avoidance model - RR'!$H$15*LOGIC!N125,LOGIC!N125*'Import avoidance model - RR'!$H$16)/100) -> 0 | BA73: 1.404470347 | BB73: =IF('Import avoidance model - RR'!H36="N",0,LOGIC!N125*'Import avoidance model - RR'!$H$20)/100 -> 0 | BC73: =AI73-(IF(AND($R73>'Import avoidance model - RR'!$I$15,$R73<'Import avoidance model - RR'!$J$15),'Import avoidance model - RR'!$H$15*LOGIC!G177,LOGIC!G177*'Import avoidance model - RR'!$H$16)/100) -> 3.488222082 | BD73: 1.378366402 | BE73: =IF('Import avoidance model - RR'!H36="N",0,LOGIC!G177*'Import avoidance model - RR'!$H$20)/100 -> 0 | BF73: =AK73-(IF(AND($R73>'Import avoidance model - RR'!$I$15,$R73<'Import avoidance model - RR'!$J$15),'Import avoidance model - RR'!$H$15*LOGIC!N177,LOGIC!N177*'Import avoidance model - RR'!$H$16)/100) -> 0.03480525945 | BG73: 1.378366402 | BH73: =IF('Import avoidance model - RR'!H36="N",0,LOGIC!N177*'Import avoidance model - RR'!$H$20)/100 -> 0 | BI73: =AM73-(IF(AND($R73>'Import avoidance model - RR'!$I$15,$R73<'Import avoidance model - RR'!$J$15),'Import avoidance model - RR'!$H$15*LOGIC!G21,LOGIC!G21*'Import avoidance model - RR'!$H$16)/100) -> 5.326043951 | BJ73: 0 | BK73: =IF('Import avoidance model - RR'!H36="N",0,LOGIC!G21*'Import avoidance model - RR'!$H$20)/100 -> 0 | BL73: =AO73-(IF(AND($R73>'Import avoidance model - RR'!$I$15,$R73<'Import avoidance model - RR'!$J$15),'Import avoidance model - RR'!$H$15*LOGIC!N21,LOGIC!N21*'Import avoidance model - RR'!$H$16)/100) -> 1.872627129 | BM73: 0 | BN73: =IF('Import avoidance model - RR'!H36="N",0,LOGIC!N21*'Import avoidance model - RR'!$H$20)/100 -> 0
B74: 08:30:00 | C74: ='PV data'!J22 -> 43.84558982 | D74: 55.51443236 | E74: 0 | F74: 0 | G74: 0 | H74: 0 | I74: =IF(AND(I73+H74<=$A$5,I73+H74>$A$3),LOGIC!I73+LOGIC!H74,IF(I73+H74>$A$5,$A$5,$A$3)) -> 12 | J74: 43.84558982 | K74: 19.46460559 | L74: 24.38098423 | M74: 15 | N74: 0 | O74: 15 | P74: =IF(AND(P73+O74<=$A$5,P73+O74>$A$3),LOGIC!P73+LOGIC!O74,IF(P73+O74>$A$5,$A$5,$A$3)) -> 58.91576268 | R74: 08:30:00 | S74: =(IF(AND($R74>'Import avoidance model - RR'!$I$15,'Import avoidance model - RR'!$J$15),'Import avoidance model - RR'!$H$15,'Import avoidance model - RR'!$H$16))*D74/100 -> 5.551443236 | T74: =(IF(AND($R74>'Import avoidance model - RR'!$I$15,'Import avoidance model - RR'!$J$15),'Import avoidance model - RR'!$H$15,'Import avoidance model - RR'!$H$16))*K74/100 -> 1.946460559 | U74: =(IF(AND($R74>'Import avoidance model - RR'!$I$15,'Import avoidance model - RR'!$J$15),'Import avoidance model - RR'!$H$15,'Import avoidance model - RR'!$H$16))*D126/100 -> 5.551443236 | V74: =(IF(AND($R74>'Import avoidance model - RR'!$I$15,'Import avoidance model - RR'!$J$15),'Import avoidance model - RR'!$H$15,'Import avoidance model - RR'!$H$16))*K126/100 -> 1.946460559 | W74: =(IF(AND($R74>'Import avoidance model - RR'!$I$15,'Import avoidance model - RR'!$J$15),'Import avoidance model - RR'!$H$15,'Import avoidance model - RR'!$H$16))*D178/100 -> 5.551443236 | X74: =(IF(AND($R74>'Import avoidance model - RR'!$I$15,'Import avoidance model - RR'!$J$15),'Import avoidance model - RR'!$H$15,'Import avoidance model - RR'!$H$16))*K178/100 -> 1.946460559 | Y74: =(IF(AND($R74>'Import avoidance model - RR'!$I$15,'Import avoidance model - RR'!$J$15),'Import avoidance model - RR'!$H$15,'Import avoidance model - RR'!$H$16))*D22/100 -> 5.551443236 | Z74: =(IF(AND($R74>'Import avoidance model - RR'!$I$15,'Import avoidance model - RR'!$J$15),'Import avoidance model - RR'!$H$15,'Import avoidance model - RR'!$H$16))*K22/100 -> 1.946460559 | AA74: =IF(C74<LOGIC!D74,(LOGIC!D74-LOGIC!C74)*IF(AND(LOGIC!B74>'Import avoidance model - RR'!$I$15,LOGIC!B74<'Import avoidance model - RR'!$J$15),'Import avoidance model - RR'!$H$15,'Import avoidance model - RR'!$H$16),0)/100 -> 1.166884253 | AB74: =IF('Import avoidance model - RR'!$H$17="N",0,IF(D74<=C74,D74,C74)*'Import avoidance model - RR'!$H$18/100) -> 3.288419237 | AC74: =IF(J74<LOGIC!K74,(LOGIC!K74-LOGIC!J74)*IF(AND(LOGIC!B74>'Import avoidance model - RR'!$I$15,LOGIC!B74<'Import avoidance model - RR'!$J$15),'Import avoidance model - RR'!$H$15,'Import avoidance model - RR'!$H$16),0)/100 -> 0 | AD74: =IF('Import avoidance model - RR'!$H$17="N",0,IF(K74<=C74,K74,C74)*'Import avoidance model - RR'!$H$18/100) -> 1.459845419 | AE74: =IF(C126<LOGIC!D126,(LOGIC!D126-LOGIC!C126)*IF(AND(LOGIC!B126>'Import avoidance model - RR'!$I$15,LOGIC!B126<'Import avoidance model - RR'!$J$15),'Import avoidance model - RR'!$H$15,'Import avoidance model - RR'!$H$16),0)/100 -> 0 | AF74: =IF('Import avoidance model - RR'!$H$17="N",0,IF(D126<=C126,D126,C126)*'Import avoidance model - RR'!$H$18/100) -> 4.163582427 | AG74: =IF(J126<LOGIC!K126,(LOGIC!K126-LOGIC!J126)*IF(AND(LOGIC!B126>'Import avoidance model - RR'!$I$15,LOGIC!B126<'Import avoidance model - RR'!$J$15),'Import avoidance model - RR'!$H$15,'Import avoidance model - RR'!$H$16),0)/100 -> 0 | AH74: =IF('Import avoidance model - RR'!$H$17="N",0,IF(K126<=C126,K126,C126)*'Import avoidance model - RR'!$H$18/100) -> 1.459845419 | AI74: =IF(C178<LOGIC!D178,(LOGIC!D178-LOGIC!C178)*IF(AND(LOGIC!B178>'Import avoidance model - RR'!$I$15,LOGIC!B178<'Import avoidance model - RR'!$J$15),'Import avoidance model - RR'!$H$15,'Import avoidance model - RR'!$H$16),0)/100 -> 3.183495617 | AJ74: =IF('Import avoidance model - RR'!$H$17="N",0,IF(D178<=C178,D178,C178)*'Import avoidance model - RR'!$H$18/100) -> 1.775960714 | AK74: =IF(J178<LOGIC!K178,(LOGIC!K178-LOGIC!J178)*IF(AND(LOGIC!B178>'Import avoidance model - RR'!$I$15,LOGIC!B178<'Import avoidance model - RR'!$J$15),'Import avoidance model - RR'!$H$15,'Import avoidance model - RR'!$H$16),0)/100 -> 0 | AL74: =IF('Import avoidance model - RR'!$H$17="N",0,IF(K178<=C178,K178,C178)*'Import avoidance model - RR'!$H$18/100) -> 1.459845419 | AM74: =IF(C22<LOGIC!D22,(LOGIC!D22-LOGIC!C22)*IF(AND(LOGIC!B22>'Import avoidance model - RR'!$I$15,LOGIC!B22<'Import avoidance model - RR'!$J$15),'Import avoidance model - RR'!$H$15,'Import avoidance model - RR'!$H$16),0)/100 -> 4.861053279 | AN74: =IF('Import avoidance model - RR'!$H$17="N",0,IF(D22<=C22,D22,C22)*'Import avoidance model - RR'!$H$18/100) -> 0.5177924678 | AO74: =IF(J22<LOGIC!K22,(LOGIC!K22-LOGIC!J22)*IF(AND(LOGIC!B178>'Import avoidance model - RR'!$I$15,LOGIC!B178<'Import avoidance model - RR'!$J$15),'Import avoidance model - RR'!$H$15,'Import avoidance model - RR'!$H$16),0)/100 -> 1.256070602 | AP74: =IF('Import avoidance model - RR'!$H$17="N",0,IF(K22<=C22,K22,C22)*'Import avoidance model - RR'!$H$18/100) -> 0.5177924678 | AQ74: =AA74-(IF(AND($R74>'Import avoidance model - RR'!$I$15,$R74<'Import avoidance model - RR'!$J$15),'Import avoidance model - RR'!$H$15*LOGIC!G74,LOGIC!G74*'Import avoidance model - RR'!$H$16)/100) -> 1.166884253 | AR74: 3.288419237 | AS74: =IF('Import avoidance model - RR'!H37="N",0,LOGIC!G74*'Import avoidance model - RR'!$H$20)/100 -> 0 | AT74: =AC74-(IF(AND($R74>'Import avoidance model - RR'!$I$15,$R74<'Import avoidance model - RR'!$J$15),'Import avoidance model - RR'!$H$15*LOGIC!N74,LOGIC!N74*'Import avoidance model - RR'!$H$16)/100) -> 0 | AU74: 1.459845419 | AV74: =IF('Import avoidance model - RR'!H37="N",0,LOGIC!N74*'Import avoidance model - RR'!$H$20)/100 -> 0 | AW74: =AE74-(IF(AND($R74>'Import avoidance model - RR'!$I$15,$R74<'Import avoidance model - RR'!$J$15),'Import avoidance model - RR'!$H$15*LOGIC!G126,LOGIC!G126*'Import avoidance model - RR'!$H$16)/100) -> 0 | AX74: 4.163582427 | AY74: =IF('Import avoidance model - RR'!H37="N",0,LOGIC!G126*'Import avoidance model - RR'!$H$20)/100 -> 0 | AZ74: =AG74-(IF(AND($R74>'Import avoidance model - RR'!$I$15,$R74<'Import avoidance model - RR'!$J$15),'Import avoidance model - RR'!$H$15*LOGIC!N126,LOGIC!N126*'Import avoidance model - RR'!$H$16)/100) -> 0 | BA74: 1.459845419 | BB74: =IF('Import avoidance model - RR'!H37="N",0,LOGIC!N126*'Import avoidance model - RR'!$H$20)/100 -> 0 | BC74: =AI74-(IF(AND($R74>'Import avoidance model - RR'!$I$15,$R74<'Import avoidance model - RR'!$J$15),'Import avoidance model - RR'!$H$15*LOGIC!G178,LOGIC!G178*'Import avoidance model - RR'!$H$16)/100) -> 3.183495617 | BD74: 1.775960714 | BE74: =IF('Import avoidance model - RR'!H37="N",0,LOGIC!G178*'Import avoidance model - RR'!$H$20)/100 -> 0 | BF74: =AK74-(IF(AND($R74>'Import avoidance model - RR'!$I$15,$R74<'Import avoidance model - RR'!$J$15),'Import avoidance model - RR'!$H$15*LOGIC!N178,LOGIC!N178*'Import avoidance model - RR'!$H$16)/100) -> 0 | BG74: 1.459845419 | BH74: =IF('Import avoidance model - RR'!H37="N",0,LOGIC!N178*'Import avoidance model - RR'!$H$20)/100 -> 0 | BI74: =AM74-(IF(AND($R74>'Import avoidance model - RR'!$I$15,$R74<'Import avoidance model - RR'!$J$15),'Import avoidance model - RR'!$H$15*LOGIC!G22,LOGIC!G22*'Import avoidance model - RR'!$H$16)/100) -> 4.861053279 | BJ74: 0.5177924678 | BK74: =IF('Import avoidance model - RR'!H37="N",0,LOGIC!G22*'Import avoidance model - RR'!$H$20)/100 -> 0 | BL74: =AO74-(IF(AND($R74>'Import avoidance model - RR'!$I$15,$R74<'Import avoidance model - RR'!$J$15),'Import avoidance model - RR'!$H$15*LOGIC!N22,LOGIC!N22*'Import avoidance model - RR'!$H$16)/100) -> 1.256070602 | BM74: 0.5177924678 | BN74: =IF('Import avoidance model - RR'!H37="N",0,LOGIC!N22*'Import avoidance model - RR'!$H$20)/100 -> 0
B75: 09:00:00 | C75: ='PV data'!J23 -> 35.41460472 | D75: 56.74712194 | E75: 0 | F75: 0 | G75: 0 | H75: 0 | I75: =IF(AND(I74+H75<=$A$5,I74+H75>$A$3),LOGIC!I74+LOGIC!H75,IF(I74+H75>$A$5,$A$5,$A$3)) -> 12 | J75: 35.41460472 | K75: 20.12339071 | L75: 15.29121401 | M75: 15 | N75: 0 | O75: 15 | P75: =IF(AND(P74+O75<=$A$5,P74+O75>$A$3),LOGIC!P74+LOGIC!O75,IF(P74+O75>$A$5,$A$5,$A$3)) -> 60 | R75: 09:00:00 | S75: =(IF(AND($R75>'Import avoidance model - RR'!$I$15,'Import avoidance model - RR'!$J$15),'Import avoidance model - RR'!$H$15,'Import avoidance model - RR'!$H$16))*D75/100 -> 5.674712194 | T75: =(IF(AND($R75>'Import avoidance model - RR'!$I$15,'Import avoidance model - RR'!$J$15),'Import avoidance model - RR'!$H$15,'Import avoidance model - RR'!$H$16))*K75/100 -> 2.012339071 | U75: =(IF(AND($R75>'Import avoidance model - RR'!$I$15,'Import avoidance model - RR'!$J$15),'Import avoidance model - RR'!$H$15,'Import avoidance model - RR'!$H$16))*D127/100 -> 5.674712194 | V75: =(IF(AND($R75>'Import avoidance model - RR'!$I$15,'Import avoidance model - RR'!$J$15),'Import avoidance model - RR'!$H$15,'Import avoidance model - RR'!$H$16))*K127/100 -> 2.012339071 | W75: =(IF(AND($R75>'Import avoidance model - RR'!$I$15,'Import avoidance model - RR'!$J$15),'Import avoidance model - RR'!$H$15,'Import avoidance model - RR'!$H$16))*D179/100 -> 5.674712194 | X75: =(IF(AND($R75>'Import avoidance model - RR'!$I$15,'Import avoidance model - RR'!$J$15),'Import avoidance model - RR'!$H$15,'Import avoidance model - RR'!$H$16))*K179/100 -> 2.012339071 | Y75: =(IF(AND($R75>'Import avoidance model - RR'!$I$15,'Import avoidance model - RR'!$J$15),'Import avoidance model - RR'!$H$15,'Import avoidance model - RR'!$H$16))*D23/100 -> 5.674712194 | Z75: =(IF(AND($R75>'Import avoidance model - RR'!$I$15,'Import avoidance model - RR'!$J$15),'Import avoidance model - RR'!$H$15,'Import avoidance model - RR'!$H$16))*K23/100 -> 2.012339071 | AA75: =IF(C75<LOGIC!D75,(LOGIC!D75-LOGIC!C75)*IF(AND(LOGIC!B75>'Import avoidance model - RR'!$I$15,LOGIC!B75<'Import avoidance model - RR'!$J$15),'Import avoidance model - RR'!$H$15,'Import avoidance model - RR'!$H$16),0)/100 -> 2.133251723 | AB75: =IF('Import avoidance model - RR'!$H$17="N",0,IF(D75<=C75,D75,C75)*'Import avoidance model - RR'!$H$18/100) -> 2.656095354 | AC75: =IF(J75<LOGIC!K75,(LOGIC!K75-LOGIC!J75)*IF(AND(LOGIC!B75>'Import avoidance model - RR'!$I$15,LOGIC!B75<'Import avoidance model - RR'!$J$15),'Import avoidance model - RR'!$H$15,'Import avoidance model - RR'!$H$16),0)/100 -> 0 | AD75: =IF('Import avoidance model - RR'!$H$17="N",0,IF(K75<=C75,K75,C75)*'Import avoidance model - RR'!$H$18/100) -> 1.509254303 | AE75: =IF(C127<LOGIC!D127,(LOGIC!D127-LOGIC!C127)*IF(AND(LOGIC!B127>'Import avoidance model - RR'!$I$15,LOGIC!B127<'Import avoidance model - RR'!$J$15),'Import avoidance model - RR'!$H$15,'Import avoidance model - RR'!$H$16),0)/100 -> 0 | AF75: =IF('Import avoidance model - RR'!$H$17="N",0,IF(D127<=C127,D127,C127)*'Import avoidance model - RR'!$H$18/100) -> 4.256034146 | AG75: =IF(J127<LOGIC!K127,(LOGIC!K127-LOGIC!J127)*IF(AND(LOGIC!B127>'Import avoidance model - RR'!$I$15,LOGIC!B127<'Import avoidance model - RR'!$J$15),'Import avoidance model - RR'!$H$15,'Import avoidance model - RR'!$H$16),0)/100 -> 0 | AH75: =IF('Import avoidance model - RR'!$H$17="N",0,IF(K127<=C127,K127,C127)*'Import avoidance model - RR'!$H$18/100) -> 1.509254303 | AI75: =IF(C179<LOGIC!D179,(LOGIC!D179-LOGIC!C179)*IF(AND(LOGIC!B179>'Import avoidance model - RR'!$I$15,LOGIC!B179<'Import avoidance model - RR'!$J$15),'Import avoidance model - RR'!$H$15,'Import avoidance model - RR'!$H$16),0)/100 -> 3.144889803 | AJ75: =IF('Import avoidance model - RR'!$H$17="N",0,IF(D179<=C179,D179,C179)*'Import avoidance model - RR'!$H$18/100) -> 1.897366793 | AK75: =IF(J179<LOGIC!K179,(LOGIC!K179-LOGIC!J179)*IF(AND(LOGIC!B179>'Import avoidance model - RR'!$I$15,LOGIC!B179<'Import avoidance model - RR'!$J$15),'Import avoidance model - RR'!$H$15,'Import avoidance model - RR'!$H$16),0)/100 -> 0 | AL75: =IF('Import avoidance model - RR'!$H$17="N",0,IF(K179<=C179,K179,C179)*'Import avoidance model - RR'!$H$18/100) -> 1.509254303 | AM75: =IF(C23<LOGIC!D23,(LOGIC!D23-LOGIC!C23)*IF(AND(LOGIC!B23>'Import avoidance model - RR'!$I$15,LOGIC!B23<'Import avoidance model - RR'!$J$15),'Import avoidance model - RR'!$H$15,'Import avoidance model - RR'!$H$16),0)/100 -> 3.953145331 | AN75: =IF('Import avoidance model - RR'!$H$17="N",0,IF(D23<=C23,D23,C23)*'Import avoidance model - RR'!$H$18/100) -> 1.291175147 | AO75: =IF(J23<LOGIC!K23,(LOGIC!K23-LOGIC!J23)*IF(AND(LOGIC!B179>'Import avoidance model - RR'!$I$15,LOGIC!B179<'Import avoidance model - RR'!$J$15),'Import avoidance model - RR'!$H$15,'Import avoidance model - RR'!$H$16),0)/100 -> 0.2907722074 | AP75: =IF('Import avoidance model - RR'!$H$17="N",0,IF(K23<=C23,K23,C23)*'Import avoidance model - RR'!$H$18/100) -> 1.291175147 | AQ75: =AA75-(IF(AND($R75>'Import avoidance model - RR'!$I$15,$R75<'Import avoidance model - RR'!$J$15),'Import avoidance model - RR'!$H$15*LOGIC!G75,LOGIC!G75*'Import avoidance model - RR'!$H$16)/100) -> 2.133251723 | AR75: 2.656095354 | AS75: =IF('Import avoidance model - RR'!H38="N",0,LOGIC!G75*'Import avoidance model - RR'!$H$20)/100 -> 0 | AT75: =AC75-(IF(AND($R75>'Import avoidance model - RR'!$I$15,$R75<'Import avoidance model - RR'!$J$15),'Import avoidance model - RR'!$H$15*LOGIC!N75,LOGIC!N75*'Import avoidance model - RR'!$H$16)/100) -> 0 | AU75: 1.509254303 | AV75: =IF('Import avoidance model - RR'!H38="N",0,LOGIC!N75*'Import avoidance model - RR'!$H$20)/100 -> 0 | AW75: =AE75-(IF(AND($R75>'Import avoidance model - RR'!$I$15,$R75<'Import avoidance model - RR'!$J$15),'Import avoidance model - RR'!$H$15*LOGIC!G127,LOGIC!G127*'Import avoidance model - RR'!$H$16)/100) -> 0 | AX75: 4.256034146 | AY75: =IF('Import avoidance model - RR'!H38="N",0,LOGIC!G127*'Import avoidance model - RR'!$H$20)/100 -> 0 | AZ75: =AG75-(IF(AND($R75>'Import avoidance model - RR'!$I$15,$R75<'Import avoidance model - RR'!$J$15),'Import avoidance model - RR'!$H$15*LOGIC!N127,LOGIC!N127*'Import avoidance model - RR'!$H$16)/100) -> 0 | BA75: 1.509254303 | BB75: =IF('Import avoidance model - RR'!H38="N",0,LOGIC!N127*'Import avoidance model - RR'!$H$20)/100 -> 0 | BC75: =AI75-(IF(AND($R75>'Import avoidance model - RR'!$I$15,$R75<'Import avoidance model - RR'!$J$15),'Import avoidance model - RR'!$H$15*LOGIC!G179,LOGIC!G179*'Import avoidance model - RR'!$H$16)/100) -> 3.144889803 | BD75: 1.897366793 | BE75: =IF('Import avoidance model - RR'!H38="N",0,LOGIC!G179*'Import avoidance model - RR'!$H$20)/100 -> 0 | BF75: =AK75-(IF(AND($R75>'Import avoidance model - RR'!$I$15,$R75<'Import avoidance model - RR'!$J$15),'Import avoidance model - RR'!$H$15*LOGIC!N179,LOGIC!N179*'Import avoidance model - RR'!$H$16)/100) -> 0 | BG75: 1.509254303 | BH75: =IF('Import avoidance model - RR'!H38="N",0,LOGIC!N179*'Import avoidance model - RR'!$H$20)/100 -> 0 | BI75: =AM75-(IF(AND($R75>'Import avoidance model - RR'!$I$15,$R75<'Import avoidance model - RR'!$J$15),'Import avoidance model - RR'!$H$15*LOGIC!G23,LOGIC!G23*'Import avoidance model - RR'!$H$16)/100) -> 3.953145331 | BJ75: 1.291175147 | BK75: =IF('Import avoidance model - RR'!H38="N",0,LOGIC!G23*'Import avoidance model - RR'!$H$20)/100 -> 0 | BL75: =AO75-(IF(AND($R75>'Import avoidance model - RR'!$I$15,$R75<'Import avoidance model - RR'!$J$15),'Import avoidance model - RR'!$H$15*LOGIC!N23,LOGIC!N23*'Import avoidance model - RR'!$H$16)/100) -> 0.2907722074 | BM75: 1.291175147 | BN75: =IF('Import avoidance model - RR'!H38="N",0,LOGIC!N23*'Import avoidance model - RR'!$H$20)/100 -> 0
B76: 09:30:00 | C76: ='PV data'!J24 -> 38.11456385 | D76: 58.65202842 | E76: 0 | F76: 0 | G76: 0 | H76: 0 | I76: =IF(AND(I75+H76<=$A$5,I75+H76>$A$3),LOGIC!I75+LOGIC!H76,IF(I75+H76>$A$5,$A$5,$A$3)) -> 12 | J76: 38.11456385 | K76: 20.65705772 | L76: 17.45750613 | M76: 15 | N76: 0 | O76: 15 | P76: =IF(AND(P75+O76<=$A$5,P75+O76>$A$3),LOGIC!P75+LOGIC!O76,IF(P75+O76>$A$5,$A$5,$A$3)) -> 60 | R76: 09:30:00 | S76: =(IF(AND($R76>'Import avoidance model - RR'!$I$15,'Import avoidance model - RR'!$J$15),'Import avoidance model - RR'!$H$15,'Import avoidance model - RR'!$H$16))*D76/100 -> 5.865202842 | T76: =(IF(AND($R76>'Import avoidance model - RR'!$I$15,'Import avoidance model - RR'!$J$15),'Import avoidance model - RR'!$H$15,'Import avoidance model - RR'!$H$16))*K76/100 -> 2.065705772 | U76: =(IF(AND($R76>'Import avoidance model - RR'!$I$15,'Import avoidance model - RR'!$J$15),'Import avoidance model - RR'!$H$15,'Import avoidance model - RR'!$H$16))*D128/100 -> 5.865202842 | V76: =(IF(AND($R76>'Import avoidance model - RR'!$I$15,'Import avoidance model - RR'!$J$15),'Import avoidance model - RR'!$H$15,'Import avoidance model - RR'!$H$16))*K128/100 -> 2.065705772 | W76: =(IF(AND($R76>'Import avoidance model - RR'!$I$15,'Import avoidance model - RR'!$J$15),'Import avoidance model - RR'!$H$15,'Import avoidance model - RR'!$H$16))*D180/100 -> 5.865202842 | X76: =(IF(AND($R76>'Import avoidance model - RR'!$I$15,'Import avoidance model - RR'!$J$15),'Import avoidance model - RR'!$H$15,'Import avoidance model - RR'!$H$16))*K180/100 -> 2.065705772 | Y76: =(IF(AND($R76>'Import avoidance model - RR'!$I$15,'Import avoidance model - RR'!$J$15),'Import avoidance model - RR'!$H$15,'Import avoidance model - RR'!$H$16))*D24/100 -> 5.865202842 | Z76: =(IF(AND($R76>'Import avoidance model - RR'!$I$15,'Import avoidance model - RR'!$J$15),'Import avoidance model - RR'!$H$15,'Import avoidance model - RR'!$H$16))*K24/100 -> 2.065705772 | AA76: =IF(C76<LOGIC!D76,(LOGIC!D76-LOGIC!C76)*IF(AND(LOGIC!B76>'Import avoidance model - RR'!$I$15,LOGIC!B76<'Import avoidance model - RR'!$J$15),'Import avoidance model - RR'!$H$15,'Import avoidance model - RR'!$H$16),0)/100 -> 2.053746457 | AB76: =IF('Import avoidance model - RR'!$H$17="N",0,IF(D76<=C76,D76,C76)*'Import avoidance model - RR'!$H$18/100) -> 2.858592289 | AC76: =IF(J76<LOGIC!K76,(LOGIC!K76-LOGIC!J76)*IF(AND(LOGIC!B76>'Import avoidance model - RR'!$I$15,LOGIC!B76<'Import avoidance model - RR'!$J$15),'Import avoidance model - RR'!$H$15,'Import avoidance model - RR'!$H$16),0)/100 -> 0 | AD76: =IF('Import avoidance model - RR'!$H$17="N",0,IF(K76<=C76,K76,C76)*'Import avoidance model - RR'!$H$18/100) -> 1.549279329 | AE76: =IF(C128<LOGIC!D128,(LOGIC!D128-LOGIC!C128)*IF(AND(LOGIC!B128>'Import avoidance model - RR'!$I$15,LOGIC!B128<'Import avoidance model - RR'!$J$15),'Import avoidance model - RR'!$H$15,'Import avoidance model - RR'!$H$16),0)/100 -> 0 | AF76: =IF('Import avoidance model - RR'!$H$17="N",0,IF(D128<=C128,D128,C128)*'Import avoidance model - RR'!$H$18/100) -> 4.398902131 | AG76: =IF(J128<LOGIC!K128,(LOGIC!K128-LOGIC!J128)*IF(AND(LOGIC!B128>'Import avoidance model - RR'!$I$15,LOGIC!B128<'Import avoidance model - RR'!$J$15),'Import avoidance model - RR'!$H$15,'Import avoidance model - RR'!$H$16),0)/100 -> 0 | AH76: =IF('Import avoidance model - RR'!$H$17="N",0,IF(K128<=C128,K128,C128)*'Import avoidance model - RR'!$H$18/100) -> 1.549279329 | AI76: =IF(C180<LOGIC!D180,(LOGIC!D180-LOGIC!C180)*IF(AND(LOGIC!B180>'Import avoidance model - RR'!$I$15,LOGIC!B180<'Import avoidance model - RR'!$J$15),'Import avoidance model - RR'!$H$15,'Import avoidance model - RR'!$H$16),0)/100 -> 3.138287377 | AJ76: =IF('Import avoidance model - RR'!$H$17="N",0,IF(D180<=C180,D180,C180)*'Import avoidance model - RR'!$H$18/100) -> 2.045186598 | AK76: =IF(J180<LOGIC!K180,(LOGIC!K180-LOGIC!J180)*IF(AND(LOGIC!B180>'Import avoidance model - RR'!$I$15,LOGIC!B180<'Import avoidance model - RR'!$J$15),'Import avoidance model - RR'!$H$15,'Import avoidance model - RR'!$H$16),0)/100 -> 0 | AL76: =IF('Import avoidance model - RR'!$H$17="N",0,IF(K180<=C180,K180,C180)*'Import avoidance model - RR'!$H$18/100) -> 1.549279329 | AM76: =IF(C24<LOGIC!D24,(LOGIC!D24-LOGIC!C24)*IF(AND(LOGIC!B24>'Import avoidance model - RR'!$I$15,LOGIC!B24<'Import avoidance model - RR'!$J$15),'Import avoidance model - RR'!$H$15,'Import avoidance model - RR'!$H$16),0)/100 -> 4.028643833 | AN76: =IF('Import avoidance model - RR'!$H$17="N",0,IF(D24<=C24,D24,C24)*'Import avoidance model - RR'!$H$18/100) -> 1.377419256 | AO76: =IF(J24<LOGIC!K24,(LOGIC!K24-LOGIC!J24)*IF(AND(LOGIC!B180>'Import avoidance model - RR'!$I$15,LOGIC!B180<'Import avoidance model - RR'!$J$15),'Import avoidance model - RR'!$H$15,'Import avoidance model - RR'!$H$16),0)/100 -> 0.229146763 | AP76: =IF('Import avoidance model - RR'!$H$17="N",0,IF(K24<=C24,K24,C24)*'Import avoidance model - RR'!$H$18/100) -> 1.377419256 | AQ76: =AA76-(IF(AND($R76>'Import avoidance model - RR'!$I$15,$R76<'Import avoidance model - RR'!$J$15),'Import avoidance model - RR'!$H$15*LOGIC!G76,LOGIC!G76*'Import avoidance model - RR'!$H$16)/100) -> 2.053746457 | AR76: 2.858592289 | AS76: =IF('Import avoidance model - RR'!H39="N",0,LOGIC!G76*'Import avoidance model - RR'!$H$20)/100 -> 0 | AT76: =AC76-(IF(AND($R76>'Import avoidance model - RR'!$I$15,$R76<'Import avoidance model - RR'!$J$15),'Import avoidance model - RR'!$H$15*LOGIC!N76,LOGIC!N76*'Import avoidance model - RR'!$H$16)/100) -> 0 | AU76: 1.549279329 | AV76: =IF('Import avoidance model - RR'!H39="N",0,LOGIC!N76*'Import avoidance model - RR'!$H$20)/100 -> 0 | AW76: =AE76-(IF(AND($R76>'Import avoidance model - RR'!$I$15,$R76<'Import avoidance model - RR'!$J$15),'Import avoidance model - RR'!$H$15*LOGIC!G128,LOGIC!G128*'Import avoidance model - RR'!$H$16)/100) -> 0 | AX76: 4.398902131 | AY76: =IF('Import avoidance model - RR'!H39="N",0,LOGIC!G128*'Import avoidance model - RR'!$H$20)/100 -> 0 | AZ76: =AG76-(IF(AND($R76>'Import avoidance model - RR'!$I$15,$R76<'Import avoidance model - RR'!$J$15),'Import avoidance model - RR'!$H$15*LOGIC!N128,LOGIC!N128*'Import avoidance model - RR'!$H$16)/100) -> 0 | BA76: 1.549279329 | BB76: =IF('Import avoidance model - RR'!H39="N",0,LOGIC!N128*'Import avoidance model - RR'!$H$20)/100 -> 0 | BC76: =AI76-(IF(AND($R76>'Import avoidance model - RR'!$I$15,$R76<'Import avoidance model - RR'!$J$15),'Import avoidance model - RR'!$H$15*LOGIC!G180,LOGIC!G180*'Import avoidance model - RR'!$H$16)/100) -> 3.138287377 | BD76: 2.045186598 | BE76: =IF('Import avoidance model - RR'!H39="N",0,LOGIC!G180*'Import avoidance model - RR'!$H$20)/100 -> 0 | BF76: =AK76-(IF(AND($R76>'Import avoidance model - RR'!$I$15,$R76<'Import avoidance model - RR'!$J$15),'Import avoidance model - RR'!$H$15*LOGIC!N180,LOGIC!N180*'Import avoidance model - RR'!$H$16)/100) -> 0 | BG76: 1.549279329 | BH76: =IF('Import avoidance model - RR'!H39="N",0,LOGIC!N180*'Import avoidance model - RR'!$H$20)/100 -> 0 | BI76: =AM76-(IF(AND($R76>'Import avoidance model - RR'!$I$15,$R76<'Import avoidance model - RR'!$J$15),'Import avoidance model - RR'!$H$15*LOGIC!G24,LOGIC!G24*'Import avoidance model - RR'!$H$16)/100) -> 4.028643833 | BJ76: 1.377419256 | BK76: =IF('Import avoidance model - RR'!H39="N",0,LOGIC!G24*'Import avoidance model - RR'!$H$20)/100 -> 0 | BL76: =AO76-(IF(AND($R76>'Import avoidance model - RR'!$I$15,$R76<'Import avoidance model - RR'!$J$15),'Import avoidance model - RR'!$H$15*LOGIC!N24,LOGIC!N24*'Import avoidance model - RR'!$H$16)/100) -> 0.229146763 | BM76: 1.377419256 | BN76: =IF('Import avoidance model - RR'!H39="N",0,LOGIC!N24*'Import avoidance model - RR'!$H$20)/100 -> 0
B77: 10:00:00 | C77: ='PV data'!J25 -> 67.51927032 | D77: 58.0886361 | E77: 9.430634224 | F77: 9.430634224 | G77: 0 | H77: 9.430634224 | I77: =IF(AND(I76+H77<=$A$5,I76+H77>$A$3),LOGIC!I76+LOGIC!H77,IF(I76+H77>$A$5,$A$5,$A$3)) -> 21.43063422 | J77: 67.51927032 | K77: 20.86113575 | L77: 46.65813457 | M77: 15 | N77: 0 | O77: 15 | P77: =IF(AND(P76+O77<=$A$5,P76+O77>$A$3),LOGIC!P76+LOGIC!O77,IF(P76+O77>$A$5,$A$5,$A$3)) -> 60 | R77: 10:00:00 | S77: =(IF(AND($R77>'Import avoidance model - RR'!$I$15,'Import avoidance model - RR'!$J$15),'Import avoidance model - RR'!$H$15,'Import avoidance model - RR'!$H$16))*D77/100 -> 5.80886361 | T77: =(IF(AND($R77>'Import avoidance model - RR'!$I$15,'Import avoidance model - RR'!$J$15),'Import avoidance model - RR'!$H$15,'Import avoidance model - RR'!$H$16))*K77/100 -> 2.086113575 | U77: =(IF(AND($R77>'Import avoidance model - RR'!$I$15,'Import avoidance model - RR'!$J$15),'Import avoidance model - RR'!$H$15,'Import avoidance model - RR'!$H$16))*D129/100 -> 5.80886361 | V77: =(IF(AND($R77>'Import avoidance model - RR'!$I$15,'Import avoidance model - RR'!$J$15),'Import avoidance model - RR'!$H$15,'Import avoidance model - RR'!$H$16))*K129/100 -> 2.086113575 | W77: =(IF(AND($R77>'Import avoidance model - RR'!$I$15,'Import avoidance model - RR'!$J$15),'Import avoidance model - RR'!$H$15,'Import avoidance model - RR'!$H$16))*D181/100 -> 5.80886361 | X77: =(IF(AND($R77>'Import avoidance model - RR'!$I$15,'Import avoidance model - RR'!$J$15),'Import avoidance model - RR'!$H$15,'Import avoidance model - RR'!$H$16))*K181/100 -> 2.086113575 | Y77: =(IF(AND($R77>'Import avoidance model - RR'!$I$15,'Import avoidance model - RR'!$J$15),'Import avoidance model - RR'!$H$15,'Import avoidance model - RR'!$H$16))*D25/100 -> 5.80886361 | Z77: =(IF(AND($R77>'Import avoidance model - RR'!$I$15,'Import avoidance model - RR'!$J$15),'Import avoidance model - RR'!$H$15,'Import avoidance model - RR'!$H$16))*K25/100 -> 2.086113575 | AA77: =IF(C77<LOGIC!D77,(LOGIC!D77-LOGIC!C77)*IF(AND(LOGIC!B77>'Import avoidance model - RR'!$I$15,LOGIC!B77<'Import avoidance model - RR'!$J$15),'Import avoidance model - RR'!$H$15,'Import avoidance model - RR'!$H$16),0)/100 -> 0 | AB77: =IF('Import avoidance model - RR'!$H$17="N",0,IF(D77<=C77,D77,C77)*'Import avoidance model - RR'!$H$18/100) -> 4.356647707 | AC77: =IF(J77<LOGIC!K77,(LOGIC!K77-LOGIC!J77)*IF(AND(LOGIC!B77>'Import avoidance model - RR'!$I$15,LOGIC!B77<'Import avoidance model - RR'!$J$15),'Import avoidance model - RR'!$H$15,'Import avoidance model - RR'!$H$16),0)/100 -> 0 | AD77: =IF('Import avoidance model - RR'!$H$17="N",0,IF(K77<=C77,K77,C77)*'Import avoidance model - RR'!$H$18/100) -> 1.564585181 | AE77: =IF(C129<LOGIC!D129,(LOGIC!D129-LOGIC!C129)*IF(AND(LOGIC!B129>'Import avoidance model - RR'!$I$15,LOGIC!B129<'Import avoidance model - RR'!$J$15),'Import avoidance model - RR'!$H$15,'Import avoidance model - RR'!$H$16),0)/100 -> 0 | AF77: =IF('Import avoidance model - RR'!$H$17="N",0,IF(D129<=C129,D129,C129)*'Import avoidance model - RR'!$H$18/100) -> 4.356647707 | AG77: =IF(J129<LOGIC!K129,(LOGIC!K129-LOGIC!J129)*IF(AND(LOGIC!B129>'Import avoidance model - RR'!$I$15,LOGIC!B129<'Import avoidance model - RR'!$J$15),'Import avoidance model - RR'!$H$15,'Import avoidance model - RR'!$H$16),0)/100 -> 0 | AH77: =IF('Import avoidance model - RR'!$H$17="N",0,IF(K129<=C129,K129,C129)*'Import avoidance model - RR'!$H$18/100) -> 1.564585181 | AI77: =IF(C181<LOGIC!D181,(LOGIC!D181-LOGIC!C181)*IF(AND(LOGIC!B181>'Import avoidance model - RR'!$I$15,LOGIC!B181<'Import avoidance model - RR'!$J$15),'Import avoidance model - RR'!$H$15,'Import avoidance model - RR'!$H$16),0)/100 -> 0 | AJ77: =IF('Import avoidance model - RR'!$H$17="N",0,IF(D181<=C181,D181,C181)*'Import avoidance model - RR'!$H$18/100) -> 4.356647707 | AK77: =IF(J181<LOGIC!K181,(LOGIC!K181-LOGIC!J181)*IF(AND(LOGIC!B181>'Import avoidance model - RR'!$I$15,LOGIC!B181<'Import avoidance model - RR'!$J$15),'Import avoidance model - RR'!$H$15,'Import avoidance model - RR'!$H$16),0)/100 -> 0 | AL77: =IF('Import avoidance model - RR'!$H$17="N",0,IF(K181<=C181,K181,C181)*'Import avoidance model - RR'!$H$18/100) -> 1.564585181 | AM77: =IF(C25<LOGIC!D25,(LOGIC!D25-LOGIC!C25)*IF(AND(LOGIC!B25>'Import avoidance model - RR'!$I$15,LOGIC!B25<'Import avoidance model - RR'!$J$15),'Import avoidance model - RR'!$H$15,'Import avoidance model - RR'!$H$16),0)/100 -> 4.034865808 | AN77: =IF('Import avoidance model - RR'!$H$17="N",0,IF(D25<=C25,D25,C25)*'Import avoidance model - RR'!$H$18/100) -> 1.330498352 | AO77: =IF(J25<LOGIC!K25,(LOGIC!K25-LOGIC!J25)*IF(AND(LOGIC!B181>'Import avoidance model - RR'!$I$15,LOGIC!B181<'Import avoidance model - RR'!$J$15),'Import avoidance model - RR'!$H$15,'Import avoidance model - RR'!$H$16),0)/100 -> 0.312115773 | AP77: =IF('Import avoidance model - RR'!$H$17="N",0,IF(K25<=C25,K25,C25)*'Import avoidance model - RR'!$H$18/100) -> 1.330498352 | AQ77: =AA77-(IF(AND($R77>'Import avoidance model - RR'!$I$15,$R77<'Import avoidance model - RR'!$J$15),'Import avoidance model - RR'!$H$15*LOGIC!G77,LOGIC!G77*'Import avoidance model - RR'!$H$16)/100) -> 0 | AR77: 4.356647707 | AS77: =IF('Import avoidance model - RR'!H40="N",0,LOGIC!G77*'Import avoidance model - RR'!$H$20)/100 -> 0 | AT77: =AC77-(IF(AND($R77>'Import avoidance model - RR'!$I$15,$R77<'Import avoidance model - RR'!$J$15),'Import avoidance model - RR'!$H$15*LOGIC!N77,LOGIC!N77*'Import avoidance model - RR'!$H$16)/100) -> 0 | AU77: 1.564585181 | AV77: =IF('Import avoidance model - RR'!H40="N",0,LOGIC!N77*'Import avoidance model - RR'!$H$20)/100 -> 0 | AW77: =AE77-(IF(AND($R77>'Import avoidance model - RR'!$I$15,$R77<'Import avoidance model - RR'!$J$15),'Import avoidance model - RR'!$H$15*LOGIC!G129,LOGIC!G129*'Import avoidance model - RR'!$H$16)/100) -> 0 | AX77: 4.356647707 | AY77: =IF('Import avoidance model - RR'!H40="N",0,LOGIC!G129*'Import avoidance model - RR'!$H$20)/100 -> 0 | AZ77: =AG77-(IF(AND($R77>'Import avoidance model - RR'!$I$15,$R77<'Import avoidance model - RR'!$J$15),'Import avoidance model - RR'!$H$15*LOGIC!N129,LOGIC!N129*'Import avoidance model - RR'!$H$16)/100) -> 0 | BA77: 1.564585181 | BB77: =IF('Import avoidance model - RR'!H40="N",0,LOGIC!N129*'Import avoidance model - RR'!$H$20)/100 -> 0 | BC77: =AI77-(IF(AND($R77>'Import avoidance model - RR'!$I$15,$R77<'Import avoidance model - RR'!$J$15),'Import avoidance model - RR'!$H$15*LOGIC!G181,LOGIC!G181*'Import avoidance model - RR'!$H$16)/100) -> 0 | BD77: 4.356647707 | BE77: =IF('Import avoidance model - RR'!H40="N",0,LOGIC!G181*'Import avoidance model - RR'!$H$20)/100 -> 0 | BF77: =AK77-(IF(AND($R77>'Import avoidance model - RR'!$I$15,$R77<'Import avoidance model - RR'!$J$15),'Import avoidance model - RR'!$H$15*LOGIC!N181,LOGIC!N181*'Import avoidance model - RR'!$H$16)/100) -> 0 | BG77: 1.564585181 | BH77: =IF('Import avoidance model - RR'!H40="N",0,LOGIC!N181*'Import avoidance model - RR'!$H$20)/100 -> 0 | BI77: =AM77-(IF(AND($R77>'Import avoidance model - RR'!$I$15,$R77<'Import avoidance model - RR'!$J$15),'Import avoidance model - RR'!$H$15*LOGIC!G25,LOGIC!G25*'Import avoidance model - RR'!$H$16)/100) -> 4.034865808 | BJ77: 1.330498352 | BK77: =IF('Import avoidance model - RR'!H40="N",0,LOGIC!G25*'Import avoidance model - RR'!$H$20)/100 -> 0 | BL77: =AO77-(IF(AND($R77>'Import avoidance model - RR'!$I$15,$R77<'Import avoidance model - RR'!$J$15),'Import avoidance model - RR'!$H$15*LOGIC!N25,LOGIC!N25*'Import avoidance model - RR'!$H$16)/100) -> 0.312115773 | BM77: 1.330498352 | BN77: =IF('Import avoidance model - RR'!H40="N",0,LOGIC!N25*'Import avoidance model - RR'!$H$20)/100 -> 0
B78: 10:30:00 | C78: ='PV data'!J26 -> 68.80555287 | D78: 57.93726378 | E78: 10.86828909 | F78: 10.86828909 | G78: 0 | H78: 10.86828909 | I78: =IF(AND(I77+H78<=$A$5,I77+H78>$A$3),LOGIC!I77+LOGIC!H78,IF(I77+H78>$A$5,$A$5,$A$3)) -> 32.29892331 | J78: 68.80555287 | K78: 20.98625386 | L78: 47.81929902 | M78: 15 | N78: 0 | O78: 15 | P78: =IF(AND(P77+O78<=$A$5,P77+O78>$A$3),LOGIC!P77+LOGIC!O78,IF(P77+O78>$A$5,$A$5,$A$3)) -> 60 | R78: 10:30:00 | S78: =(IF(AND($R78>'Import avoidance model - RR'!$I$15,'Import avoidance model - RR'!$J$15),'Import avoidance model - RR'!$H$15,'Import avoidance model - RR'!$H$16))*D78/100 -> 5.793726378 | T78: =(IF(AND($R78>'Import avoidance model - RR'!$I$15,'Import avoidance model - RR'!$J$15),'Import avoidance model - RR'!$H$15,'Import avoidance model - RR'!$H$16))*K78/100 -> 2.098625386 | U78: =(IF(AND($R78>'Import avoidance model - RR'!$I$15,'Import avoidance model - RR'!$J$15),'Import avoidance model - RR'!$H$15,'Import avoidance model - RR'!$H$16))*D130/100 -> 5.793726378 | V78: =(IF(AND($R78>'Import avoidance model - RR'!$I$15,'Import avoidance model - RR'!$J$15),'Import avoidance model - RR'!$H$15,'Import avoidance model - RR'!$H$16))*K130/100 -> 2.098625386 | W78: =(IF(AND($R78>'Import avoidance model - RR'!$I$15,'Import avoidance model - RR'!$J$15),'Import avoidance model - RR'!$H$15,'Import avoidance model - RR'!$H$16))*D182/100 -> 5.793726378 | X78: =(IF(AND($R78>'Import avoidance model - RR'!$I$15,'Import avoidance model - RR'!$J$15),'Import avoidance model - RR'!$H$15,'Import avoidance model - RR'!$H$16))*K182/100 -> 2.098625386 | Y78: =(IF(AND($R78>'Import avoidance model - RR'!$I$15,'Import avoidance model - RR'!$J$15),'Import avoidance model - RR'!$H$15,'Import avoidance model - RR'!$H$16))*D26/100 -> 5.793726378 | Z78: =(IF(AND($R78>'Import avoidance model - RR'!$I$15,'Import avoidance model - RR'!$J$15),'Import avoidance model - RR'!$H$15,'Import avoidance model - RR'!$H$16))*K26/100 -> 2.098625386 | AA78: =IF(C78<LOGIC!D78,(LOGIC!D78-LOGIC!C78)*IF(AND(LOGIC!B78>'Import avoidance model - RR'!$I$15,LOGIC!B78<'Import avoidance model - RR'!$J$15),'Import avoidance model - RR'!$H$15,'Import avoidance model - RR'!$H$16),0)/100 -> 0 | AB78: =IF('Import avoidance model - RR'!$H$17="N",0,IF(D78<=C78,D78,C78)*'Import avoidance model - RR'!$H$18/100) -> 4.345294784 | AC78: =IF(J78<LOGIC!K78,(LOGIC!K78-LOGIC!J78)*IF(AND(LOGIC!B78>'Import avoidance model - RR'!$I$15,LOGIC!B78<'Import avoidance model - RR'!$J$15),'Import avoidance model - RR'!$H$15,'Import avoidance model - RR'!$H$16),0)/100 -> 0 | AD78: =IF('Import avoidance model - RR'!$H$17="N",0,IF(K78<=C78,K78,C78)*'Import avoidance model - RR'!$H$18/100) -> 1.573969039 | AE78: =IF(C130<LOGIC!D130,(LOGIC!D130-LOGIC!C130)*IF(AND(LOGIC!B130>'Import avoidance model - RR'!$I$15,LOGIC!B130<'Import avoidance model - RR'!$J$15),'Import avoidance model - RR'!$H$15,'Import avoidance model - RR'!$H$16),0)/100 -> 1.078661966 | AF78: =IF('Import avoidance model - RR'!$H$17="N",0,IF(D130<=C130,D130,C130)*'Import avoidance model - RR'!$H$18/100) -> 3.536298309 | AG78: =IF(J130<LOGIC!K130,(LOGIC!K130-LOGIC!J130)*IF(AND(LOGIC!B130>'Import avoidance model - RR'!$I$15,LOGIC!B130<'Import avoidance model - RR'!$J$15),'Import avoidance model - RR'!$H$15,'Import avoidance model - RR'!$H$16),0)/100 -> 0 | AH78: =IF('Import avoidance model - RR'!$H$17="N",0,IF(K130<=C130,K130,C130)*'Import avoidance model - RR'!$H$18/100) -> 1.573969039 | AI78: =IF(C182<LOGIC!D182,(LOGIC!D182-LOGIC!C182)*IF(AND(LOGIC!B182>'Import avoidance model - RR'!$I$15,LOGIC!B182<'Import avoidance model - RR'!$J$15),'Import avoidance model - RR'!$H$15,'Import avoidance model - RR'!$H$16),0)/100 -> 0.2663531561 | AJ78: =IF('Import avoidance model - RR'!$H$17="N",0,IF(D182<=C182,D182,C182)*'Import avoidance model - RR'!$H$18/100) -> 4.145529917 | AK78: =IF(J182<LOGIC!K182,(LOGIC!K182-LOGIC!J182)*IF(AND(LOGIC!B182>'Import avoidance model - RR'!$I$15,LOGIC!B182<'Import avoidance model - RR'!$J$15),'Import avoidance model - RR'!$H$15,'Import avoidance model - RR'!$H$16),0)/100 -> 0 | AL78: =IF('Import avoidance model - RR'!$H$17="N",0,IF(K182<=C182,K182,C182)*'Import avoidance model - RR'!$H$18/100) -> 1.573969039 | AM78: =IF(C26<LOGIC!D26,(LOGIC!D26-LOGIC!C26)*IF(AND(LOGIC!B26>'Import avoidance model - RR'!$I$15,LOGIC!B26<'Import avoidance model - RR'!$J$15),'Import avoidance model - RR'!$H$15,'Import avoidance model - RR'!$H$16),0)/100 -> 3.88141439 | AN78: =IF('Import avoidance model - RR'!$H$17="N",0,IF(D26<=C26,D26,C26)*'Import avoidance model - RR'!$H$18/100) -> 1.434233992 | AO78: =IF(J26<LOGIC!K26,(LOGIC!K26-LOGIC!J26)*IF(AND(LOGIC!B182>'Import avoidance model - RR'!$I$15,LOGIC!B182<'Import avoidance model - RR'!$J$15),'Import avoidance model - RR'!$H$15,'Import avoidance model - RR'!$H$16),0)/100 -> 0.1863133968 | AP78: =IF('Import avoidance model - RR'!$H$17="N",0,IF(K26<=C26,K26,C26)*'Import avoidance model - RR'!$H$18/100) -> 1.434233992 | AQ78: =AA78-(IF(AND($R78>'Import avoidance model - RR'!$I$15,$R78<'Import avoidance model - RR'!$J$15),'Import avoidance model - RR'!$H$15*LOGIC!G78,LOGIC!G78*'Import avoidance model - RR'!$H$16)/100) -> 0 | AR78: 4.345294784 | AS78: =IF('Import avoidance model - RR'!H41="N",0,LOGIC!G78*'Import avoidance model - RR'!$H$20)/100 -> 0 | AT78: =AC78-(IF(AND($R78>'Import avoidance model - RR'!$I$15,$R78<'Import avoidance model - RR'!$J$15),'Import avoidance model - RR'!$H$15*LOGIC!N78,LOGIC!N78*'Import avoidance model - RR'!$H$16)/100) -> 0 | AU78: 1.573969039 | AV78: =IF('Import avoidance model - RR'!H41="N",0,LOGIC!N78*'Import avoidance model - RR'!$H$20)/100 -> 0 | AW78: =AE78-(IF(AND($R78>'Import avoidance model - RR'!$I$15,$R78<'Import avoidance model - RR'!$J$15),'Import avoidance model - RR'!$H$15*LOGIC!G130,LOGIC!G130*'Import avoidance model - RR'!$H$16)/100) -> 0 | AX78: 3.536298309 | AY78: =IF('Import avoidance model - RR'!H41="N",0,LOGIC!G130*'Import avoidance model - RR'!$H$20)/100 -> 0.8089964745 | AZ78: =AG78-(IF(AND($R78>'Import avoidance model - RR'!$I$15,$R78<'Import avoidance model - RR'!$J$15),'Import avoidance model - RR'!$H$15*LOGIC!N130,LOGIC!N130*'Import avoidance model - RR'!$H$16)/100) -> 0 | BA78: 1.573969039 | BB78: =IF('Import avoidance model - RR'!H41="N",0,LOGIC!N130*'Import avoidance model - RR'!$H$20)/100 -> 0 | BC78: =AI78-(IF(AND($R78>'Import avoidance model - RR'!$I$15,$R78<'Import avoidance model - RR'!$J$15),'Import avoidance model - RR'!$H$15*LOGIC!G182,LOGIC!G182*'Import avoidance model - RR'!$H$16)/100) -> 0 | BD78: 4.145529917 | BE78: =IF('Import avoidance model - RR'!H41="N",0,LOGIC!G182*'Import avoidance model - RR'!$H$20)/100 -> 0.1997648671 | BF78: =AK78-(IF(AND($R78>'Import avoidance model - RR'!$I$15,$R78<'Import avoidance model - RR'!$J$15),'Import avoidance model - RR'!$H$15*LOGIC!N182,LOGIC!N182*'Import avoidance model - RR'!$H$16)/100) -> 0 | BG78: 1.573969039 | BH78: =IF('Import avoidance model - RR'!H41="N",0,LOGIC!N182*'Import avoidance model - RR'!$H$20)/100 -> 0 | BI78: =AM78-(IF(AND($R78>'Import avoidance model - RR'!$I$15,$R78<'Import avoidance model - RR'!$J$15),'Import avoidance model - RR'!$H$15*LOGIC!G26,LOGIC!G26*'Import avoidance model - RR'!$H$16)/100) -> 3.88141439 | BJ78: 1.434233992 | BK78: =IF('Import avoidance model - RR'!H41="N",0,LOGIC!G26*'Import avoidance model - RR'!$H$20)/100 -> 0 | BL78: =AO78-(IF(AND($R78>'Import avoidance model - RR'!$I$15,$R78<'Import avoidance model - RR'!$J$15),'Import avoidance model - RR'!$H$15*LOGIC!N26,LOGIC!N26*'Import avoidance model - RR'!$H$16)/100) -> 0.1863133968 | BM78: 1.434233992 | BN78: =IF('Import avoidance model - RR'!H41="N",0,LOGIC!N26*'Import avoidance model - RR'!$H$20)/100 -> 0
B79: 11:00:00 | C79: ='PV data'!J27 -> 44.90016514 | D79: 58.23258381 | E79: 0 | F79: 0 | G79: 13.33241868 | H79: -13.33241868 | I79: =IF(AND(I78+H79<=$A$5,I78+H79>$A$3),LOGIC!I78+LOGIC!H79,IF(I78+H79>$A$5,$A$5,$A$3)) -> 18.96650464 | J79: 44.90016514 | K79: 20.95070224 | L79: 23.94946289 | M79: 15 | N79: 0 | O79: 15 | P79: =IF(AND(P78+O79<=$A$5,P78+O79>$A$3),LOGIC!P78+LOGIC!O79,IF(P78+O79>$A$5,$A$5,$A$3)) -> 60 | R79: 11:00:00 | S79: =(IF(AND($R79>'Import avoidance model - RR'!$I$15,'Import avoidance model - RR'!$J$15),'Import avoidance model - RR'!$H$15,'Import avoidance model - RR'!$H$16))*D79/100 -> 5.823258381 | T79: =(IF(AND($R79>'Import avoidance model - RR'!$I$15,'Import avoidance model - RR'!$J$15),'Import avoidance model - RR'!$H$15,'Import avoidance model - RR'!$H$16))*K79/100 -> 2.095070224 | U79: =(IF(AND($R79>'Import avoidance model - RR'!$I$15,'Import avoidance model - RR'!$J$15),'Import avoidance model - RR'!$H$15,'Import avoidance model - RR'!$H$16))*D131/100 -> 5.823258381 | V79: =(IF(AND($R79>'Import avoidance model - RR'!$I$15,'Import avoidance model - RR'!$J$15),'Import avoidance model - RR'!$H$15,'Import avoidance model - RR'!$H$16))*K131/100 -> 2.095070224 | W79: =(IF(AND($R79>'Import avoidance model - RR'!$I$15,'Import avoidance model - RR'!$J$15),'Import avoidance model - RR'!$H$15,'Import avoidance model - RR'!$H$16))*D183/100 -> 5.823258381 | X79: =(IF(AND($R79>'Import avoidance model - RR'!$I$15,'Import avoidance model - RR'!$J$15),'Import avoidance model - RR'!$H$15,'Import avoidance model - RR'!$H$16))*K183/100 -> 2.095070224 | Y79: =(IF(AND($R79>'Import avoidance model - RR'!$I$15,'Import avoidance model - RR'!$J$15),'Import avoidance model - RR'!$H$15,'Import avoidance model - RR'!$H$16))*D27/100 -> 5.823258381 | Z79: =(IF(AND($R79>'Import avoidance model - RR'!$I$15,'Import avoidance model - RR'!$J$15),'Import avoidance model - RR'!$H$15,'Import avoidance model - RR'!$H$16))*K27/100 -> 2.095070224 | AA79: =IF(C79<LOGIC!D79,(LOGIC!D79-LOGIC!C79)*IF(AND(LOGIC!B79>'Import avoidance model - RR'!$I$15,LOGIC!B79<'Import avoidance model - RR'!$J$15),'Import avoidance model - RR'!$H$15,'Import avoidance model - RR'!$H$16),0)/100 -> 1.333241868 | AB79: =IF('Import avoidance model - RR'!$H$17="N",0,IF(D79<=C79,D79,C79)*'Import avoidance model - RR'!$H$18/100) -> 3.367512385 | AC79: =IF(J79<LOGIC!K79,(LOGIC!K79-LOGIC!J79)*IF(AND(LOGIC!B79>'Import avoidance model - RR'!$I$15,LOGIC!B79<'Import avoidance model - RR'!$J$15),'Import avoidance model - RR'!$H$15,'Import avoidance model - RR'!$H$16),0)/100 -> 0 | AD79: =IF('Import avoidance model - RR'!$H$17="N",0,IF(K79<=C79,K79,C79)*'Import avoidance model - RR'!$H$18/100) -> 1.571302668 | AE79: =IF(C131<LOGIC!D131,(LOGIC!D131-LOGIC!C131)*IF(AND(LOGIC!B131>'Import avoidance model - RR'!$I$15,LOGIC!B131<'Import avoidance model - RR'!$J$15),'Import avoidance model - RR'!$H$15,'Import avoidance model - RR'!$H$16),0)/100 -> 0 | AF79: =IF('Import avoidance model - RR'!$H$17="N",0,IF(D131<=C131,D131,C131)*'Import avoidance model - RR'!$H$18/100) -> 4.367443786 | AG79: =IF(J131<LOGIC!K131,(LOGIC!K131-LOGIC!J131)*IF(AND(LOGIC!B131>'Import avoidance model - RR'!$I$15,LOGIC!B131<'Import avoidance model - RR'!$J$15),'Import avoidance model - RR'!$H$15,'Import avoidance model - RR'!$H$16),0)/100 -> 0 | AH79: =IF('Import avoidance model - RR'!$H$17="N",0,IF(K131<=C131,K131,C131)*'Import avoidance model - RR'!$H$18/100) -> 1.571302668 | AI79: =IF(C183<LOGIC!D183,(LOGIC!D183-LOGIC!C183)*IF(AND(LOGIC!B183>'Import avoidance model - RR'!$I$15,LOGIC!B183<'Import avoidance model - RR'!$J$15),'Import avoidance model - RR'!$H$15,'Import avoidance model - RR'!$H$16),0)/100 -> 0 | AJ79: =IF('Import avoidance model - RR'!$H$17="N",0,IF(D183<=C183,D183,C183)*'Import avoidance model - RR'!$H$18/100) -> 4.367443786 | AK79: =IF(J183<LOGIC!K183,(LOGIC!K183-LOGIC!J183)*IF(AND(LOGIC!B183>'Import avoidance model - RR'!$I$15,LOGIC!B183<'Import avoidance model - RR'!$J$15),'Import avoidance model - RR'!$H$15,'Import avoidance model - RR'!$H$16),0)/100 -> 0 | AL79: =IF('Import avoidance model - RR'!$H$17="N",0,IF(K183<=C183,K183,C183)*'Import avoidance model - RR'!$H$18/100) -> 1.571302668 | AM79: =IF(C27<LOGIC!D27,(LOGIC!D27-LOGIC!C27)*IF(AND(LOGIC!B27>'Import avoidance model - RR'!$I$15,LOGIC!B27<'Import avoidance model - RR'!$J$15),'Import avoidance model - RR'!$H$15,'Import avoidance model - RR'!$H$16),0)/100 -> 1.025360599 | AN79: =IF('Import avoidance model - RR'!$H$17="N",0,IF(D27<=C27,D27,C27)*'Import avoidance model - RR'!$H$18/100) -> 3.598423337 | AO79: =IF(J27<LOGIC!K27,(LOGIC!K27-LOGIC!J27)*IF(AND(LOGIC!B183>'Import avoidance model - RR'!$I$15,LOGIC!B183<'Import avoidance model - RR'!$J$15),'Import avoidance model - RR'!$H$15,'Import avoidance model - RR'!$H$16),0)/100 -> 0 | AP79: =IF('Import avoidance model - RR'!$H$17="N",0,IF(K27<=C27,K27,C27)*'Import avoidance model - RR'!$H$18/100) -> 1.571302668 | AQ79: =AA79-(IF(AND($R79>'Import avoidance model - RR'!$I$15,$R79<'Import avoidance model - RR'!$J$15),'Import avoidance model - RR'!$H$15*LOGIC!G79,LOGIC!G79*'Import avoidance model - RR'!$H$16)/100) -> 0 | AR79: 3.367512385 | AS79: =IF('Import avoidance model - RR'!H42="N",0,LOGIC!G79*'Import avoidance model - RR'!$H$20)/100 -> 0.9999314007 | AT79: =AC79-(IF(AND($R79>'Import avoidance model - RR'!$I$15,$R79<'Import avoidance model - RR'!$J$15),'Import avoidance model - RR'!$H$15*LOGIC!N79,LOGIC!N79*'Import avoidance model - RR'!$H$16)/100) -> 0 | AU79: 1.571302668 | AV79: =IF('Import avoidance model - RR'!H42="N",0,LOGIC!N79*'Import avoidance model - RR'!$H$20)/100 -> 0 | AW79: =AE79-(IF(AND($R79>'Import avoidance model - RR'!$I$15,$R79<'Import avoidance model - RR'!$J$15),'Import avoidance model - RR'!$H$15*LOGIC!G131,LOGIC!G131*'Import avoidance model - RR'!$H$16)/100) -> 0 | AX79: 4.367443786 | AY79: =IF('Import avoidance model - RR'!H42="N",0,LOGIC!G131*'Import avoidance model - RR'!$H$20)/100 -> 0 | AZ79: =AG79-(IF(AND($R79>'Import avoidance model - RR'!$I$15,$R79<'Import avoidance model - RR'!$J$15),'Import avoidance model - RR'!$H$15*LOGIC!N131,LOGIC!N131*'Import avoidance model - RR'!$H$16)/100) -> 0 | BA79: 1.571302668 | BB79: =IF('Import avoidance model - RR'!H42="N",0,LOGIC!N131*'Import avoidance model - RR'!$H$20)/100 -> 0 | BC79: =AI79-(IF(AND($R79>'Import avoidance model - RR'!$I$15,$R79<'Import avoidance model - RR'!$J$15),'Import avoidance model - RR'!$H$15*LOGIC!G183,LOGIC!G183*'Import avoidance model - RR'!$H$16)/100) -> 0 | BD79: 4.367443786 | BE79: =IF('Import avoidance model - RR'!H42="N",0,LOGIC!G183*'Import avoidance model - RR'!$H$20)/100 -> 0 | BF79: =AK79-(IF(AND($R79>'Import avoidance model - RR'!$I$15,$R79<'Import avoidance model - RR'!$J$15),'Import avoidance model - RR'!$H$15*LOGIC!N183,LOGIC!N183*'Import avoidance model - RR'!$H$16)/100) -> 0 | BG79: 1.571302668 | BH79: =IF('Import avoidance model - RR'!H42="N",0,LOGIC!N183*'Import avoidance model - RR'!$H$20)/100 -> 0 | BI79: =AM79-(IF(AND($R79>'Import avoidance model - RR'!$I$15,$R79<'Import avoidance model - RR'!$J$15),'Import avoidance model - RR'!$H$15*LOGIC!G27,LOGIC!G27*'Import avoidance model - RR'!$H$16)/100) -> 1.025360599 | BJ79: 3.598423337 | BK79: =IF('Import avoidance model - RR'!H42="N",0,LOGIC!G27*'Import avoidance model - RR'!$H$20)/100 -> 0 | BL79: =AO79-(IF(AND($R79>'Import avoidance model - RR'!$I$15,$R79<'Import avoidance model - RR'!$J$15),'Import avoidance model - RR'!$H$15*LOGIC!N27,LOGIC!N27*'Import avoidance model - RR'!$H$16)/100) -> 0 | BM79: 1.571302668 | BN79: =IF('Import avoidance model - RR'!H42="N",0,LOGIC!N27*'Import avoidance model - RR'!$H$20)/100 -> 0
B80: 11:30:00 | C80: ='PV data'!J28 -> 73.54316977 | D80: 60.05283954 | E80: 13.49033023 | F80: 13.49033023 | G80: 0 | H80: 13.49033023 | I80: =IF(AND(I79+H80<=$A$5,I79+H80>$A$3),LOGIC!I79+LOGIC!H80,IF(I79+H80>$A$5,$A$5,$A$3)) -> 32.45683486 | J80: 73.54316977 | K80: 20.57475868 | L80: 52.96841109 | M80: 15 | N80: 0 | O80: 15 | P80: =IF(AND(P79+O80<=$A$5,P79+O80>$A$3),LOGIC!P79+LOGIC!O80,IF(P79+O80>$A$5,$A$5,$A$3)) -> 60 | R80: 11:30:00 | S80: =(IF(AND($R80>'Import avoidance model - RR'!$I$15,'Import avoidance model - RR'!$J$15),'Import avoidance model - RR'!$H$15,'Import avoidance model - RR'!$H$16))*D80/100 -> 6.005283954 | T80: =(IF(AND($R80>'Import avoidance model - RR'!$I$15,'Import avoidance model - RR'!$J$15),'Import avoidance model - RR'!$H$15,'Import avoidance model - RR'!$H$16))*K80/100 -> 2.057475868 | U80: =(IF(AND($R80>'Import avoidance model - RR'!$I$15,'Import avoidance model - RR'!$J$15),'Import avoidance model - RR'!$H$15,'Import avoidance model - RR'!$H$16))*D132/100 -> 6.005283954 | V80: =(IF(AND($R80>'Import avoidance model - RR'!$I$15,'Import avoidance model - RR'!$J$15),'Import avoidance model - RR'!$H$15,'Import avoidance model - RR'!$H$16))*K132/100 -> 2.057475868 | W80: =(IF(AND($R80>'Import avoidance model - RR'!$I$15,'Import avoidance model - RR'!$J$15),'Import avoidance model - RR'!$H$15,'Import avoidance model - RR'!$H$16))*D184/100 -> 6.005283954 | X80: =(IF(AND($R80>'Import avoidance model - RR'!$I$15,'Import avoidance model - RR'!$J$15),'Import avoidance model - RR'!$H$15,'Import avoidance model - RR'!$H$16))*K184/100 -> 2.057475868 | Y80: =(IF(AND($R80>'Import avoidance model - RR'!$I$15,'Import avoidance model - RR'!$J$15),'Import avoidance model - RR'!$H$15,'Import avoidance model - RR'!$H$16))*D28/100 -> 6.005283954 | Z80: =(IF(AND($R80>'Import avoidance model - RR'!$I$15,'Import avoidance model - RR'!$J$15),'Import avoidance model - RR'!$H$15,'Import avoidance model - RR'!$H$16))*K28/100 -> 2.057475868 | AA80: =IF(C80<LOGIC!D80,(LOGIC!D80-LOGIC!C80)*IF(AND(LOGIC!B80>'Import avoidance model - RR'!$I$15,LOGIC!B80<'Import avoidance model - RR'!$J$15),'Import avoidance model - RR'!$H$15,'Import avoidance model - RR'!$H$16),0)/100 -> 0 | AB80: =IF('Import avoidance model - RR'!$H$17="N",0,IF(D80<=C80,D80,C80)*'Import avoidance model - RR'!$H$18/100) -> 4.503962966 | AC80: =IF(J80<LOGIC!K80,(LOGIC!K80-LOGIC!J80)*IF(AND(LOGIC!B80>'Import avoidance model - RR'!$I$15,LOGIC!B80<'Import avoidance model - RR'!$J$15),'Import avoidance model - RR'!$H$15,'Import avoidance model - RR'!$H$16),0)/100 -> 0 | AD80: =IF('Import avoidance model - RR'!$H$17="N",0,IF(K80<=C80,K80,C80)*'Import avoidance model - RR'!$H$18/100) -> 1.543106901 | AE80: =IF(C132<LOGIC!D132,(LOGIC!D132-LOGIC!C132)*IF(AND(LOGIC!B132>'Import avoidance model - RR'!$I$15,LOGIC!B132<'Import avoidance model - RR'!$J$15),'Import avoidance model - RR'!$H$15,'Import avoidance model - RR'!$H$16),0)/100 -> 0 | AF80: =IF('Import avoidance model - RR'!$H$17="N",0,IF(D132<=C132,D132,C132)*'Import avoidance model - RR'!$H$18/100) -> 4.503962966 | AG80: =IF(J132<LOGIC!K132,(LOGIC!K132-LOGIC!J132)*IF(AND(LOGIC!B132>'Import avoidance model - RR'!$I$15,LOGIC!B132<'Import avoidance model - RR'!$J$15),'Import avoidance model - RR'!$H$15,'Import avoidance model - RR'!$H$16),0)/100 -> 0 | AH80: =IF('Import avoidance model - RR'!$H$17="N",0,IF(K132<=C132,K132,C132)*'Import avoidance model - RR'!$H$18/100) -> 1.543106901 | AI80: =IF(C184<LOGIC!D184,(LOGIC!D184-LOGIC!C184)*IF(AND(LOGIC!B184>'Import avoidance model - RR'!$I$15,LOGIC!B184<'Import avoidance model - RR'!$J$15),'Import avoidance model - RR'!$H$15,'Import avoidance model - RR'!$H$16),0)/100 -> 0.5257600302 | AJ80: =IF('Import avoidance model - RR'!$H$17="N",0,IF(D184<=C184,D184,C184)*'Import avoidance model - RR'!$H$18/100) -> 4.109642943 | AK80: =IF(J184<LOGIC!K184,(LOGIC!K184-LOGIC!J184)*IF(AND(LOGIC!B184>'Import avoidance model - RR'!$I$15,LOGIC!B184<'Import avoidance model - RR'!$J$15),'Import avoidance model - RR'!$H$15,'Import avoidance model - RR'!$H$16),0)/100 -> 0 | AL80: =IF('Import avoidance model - RR'!$H$17="N",0,IF(K184<=C184,K184,C184)*'Import avoidance model - RR'!$H$18/100) -> 1.543106901 | AM80: =IF(C28<LOGIC!D28,(LOGIC!D28-LOGIC!C28)*IF(AND(LOGIC!B28>'Import avoidance model - RR'!$I$15,LOGIC!B28<'Import avoidance model - RR'!$J$15),'Import avoidance model - RR'!$H$15,'Import avoidance model - RR'!$H$16),0)/100 -> 3.588193742 | AN80: =IF('Import avoidance model - RR'!$H$17="N",0,IF(D28<=C28,D28,C28)*'Import avoidance model - RR'!$H$18/100) -> 1.812817659 | AO80: =IF(J28<LOGIC!K28,(LOGIC!K28-LOGIC!J28)*IF(AND(LOGIC!B184>'Import avoidance model - RR'!$I$15,LOGIC!B184<'Import avoidance model - RR'!$J$15),'Import avoidance model - RR'!$H$15,'Import avoidance model - RR'!$H$16),0)/100 -> 0 | AP80: =IF('Import avoidance model - RR'!$H$17="N",0,IF(K28<=C28,K28,C28)*'Import avoidance model - RR'!$H$18/100) -> 1.543106901 | AQ80: =AA80-(IF(AND($R80>'Import avoidance model - RR'!$I$15,$R80<'Import avoidance model - RR'!$J$15),'Import avoidance model - RR'!$H$15*LOGIC!G80,LOGIC!G80*'Import avoidance model - RR'!$H$16)/100) -> 0 | AR80: 4.503962966 | AS80: =IF('Import avoidance model - RR'!H43="N",0,LOGIC!G80*'Import avoidance model - RR'!$H$20)/100 -> 0 | AT80: =AC80-(IF(AND($R80>'Import avoidance model - RR'!$I$15,$R80<'Import avoidance model - RR'!$J$15),'Import avoidance model - RR'!$H$15*LOGIC!N80,LOGIC!N80*'Import avoidance model - RR'!$H$16)/100) -> 0 | AU80: 1.543106901 | AV80: =IF('Import avoidance model - RR'!H43="N",0,LOGIC!N80*'Import avoidance model - RR'!$H$20)/100 -> 0 | AW80: =AE80-(IF(AND($R80>'Import avoidance model - RR'!$I$15,$R80<'Import avoidance model - RR'!$J$15),'Import avoidance model - RR'!$H$15*LOGIC!G132,LOGIC!G132*'Import avoidance model - RR'!$H$16)/100) -> 0 | AX80: 4.503962966 | AY80: =IF('Import avoidance model - RR'!H43="N",0,LOGIC!G132*'Import avoidance model - RR'!$H$20)/100 -> 0 | AZ80: =AG80-(IF(AND($R80>'Import avoidance model - RR'!$I$15,$R80<'Import avoidance model - RR'!$J$15),'Import avoidance model - RR'!$H$15*LOGIC!N132,LOGIC!N132*'Import avoidance model - RR'!$H$16)/100) -> 0 | BA80: 1.543106901 | BB80: =IF('Import avoidance model - RR'!H43="N",0,LOGIC!N132*'Import avoidance model - RR'!$H$20)/100 -> 0 | BC80: =AI80-(IF(AND($R80>'Import avoidance model - RR'!$I$15,$R80<'Import avoidance model - RR'!$J$15),'Import avoidance model - RR'!$H$15*LOGIC!G184,LOGIC!G184*'Import avoidance model - RR'!$H$16)/100) -> 0 | BD80: 4.109642943 | BE80: =IF('Import avoidance model - RR'!H43="N",0,LOGIC!G184*'Import avoidance model - RR'!$H$20)/100 -> 0.3943200227 | BF80: =AK80-(IF(AND($R80>'Import avoidance model - RR'!$I$15,$R80<'Import avoidance model - RR'!$J$15),'Import avoidance model - RR'!$H$15*LOGIC!N184,LOGIC!N184*'Import avoidance model - RR'!$H$16)/100) -> 0 | BG80: 1.543106901 | BH80: =IF('Import avoidance model - RR'!H43="N",0,LOGIC!N184*'Import avoidance model - RR'!$H$20)/100 -> 0 | BI80: =AM80-(IF(AND($R80>'Import avoidance model - RR'!$I$15,$R80<'Import avoidance model - RR'!$J$15),'Import avoidance model - RR'!$H$15*LOGIC!G28,LOGIC!G28*'Import avoidance model - RR'!$H$16)/100) -> 3.588193742 | BJ80: 1.812817659 | BK80: =IF('Import avoidance model - RR'!H43="N",0,LOGIC!G28*'Import avoidance model - RR'!$H$20)/100 -> 0 | BL80: =AO80-(IF(AND($R80>'Import avoidance model - RR'!$I$15,$R80<'Import avoidance model - RR'!$J$15),'Import avoidance model - RR'!$H$15*LOGIC!N28,LOGIC!N28*'Import avoidance model - RR'!$H$16)/100) -> 0 | BM80: 1.543106901 | BN80: =IF('Import avoidance model - RR'!H43="N",0,LOGIC!N28*'Import avoidance model - RR'!$H$20)/100 -> 0
